{"text_format":"1","workbook":"xlsx","n_sheets":7,"sheets":["Total","Input","Sprachen","Ref-Tab","Ref-Daten","Ref-Modelle","Export"],"not_rendered":{"charts":0,"images":7,"macros":0,"external_links":0,"defined_names":13,"comments":2,"pivot_tables":0},"unopened":[],"bounds":{"document_bytes":16777216,"sheet_cells":100000,"rows_first":2000,"rows_last":500,"rows_between":2000,"halvings":0,"cell_chars":16384,"cell_head_chars":4096},"cells_cut":0,"cells_raw":0,"read":"whole","date_system":"1900"}

{"sheet":"Total","index":0,"n_rows":68,"n_cols":12,"rows_kept":68,"cut":false,"hidden":false,"merged":[[60,1,60,9],[61,1,61,9],[62,1,62,9],[31,7,31,8],[32,7,32,8],[33,7,33,8],[34,7,34,8],[39,1,39,2],[39,3,39,4],[39,5,39,6],[39,7,39,8],[40,1,40,2],[40,3,40,4],[40,5,40,6],[40,7,40,8],[38,5,38,6],[26,5,26,6],[27,5,27,6],[28,5,28,6],[26,7,26,8],[27,7,27,8],[28,7,28,8],[26,3,26,4],[27,3,27,4],[28,3,28,4],[38,1,38,2],[38,3,38,4],[26,1,26,2],[27,1,27,2],[28,1,28,2],[29,1,29,2],[30,1,30,2],[31,1,31,2],[32,1,32,2],[33,1,33,2],[34,1,34,2],[32,3,32,4],[33,3,33,4],[29,3,29,4],[30,3,30,4],[31,3,31,4],[32,5,32,6],[33,5,33,6],[29,5,29,6],[30,5,30,6],[31,5,31,6],[30,7,30,8],[48,7,48,8],[45,1,45,2],[46,1,46,2],[47,1,47,2],[45,3,45,4],[46,3,46,4],[47,3,47,4],[45,5,45,6],[48,1,48,2],[48,3,48,4],[48,5,48,6],[47,5,47,6],[46,5,46,6],[38,7,38,8],[34,5,34,6],[20,5,21,9],[57,1,57,2],[41,1,41,2],[41,3,41,4],[52,1,52,2],[54,1,54,2],[56,1,56,2],[55,1,55,2],[41,7,41,8],[45,7,45,8],[46,7,46,8],[47,7,47,8],[53,1,53,2],[41,5,41,6],[34,3,34,4],[29,7,29,8],[8,1,8,4],[3,1,3,4],[4,1,4,4],[5,1,5,4],[6,1,6,4],[7,1,7,4]]}
[{"$f":"IF(Sprache=\"deutsch\",Sprachen!A2,IF(Sprache=\"Français\",Sprachen!B2,Sprachen!C2))","v":"Statistik Sonnenenergie - Installation Solarthermie"},null,null,null,null,null,"Sprache/Langue/Lingua:","Deutsch",null,{"$f":"Ref_Jahr","v":2023},null,{"$f":"IF(Sprache=\"deutsch\",Sprachen!A103,IF(Sprache=\"Français\",Sprachen!B103,Sprachen!C103))","v":"Falls Fehler hier angezeigt:"}]
[null,null,null,null,null,null,null,null,null,{"$f":"IF(AND(Export!D20=0,Export!D21=0,SUM('Ref-Tab'!A47:A49)=3),IF(Sprache=\"Deutsch\",Sprachen!$A$94,IF(Sprache=\"Français\",Sprachen!$B$94,Sprachen!$C$94)),IF(AND('Ref-Tab'!B46=6,SUMPRODUCT(--ISTEXT(Input!AL3:AL50))=0),IF(Sprache=\"Deutsch\",Sprachen!$A$94,IF(Sprache=\"Français\",Sprachen!$B$94,Sprachen!$C$94)),IF(Sprache=\"Deutsch\",Sprachen!$A$95,IF(Sprache=\"Français\",Sprachen!$B$95,Sprachen!$C$95))))","v":"Status ok"},null,{"$f":"IF(Sprache=\"deutsch\",Sprachen!A110,IF(Sprache=\"Français\",Sprachen!B110,Sprachen!C110))","v":"Datenkonsistenz Blatt 'Total'"}]
[{"$f":"IF(Sprache=\"deutsch\",Sprachen!A3,IF(Sprache=\"Français\",Sprachen!B3,Sprachen!C3))","v":"Unternehmen"},null,null,null,null,null,null,null,null,null,null,{"$f":"IF(SUM(B21:D21)=SUM(H19:J19),\"\",IF(Sprache=\"Deutsch\",Sprachen!$A$96,IF(Sprache=\"Français\",Sprachen!$B$96,Sprachen!$C$96))&\": Total Verkauf Schweiz Tabelle 1 <> Tabelle 2\")","v":""}]
[{"$f":"IF(Sprache=\"deutsch\",Sprachen!A4,IF(Sprache=\"Français\",Sprachen!B4,Sprachen!C4))","v":"Firma"},null,null,null,null,null,{"$f":"IF(Sprache=\"deutsch\",Sprachen!A10,IF(Sprache=\"Français\",Sprachen!B10,Sprachen!C10))","v":"Hersteller"},null,null,null,null,{"$f":"IF('Ref-Tab'!B47,\"\",IF(Sprache=\"Deutsch\",Sprachen!$A$104,IF(Sprache=\"Français\",Sprachen!$B$104,Sprachen!$C$104)))","v":""}]
[{"$f":"IF(Sprache=\"deutsch\",Sprachen!A5,IF(Sprache=\"Français\",Sprachen!B5,Sprachen!C5))","v":"Strasse"},null,null,null,null,null,{"$f":"IF(Sprache=\"deutsch\",Sprachen!A11,IF(Sprache=\"Français\",Sprachen!B11,Sprachen!C11))","v":"Importeur"},null,null,null,null,{"$f":"IF('Ref-Tab'!B48,\"\",IF(Sprache=\"Deutsch\",Sprachen!$A$105,IF(Sprache=\"Français\",Sprachen!$B$105,Sprachen!$C$105)))","v":""}]
[{"$f":"IF(Sprache=\"deutsch\",Sprachen!A6,IF(Sprache=\"Français\",Sprachen!B6,Sprachen!C6))","v":"PLZ/Ort"},null,null,null,null,null,{"$f":"IF(Sprache=\"deutsch\",Sprachen!A12,IF(Sprache=\"Français\",Sprachen!B12,Sprachen!C12))","v":"Handelsunternehmung"},null,null,null,null,{"$f":"IF('Ref-Tab'!B49,\"\",IF(Sprache=\"Deutsch\",Sprachen!$A$106,IF(Sprache=\"Français\",Sprachen!$B$106,Sprachen!$C$106)))","v":""}]
[{"$f":"IF(Sprache=\"deutsch\",Sprachen!A7,IF(Sprache=\"Français\",Sprachen!B7,Sprachen!C7))","v":"Kontaktperson"},null,null,null,null,null,{"$f":"IF(Sprache=\"deutsch\",Sprachen!A13,IF(Sprache=\"Français\",Sprachen!B13,Sprachen!C13))","v":"Installateur"},null,null,null,null,{"$f":"IF(Sprache=\"deutsch\",Sprachen!A111,IF(Sprache=\"Français\",Sprachen!B111,Sprachen!C111))","v":"Konsistenz zwischen Blatt Total und Input"}]
[{"$f":"IF(Sprache=\"deutsch\",Sprachen!A8,IF(Sprache=\"Français\",Sprachen!B8,Sprachen!C8))","v":"Telefon"},null,null,null,null,null,{"$f":"IF(Sprache=\"deutsch\",Sprachen!A14,IF(Sprache=\"Français\",Sprachen!B14,Sprachen!C14))","v":"Andere"},null,null,null,null,{"$f":"IF(SUM(B21:D21)=Input!J54,\"\",IF(Sprache=\"Deutsch\",Sprachen!$A$96,IF(Sprache=\"Français\",Sprachen!$B$96,Sprachen!$C$96))&\": Total Verkauf Schweiz Tabelle 1 weicht um \"&ROUND(SUM(B21:D21),0)-ROUND(Input!J54,0)&\" ab vom Total m2 in Tabellenblatt 'Eingabe'\")","v":""}]
[{"$f":"IF(Sprache=\"deutsch\",Sprachen!A9,IF(Sprache=\"Français\",Sprachen!B9,Sprachen!C9))","v":"E-Mail"},null,null,null,null,null,null,null,null,null,null,{"$f":"IF('Ref-Tab'!B50,\"\",IF(Sprache=\"Deutsch\",Sprachen!$A$107,IF(Sprache=\"Français\",Sprachen!$B$107,Sprachen!$C$107)))","v":""}]
[null,null,null,null,null,null,null,null,null,null,null,{"$f":"IF('Ref-Tab'!B51,\"\",IF(Sprache=\"Deutsch\",Sprachen!$A$108,IF(Sprache=\"Français\",Sprachen!$B$108,Sprachen!$C$108)))","v":""}]
[{"$f":"IF(Sprache=\"deutsch\",Sprachen!A23,IF(Sprache=\"Français\",Sprachen!B23,Sprachen!C23))","v":"        Ich habe keine Anlagen produziert, gehandelt oder installiert"},null,null,null,null,null,null,null,null,null,null,{"$f":"IF('Ref-Tab'!B52,\"\",IF(Sprache=\"Deutsch\",Sprachen!$A$109,IF(Sprache=\"Français\",Sprachen!$B$109,Sprachen!$C$109)))","v":""}]
[null,null,null,null,null,null,null,null,null,null,null,{"$f":"IF(Sprache=\"deutsch\",Sprachen!A112,IF(Sprache=\"Français\",Sprachen!B112,Sprachen!C112))","v":"Datenkonsistenz Blatt 'Input'"}]
[{"$f":"IF(Sprache=\"deutsch\",Sprachen!A15,IF(Sprache=\"Français\",Sprachen!B15,Sprachen!C15))","v":"Produktion & Handel"},null,null,null,null,null,null,null,null,null,null,{"$f":"IF(SUMPRODUCT(--ISTEXT(Input!AM3:AM50))>0=TRUE,IF(Sprache=\"Deutsch\",Sprachen!$A$96,IF(Sprache=\"Français\",Sprachen!$B$96,Sprachen!$C$96))&\": Mind. eine Detaileingabe in Tabellenblatt 'Input' ist falsch\",\"\")","v":""}]
[]
[{"$f":"IF(Sprache=\"deutsch\",Sprachen!A16,IF(Sprache=\"Français\",Sprachen!B16,Sprachen!C16))","v":"1. Herkunft der Kollektoren"},{"$f":"IF(Sprache=\"deutsch\",Sprachen!A24,IF(Sprache=\"Français\",Sprachen!B24,Sprachen!C24))","v":"Flach-Kollektor in m2"},{"$f":"IF(Sprache=\"deutsch\",Sprachen!A25,IF(Sprache=\"Français\",Sprachen!B25,Sprachen!C25))","v":"Röhren-Kollektor in m2"},{"$f":"IF(Sprache=\"deutsch\",Sprachen!A26,IF(Sprache=\"Français\",Sprachen!B26,Sprachen!C26))","v":"WISC-Kollektor in m2"},null,{"$f":"IF(Sprache=\"deutsch\",Sprachen!A27,IF(Sprache=\"Français\",Sprachen!B27,Sprachen!C27))","v":"2. Vertrieb der Kollektoren"},null,{"$f":"IF(Sprache=\"deutsch\",Sprachen!A24,IF(Sprache=\"Français\",Sprachen!B24,Sprachen!C24))","v":"Flach-Kollektor in m2"},{"$f":"IF(Sprache=\"deutsch\",Sprachen!A25,IF(Sprache=\"Français\",Sprachen!B25,Sprachen!C25))","v":"Röhren-Kollektor in m2"},{"$f":"IF(Sprache=\"deutsch\",Sprachen!A26,IF(Sprache=\"Français\",Sprachen!B26,Sprachen!C26))","v":"WISC-Kollektor in m2"}]
[{"$f":"IF(Sprache=\"deutsch\",Sprachen!A17,IF(Sprache=\"Français\",Sprachen!B17,Sprachen!C17))","v":"Eigenproduktion"},null,null,null,null,{"$f":"IF(Sprache=\"deutsch\",Sprachen!A28,IF(Sprache=\"Français\",Sprachen!B28,Sprachen!C28))","v":"an Bauherrschaft"}]
[{"$f":"IF(Sprache=\"deutsch\",Sprachen!A18,IF(Sprache=\"Français\",Sprachen!B18,Sprachen!C18))","v":"Bezug Schweiz"},null,null,null,null,{"$f":"IF(Sprache=\"deutsch\",Sprachen!A29,IF(Sprache=\"Français\",Sprachen!B29,Sprachen!C29))","v":"an Installateur"}]
[{"$f":"IF(Sprache=\"deutsch\",Sprachen!A19,IF(Sprache=\"Français\",Sprachen!B19,Sprachen!C19))","v":"Import"},null,null,null,null,{"$f":"IF(Sprache=\"deutsch\",Sprachen!A30,IF(Sprache=\"Français\",Sprachen!B30,Sprachen!C30))","v":"an Handel"}]
[{"$f":"IF(Sprache=\"deutsch\",Sprachen!A20,IF(Sprache=\"Français\",Sprachen!B20,Sprachen!C20))","v":"Summe Herkunft"},{"$f":"SUM(B16:B18)","v":0},{"$f":"SUM(C16:C18)","v":0},{"$f":"SUM(D16:D18)","v":0},null,{"$f":"IF(Sprache=\"deutsch\",Sprachen!A22,IF(Sprache=\"Français\",Sprachen!B22,Sprachen!C22))","v":"Verkauf Schweiz"},null,{"$f":"SUM(H16:H18)","v":0},{"$f":"SUM(I16:I18)","v":0},{"$f":"SUM(J16:J18)","v":0}]
[{"$f":"IF(Sprache=\"deutsch\",Sprachen!A21,IF(Sprache=\"Français\",Sprachen!B21,Sprachen!C21))","v":"Export"}]
[{"$f":"IF(Sprache=\"deutsch\",Sprachen!A22,IF(Sprache=\"Français\",Sprachen!B22,Sprachen!C22))","v":"Verkauf Schweiz"},{"$f":"+B19-B20","v":0},{"$f":"+C19-C20","v":0},{"$f":"+D19-D20","v":0},null,{"$f":"IF(Sprache=\"deutsch\",Sprachen!A31,IF(Sprache=\"Français\",Sprachen!B31,Sprachen!C31))","v":"Erfassen Sie die detaillierten Angaben für den Bereich Installation im Tabellenblatt 'Input' ->"}]
[]
[{"$f":"IF(Sprache=\"deutsch\",Sprachen!A32,IF(Sprache=\"Français\",Sprachen!B32,Sprachen!C32))","v":"Installation - Zusammenfassung und Auswertung der Angaben"}]
[]
[{"$f":"IF(Sprache=\"deutsch\",Sprachen!A33,IF(Sprache=\"Français\",Sprachen!B33,Sprachen!C33))","v":"... nach Ort der Anlage"}]
[null,{"$f":"IF(Sprache=\"deutsch\",Sprachen!A34,IF(Sprache=\"Français\",Sprachen!B34,Sprachen!C34))","v":"Anz. Anlagen"},null,{"$f":"IF(Sprache=\"deutsch\",Sprachen!A35,IF(Sprache=\"Français\",Sprachen!B35,Sprachen!C35))","v":"Fläche in m2"},null,{"$f":"IF(Sprache=\"deutsch\",Sprachen!A36,IF(Sprache=\"Français\",Sprachen!B36,Sprachen!C36))","v":"Leistung in KW"},null,{"$f":"IF(Sprache=\"deutsch\",Sprachen!A37,IF(Sprache=\"Français\",Sprachen!B37,Sprachen!C37))","v":"Energie in kWh"}]
[{"$f":"IF(Sprache=\"deutsch\",Sprachen!A38,IF(Sprache=\"Français\",Sprachen!B38,Sprachen!C38))","v":"Einfamilienhäuser "},{"$f":"SUMIF(Input!C3:C53,A27,Input!K3:K53)","v":0},null,{"$f":"SUMIF(Input!C3:C53,A27,Input!J3:J53)","v":0},null,{"$f":"SUMIF(Input!C3:C53,A27,Input!U3:U53)","v":0},null,{"$f":"SUMIF(Input!C3:C53,A27,Input!AC3:AC53)","v":0}]
[{"$f":"IF(Sprache=\"deutsch\",Sprachen!A39,IF(Sprache=\"Français\",Sprachen!B39,Sprachen!C39))","v":"Mehrfamilienhäuser "},{"$f":"SUMIF(Input!C3:C53,A28,Input!K3:K53)","v":0},null,{"$f":"SUMIF(Input!C3:C53,A28,Input!J3:J53)","v":0},null,{"$f":"SUMIF(Input!C3:C53,A28,Input!U3:U53)","v":0},null,{"$f":"SUMIF(Input!C3:C53,A28,Input!AC3:AC53)","v":0}]
[{"$f":"IF(Sprache=\"deutsch\",Sprachen!A40,IF(Sprache=\"Français\",Sprachen!B40,Sprachen!C40))","v":"Industrie, Gewerbe"},{"$f":"SUMIF(Input!C3:C53,A29,Input!K3:K53)","v":0},null,{"$f":"SUMIF(Input!C3:C53,A29,Input!J3:J53)","v":0},null,{"$f":"SUMIF(Input!C3:C53,A29,Input!U3:U53)","v":0},null,{"$f":"SUMIF(Input!C3:C53,A29,Input!AC3:AC53)","v":0}]
[{"$f":"IF(Sprache=\"deutsch\",Sprachen!A41,IF(Sprache=\"Français\",Sprachen!B41,Sprachen!C41))","v":"Landwirtschaft"},{"$f":"SUMIF(Input!C3:C53,A30,Input!K3:K53)","v":0},null,{"$f":"SUMIF(Input!C3:C53,A30,Input!J3:J53)","v":0},null,{"$f":"SUMIF(Input!C3:C53,A30,Input!U3:U53)","v":0},null,{"$f":"SUMIF(Input!C3:C53,A30,Input!AC3:AC53)","v":0}]
[{"$f":"IF(Sprache=\"deutsch\",Sprachen!A42,IF(Sprache=\"Français\",Sprachen!B42,Sprachen!C42))","v":"Dienstleistung"},{"$f":"SUMIF(Input!C3:C53,A31,Input!K3:K53)","v":0},null,{"$f":"SUMIF(Input!C3:C53,A31,Input!J3:J53)","v":0},null,{"$f":"SUMIF(Input!C3:C53,A31,Input!U3:U53)","v":0},null,{"$f":"SUMIF(Input!C3:C53,A31,Input!AC3:AC53)","v":0}]
[{"$f":"IF(Sprache=\"deutsch\",Sprachen!A43,IF(Sprache=\"Français\",Sprachen!B43,Sprachen!C43))","v":"Öffentliche Dienste"},{"$f":"SUMIF(Input!C3:C53,A32,Input!K3:K53)","v":0},null,{"$f":"SUMIF(Input!C3:C53,A32,Input!J3:J53)","v":0},null,{"$f":"SUMIF(Input!C3:C53,A32,Input!U3:U53)","v":0},null,{"$f":"SUMIF(Input!C3:C53,A32,Input!AC3:AC53)","v":0}]
[{"$f":"IF(Sprache=\"deutsch\",Sprachen!A44,IF(Sprache=\"Français\",Sprachen!B44,Sprachen!C44))","v":"Verkehr"},{"$f":"SUMIF(Input!C3:C53,A33,Input!K3:K53)","v":0},null,{"$f":"SUMIF(Input!C3:C53,A33,Input!J3:J53)","v":0},null,{"$f":"SUMIF(Input!C3:C53,A33,Input!U3:U53)","v":0},null,{"$f":"SUMIF(Input!C3:C53,A33,Input!AC3:AC53)","v":0}]
[{"$f":"IF(Sprache=\"deutsch\",Sprachen!A45,IF(Sprache=\"Français\",Sprachen!B45,Sprachen!C45))","v":"Übrige Standorte"},{"$f":"SUMIF(Input!C3:C53,A34,Input!K3:K53)","v":0},null,{"$f":"SUMIF(Input!C3:C53,A34,Input!J3:J53)","v":0},null,{"$f":"SUMIF(Input!C3:C53,A34,Input!U3:U53)","v":0},null,{"$f":"SUMIF(Input!C3:C53,A34,Input!AC3:AC53)","v":0}]
[{"$f":"IF(Sprache=\"deutsch\",Sprachen!A46,IF(Sprache=\"Français\",Sprachen!B46,Sprachen!C46))","v":"Total"},{"$f":"SUM(B27:C34)","v":0},null,{"$f":"SUM(D27:D34)","v":0},null,{"$f":"SUM(F27:F34)","v":0},null,{"$f":"SUM(H27:H34)","v":0}]
[]
[{"$f":"IF(Sprache=\"deutsch\",Sprachen!A47,IF(Sprache=\"Français\",Sprachen!B47,Sprachen!C47))","v":"... nach Art der Anlage"}]
[null,{"$f":"IF(Sprache=\"deutsch\",Sprachen!A34,IF(Sprache=\"Français\",Sprachen!B34,Sprachen!C34))","v":"Anz. Anlagen"},null,{"$f":"IF(Sprache=\"deutsch\",Sprachen!A35,IF(Sprache=\"Français\",Sprachen!B35,Sprachen!C35))","v":"Fläche in m2"},null,{"$f":"IF(Sprache=\"deutsch\",Sprachen!A36,IF(Sprache=\"Français\",Sprachen!B36,Sprachen!C36))","v":"Leistung in KW"},null,{"$f":"IF(Sprache=\"deutsch\",Sprachen!A37,IF(Sprache=\"Français\",Sprachen!B37,Sprachen!C37))","v":"Energie in kWh"}]
[{"$f":"IF(Sprache=\"deutsch\",Sprachen!A48,IF(Sprache=\"Français\",Sprachen!B48,Sprachen!C48))","v":"Vorwärmung/Schwimmbad"},{"$f":"SUM(Input!E3:E53)","v":0},null,{"$f":"SUM(Input!D3:D53)","v":0},null,{"$f":"IF(SUM(Input!J3:J53)<>0,SUM(Input!U3:U53)/SUM(Input!J3:J53)*D39,0)","v":0},null,{"$f":"SUM(Input!Z3:Z53)","v":0}]
[{"$f":"IF(Sprache=\"deutsch\",Sprachen!A49,IF(Sprache=\"Français\",Sprachen!B49,Sprachen!C49))","v":"Warmwasser"},{"$f":"SUM(Input!G3:G53)","v":0},null,{"$f":"SUM(Input!F3:F53)","v":0},null,{"$f":"IF(SUM(Input!J3:J53)<>0,SUM(Input!U3:U53)/SUM(Input!J3:J53)*D40,0)","v":0},null,{"$f":"SUM(Input!AA3:AA53)","v":0}]
[{"$f":"IF(Sprache=\"deutsch\",Sprachen!A50,IF(Sprache=\"Français\",Sprachen!B50,Sprachen!C50))","v":"Heizungs-untertützung"},{"$f":"SUM(Input!I3:I53)","v":0},null,{"$f":"SUM(Input!H3:H53)","v":0},null,{"$f":"IF(SUM(Input!J3:J53)<>0,SUM(Input!U3:U53)/SUM(Input!J3:J53)*D41,0)","v":0},null,{"$f":"SUM(Input!AB3:AB53)","v":0}]
[{"$f":"IF(Sprache=\"deutsch\",Sprachen!A46,IF(Sprache=\"Français\",Sprachen!B46,Sprachen!C46))","v":"Total"},{"$f":"SUM(B39:C41)","v":0},null,{"$f":"SUM(D39:E41)","v":0},null,{"$f":"SUM(F39:G41)","v":0},null,{"$f":"SUM(H39:I41)","v":0}]
[]
[{"$f":"IF(Sprache=\"deutsch\",Sprachen!A51,IF(Sprache=\"Français\",Sprachen!B51,Sprachen!C51))","v":"… nach Kollektortyp"}]
[null,{"$f":"IF(Sprache=\"deutsch\",Sprachen!A34,IF(Sprache=\"Français\",Sprachen!B34,Sprachen!C34))","v":"Anz. Anlagen"},null,{"$f":"IF(Sprache=\"deutsch\",Sprachen!A35,IF(Sprache=\"Français\",Sprachen!B35,Sprachen!C35))","v":"Fläche in m2"},null,{"$f":"IF(Sprache=\"deutsch\",Sprachen!A36,IF(Sprache=\"Français\",Sprachen!B36,Sprachen!C36))","v":"Leistung in KW"},null,{"$f":"IF(Sprache=\"deutsch\",Sprachen!A37,IF(Sprache=\"Français\",Sprachen!B37,Sprachen!C37))","v":"Energie in kWh"}]
[{"$f":"IF(Sprache=\"deutsch\",Sprachen!A52,IF(Sprache=\"Français\",Sprachen!B52,Sprachen!C52))","v":"Flachkollektor"},{"$f":"SUMIF(Input!V3:V53,IF(Sprache=\"deutsch\",Sprachen!A52,IF(Sprache=\"Français\",Sprachen!B52,Sprachen!C52)),Input!K3:K53)","v":0},null,{"$f":"SUMIF(Input!V3:V53,IF(Sprache=\"deutsch\",Sprachen!A52,IF(Sprache=\"Français\",Sprachen!B52,Sprachen!C52)),Input!J3:J53)","v":0},null,{"$f":"SUMIF(Input!V3:V53,IF(Sprache=\"deutsch\",Sprachen!A52,IF(Sprache=\"Français\",Sprachen!B52,Sprachen!C52)),Input!U3:U53)","v":0},null,{"$f":"SUMIF(Input!V3:V53,IF(Sprache=\"deutsch\",Sprachen!A52,IF(Sprache=\"Français\",Sprachen!B52,Sprachen!C52)),Input!AC3:AC53)","v":0}]
[{"$f":"IF(Sprache=\"deutsch\",Sprachen!A53,IF(Sprache=\"Français\",Sprachen!B53,Sprachen!C53))","v":"Röhrenkollektor"},{"$f":"SUMIF(Input!V3:V53,IF(Sprache=\"deutsch\",Sprachen!A53,IF(Sprache=\"Français\",Sprachen!B53,Sprachen!C53)),Input!K3:K53)","v":0},null,{"$f":"SUMIF(Input!V3:V53,IF(Sprache=\"deutsch\",Sprachen!A53,IF(Sprache=\"Français\",Sprachen!B53,Sprachen!C53)),Input!J3:J53)","v":0},null,{"$f":"SUMIF(Input!V3:V53,IF(Sprache=\"deutsch\",Sprachen!A53,IF(Sprache=\"Français\",Sprachen!B53,Sprachen!C53)),Input!U3:U53)","v":0},null,{"$f":"SUMIF(Input!V3:V53,IF(Sprache=\"deutsch\",Sprachen!A53,IF(Sprache=\"Français\",Sprachen!B53,Sprachen!C53)),Input!AC3:AC53)","v":0}]
[{"$f":"IF(Sprache=\"deutsch\",Sprachen!A54,IF(Sprache=\"Français\",Sprachen!B54,Sprachen!C54))","v":"WISC Kollektor"},{"$f":"SUMIF(Input!V3:V53,IF(Sprache=\"deutsch\",Sprachen!A54,IF(Sprache=\"Français\",Sprachen!B54,Sprachen!C54)),Input!K3:K53)","v":0},null,{"$f":"SUMIF(Input!V3:V53,IF(Sprache=\"deutsch\",Sprachen!A54,IF(Sprache=\"Français\",Sprachen!B54,Sprachen!C54)),Input!J3:J53)","v":0},null,{"$f":"SUMIF(Input!V3:V53,IF(Sprache=\"deutsch\",Sprachen!A54,IF(Sprache=\"Français\",Sprachen!B54,Sprachen!C54)),Input!U3:U53)","v":0},null,{"$f":"SUMIF(Input!V3:V53,IF(Sprache=\"deutsch\",Sprachen!A54,IF(Sprache=\"Français\",Sprachen!B54,Sprachen!C54)),Input!AC3:AC53)","v":0}]
[{"$f":"IF(Sprache=\"deutsch\",Sprachen!A46,IF(Sprache=\"Français\",Sprachen!B46,Sprachen!C46))","v":"Total"},{"$f":"SUM(B46:C48)","v":0},null,{"$f":"SUM(D46:E48)","v":0},null,{"$f":"SUM(F46:G48)","v":0},null,{"$f":"SUM(H46:I48)","v":0}]
[]
[{"$f":"IF(Sprache=\"deutsch\",Sprachen!A55,IF(Sprache=\"Français\",Sprachen!B55,Sprachen!C55))","v":"… nach Grösse der Anlage"}]
[null,{"$f":"IF(Sprache=\"deutsch\",Sprachen!A34,IF(Sprache=\"Français\",Sprachen!B34,Sprachen!C34))","v":"Anz. Anlagen"}]
["< 10 m2",{"$f":"SUM(Input!L3:L53)","v":0}]
["10 - 20 m2",{"$f":"SUM(Input!M3:M53)","v":0}]
["20 - 50 m2",{"$f":"SUM(Input!N3:N53)","v":0}]
["50 - 100 m2",{"$f":"SUM(Input!O3:O53)","v":0}]
["> 100 m2",{"$f":"SUM(Input!P3:P53)","v":0}]
[{"$f":"IF(Sprache=\"deutsch\",Sprachen!A46,IF(Sprache=\"Français\",Sprachen!B46,Sprachen!C46))","v":"Total"},{"$f":"SUM(B53:C57)","v":0}]
[]
[{"$f":"IF(Sprache=\"deutsch\",Sprachen!A56,IF(Sprache=\"Français\",Sprachen!B56,Sprachen!C56))","v":"Grundsätze"}]
[{"$f":"IF(Sprache=\"deutsch\",Sprachen!A57,IF(Sprache=\"Français\",Sprachen!B57,Sprachen!C57))","v":"Datenschutz\n"},{"$f":"IF(Sprache=\"deutsch\",Sprachen!A61,IF(Sprache=\"Français\",Sprachen!B61,Sprachen!C61))","v":"Die Zahlen der einzelnen Firmen werden streng vertraulich behandelt. Sie sind lediglich den verantwortlichen Personen von Swissolar sowie dem Bundesamt für Energie, Sektion Analysen und Perspektiven, zugänglich."}]
[{"$f":"IF(Sprache=\"deutsch\",Sprachen!A58,IF(Sprache=\"Français\",Sprachen!B58,Sprachen!C58))","v":"Zeitpunkt"},{"$f":"IF(Sprache=\"deutsch\",Sprachen!A62,IF(Sprache=\"Français\",Sprachen!B62,Sprachen!C62))","v":"Massgebend für die Statistik ist der Zeitpunkt der Verkäufe und/oder Installationen im Jahre 2023."}]
[{"$f":"IF(Sprache=\"deutsch\",Sprachen!A59,IF(Sprache=\"Français\",Sprachen!B59,Sprachen!C59))","v":"Erhebungsgrössen"},{"$f":"IF(Sprache=\"deutsch\",Sprachen!A63,IF(Sprache=\"Français\",Sprachen!B63,Sprachen!C63))","v":"Für die Erhebung der Komponenten der thermischen Nutzung der Sonnenenergie ist die Thermischen Kollektor Nennleistung TKN massgebend, die auf der Basis der Norm ISO 9806:2017 geprüft und ausgemessen wird"}]
[{"$f":"IF(Sprache=\"deutsch\",Sprachen!A60,IF(Sprache=\"Français\",Sprachen!B60,Sprachen!C60))","v":"Rücksendung"},{"$f":"IF(Sprache=\"deutsch\",Sprachen!A64,IF(Sprache=\"Français\",Sprachen!B64,Sprachen!C64))","v":"Freitag, 09. Februar 2024 an marktumfrage@swissolar.ch"}]
[]
[]
["xxxxx"]
[{"$f":"IF(Sprache=\"deutsch\",Sprachen!A66,IF(Sprache=\"Français\",Sprachen!B66,Sprachen!C66))","v":"Bitte erfassen Sie die im Jahr 2023 in der Schweiz installierten thermische Solaranlagen:"},null,{"$f":"MAX(B27:C34,B39:C41,B46:C48,B53:C57)*1.2","v":0},null,{"$f":"MAX(D27:E34,D39:E41,D46:E48,D53:E57)*1.4","v":0},null,{"$f":"MAX(F27:G34,F39:G41,F46:G48,F53:G57)*1.4","v":0},null,{"$f":"MAX(H27:I34,H39:I41,H46:I48,H53:I57)*1.5","v":0}]

{"sheet":"Input","index":1,"n_rows":57,"n_cols":46,"rows_kept":57,"cut":false,"hidden":false,"merged":[[0,25,0,28],[0,22,0,24],[0,11,0,15],[0,3,0,4],[0,5,0,6],[0,7,0,8],[0,9,0,10],[0,16,0,17]]}
[{"$f":"IF(Sprache=\"deutsch\",Sprachen!A66,IF(Sprache=\"Français\",Sprachen!B66,Sprachen!C66))","v":"Bitte erfassen Sie die im Jahr 2023 in der Schweiz installierten thermische Solaranlagen:"},null,null,{"$f":"IF(Sprache=\"deutsch\",Sprachen!A48,IF(Sprache=\"Français\",Sprachen!B48,Sprachen!C48))","v":"Vorwärmung/Schwimmbad"},null,{"$f":"IF(Sprache=\"deutsch\",Sprachen!A49,IF(Sprache=\"Français\",Sprachen!B49,Sprachen!C49))","v":"Warmwasser"},null,{"$f":"IF(Sprache=\"deutsch\",Sprachen!A50,IF(Sprache=\"Français\",Sprachen!B50,Sprachen!C50))","v":"Heizungs-untertützung"},null,{"$f":"IF(Sprache=\"deutsch\",Sprachen!A46,IF(Sprache=\"Français\",Sprachen!B46,Sprachen!C46))","v":"Total"},null,{"$f":"IF(Sprache=\"deutsch\",Sprachen!A67,IF(Sprache=\"Français\",Sprachen!B67,Sprachen!C67))","v":"Anzahl Anlagen mit \nAnlagegrösse"},null,null,null,null,{"$f":"IF(Sprache=\"deutsch\",Sprachen!A68,IF(Sprache=\"Français\",Sprachen!B68,Sprachen!C68))","v":"Ersatz"},null,{"$f":"IF(Sprache=\"deutsch\",Sprachen!A69,IF(Sprache=\"Français\",Sprachen!B69,Sprachen!C69))","v":"Status"},{"$f":"IF(Sprache=\"deutsch\",Sprachen!A70,IF(Sprache=\"Français\",Sprachen!B70,Sprachen!C70))","v":"Nennleistung"},{"$f":"IF(Sprache=\"deutsch\",Sprachen!A71,IF(Sprache=\"Français\",Sprachen!B71,Sprachen!C71))","v":"Gesamt-\nLeistung"},{"$f":"IF(Sprache=\"deutsch\",Sprachen!A72,IF(Sprache=\"Français\",Sprachen!B72,Sprachen!C72))","v":"Kollektortyp"},{"$f":"IF(Sprache=\"deutsch\",Sprachen!A73,IF(Sprache=\"Français\",Sprachen!B73,Sprachen!C73))","v":"Jahresertrag\nin kWh/m2\t\t"},null,null,{"$f":"IF(Sprache=\"deutsch\",Sprachen!A74,IF(Sprache=\"Français\",Sprachen!B74,Sprachen!C74))","v":"Installierter \nJahresertrag kWh"},null,null,null,{"$f":"IF(Sprache=\"deutsch\",Sprachen!A75,IF(Sprache=\"Français\",Sprachen!B75,Sprachen!C75))","v":"CO2 \nEinsparung"},null,"Auswahl","Bruttofläche\npro Kollektor","Aperturfläche\npro Kollektor","Aperturfläche\nTotal","Installierte \nLeistung","Abw. Inst. Leistung in %",null,"Checks"]
[{"$f":"IF(Sprache=\"deutsch\",Sprachen!A76,IF(Sprache=\"Français\",Sprachen!B76,Sprachen!C76))","v":"Hersteller"},{"$f":"IF(Sprache=\"deutsch\",Sprachen!A77,IF(Sprache=\"Français\",Sprachen!B77,Sprachen!C77))","v":"Modell"},{"$f":"IF(Sprache=\"deutsch\",Sprachen!A78,IF(Sprache=\"Français\",Sprachen!B78,Sprachen!C78))","v":"Ort"},{"$f":"IF(Sprache=\"deutsch\",Sprachen!A79,IF(Sprache=\"Français\",Sprachen!B79,Sprachen!C79))","v":"Bruttofläche m2"},{"$f":"IF(Sprache=\"deutsch\",Sprachen!A34,IF(Sprache=\"Français\",Sprachen!B34,Sprachen!C34))","v":"Anz. Anlagen"},{"$f":"IF(Sprache=\"deutsch\",Sprachen!A79,IF(Sprache=\"Français\",Sprachen!B79,Sprachen!C79))","v":"Bruttofläche m2"},{"$f":"IF(Sprache=\"deutsch\",Sprachen!A34,IF(Sprache=\"Français\",Sprachen!B34,Sprachen!C34))","v":"Anz. Anlagen"},{"$f":"IF(Sprache=\"deutsch\",Sprachen!A79,IF(Sprache=\"Français\",Sprachen!B79,Sprachen!C79))","v":"Bruttofläche m2"},{"$f":"IF(Sprache=\"deutsch\",Sprachen!A34,IF(Sprache=\"Français\",Sprachen!B34,Sprachen!C34))","v":"Anz. Anlagen"},{"$f":"IF(Sprache=\"deutsch\",Sprachen!A79,IF(Sprache=\"Français\",Sprachen!B79,Sprachen!C79))","v":"Bruttofläche m2"},{"$f":"IF(Sprache=\"deutsch\",Sprachen!A34,IF(Sprache=\"Français\",Sprachen!B34,Sprachen!C34))","v":"Anz. Anlagen"},{"$f":"IF(Sprache=\"deutsch\",Sprachen!A80,IF(Sprache=\"Français\",Sprachen!B80,Sprachen!C80))","v":"< 10 m2"},{"$f":"IF(Sprache=\"deutsch\",Sprachen!A81,IF(Sprache=\"Français\",Sprachen!B81,Sprachen!C81))","v":"10 - 20 m2"},{"$f":"IF(Sprache=\"deutsch\",Sprachen!A82,IF(Sprache=\"Français\",Sprachen!B82,Sprachen!C82))","v":"20 - 50 m2"},{"$f":"IF(Sprache=\"deutsch\",Sprachen!A83,IF(Sprache=\"Français\",Sprachen!B83,Sprachen!C83))","v":"50 - 100 m2"},{"$f":"IF(Sprache=\"deutsch\",Sprachen!A84,IF(Sprache=\"Français\",Sprachen!B84,Sprachen!C84))","v":"> 100 m2"},{"$f":"IF(Sprache=\"deutsch\",Sprachen!A79,IF(Sprache=\"Français\",Sprachen!B79,Sprachen!C79))","v":"Bruttofläche m2"},{"$f":"IF(Sprache=\"deutsch\",Sprachen!A34,IF(Sprache=\"Français\",Sprachen!B34,Sprachen!C34))","v":"Anz. Anlagen"},null,{"$f":"IF(Sprache=\"deutsch\",Sprachen!A85,IF(Sprache=\"Français\",Sprachen!B85,Sprachen!C85))","v":"in kW/m2"},{"$f":"IF(Sprache=\"deutsch\",Sprachen!A86,IF(Sprache=\"Français\",Sprachen!B86,Sprachen!C86))","v":"in kW"},null,{"$f":"IF(Sprache=\"deutsch\",Sprachen!A87,IF(Sprache=\"Français\",Sprachen!B87,Sprachen!C87))","v":"VW"},{"$f":"IF(Sprache=\"deutsch\",Sprachen!A88,IF(Sprache=\"Français\",Sprachen!B88,Sprachen!C88))","v":"WW"},{"$f":"IF(Sprache=\"deutsch\",Sprachen!A89,IF(Sprache=\"Français\",Sprachen!B89,Sprachen!C89))","v":"HU"},{"$f":"IF(Sprache=\"deutsch\",Sprachen!A87,IF(Sprache=\"Français\",Sprachen!B87,Sprachen!C87))","v":"VW"},{"$f":"IF(Sprache=\"deutsch\",Sprachen!A88,IF(Sprache=\"Français\",Sprachen!B88,Sprachen!C88))","v":"WW"},{"$f":"IF(Sprache=\"deutsch\",Sprachen!A89,IF(Sprache=\"Français\",Sprachen!B89,Sprachen!C89))","v":"HU"},{"$f":"IF(Sprache=\"deutsch\",Sprachen!A46,IF(Sprache=\"Français\",Sprachen!B46,Sprachen!C46))","v":"Total"},{"$f":"IF(Sprache=\"deutsch\",Sprachen!A90,IF(Sprache=\"Français\",Sprachen!B90,Sprachen!C90))","v":"in Tonnen"},null,null,"m2","m2","m2","in kW",null,null,"Total Checks","1 Check Modul/Hersteller",2,"Anlagengrösse",3,"Ersatz Bruttofläche m2",4,"Ersatz Anzahl Anlagen"]
[null,null,null,null,null,null,null,null,null,{"$f":"SUM(D3,F3,H3)","v":0},{"$f":"SUM(E3,G3,I3)","v":0},null,null,null,null,null,null,null,{"$f":"IF(AM3=0,IF(Sprache=\"Deutsch\",Sprachen!$A$94,IF(Sprache=\"Français\",Sprachen!$B$94,Sprachen!$C$94)),AM3&IF(AN3<>\"\",\" - \"&AN3,IF(AP3<>\"\",\" - \"&AP3,IF(AR3<>\"\",\" - \"&AR3,IF(AT3<>\"\",\" \"&AT3,\"\")))))","v":"Status ok"},{"$f":"SUMIF('Ref-Daten'!L:L,AF3,'Ref-Daten'!F:F)","v":0},{"$f":"T3*J3","v":0},{"$f":"IF(AND(3<>\"\",B3<>\"\"),VLOOKUP(VLOOKUP(A3&B3,CHOOSE({1,2},'Ref-Daten'!A:A&'Ref-Daten'!B:B,'Ref-Daten'!G:G),2,0),Ref_KTypen,IF(Sprache=\"Deutsch\",1,IF(Sprache=\"Français\",2,3)),FALSE),\"\")","v":""},{"$f":"SUMIF('Ref-Daten'!L:L,AF3,'Ref-Daten'!C:C)","v":0},{"$f":"SUMIF('Ref-Daten'!L:L,AF3,'Ref-Daten'!D:D)","v":0},{"$f":"SUMIF('Ref-Daten'!L:L,AF3,'Ref-Daten'!E:E)","v":0},{"$f":"D3*W3","v":0},{"$f":"F3*X3","v":0},{"$f":"H3*Y3","v":0},{"$f":"SUM(Z3:AB3)","v":0},{"$f":"AC3/4000","v":0},null,{"$f":"A3&\"-\"&B3","v":"-"},{"$f":"SUMIF('Ref-Daten'!L:L,AF3,'Ref-Daten'!I:I)","v":0},{"$f":"SUMIF('Ref-Daten'!L:L,AF3,'Ref-Daten'!J:J)","v":0},{"$f":"IF(AG3=0,0,J3/AG3*AH3)","v":0},{"$f":"AI3*SUMIF('Ref-Daten'!L:L,AF3,'Ref-Daten'!K:K)","v":0},{"$f":"IF(AJ3<>0,-(AJ3-U3)/AJ3,0)","v":0},null,{"$f":"IF(OR(AN3<>\"\",AP3<>\"\",AR3<>\"\",AT3<>\"\"),IF(Sprache=\"Deutsch\",Sprachen!$A$96,IF(Sprache=\"Français\",Sprachen!$B$96,Sprachen!$C$96)),0)","v":0},{"$f":"IF(A3<>\"\",IF(COUNTIF('Ref-Daten'!L:L,AF3)=1,\"\",\"Kombination Hersteller/Modell funktioniert nicht\"),\"\")","v":""},{"$f":"SUM(K3)-SUM(L3:P3)","v":0},{"$f":"IF(AO3>0,IF(Sprache=\"deutsch\",Sprachen!$A$98,IF(Sprache=\"Français\",Sprachen!$B$98,Sprachen!$C$98))&\" \"&AO3&IF(Sprache=\"deutsch\",Sprachen!$A$99,IF(Sprache=\"Français\",Sprachen!$B$99,Sprachen!$C$99)),IF(AO3<0,IF(Sprache=\"deutsch\",Sprachen!$A$97,IF(Sprache=\"Français\",Sprachen!$B$97,Sprachen!$C$97))&\" \"&AO3&IF(Sprache=\"deutsch\",Sprachen!$A$100,IF(Sprache=\"Français\",Sprachen!$B$100,Sprachen!$C$100)),\"\"))","v":""},{"$f":"SUM(J3)-SUM(Q3)","v":0},{"$f":"IF(AQ3<0,IF(Sprache=\"Deutsch\",Sprachen!$A$101,IF(Sprache=\"Français\",Sprachen!$B$101,Sprachen!$C$101)),\"\")","v":""},{"$f":"SUM(K3)-SUM(R3)","v":0},{"$f":"IF(AS3<0,IF(Sprache=\"Deutsch\",Sprachen!$A$102,IF(Sprache=\"Français\",Sprachen!$B$102,Sprachen!$C$102)),\"\")","v":""}]
[null,null,null,null,null,null,null,null,null,{"$f":"SUM(D4,F4,H4)","v":0},{"$f":"SUM(E4,G4,I4)","v":0},null,null,null,null,null,null,null,{"$f":"IF(AM4=0,IF(Sprache=\"Deutsch\",Sprachen!$A$94,IF(Sprache=\"Français\",Sprachen!$B$94,Sprachen!$C$94)),AM4&IF(AN4<>\"\",\" - \"&AN4,IF(AP4<>\"\",\" - \"&AP4,IF(AR4<>\"\",\" - \"&AR4,IF(AT4<>\"\",\" \"&AT4,\"\")))))","v":"Status ok"},{"$f":"SUMIF('Ref-Daten'!L:L,AF4,'Ref-Daten'!F:F)","v":0},0,{"$f":"IF(AND(3<>\"\",B4<>\"\"),VLOOKUP(VLOOKUP(A4&B4,CHOOSE({1,2},'Ref-Daten'!A:A&'Ref-Daten'!B:B,'Ref-Daten'!G:G),2,0),Ref_KTypen,IF(Sprache=\"Deutsch\",1,IF(Sprache=\"Français\",2,3)),FALSE),\"\")","v":""},{"$f":"SUMIF('Ref-Daten'!L:L,AF4,'Ref-Daten'!C:C)","v":0},{"$f":"SUMIF('Ref-Daten'!L:L,AF4,'Ref-Daten'!D:D)","v":0},{"$f":"SUMIF('Ref-Daten'!L:L,AF4,'Ref-Daten'!E:E)","v":0},0,0,0,{"$f":"SUM(Z4:AB4)","v":0},{"$f":"AC4/4000","v":0},null,"-",{"$f":"SUMIF('Ref-Daten'!L:L,AF4,'Ref-Daten'!I:I)","v":0},{"$f":"SUMIF('Ref-Daten'!L:L,AF4,'Ref-Daten'!J:J)","v":0},0,{"$f":"AI4*SUMIF('Ref-Daten'!L:L,AF4,'Ref-Daten'!K:K)","v":0},{"$f":"IF(AJ4<>0,-(AJ4-U4)/AJ4,0)","v":0},null,{"$f":"IF(OR(AN4<>\"\",AP4<>\"\",AR4<>\"\",AT4<>\"\"),IF(Sprache=\"Deutsch\",Sprachen!$A$96,IF(Sprache=\"Français\",Sprachen!$B$96,Sprachen!$C$96)),0)","v":0},{"$f":"IF(A4<>\"\",IF(COUNTIF('Ref-Daten'!L:L,AF4)=1,\"\",\"Kombination Hersteller/Modell funktioniert nicht\"),\"\")","v":""},0,{"$f":"IF(AO4>0,IF(Sprache=\"deutsch\",Sprachen!$A$98,IF(Sprache=\"Français\",Sprachen!$B$98,Sprachen!$C$98))&\" \"&AO4&IF(Sprache=\"deutsch\",Sprachen!$A$99,IF(Sprache=\"Français\",Sprachen!$B$99,Sprachen!$C$99)),IF(AO4<0,IF(Sprache=\"deutsch\",Sprachen!$A$97,IF(Sprache=\"Français\",Sprachen!$B$97,Sprachen!$C$97))&\" \"&AO4&IF(Sprache=\"deutsch\",Sprachen!$A$100,IF(Sprache=\"Français\",Sprachen!$B$100,Sprachen!$C$100)),\"\"))","v":""},{"$f":"SUM(J4)-SUM(Q4)","v":0},{"$f":"IF(AQ4<0,IF(Sprache=\"Deutsch\",Sprachen!$A$101,IF(Sprache=\"Français\",Sprachen!$B$101,Sprachen!$C$101)),\"\")","v":""},{"$f":"SUM(K4)-SUM(R4)","v":0},{"$f":"IF(AS4<0,\"Ersatz Anzahl Anlagen zu hoch\",\"\")","v":""}]
[null,null,null,null,null,null,null,null,null,{"$f":"SUM(D5,F5,H5)","v":0},{"$f":"SUM(E5,G5,I5)","v":0},null,null,null,null,null,null,null,{"$f":"IF(AM5=0,IF(Sprache=\"Deutsch\",Sprachen!$A$94,IF(Sprache=\"Français\",Sprachen!$B$94,Sprachen!$C$94)),AM5&IF(AN5<>\"\",\" - \"&AN5,IF(AP5<>\"\",\" - \"&AP5,IF(AR5<>\"\",\" - \"&AR5,IF(AT5<>\"\",\" \"&AT5,\"\")))))","v":"Status ok"},{"$f":"SUMIF('Ref-Daten'!L:L,AF5,'Ref-Daten'!F:F)","v":0},0,{"$f":"IF(AND(3<>\"\",B5<>\"\"),VLOOKUP(VLOOKUP(A5&B5,CHOOSE({1,2},'Ref-Daten'!A:A&'Ref-Daten'!B:B,'Ref-Daten'!G:G),2,0),Ref_KTypen,IF(Sprache=\"Deutsch\",1,IF(Sprache=\"Français\",2,3)),FALSE),\"\")","v":""},{"$f":"SUMIF('Ref-Daten'!L:L,AF5,'Ref-Daten'!C:C)","v":0},{"$f":"SUMIF('Ref-Daten'!L:L,AF5,'Ref-Daten'!D:D)","v":0},{"$f":"SUMIF('Ref-Daten'!L:L,AF5,'Ref-Daten'!E:E)","v":0},0,0,0,0,0,null,"-",{"$f":"SUMIF('Ref-Daten'!L:L,AF5,'Ref-Daten'!I:I)","v":0},{"$f":"SUMIF('Ref-Daten'!L:L,AF5,'Ref-Daten'!J:J)","v":0},0,{"$f":"AI5*SUMIF('Ref-Daten'!L:L,AF5,'Ref-Daten'!K:K)","v":0},0,null,{"$f":"IF(OR(AN5<>\"\",AP5<>\"\",AR5<>\"\",AT5<>\"\"),IF(Sprache=\"Deutsch\",Sprachen!$A$96,IF(Sprache=\"Français\",Sprachen!$B$96,Sprachen!$C$96)),0)","v":0},{"$f":"IF(A5<>\"\",IF(COUNTIF('Ref-Daten'!L:L,AF5)=1,\"\",\"Kombination Hersteller/Modell funktioniert nicht\"),\"\")","v":""},0,{"$f":"IF(AO5>0,IF(Sprache=\"deutsch\",Sprachen!$A$98,IF(Sprache=\"Français\",Sprachen!$B$98,Sprachen!$C$98))&\" \"&AO5&IF(Sprache=\"deutsch\",Sprachen!$A$99,IF(Sprache=\"Français\",Sprachen!$B$99,Sprachen!$C$99)),IF(AO5<0,IF(Sprache=\"deutsch\",Sprachen!$A$97,IF(Sprache=\"Français\",Sprachen!$B$97,Sprachen!$C$97))&\" \"&AO5&IF(Sprache=\"deutsch\",Sprachen!$A$100,IF(Sprache=\"Français\",Sprachen!$B$100,Sprachen!$C$100)),\"\"))","v":""},0,{"$f":"IF(AQ5<0,IF(Sprache=\"Deutsch\",Sprachen!$A$101,IF(Sprache=\"Français\",Sprachen!$B$101,Sprachen!$C$101)),\"\")","v":""},0,""]
[null,null,null,null,null,null,null,null,null,0,0,null,null,null,null,null,null,null,{"$f":"IF(AM6=0,IF(Sprache=\"Deutsch\",Sprachen!$A$94,IF(Sprache=\"Français\",Sprachen!$B$94,Sprachen!$C$94)),AM6&IF(AN6<>\"\",\" - \"&AN6,IF(AP6<>\"\",\" - \"&AP6,IF(AR6<>\"\",\" - \"&AR6,IF(AT6<>\"\",\" \"&AT6,\"\")))))","v":"Status ok"},{"$f":"SUMIF('Ref-Daten'!L:L,AF6,'Ref-Daten'!F:F)","v":0},0,{"$f":"IF(AND(3<>\"\",B6<>\"\"),VLOOKUP(VLOOKUP(A6&B6,CHOOSE({1,2},'Ref-Daten'!A:A&'Ref-Daten'!B:B,'Ref-Daten'!G:G),2,0),Ref_KTypen,IF(Sprache=\"Deutsch\",1,IF(Sprache=\"Français\",2,3)),FALSE),\"\")","v":""},{"$f":"SUMIF('Ref-Daten'!L:L,AF6,'Ref-Daten'!C:C)","v":0},{"$f":"SUMIF('Ref-Daten'!L:L,AF6,'Ref-Daten'!D:D)","v":0},{"$f":"SUMIF('Ref-Daten'!L:L,AF6,'Ref-Daten'!E:E)","v":0},0,0,0,0,0,null,"-",{"$f":"SUMIF('Ref-Daten'!L:L,AF6,'Ref-Daten'!I:I)","v":0},{"$f":"SUMIF('Ref-Daten'!L:L,AF6,'Ref-Daten'!J:J)","v":0},0,{"$f":"AI6*SUMIF('Ref-Daten'!L:L,AF6,'Ref-Daten'!K:K)","v":0},0,null,{"$f":"IF(OR(AN6<>\"\",AP6<>\"\",AR6<>\"\",AT6<>\"\"),IF(Sprache=\"Deutsch\",Sprachen!$A$96,IF(Sprache=\"Français\",Sprachen!$B$96,Sprachen!$C$96)),0)","v":0},{"$f":"IF(A6<>\"\",IF(COUNTIF('Ref-Daten'!L:L,AF6)=1,\"\",\"Kombination Hersteller/Modell funktioniert nicht\"),\"\")","v":""},0,{"$f":"IF(AO6>0,IF(Sprache=\"deutsch\",Sprachen!$A$98,IF(Sprache=\"Français\",Sprachen!$B$98,Sprachen!$C$98))&\" \"&AO6&IF(Sprache=\"deutsch\",Sprachen!$A$99,IF(Sprache=\"Français\",Sprachen!$B$99,Sprachen!$C$99)),IF(AO6<0,IF(Sprache=\"deutsch\",Sprachen!$A$97,IF(Sprache=\"Français\",Sprachen!$B$97,Sprachen!$C$97))&\" \"&AO6&IF(Sprache=\"deutsch\",Sprachen!$A$100,IF(Sprache=\"Français\",Sprachen!$B$100,Sprachen!$C$100)),\"\"))","v":""},0,{"$f":"IF(AQ6<0,IF(Sprache=\"Deutsch\",Sprachen!$A$101,IF(Sprache=\"Français\",Sprachen!$B$101,Sprachen!$C$101)),\"\")","v":""},0,""]
[null,null,null,null,null,null,null,null,null,0,0,null,null,null,null,null,null,null,{"$f":"IF(AM7=0,IF(Sprache=\"Deutsch\",Sprachen!$A$94,IF(Sprache=\"Français\",Sprachen!$B$94,Sprachen!$C$94)),AM7&IF(AN7<>\"\",\" - \"&AN7,IF(AP7<>\"\",\" - \"&AP7,IF(AR7<>\"\",\" - \"&AR7,IF(AT7<>\"\",\" \"&AT7,\"\")))))","v":"Status ok"},{"$f":"SUMIF('Ref-Daten'!L:L,AF7,'Ref-Daten'!F:F)","v":0},0,{"$f":"IF(AND(3<>\"\",B7<>\"\"),VLOOKUP(VLOOKUP(A7&B7,CHOOSE({1,2},'Ref-Daten'!A:A&'Ref-Daten'!B:B,'Ref-Daten'!G:G),2,0),Ref_KTypen,IF(Sprache=\"Deutsch\",1,IF(Sprache=\"Français\",2,3)),FALSE),\"\")","v":""},{"$f":"SUMIF('Ref-Daten'!L:L,AF7,'Ref-Daten'!C:C)","v":0},{"$f":"SUMIF('Ref-Daten'!L:L,AF7,'Ref-Daten'!D:D)","v":0},{"$f":"SUMIF('Ref-Daten'!L:L,AF7,'Ref-Daten'!E:E)","v":0},0,0,0,0,0,null,"-",{"$f":"SUMIF('Ref-Daten'!L:L,AF7,'Ref-Daten'!I:I)","v":0},{"$f":"SUMIF('Ref-Daten'!L:L,AF7,'Ref-Daten'!J:J)","v":0},0,{"$f":"AI7*SUMIF('Ref-Daten'!L:L,AF7,'Ref-Daten'!K:K)","v":0},0,null,{"$f":"IF(OR(AN7<>\"\",AP7<>\"\",AR7<>\"\",AT7<>\"\"),IF(Sprache=\"Deutsch\",Sprachen!$A$96,IF(Sprache=\"Français\",Sprachen!$B$96,Sprachen!$C$96)),0)","v":0},{"$f":"IF(A7<>\"\",IF(COUNTIF('Ref-Daten'!L:L,AF7)=1,\"\",\"Kombination Hersteller/Modell funktioniert nicht\"),\"\")","v":""},0,{"$f":"IF(AO7>0,IF(Sprache=\"deutsch\",Sprachen!$A$98,IF(Sprache=\"Français\",Sprachen!$B$98,Sprachen!$C$98))&\" \"&AO7&IF(Sprache=\"deutsch\",Sprachen!$A$99,IF(Sprache=\"Français\",Sprachen!$B$99,Sprachen!$C$99)),IF(AO7<0,IF(Sprache=\"deutsch\",Sprachen!$A$97,IF(Sprache=\"Français\",Sprachen!$B$97,Sprachen!$C$97))&\" \"&AO7&IF(Sprache=\"deutsch\",Sprachen!$A$100,IF(Sprache=\"Français\",Sprachen!$B$100,Sprachen!$C$100)),\"\"))","v":""},0,{"$f":"IF(AQ7<0,IF(Sprache=\"Deutsch\",Sprachen!$A$101,IF(Sprache=\"Français\",Sprachen!$B$101,Sprachen!$C$101)),\"\")","v":""},0,""]
[null,null,null,null,null,null,null,null,null,0,0,null,null,null,null,null,null,null,{"$f":"IF(AM8=0,IF(Sprache=\"Deutsch\",Sprachen!$A$94,IF(Sprache=\"Français\",Sprachen!$B$94,Sprachen!$C$94)),AM8&IF(AN8<>\"\",\" - \"&AN8,IF(AP8<>\"\",\" - \"&AP8,IF(AR8<>\"\",\" - \"&AR8,IF(AT8<>\"\",\" \"&AT8,\"\")))))","v":"Status ok"},{"$f":"SUMIF('Ref-Daten'!L:L,AF8,'Ref-Daten'!F:F)","v":0},0,{"$f":"IF(AND(3<>\"\",B8<>\"\"),VLOOKUP(VLOOKUP(A8&B8,CHOOSE({1,2},'Ref-Daten'!A:A&'Ref-Daten'!B:B,'Ref-Daten'!G:G),2,0),Ref_KTypen,IF(Sprache=\"Deutsch\",1,IF(Sprache=\"Français\",2,3)),FALSE),\"\")","v":""},{"$f":"SUMIF('Ref-Daten'!L:L,AF8,'Ref-Daten'!C:C)","v":0},{"$f":"SUMIF('Ref-Daten'!L:L,AF8,'Ref-Daten'!D:D)","v":0},{"$f":"SUMIF('Ref-Daten'!L:L,AF8,'Ref-Daten'!E:E)","v":0},0,0,0,0,0,null,"-",{"$f":"SUMIF('Ref-Daten'!L:L,AF8,'Ref-Daten'!I:I)","v":0},{"$f":"SUMIF('Ref-Daten'!L:L,AF8,'Ref-Daten'!J:J)","v":0},0,{"$f":"AI8*SUMIF('Ref-Daten'!L:L,AF8,'Ref-Daten'!K:K)","v":0},0,null,{"$f":"IF(OR(AN8<>\"\",AP8<>\"\",AR8<>\"\",AT8<>\"\"),IF(Sprache=\"Deutsch\",Sprachen!$A$96,IF(Sprache=\"Français\",Sprachen!$B$96,Sprachen!$C$96)),0)","v":0},{"$f":"IF(A8<>\"\",IF(COUNTIF('Ref-Daten'!L:L,AF8)=1,\"\",\"Kombination Hersteller/Modell funktioniert nicht\"),\"\")","v":""},0,{"$f":"IF(AO8>0,IF(Sprache=\"deutsch\",Sprachen!$A$98,IF(Sprache=\"Français\",Sprachen!$B$98,Sprachen!$C$98))&\" \"&AO8&IF(Sprache=\"deutsch\",Sprachen!$A$99,IF(Sprache=\"Français\",Sprachen!$B$99,Sprachen!$C$99)),IF(AO8<0,IF(Sprache=\"deutsch\",Sprachen!$A$97,IF(Sprache=\"Français\",Sprachen!$B$97,Sprachen!$C$97))&\" \"&AO8&IF(Sprache=\"deutsch\",Sprachen!$A$100,IF(Sprache=\"Français\",Sprachen!$B$100,Sprachen!$C$100)),\"\"))","v":""},0,{"$f":"IF(AQ8<0,IF(Sprache=\"Deutsch\",Sprachen!$A$101,IF(Sprache=\"Français\",Sprachen!$B$101,Sprachen!$C$101)),\"\")","v":""},0,""]
[null,null,null,null,null,null,null,null,null,0,0,null,null,null,null,null,null,null,{"$f":"IF(AM9=0,IF(Sprache=\"Deutsch\",Sprachen!$A$94,IF(Sprache=\"Français\",Sprachen!$B$94,Sprachen!$C$94)),AM9&IF(AN9<>\"\",\" - \"&AN9,IF(AP9<>\"\",\" - \"&AP9,IF(AR9<>\"\",\" - \"&AR9,IF(AT9<>\"\",\" \"&AT9,\"\")))))","v":"Status ok"},{"$f":"SUMIF('Ref-Daten'!L:L,AF9,'Ref-Daten'!F:F)","v":0},0,{"$f":"IF(AND(3<>\"\",B9<>\"\"),VLOOKUP(VLOOKUP(A9&B9,CHOOSE({1,2},'Ref-Daten'!A:A&'Ref-Daten'!B:B,'Ref-Daten'!G:G),2,0),Ref_KTypen,IF(Sprache=\"Deutsch\",1,IF(Sprache=\"Français\",2,3)),FALSE),\"\")","v":""},{"$f":"SUMIF('Ref-Daten'!L:L,AF9,'Ref-Daten'!C:C)","v":0},{"$f":"SUMIF('Ref-Daten'!L:L,AF9,'Ref-Daten'!D:D)","v":0},{"$f":"SUMIF('Ref-Daten'!L:L,AF9,'Ref-Daten'!E:E)","v":0},0,0,0,0,0,null,"-",{"$f":"SUMIF('Ref-Daten'!L:L,AF9,'Ref-Daten'!I:I)","v":0},{"$f":"SUMIF('Ref-Daten'!L:L,AF9,'Ref-Daten'!J:J)","v":0},0,{"$f":"AI9*SUMIF('Ref-Daten'!L:L,AF9,'Ref-Daten'!K:K)","v":0},0,null,{"$f":"IF(OR(AN9<>\"\",AP9<>\"\",AR9<>\"\",AT9<>\"\"),IF(Sprache=\"Deutsch\",Sprachen!$A$96,IF(Sprache=\"Français\",Sprachen!$B$96,Sprachen!$C$96)),0)","v":0},{"$f":"IF(A9<>\"\",IF(COUNTIF('Ref-Daten'!L:L,AF9)=1,\"\",\"Kombination Hersteller/Modell funktioniert nicht\"),\"\")","v":""},0,{"$f":"IF(AO9>0,IF(Sprache=\"deutsch\",Sprachen!$A$98,IF(Sprache=\"Français\",Sprachen!$B$98,Sprachen!$C$98))&\" \"&AO9&IF(Sprache=\"deutsch\",Sprachen!$A$99,IF(Sprache=\"Français\",Sprachen!$B$99,Sprachen!$C$99)),IF(AO9<0,IF(Sprache=\"deutsch\",Sprachen!$A$97,IF(Sprache=\"Français\",Sprachen!$B$97,Sprachen!$C$97))&\" \"&AO9&IF(Sprache=\"deutsch\",Sprachen!$A$100,IF(Sprache=\"Français\",Sprachen!$B$100,Sprachen!$C$100)),\"\"))","v":""},0,{"$f":"IF(AQ9<0,IF(Sprache=\"Deutsch\",Sprachen!$A$101,IF(Sprache=\"Français\",Sprachen!$B$101,Sprachen!$C$101)),\"\")","v":""},0,""]
[null,null,null,null,null,null,null,null,null,0,0,null,null,null,null,null,null,null,{"$f":"IF(AM10=0,IF(Sprache=\"Deutsch\",Sprachen!$A$94,IF(Sprache=\"Français\",Sprachen!$B$94,Sprachen!$C$94)),AM10&IF(AN10<>\"\",\" - \"&AN10,IF(AP10<>\"\",\" - \"&AP10,IF(AR10<>\"\",\" - \"&AR10,IF(AT10<>\"\",\" \"&AT10,\"\")))))","v":"Status ok"},{"$f":"SUMIF('Ref-Daten'!L:L,AF10,'Ref-Daten'!F:F)","v":0},0,{"$f":"IF(AND(3<>\"\",B10<>\"\"),VLOOKUP(VLOOKUP(A10&B10,CHOOSE({1,2},'Ref-Daten'!A:A&'Ref-Daten'!B:B,'Ref-Daten'!G:G),2,0),Ref_KTypen,IF(Sprache=\"Deutsch\",1,IF(Sprache=\"Français\",2,3)),FALSE),\"\")","v":""},{"$f":"SUMIF('Ref-Daten'!L:L,AF10,'Ref-Daten'!C:C)","v":0},{"$f":"SUMIF('Ref-Daten'!L:L,AF10,'Ref-Daten'!D:D)","v":0},{"$f":"SUMIF('Ref-Daten'!L:L,AF10,'Ref-Daten'!E:E)","v":0},0,0,0,0,0,null,"-",{"$f":"SUMIF('Ref-Daten'!L:L,AF10,'Ref-Daten'!I:I)","v":0},{"$f":"SUMIF('Ref-Daten'!L:L,AF10,'Ref-Daten'!J:J)","v":0},0,{"$f":"AI10*SUMIF('Ref-Daten'!L:L,AF10,'Ref-Daten'!K:K)","v":0},0,null,{"$f":"IF(OR(AN10<>\"\",AP10<>\"\",AR10<>\"\",AT10<>\"\"),IF(Sprache=\"Deutsch\",Sprachen!$A$96,IF(Sprache=\"Français\",Sprachen!$B$96,Sprachen!$C$96)),0)","v":0},{"$f":"IF(A10<>\"\",IF(COUNTIF('Ref-Daten'!L:L,AF10)=1,\"\",\"Kombination Hersteller/Modell funktioniert nicht\"),\"\")","v":""},0,{"$f":"IF(AO10>0,IF(Sprache=\"deutsch\",Sprachen!$A$98,IF(Sprache=\"Français\",Sprachen!$B$98,Sprachen!$C$98))&\" \"&AO10&IF(Sprache=\"deutsch\",Sprachen!$A$99,IF(Sprache=\"Français\",Sprachen!$B$99,Sprachen!$C$99)),IF(AO10<0,IF(Sprache=\"deutsch\",Sprachen!$A$97,IF(Sprache=\"Français\",Sprachen!$B$97,Sprachen!$C$97))&\" \"&AO10&IF(Sprache=\"deutsch\",Sprachen!$A$100,IF(Sprache=\"Français\",Sprachen!$B$100,Sprachen!$C$100)),\"\"))","v":""},0,{"$f":"IF(AQ10<0,IF(Sprache=\"Deutsch\",Sprachen!$A$101,IF(Sprache=\"Français\",Sprachen!$B$101,Sprachen!$C$101)),\"\")","v":""},0,""]
[null,null,null,null,null,null,null,null,null,0,0,null,null,null,null,null,null,null,{"$f":"IF(AM11=0,IF(Sprache=\"Deutsch\",Sprachen!$A$94,IF(Sprache=\"Français\",Sprachen!$B$94,Sprachen!$C$94)),AM11&IF(AN11<>\"\",\" - \"&AN11,IF(AP11<>\"\",\" - \"&AP11,IF(AR11<>\"\",\" - \"&AR11,IF(AT11<>\"\",\" \"&AT11,\"\")))))","v":"Status ok"},{"$f":"SUMIF('Ref-Daten'!L:L,AF11,'Ref-Daten'!F:F)","v":0},0,{"$f":"IF(AND(3<>\"\",B11<>\"\"),VLOOKUP(VLOOKUP(A11&B11,CHOOSE({1,2},'Ref-Daten'!A:A&'Ref-Daten'!B:B,'Ref-Daten'!G:G),2,0),Ref_KTypen,IF(Sprache=\"Deutsch\",1,IF(Sprache=\"Français\",2,3)),FALSE),\"\")","v":""},{"$f":"SUMIF('Ref-Daten'!L:L,AF11,'Ref-Daten'!C:C)","v":0},{"$f":"SUMIF('Ref-Daten'!L:L,AF11,'Ref-Daten'!D:D)","v":0},{"$f":"SUMIF('Ref-Daten'!L:L,AF11,'Ref-Daten'!E:E)","v":0},0,0,0,0,0,null,"-",{"$f":"SUMIF('Ref-Daten'!L:L,AF11,'Ref-Daten'!I:I)","v":0},{"$f":"SUMIF('Ref-Daten'!L:L,AF11,'Ref-Daten'!J:J)","v":0},0,{"$f":"AI11*SUMIF('Ref-Daten'!L:L,AF11,'Ref-Daten'!K:K)","v":0},0,null,{"$f":"IF(OR(AN11<>\"\",AP11<>\"\",AR11<>\"\",AT11<>\"\"),IF(Sprache=\"Deutsch\",Sprachen!$A$96,IF(Sprache=\"Français\",Sprachen!$B$96,Sprachen!$C$96)),0)","v":0},{"$f":"IF(A11<>\"\",IF(COUNTIF('Ref-Daten'!L:L,AF11)=1,\"\",\"Kombination Hersteller/Modell funktioniert nicht\"),\"\")","v":""},0,{"$f":"IF(AO11>0,IF(Sprache=\"deutsch\",Sprachen!$A$98,IF(Sprache=\"Français\",Sprachen!$B$98,Sprachen!$C$98))&\" \"&AO11&IF(Sprache=\"deutsch\",Sprachen!$A$99,IF(Sprache=\"Français\",Sprachen!$B$99,Sprachen!$C$99)),IF(AO11<0,IF(Sprache=\"deutsch\",Sprachen!$A$97,IF(Sprache=\"Français\",Sprachen!$B$97,Sprachen!$C$97))&\" \"&AO11&IF(Sprache=\"deutsch\",Sprachen!$A$100,IF(Sprache=\"Français\",Sprachen!$B$100,Sprachen!$C$100)),\"\"))","v":""},0,{"$f":"IF(AQ11<0,IF(Sprache=\"Deutsch\",Sprachen!$A$101,IF(Sprache=\"Français\",Sprachen!$B$101,Sprachen!$C$101)),\"\")","v":""},0,""]
[null,null,null,null,null,null,null,null,null,0,0,null,null,null,null,null,null,null,{"$f":"IF(AM12=0,IF(Sprache=\"Deutsch\",Sprachen!$A$94,IF(Sprache=\"Français\",Sprachen!$B$94,Sprachen!$C$94)),AM12&IF(AN12<>\"\",\" - \"&AN12,IF(AP12<>\"\",\" - \"&AP12,IF(AR12<>\"\",\" - \"&AR12,IF(AT12<>\"\",\" \"&AT12,\"\")))))","v":"Status ok"},{"$f":"SUMIF('Ref-Daten'!L:L,AF12,'Ref-Daten'!F:F)","v":0},0,{"$f":"IF(AND(3<>\"\",B12<>\"\"),VLOOKUP(VLOOKUP(A12&B12,CHOOSE({1,2},'Ref-Daten'!A:A&'Ref-Daten'!B:B,'Ref-Daten'!G:G),2,0),Ref_KTypen,IF(Sprache=\"Deutsch\",1,IF(Sprache=\"Français\",2,3)),FALSE),\"\")","v":""},{"$f":"SUMIF('Ref-Daten'!L:L,AF12,'Ref-Daten'!C:C)","v":0},{"$f":"SUMIF('Ref-Daten'!L:L,AF12,'Ref-Daten'!D:D)","v":0},{"$f":"SUMIF('Ref-Daten'!L:L,AF12,'Ref-Daten'!E:E)","v":0},0,0,0,0,0,null,"-",{"$f":"SUMIF('Ref-Daten'!L:L,AF12,'Ref-Daten'!I:I)","v":0},{"$f":"SUMIF('Ref-Daten'!L:L,AF12,'Ref-Daten'!J:J)","v":0},0,{"$f":"AI12*SUMIF('Ref-Daten'!L:L,AF12,'Ref-Daten'!K:K)","v":0},0,null,{"$f":"IF(OR(AN12<>\"\",AP12<>\"\",AR12<>\"\",AT12<>\"\"),IF(Sprache=\"Deutsch\",Sprachen!$A$96,IF(Sprache=\"Français\",Sprachen!$B$96,Sprachen!$C$96)),0)","v":0},{"$f":"IF(A12<>\"\",IF(COUNTIF('Ref-Daten'!L:L,AF12)=1,\"\",\"Kombination Hersteller/Modell funktioniert nicht\"),\"\")","v":""},0,{"$f":"IF(AO12>0,IF(Sprache=\"deutsch\",Sprachen!$A$98,IF(Sprache=\"Français\",Sprachen!$B$98,Sprachen!$C$98))&\" \"&AO12&IF(Sprache=\"deutsch\",Sprachen!$A$99,IF(Sprache=\"Français\",Sprachen!$B$99,Sprachen!$C$99)),IF(AO12<0,IF(Sprache=\"deutsch\",Sprachen!$A$97,IF(Sprache=\"Français\",Sprachen!$B$97,Sprachen!$C$97))&\" \"&AO12&IF(Sprache=\"deutsch\",Sprachen!$A$100,IF(Sprache=\"Français\",Sprachen!$B$100,Sprachen!$C$100)),\"\"))","v":""},0,{"$f":"IF(AQ12<0,IF(Sprache=\"Deutsch\",Sprachen!$A$101,IF(Sprache=\"Français\",Sprachen!$B$101,Sprachen!$C$101)),\"\")","v":""},0,""]
[null,null,null,null,null,null,null,null,null,0,0,null,null,null,null,null,null,null,{"$f":"IF(AM13=0,IF(Sprache=\"Deutsch\",Sprachen!$A$94,IF(Sprache=\"Français\",Sprachen!$B$94,Sprachen!$C$94)),AM13&IF(AN13<>\"\",\" - \"&AN13,IF(AP13<>\"\",\" - \"&AP13,IF(AR13<>\"\",\" - \"&AR13,IF(AT13<>\"\",\" \"&AT13,\"\")))))","v":"Status ok"},{"$f":"SUMIF('Ref-Daten'!L:L,AF13,'Ref-Daten'!F:F)","v":0},0,{"$f":"IF(AND(3<>\"\",B13<>\"\"),VLOOKUP(VLOOKUP(A13&B13,CHOOSE({1,2},'Ref-Daten'!A:A&'Ref-Daten'!B:B,'Ref-Daten'!G:G),2,0),Ref_KTypen,IF(Sprache=\"Deutsch\",1,IF(Sprache=\"Français\",2,3)),FALSE),\"\")","v":""},{"$f":"SUMIF('Ref-Daten'!L:L,AF13,'Ref-Daten'!C:C)","v":0},{"$f":"SUMIF('Ref-Daten'!L:L,AF13,'Ref-Daten'!D:D)","v":0},{"$f":"SUMIF('Ref-Daten'!L:L,AF13,'Ref-Daten'!E:E)","v":0},0,0,0,0,0,null,"-",{"$f":"SUMIF('Ref-Daten'!L:L,AF13,'Ref-Daten'!I:I)","v":0},{"$f":"SUMIF('Ref-Daten'!L:L,AF13,'Ref-Daten'!J:J)","v":0},0,{"$f":"AI13*SUMIF('Ref-Daten'!L:L,AF13,'Ref-Daten'!K:K)","v":0},0,null,{"$f":"IF(OR(AN13<>\"\",AP13<>\"\",AR13<>\"\",AT13<>\"\"),IF(Sprache=\"Deutsch\",Sprachen!$A$96,IF(Sprache=\"Français\",Sprachen!$B$96,Sprachen!$C$96)),0)","v":0},{"$f":"IF(A13<>\"\",IF(COUNTIF('Ref-Daten'!L:L,AF13)=1,\"\",\"Kombination Hersteller/Modell funktioniert nicht\"),\"\")","v":""},0,{"$f":"IF(AO13>0,IF(Sprache=\"deutsch\",Sprachen!$A$98,IF(Sprache=\"Français\",Sprachen!$B$98,Sprachen!$C$98))&\" \"&AO13&IF(Sprache=\"deutsch\",Sprachen!$A$99,IF(Sprache=\"Français\",Sprachen!$B$99,Sprachen!$C$99)),IF(AO13<0,IF(Sprache=\"deutsch\",Sprachen!$A$97,IF(Sprache=\"Français\",Sprachen!$B$97,Sprachen!$C$97))&\" \"&AO13&IF(Sprache=\"deutsch\",Sprachen!$A$100,IF(Sprache=\"Français\",Sprachen!$B$100,Sprachen!$C$100)),\"\"))","v":""},0,{"$f":"IF(AQ13<0,IF(Sprache=\"Deutsch\",Sprachen!$A$101,IF(Sprache=\"Français\",Sprachen!$B$101,Sprachen!$C$101)),\"\")","v":""},0,""]
[null,null,null,null,null,null,null,null,null,0,0,null,null,null,null,null,null,null,{"$f":"IF(AM14=0,IF(Sprache=\"Deutsch\",Sprachen!$A$94,IF(Sprache=\"Français\",Sprachen!$B$94,Sprachen!$C$94)),AM14&IF(AN14<>\"\",\" - \"&AN14,IF(AP14<>\"\",\" - \"&AP14,IF(AR14<>\"\",\" - \"&AR14,IF(AT14<>\"\",\" \"&AT14,\"\")))))","v":"Status ok"},{"$f":"SUMIF('Ref-Daten'!L:L,AF14,'Ref-Daten'!F:F)","v":0},0,{"$f":"IF(AND(3<>\"\",B14<>\"\"),VLOOKUP(VLOOKUP(A14&B14,CHOOSE({1,2},'Ref-Daten'!A:A&'Ref-Daten'!B:B,'Ref-Daten'!G:G),2,0),Ref_KTypen,IF(Sprache=\"Deutsch\",1,IF(Sprache=\"Français\",2,3)),FALSE),\"\")","v":""},{"$f":"SUMIF('Ref-Daten'!L:L,AF14,'Ref-Daten'!C:C)","v":0},{"$f":"SUMIF('Ref-Daten'!L:L,AF14,'Ref-Daten'!D:D)","v":0},{"$f":"SUMIF('Ref-Daten'!L:L,AF14,'Ref-Daten'!E:E)","v":0},0,0,0,0,0,null,"-",{"$f":"SUMIF('Ref-Daten'!L:L,AF14,'Ref-Daten'!I:I)","v":0},{"$f":"SUMIF('Ref-Daten'!L:L,AF14,'Ref-Daten'!J:J)","v":0},0,{"$f":"AI14*SUMIF('Ref-Daten'!L:L,AF14,'Ref-Daten'!K:K)","v":0},0,null,{"$f":"IF(OR(AN14<>\"\",AP14<>\"\",AR14<>\"\",AT14<>\"\"),IF(Sprache=\"Deutsch\",Sprachen!$A$96,IF(Sprache=\"Français\",Sprachen!$B$96,Sprachen!$C$96)),0)","v":0},{"$f":"IF(A14<>\"\",IF(COUNTIF('Ref-Daten'!L:L,AF14)=1,\"\",\"Kombination Hersteller/Modell funktioniert nicht\"),\"\")","v":""},0,{"$f":"IF(AO14>0,IF(Sprache=\"deutsch\",Sprachen!$A$98,IF(Sprache=\"Français\",Sprachen!$B$98,Sprachen!$C$98))&\" \"&AO14&IF(Sprache=\"deutsch\",Sprachen!$A$99,IF(Sprache=\"Français\",Sprachen!$B$99,Sprachen!$C$99)),IF(AO14<0,IF(Sprache=\"deutsch\",Sprachen!$A$97,IF(Sprache=\"Français\",Sprachen!$B$97,Sprachen!$C$97))&\" \"&AO14&IF(Sprache=\"deutsch\",Sprachen!$A$100,IF(Sprache=\"Français\",Sprachen!$B$100,Sprachen!$C$100)),\"\"))","v":""},0,{"$f":"IF(AQ14<0,IF(Sprache=\"Deutsch\",Sprachen!$A$101,IF(Sprache=\"Français\",Sprachen!$B$101,Sprachen!$C$101)),\"\")","v":""},0,""]
[null,null,null,null,null,null,null,null,null,0,0,null,null,null,null,null,null,null,{"$f":"IF(AM15=0,IF(Sprache=\"Deutsch\",Sprachen!$A$94,IF(Sprache=\"Français\",Sprachen!$B$94,Sprachen!$C$94)),AM15&IF(AN15<>\"\",\" - \"&AN15,IF(AP15<>\"\",\" - \"&AP15,IF(AR15<>\"\",\" - \"&AR15,IF(AT15<>\"\",\" \"&AT15,\"\")))))","v":"Status ok"},{"$f":"SUMIF('Ref-Daten'!L:L,AF15,'Ref-Daten'!F:F)","v":0},0,{"$f":"IF(AND(3<>\"\",B15<>\"\"),VLOOKUP(VLOOKUP(A15&B15,CHOOSE({1,2},'Ref-Daten'!A:A&'Ref-Daten'!B:B,'Ref-Daten'!G:G),2,0),Ref_KTypen,IF(Sprache=\"Deutsch\",1,IF(Sprache=\"Français\",2,3)),FALSE),\"\")","v":""},{"$f":"SUMIF('Ref-Daten'!L:L,AF15,'Ref-Daten'!C:C)","v":0},{"$f":"SUMIF('Ref-Daten'!L:L,AF15,'Ref-Daten'!D:D)","v":0},{"$f":"SUMIF('Ref-Daten'!L:L,AF15,'Ref-Daten'!E:E)","v":0},0,0,0,0,0,null,"-",{"$f":"SUMIF('Ref-Daten'!L:L,AF15,'Ref-Daten'!I:I)","v":0},{"$f":"SUMIF('Ref-Daten'!L:L,AF15,'Ref-Daten'!J:J)","v":0},0,{"$f":"AI15*SUMIF('Ref-Daten'!L:L,AF15,'Ref-Daten'!K:K)","v":0},0,null,{"$f":"IF(OR(AN15<>\"\",AP15<>\"\",AR15<>\"\",AT15<>\"\"),IF(Sprache=\"Deutsch\",Sprachen!$A$96,IF(Sprache=\"Français\",Sprachen!$B$96,Sprachen!$C$96)),0)","v":0},{"$f":"IF(A15<>\"\",IF(COUNTIF('Ref-Daten'!L:L,AF15)=1,\"\",\"Kombination Hersteller/Modell funktioniert nicht\"),\"\")","v":""},0,{"$f":"IF(AO15>0,IF(Sprache=\"deutsch\",Sprachen!$A$98,IF(Sprache=\"Français\",Sprachen!$B$98,Sprachen!$C$98))&\" \"&AO15&IF(Sprache=\"deutsch\",Sprachen!$A$99,IF(Sprache=\"Français\",Sprachen!$B$99,Sprachen!$C$99)),IF(AO15<0,IF(Sprache=\"deutsch\",Sprachen!$A$97,IF(Sprache=\"Français\",Sprachen!$B$97,Sprachen!$C$97))&\" \"&AO15&IF(Sprache=\"deutsch\",Sprachen!$A$100,IF(Sprache=\"Français\",Sprachen!$B$100,Sprachen!$C$100)),\"\"))","v":""},0,{"$f":"IF(AQ15<0,IF(Sprache=\"Deutsch\",Sprachen!$A$101,IF(Sprache=\"Français\",Sprachen!$B$101,Sprachen!$C$101)),\"\")","v":""},0,""]
[null,null,null,null,null,null,null,null,null,0,0,null,null,null,null,null,null,null,{"$f":"IF(AM16=0,IF(Sprache=\"Deutsch\",Sprachen!$A$94,IF(Sprache=\"Français\",Sprachen!$B$94,Sprachen!$C$94)),AM16&IF(AN16<>\"\",\" - \"&AN16,IF(AP16<>\"\",\" - \"&AP16,IF(AR16<>\"\",\" - \"&AR16,IF(AT16<>\"\",\" \"&AT16,\"\")))))","v":"Status ok"},{"$f":"SUMIF('Ref-Daten'!L:L,AF16,'Ref-Daten'!F:F)","v":0},0,{"$f":"IF(AND(3<>\"\",B16<>\"\"),VLOOKUP(VLOOKUP(A16&B16,CHOOSE({1,2},'Ref-Daten'!A:A&'Ref-Daten'!B:B,'Ref-Daten'!G:G),2,0),Ref_KTypen,IF(Sprache=\"Deutsch\",1,IF(Sprache=\"Français\",2,3)),FALSE),\"\")","v":""},{"$f":"SUMIF('Ref-Daten'!L:L,AF16,'Ref-Daten'!C:C)","v":0},{"$f":"SUMIF('Ref-Daten'!L:L,AF16,'Ref-Daten'!D:D)","v":0},{"$f":"SUMIF('Ref-Daten'!L:L,AF16,'Ref-Daten'!E:E)","v":0},0,0,0,0,0,null,"-",{"$f":"SUMIF('Ref-Daten'!L:L,AF16,'Ref-Daten'!I:I)","v":0},{"$f":"SUMIF('Ref-Daten'!L:L,AF16,'Ref-Daten'!J:J)","v":0},0,{"$f":"AI16*SUMIF('Ref-Daten'!L:L,AF16,'Ref-Daten'!K:K)","v":0},0,null,{"$f":"IF(OR(AN16<>\"\",AP16<>\"\",AR16<>\"\",AT16<>\"\"),IF(Sprache=\"Deutsch\",Sprachen!$A$96,IF(Sprache=\"Français\",Sprachen!$B$96,Sprachen!$C$96)),0)","v":0},{"$f":"IF(A16<>\"\",IF(COUNTIF('Ref-Daten'!L:L,AF16)=1,\"\",\"Kombination Hersteller/Modell funktioniert nicht\"),\"\")","v":""},0,{"$f":"IF(AO16>0,IF(Sprache=\"deutsch\",Sprachen!$A$98,IF(Sprache=\"Français\",Sprachen!$B$98,Sprachen!$C$98))&\" \"&AO16&IF(Sprache=\"deutsch\",Sprachen!$A$99,IF(Sprache=\"Français\",Sprachen!$B$99,Sprachen!$C$99)),IF(AO16<0,IF(Sprache=\"deutsch\",Sprachen!$A$97,IF(Sprache=\"Français\",Sprachen!$B$97,Sprachen!$C$97))&\" \"&AO16&IF(Sprache=\"deutsch\",Sprachen!$A$100,IF(Sprache=\"Français\",Sprachen!$B$100,Sprachen!$C$100)),\"\"))","v":""},0,{"$f":"IF(AQ16<0,IF(Sprache=\"Deutsch\",Sprachen!$A$101,IF(Sprache=\"Français\",Sprachen!$B$101,Sprachen!$C$101)),\"\")","v":""},0,""]
[null,null,null,null,null,null,null,null,null,0,0,null,null,null,null,null,null,null,{"$f":"IF(AM17=0,IF(Sprache=\"Deutsch\",Sprachen!$A$94,IF(Sprache=\"Français\",Sprachen!$B$94,Sprachen!$C$94)),AM17&IF(AN17<>\"\",\" - \"&AN17,IF(AP17<>\"\",\" - \"&AP17,IF(AR17<>\"\",\" - \"&AR17,IF(AT17<>\"\",\" \"&AT17,\"\")))))","v":"Status ok"},{"$f":"SUMIF('Ref-Daten'!L:L,AF17,'Ref-Daten'!F:F)","v":0},0,{"$f":"IF(AND(3<>\"\",B17<>\"\"),VLOOKUP(VLOOKUP(A17&B17,CHOOSE({1,2},'Ref-Daten'!A:A&'Ref-Daten'!B:B,'Ref-Daten'!G:G),2,0),Ref_KTypen,IF(Sprache=\"Deutsch\",1,IF(Sprache=\"Français\",2,3)),FALSE),\"\")","v":""},{"$f":"SUMIF('Ref-Daten'!L:L,AF17,'Ref-Daten'!C:C)","v":0},{"$f":"SUMIF('Ref-Daten'!L:L,AF17,'Ref-Daten'!D:D)","v":0},{"$f":"SUMIF('Ref-Daten'!L:L,AF17,'Ref-Daten'!E:E)","v":0},0,0,0,0,0,null,"-",{"$f":"SUMIF('Ref-Daten'!L:L,AF17,'Ref-Daten'!I:I)","v":0},{"$f":"SUMIF('Ref-Daten'!L:L,AF17,'Ref-Daten'!J:J)","v":0},0,{"$f":"AI17*SUMIF('Ref-Daten'!L:L,AF17,'Ref-Daten'!K:K)","v":0},0,null,{"$f":"IF(OR(AN17<>\"\",AP17<>\"\",AR17<>\"\",AT17<>\"\"),IF(Sprache=\"Deutsch\",Sprachen!$A$96,IF(Sprache=\"Français\",Sprachen!$B$96,Sprachen!$C$96)),0)","v":0},{"$f":"IF(A17<>\"\",IF(COUNTIF('Ref-Daten'!L:L,AF17)=1,\"\",\"Kombination Hersteller/Modell funktioniert nicht\"),\"\")","v":""},0,{"$f":"IF(AO17>0,IF(Sprache=\"deutsch\",Sprachen!$A$98,IF(Sprache=\"Français\",Sprachen!$B$98,Sprachen!$C$98))&\" \"&AO17&IF(Sprache=\"deutsch\",Sprachen!$A$99,IF(Sprache=\"Français\",Sprachen!$B$99,Sprachen!$C$99)),IF(AO17<0,IF(Sprache=\"deutsch\",Sprachen!$A$97,IF(Sprache=\"Français\",Sprachen!$B$97,Sprachen!$C$97))&\" \"&AO17&IF(Sprache=\"deutsch\",Sprachen!$A$100,IF(Sprache=\"Français\",Sprachen!$B$100,Sprachen!$C$100)),\"\"))","v":""},0,{"$f":"IF(AQ17<0,IF(Sprache=\"Deutsch\",Sprachen!$A$101,IF(Sprache=\"Français\",Sprachen!$B$101,Sprachen!$C$101)),\"\")","v":""},0,""]
[null,null,null,null,null,null,null,null,null,0,0,null,null,null,null,null,null,null,{"$f":"IF(AM18=0,IF(Sprache=\"Deutsch\",Sprachen!$A$94,IF(Sprache=\"Français\",Sprachen!$B$94,Sprachen!$C$94)),AM18&IF(AN18<>\"\",\" - \"&AN18,IF(AP18<>\"\",\" - \"&AP18,IF(AR18<>\"\",\" - \"&AR18,IF(AT18<>\"\",\" \"&AT18,\"\")))))","v":"Status ok"},{"$f":"SUMIF('Ref-Daten'!L:L,AF18,'Ref-Daten'!F:F)","v":0},0,{"$f":"IF(AND(3<>\"\",B18<>\"\"),VLOOKUP(VLOOKUP(A18&B18,CHOOSE({1,2},'Ref-Daten'!A:A&'Ref-Daten'!B:B,'Ref-Daten'!G:G),2,0),Ref_KTypen,IF(Sprache=\"Deutsch\",1,IF(Sprache=\"Français\",2,3)),FALSE),\"\")","v":""},{"$f":"SUMIF('Ref-Daten'!L:L,AF18,'Ref-Daten'!C:C)","v":0},{"$f":"SUMIF('Ref-Daten'!L:L,AF18,'Ref-Daten'!D:D)","v":0},{"$f":"SUMIF('Ref-Daten'!L:L,AF18,'Ref-Daten'!E:E)","v":0},0,0,0,0,0,null,"-",{"$f":"SUMIF('Ref-Daten'!L:L,AF18,'Ref-Daten'!I:I)","v":0},{"$f":"SUMIF('Ref-Daten'!L:L,AF18,'Ref-Daten'!J:J)","v":0},0,{"$f":"AI18*SUMIF('Ref-Daten'!L:L,AF18,'Ref-Daten'!K:K)","v":0},0,null,{"$f":"IF(OR(AN18<>\"\",AP18<>\"\",AR18<>\"\",AT18<>\"\"),IF(Sprache=\"Deutsch\",Sprachen!$A$96,IF(Sprache=\"Français\",Sprachen!$B$96,Sprachen!$C$96)),0)","v":0},{"$f":"IF(A18<>\"\",IF(COUNTIF('Ref-Daten'!L:L,AF18)=1,\"\",\"Kombination Hersteller/Modell funktioniert nicht\"),\"\")","v":""},0,{"$f":"IF(AO18>0,IF(Sprache=\"deutsch\",Sprachen!$A$98,IF(Sprache=\"Français\",Sprachen!$B$98,Sprachen!$C$98))&\" \"&AO18&IF(Sprache=\"deutsch\",Sprachen!$A$99,IF(Sprache=\"Français\",Sprachen!$B$99,Sprachen!$C$99)),IF(AO18<0,IF(Sprache=\"deutsch\",Sprachen!$A$97,IF(Sprache=\"Français\",Sprachen!$B$97,Sprachen!$C$97))&\" \"&AO18&IF(Sprache=\"deutsch\",Sprachen!$A$100,IF(Sprache=\"Français\",Sprachen!$B$100,Sprachen!$C$100)),\"\"))","v":""},0,{"$f":"IF(AQ18<0,IF(Sprache=\"Deutsch\",Sprachen!$A$101,IF(Sprache=\"Français\",Sprachen!$B$101,Sprachen!$C$101)),\"\")","v":""},0,""]
[null,null,null,null,null,null,null,null,null,0,0,null,null,null,null,null,null,null,{"$f":"IF(AM19=0,IF(Sprache=\"Deutsch\",Sprachen!$A$94,IF(Sprache=\"Français\",Sprachen!$B$94,Sprachen!$C$94)),AM19&IF(AN19<>\"\",\" - \"&AN19,IF(AP19<>\"\",\" - \"&AP19,IF(AR19<>\"\",\" - \"&AR19,IF(AT19<>\"\",\" \"&AT19,\"\")))))","v":"Status ok"},{"$f":"SUMIF('Ref-Daten'!L:L,AF19,'Ref-Daten'!F:F)","v":0},0,{"$f":"IF(AND(3<>\"\",B19<>\"\"),VLOOKUP(VLOOKUP(A19&B19,CHOOSE({1,2},'Ref-Daten'!A:A&'Ref-Daten'!B:B,'Ref-Daten'!G:G),2,0),Ref_KTypen,IF(Sprache=\"Deutsch\",1,IF(Sprache=\"Français\",2,3)),FALSE),\"\")","v":""},{"$f":"SUMIF('Ref-Daten'!L:L,AF19,'Ref-Daten'!C:C)","v":0},{"$f":"SUMIF('Ref-Daten'!L:L,AF19,'Ref-Daten'!D:D)","v":0},{"$f":"SUMIF('Ref-Daten'!L:L,AF19,'Ref-Daten'!E:E)","v":0},0,0,0,0,0,null,"-",{"$f":"SUMIF('Ref-Daten'!L:L,AF19,'Ref-Daten'!I:I)","v":0},{"$f":"SUMIF('Ref-Daten'!L:L,AF19,'Ref-Daten'!J:J)","v":0},0,{"$f":"AI19*SUMIF('Ref-Daten'!L:L,AF19,'Ref-Daten'!K:K)","v":0},0,null,{"$f":"IF(OR(AN19<>\"\",AP19<>\"\",AR19<>\"\",AT19<>\"\"),IF(Sprache=\"Deutsch\",Sprachen!$A$96,IF(Sprache=\"Français\",Sprachen!$B$96,Sprachen!$C$96)),0)","v":0},{"$f":"IF(A19<>\"\",IF(COUNTIF('Ref-Daten'!L:L,AF19)=1,\"\",\"Kombination Hersteller/Modell funktioniert nicht\"),\"\")","v":""},0,{"$f":"IF(AO19>0,IF(Sprache=\"deutsch\",Sprachen!$A$98,IF(Sprache=\"Français\",Sprachen!$B$98,Sprachen!$C$98))&\" \"&AO19&IF(Sprache=\"deutsch\",Sprachen!$A$99,IF(Sprache=\"Français\",Sprachen!$B$99,Sprachen!$C$99)),IF(AO19<0,IF(Sprache=\"deutsch\",Sprachen!$A$97,IF(Sprache=\"Français\",Sprachen!$B$97,Sprachen!$C$97))&\" \"&AO19&IF(Sprache=\"deutsch\",Sprachen!$A$100,IF(Sprache=\"Français\",Sprachen!$B$100,Sprachen!$C$100)),\"\"))","v":""},0,{"$f":"IF(AQ19<0,IF(Sprache=\"Deutsch\",Sprachen!$A$101,IF(Sprache=\"Français\",Sprachen!$B$101,Sprachen!$C$101)),\"\")","v":""},0,""]
[null,null,null,null,null,null,null,null,null,0,0,null,null,null,null,null,null,null,{"$f":"IF(AM20=0,IF(Sprache=\"Deutsch\",Sprachen!$A$94,IF(Sprache=\"Français\",Sprachen!$B$94,Sprachen!$C$94)),AM20&IF(AN20<>\"\",\" - \"&AN20,IF(AP20<>\"\",\" - \"&AP20,IF(AR20<>\"\",\" - \"&AR20,IF(AT20<>\"\",\" \"&AT20,\"\")))))","v":"Status ok"},{"$f":"SUMIF('Ref-Daten'!L:L,AF20,'Ref-Daten'!F:F)","v":0},0,{"$f":"IF(AND(3<>\"\",B20<>\"\"),VLOOKUP(VLOOKUP(A20&B20,CHOOSE({1,2},'Ref-Daten'!A:A&'Ref-Daten'!B:B,'Ref-Daten'!G:G),2,0),Ref_KTypen,IF(Sprache=\"Deutsch\",1,IF(Sprache=\"Français\",2,3)),FALSE),\"\")","v":""},{"$f":"SUMIF('Ref-Daten'!L:L,AF20,'Ref-Daten'!C:C)","v":0},{"$f":"SUMIF('Ref-Daten'!L:L,AF20,'Ref-Daten'!D:D)","v":0},{"$f":"SUMIF('Ref-Daten'!L:L,AF20,'Ref-Daten'!E:E)","v":0},0,0,0,0,0,null,"-",{"$f":"SUMIF('Ref-Daten'!L:L,AF20,'Ref-Daten'!I:I)","v":0},{"$f":"SUMIF('Ref-Daten'!L:L,AF20,'Ref-Daten'!J:J)","v":0},0,{"$f":"AI20*SUMIF('Ref-Daten'!L:L,AF20,'Ref-Daten'!K:K)","v":0},0,null,{"$f":"IF(OR(AN20<>\"\",AP20<>\"\",AR20<>\"\",AT20<>\"\"),IF(Sprache=\"Deutsch\",Sprachen!$A$96,IF(Sprache=\"Français\",Sprachen!$B$96,Sprachen!$C$96)),0)","v":0},{"$f":"IF(A20<>\"\",IF(COUNTIF('Ref-Daten'!L:L,AF20)=1,\"\",\"Kombination Hersteller/Modell funktioniert nicht\"),\"\")","v":""},0,{"$f":"IF(AO20>0,IF(Sprache=\"deutsch\",Sprachen!$A$98,IF(Sprache=\"Français\",Sprachen!$B$98,Sprachen!$C$98))&\" \"&AO20&IF(Sprache=\"deutsch\",Sprachen!$A$99,IF(Sprache=\"Français\",Sprachen!$B$99,Sprachen!$C$99)),IF(AO20<0,IF(Sprache=\"deutsch\",Sprachen!$A$97,IF(Sprache=\"Français\",Sprachen!$B$97,Sprachen!$C$97))&\" \"&AO20&IF(Sprache=\"deutsch\",Sprachen!$A$100,IF(Sprache=\"Français\",Sprachen!$B$100,Sprachen!$C$100)),\"\"))","v":""},0,{"$f":"IF(AQ20<0,IF(Sprache=\"Deutsch\",Sprachen!$A$101,IF(Sprache=\"Français\",Sprachen!$B$101,Sprachen!$C$101)),\"\")","v":""},0,""]
[null,null,null,null,null,null,null,null,null,0,0,null,null,null,null,null,null,null,{"$f":"IF(AM21=0,IF(Sprache=\"Deutsch\",Sprachen!$A$94,IF(Sprache=\"Français\",Sprachen!$B$94,Sprachen!$C$94)),AM21&IF(AN21<>\"\",\" - \"&AN21,IF(AP21<>\"\",\" - \"&AP21,IF(AR21<>\"\",\" - \"&AR21,IF(AT21<>\"\",\" \"&AT21,\"\")))))","v":"Status ok"},{"$f":"SUMIF('Ref-Daten'!L:L,AF21,'Ref-Daten'!F:F)","v":0},0,{"$f":"IF(AND(3<>\"\",B21<>\"\"),VLOOKUP(VLOOKUP(A21&B21,CHOOSE({1,2},'Ref-Daten'!A:A&'Ref-Daten'!B:B,'Ref-Daten'!G:G),2,0),Ref_KTypen,IF(Sprache=\"Deutsch\",1,IF(Sprache=\"Français\",2,3)),FALSE),\"\")","v":""},{"$f":"SUMIF('Ref-Daten'!L:L,AF21,'Ref-Daten'!C:C)","v":0},{"$f":"SUMIF('Ref-Daten'!L:L,AF21,'Ref-Daten'!D:D)","v":0},{"$f":"SUMIF('Ref-Daten'!L:L,AF21,'Ref-Daten'!E:E)","v":0},0,0,0,0,0,null,"-",{"$f":"SUMIF('Ref-Daten'!L:L,AF21,'Ref-Daten'!I:I)","v":0},{"$f":"SUMIF('Ref-Daten'!L:L,AF21,'Ref-Daten'!J:J)","v":0},0,{"$f":"AI21*SUMIF('Ref-Daten'!L:L,AF21,'Ref-Daten'!K:K)","v":0},0,null,{"$f":"IF(OR(AN21<>\"\",AP21<>\"\",AR21<>\"\",AT21<>\"\"),IF(Sprache=\"Deutsch\",Sprachen!$A$96,IF(Sprache=\"Français\",Sprachen!$B$96,Sprachen!$C$96)),0)","v":0},{"$f":"IF(A21<>\"\",IF(COUNTIF('Ref-Daten'!L:L,AF21)=1,\"\",\"Kombination Hersteller/Modell funktioniert nicht\"),\"\")","v":""},0,{"$f":"IF(AO21>0,IF(Sprache=\"deutsch\",Sprachen!$A$98,IF(Sprache=\"Français\",Sprachen!$B$98,Sprachen!$C$98))&\" \"&AO21&IF(Sprache=\"deutsch\",Sprachen!$A$99,IF(Sprache=\"Français\",Sprachen!$B$99,Sprachen!$C$99)),IF(AO21<0,IF(Sprache=\"deutsch\",Sprachen!$A$97,IF(Sprache=\"Français\",Sprachen!$B$97,Sprachen!$C$97))&\" \"&AO21&IF(Sprache=\"deutsch\",Sprachen!$A$100,IF(Sprache=\"Français\",Sprachen!$B$100,Sprachen!$C$100)),\"\"))","v":""},0,{"$f":"IF(AQ21<0,IF(Sprache=\"Deutsch\",Sprachen!$A$101,IF(Sprache=\"Français\",Sprachen!$B$101,Sprachen!$C$101)),\"\")","v":""},0,""]
[null,null,null,null,null,null,null,null,null,0,0,null,null,null,null,null,null,null,{"$f":"IF(AM22=0,IF(Sprache=\"Deutsch\",Sprachen!$A$94,IF(Sprache=\"Français\",Sprachen!$B$94,Sprachen!$C$94)),AM22&IF(AN22<>\"\",\" - \"&AN22,IF(AP22<>\"\",\" - \"&AP22,IF(AR22<>\"\",\" - \"&AR22,IF(AT22<>\"\",\" \"&AT22,\"\")))))","v":"Status ok"},{"$f":"SUMIF('Ref-Daten'!L:L,AF22,'Ref-Daten'!F:F)","v":0},0,{"$f":"IF(AND(3<>\"\",B22<>\"\"),VLOOKUP(VLOOKUP(A22&B22,CHOOSE({1,2},'Ref-Daten'!A:A&'Ref-Daten'!B:B,'Ref-Daten'!G:G),2,0),Ref_KTypen,IF(Sprache=\"Deutsch\",1,IF(Sprache=\"Français\",2,3)),FALSE),\"\")","v":""},{"$f":"SUMIF('Ref-Daten'!L:L,AF22,'Ref-Daten'!C:C)","v":0},{"$f":"SUMIF('Ref-Daten'!L:L,AF22,'Ref-Daten'!D:D)","v":0},{"$f":"SUMIF('Ref-Daten'!L:L,AF22,'Ref-Daten'!E:E)","v":0},0,0,0,0,0,null,"-",{"$f":"SUMIF('Ref-Daten'!L:L,AF22,'Ref-Daten'!I:I)","v":0},{"$f":"SUMIF('Ref-Daten'!L:L,AF22,'Ref-Daten'!J:J)","v":0},0,{"$f":"AI22*SUMIF('Ref-Daten'!L:L,AF22,'Ref-Daten'!K:K)","v":0},0,null,{"$f":"IF(OR(AN22<>\"\",AP22<>\"\",AR22<>\"\",AT22<>\"\"),IF(Sprache=\"Deutsch\",Sprachen!$A$96,IF(Sprache=\"Français\",Sprachen!$B$96,Sprachen!$C$96)),0)","v":0},{"$f":"IF(A22<>\"\",IF(COUNTIF('Ref-Daten'!L:L,AF22)=1,\"\",\"Kombination Hersteller/Modell funktioniert nicht\"),\"\")","v":""},0,{"$f":"IF(AO22>0,IF(Sprache=\"deutsch\",Sprachen!$A$98,IF(Sprache=\"Français\",Sprachen!$B$98,Sprachen!$C$98))&\" \"&AO22&IF(Sprache=\"deutsch\",Sprachen!$A$99,IF(Sprache=\"Français\",Sprachen!$B$99,Sprachen!$C$99)),IF(AO22<0,IF(Sprache=\"deutsch\",Sprachen!$A$97,IF(Sprache=\"Français\",Sprachen!$B$97,Sprachen!$C$97))&\" \"&AO22&IF(Sprache=\"deutsch\",Sprachen!$A$100,IF(Sprache=\"Français\",Sprachen!$B$100,Sprachen!$C$100)),\"\"))","v":""},0,{"$f":"IF(AQ22<0,IF(Sprache=\"Deutsch\",Sprachen!$A$101,IF(Sprache=\"Français\",Sprachen!$B$101,Sprachen!$C$101)),\"\")","v":""},0,""]
[null,null,null,null,null,null,null,null,null,0,0,null,null,null,null,null,null,null,{"$f":"IF(AM23=0,IF(Sprache=\"Deutsch\",Sprachen!$A$94,IF(Sprache=\"Français\",Sprachen!$B$94,Sprachen!$C$94)),AM23&IF(AN23<>\"\",\" - \"&AN23,IF(AP23<>\"\",\" - \"&AP23,IF(AR23<>\"\",\" - \"&AR23,IF(AT23<>\"\",\" \"&AT23,\"\")))))","v":"Status ok"},{"$f":"SUMIF('Ref-Daten'!L:L,AF23,'Ref-Daten'!F:F)","v":0},0,{"$f":"IF(AND(3<>\"\",B23<>\"\"),VLOOKUP(VLOOKUP(A23&B23,CHOOSE({1,2},'Ref-Daten'!A:A&'Ref-Daten'!B:B,'Ref-Daten'!G:G),2,0),Ref_KTypen,IF(Sprache=\"Deutsch\",1,IF(Sprache=\"Français\",2,3)),FALSE),\"\")","v":""},{"$f":"SUMIF('Ref-Daten'!L:L,AF23,'Ref-Daten'!C:C)","v":0},{"$f":"SUMIF('Ref-Daten'!L:L,AF23,'Ref-Daten'!D:D)","v":0},{"$f":"SUMIF('Ref-Daten'!L:L,AF23,'Ref-Daten'!E:E)","v":0},0,0,0,0,0,null,"-",{"$f":"SUMIF('Ref-Daten'!L:L,AF23,'Ref-Daten'!I:I)","v":0},{"$f":"SUMIF('Ref-Daten'!L:L,AF23,'Ref-Daten'!J:J)","v":0},0,{"$f":"AI23*SUMIF('Ref-Daten'!L:L,AF23,'Ref-Daten'!K:K)","v":0},0,null,{"$f":"IF(OR(AN23<>\"\",AP23<>\"\",AR23<>\"\",AT23<>\"\"),IF(Sprache=\"Deutsch\",Sprachen!$A$96,IF(Sprache=\"Français\",Sprachen!$B$96,Sprachen!$C$96)),0)","v":0},{"$f":"IF(A23<>\"\",IF(COUNTIF('Ref-Daten'!L:L,AF23)=1,\"\",\"Kombination Hersteller/Modell funktioniert nicht\"),\"\")","v":""},0,{"$f":"IF(AO23>0,IF(Sprache=\"deutsch\",Sprachen!$A$98,IF(Sprache=\"Français\",Sprachen!$B$98,Sprachen!$C$98))&\" \"&AO23&IF(Sprache=\"deutsch\",Sprachen!$A$99,IF(Sprache=\"Français\",Sprachen!$B$99,Sprachen!$C$99)),IF(AO23<0,IF(Sprache=\"deutsch\",Sprachen!$A$97,IF(Sprache=\"Français\",Sprachen!$B$97,Sprachen!$C$97))&\" \"&AO23&IF(Sprache=\"deutsch\",Sprachen!$A$100,IF(Sprache=\"Français\",Sprachen!$B$100,Sprachen!$C$100)),\"\"))","v":""},0,{"$f":"IF(AQ23<0,IF(Sprache=\"Deutsch\",Sprachen!$A$101,IF(Sprache=\"Français\",Sprachen!$B$101,Sprachen!$C$101)),\"\")","v":""},0,""]
[null,null,null,null,null,null,null,null,null,0,0,null,null,null,null,null,null,null,{"$f":"IF(AM24=0,IF(Sprache=\"Deutsch\",Sprachen!$A$94,IF(Sprache=\"Français\",Sprachen!$B$94,Sprachen!$C$94)),AM24&IF(AN24<>\"\",\" - \"&AN24,IF(AP24<>\"\",\" - \"&AP24,IF(AR24<>\"\",\" - \"&AR24,IF(AT24<>\"\",\" \"&AT24,\"\")))))","v":"Status ok"},{"$f":"SUMIF('Ref-Daten'!L:L,AF24,'Ref-Daten'!F:F)","v":0},0,{"$f":"IF(AND(3<>\"\",B24<>\"\"),VLOOKUP(VLOOKUP(A24&B24,CHOOSE({1,2},'Ref-Daten'!A:A&'Ref-Daten'!B:B,'Ref-Daten'!G:G),2,0),Ref_KTypen,IF(Sprache=\"Deutsch\",1,IF(Sprache=\"Français\",2,3)),FALSE),\"\")","v":""},{"$f":"SUMIF('Ref-Daten'!L:L,AF24,'Ref-Daten'!C:C)","v":0},{"$f":"SUMIF('Ref-Daten'!L:L,AF24,'Ref-Daten'!D:D)","v":0},{"$f":"SUMIF('Ref-Daten'!L:L,AF24,'Ref-Daten'!E:E)","v":0},0,0,0,0,0,null,"-",{"$f":"SUMIF('Ref-Daten'!L:L,AF24,'Ref-Daten'!I:I)","v":0},{"$f":"SUMIF('Ref-Daten'!L:L,AF24,'Ref-Daten'!J:J)","v":0},0,{"$f":"AI24*SUMIF('Ref-Daten'!L:L,AF24,'Ref-Daten'!K:K)","v":0},0,null,{"$f":"IF(OR(AN24<>\"\",AP24<>\"\",AR24<>\"\",AT24<>\"\"),IF(Sprache=\"Deutsch\",Sprachen!$A$96,IF(Sprache=\"Français\",Sprachen!$B$96,Sprachen!$C$96)),0)","v":0},{"$f":"IF(A24<>\"\",IF(COUNTIF('Ref-Daten'!L:L,AF24)=1,\"\",\"Kombination Hersteller/Modell funktioniert nicht\"),\"\")","v":""},0,{"$f":"IF(AO24>0,IF(Sprache=\"deutsch\",Sprachen!$A$98,IF(Sprache=\"Français\",Sprachen!$B$98,Sprachen!$C$98))&\" \"&AO24&IF(Sprache=\"deutsch\",Sprachen!$A$99,IF(Sprache=\"Français\",Sprachen!$B$99,Sprachen!$C$99)),IF(AO24<0,IF(Sprache=\"deutsch\",Sprachen!$A$97,IF(Sprache=\"Français\",Sprachen!$B$97,Sprachen!$C$97))&\" \"&AO24&IF(Sprache=\"deutsch\",Sprachen!$A$100,IF(Sprache=\"Français\",Sprachen!$B$100,Sprachen!$C$100)),\"\"))","v":""},0,{"$f":"IF(AQ24<0,IF(Sprache=\"Deutsch\",Sprachen!$A$101,IF(Sprache=\"Français\",Sprachen!$B$101,Sprachen!$C$101)),\"\")","v":""},0,""]
[null,null,null,null,null,null,null,null,null,0,0,null,null,null,null,null,null,null,{"$f":"IF(AM25=0,IF(Sprache=\"Deutsch\",Sprachen!$A$94,IF(Sprache=\"Français\",Sprachen!$B$94,Sprachen!$C$94)),AM25&IF(AN25<>\"\",\" - \"&AN25,IF(AP25<>\"\",\" - \"&AP25,IF(AR25<>\"\",\" - \"&AR25,IF(AT25<>\"\",\" \"&AT25,\"\")))))","v":"Status ok"},{"$f":"SUMIF('Ref-Daten'!L:L,AF25,'Ref-Daten'!F:F)","v":0},0,{"$f":"IF(AND(3<>\"\",B25<>\"\"),VLOOKUP(VLOOKUP(A25&B25,CHOOSE({1,2},'Ref-Daten'!A:A&'Ref-Daten'!B:B,'Ref-Daten'!G:G),2,0),Ref_KTypen,IF(Sprache=\"Deutsch\",1,IF(Sprache=\"Français\",2,3)),FALSE),\"\")","v":""},{"$f":"SUMIF('Ref-Daten'!L:L,AF25,'Ref-Daten'!C:C)","v":0},{"$f":"SUMIF('Ref-Daten'!L:L,AF25,'Ref-Daten'!D:D)","v":0},{"$f":"SUMIF('Ref-Daten'!L:L,AF25,'Ref-Daten'!E:E)","v":0},0,0,0,0,0,null,"-",{"$f":"SUMIF('Ref-Daten'!L:L,AF25,'Ref-Daten'!I:I)","v":0},{"$f":"SUMIF('Ref-Daten'!L:L,AF25,'Ref-Daten'!J:J)","v":0},0,{"$f":"AI25*SUMIF('Ref-Daten'!L:L,AF25,'Ref-Daten'!K:K)","v":0},0,null,{"$f":"IF(OR(AN25<>\"\",AP25<>\"\",AR25<>\"\",AT25<>\"\"),IF(Sprache=\"Deutsch\",Sprachen!$A$96,IF(Sprache=\"Français\",Sprachen!$B$96,Sprachen!$C$96)),0)","v":0},{"$f":"IF(A25<>\"\",IF(COUNTIF('Ref-Daten'!L:L,AF25)=1,\"\",\"Kombination Hersteller/Modell funktioniert nicht\"),\"\")","v":""},0,{"$f":"IF(AO25>0,IF(Sprache=\"deutsch\",Sprachen!$A$98,IF(Sprache=\"Français\",Sprachen!$B$98,Sprachen!$C$98))&\" \"&AO25&IF(Sprache=\"deutsch\",Sprachen!$A$99,IF(Sprache=\"Français\",Sprachen!$B$99,Sprachen!$C$99)),IF(AO25<0,IF(Sprache=\"deutsch\",Sprachen!$A$97,IF(Sprache=\"Français\",Sprachen!$B$97,Sprachen!$C$97))&\" \"&AO25&IF(Sprache=\"deutsch\",Sprachen!$A$100,IF(Sprache=\"Français\",Sprachen!$B$100,Sprachen!$C$100)),\"\"))","v":""},0,{"$f":"IF(AQ25<0,IF(Sprache=\"Deutsch\",Sprachen!$A$101,IF(Sprache=\"Français\",Sprachen!$B$101,Sprachen!$C$101)),\"\")","v":""},0,""]
[null,null,null,null,null,null,null,null,null,0,0,null,null,null,null,null,null,null,{"$f":"IF(AM26=0,IF(Sprache=\"Deutsch\",Sprachen!$A$94,IF(Sprache=\"Français\",Sprachen!$B$94,Sprachen!$C$94)),AM26&IF(AN26<>\"\",\" - \"&AN26,IF(AP26<>\"\",\" - \"&AP26,IF(AR26<>\"\",\" - \"&AR26,IF(AT26<>\"\",\" \"&AT26,\"\")))))","v":"Status ok"},{"$f":"SUMIF('Ref-Daten'!L:L,AF26,'Ref-Daten'!F:F)","v":0},0,{"$f":"IF(AND(3<>\"\",B26<>\"\"),VLOOKUP(VLOOKUP(A26&B26,CHOOSE({1,2},'Ref-Daten'!A:A&'Ref-Daten'!B:B,'Ref-Daten'!G:G),2,0),Ref_KTypen,IF(Sprache=\"Deutsch\",1,IF(Sprache=\"Français\",2,3)),FALSE),\"\")","v":""},{"$f":"SUMIF('Ref-Daten'!L:L,AF26,'Ref-Daten'!C:C)","v":0},{"$f":"SUMIF('Ref-Daten'!L:L,AF26,'Ref-Daten'!D:D)","v":0},{"$f":"SUMIF('Ref-Daten'!L:L,AF26,'Ref-Daten'!E:E)","v":0},0,0,0,0,0,null,"-",{"$f":"SUMIF('Ref-Daten'!L:L,AF26,'Ref-Daten'!I:I)","v":0},{"$f":"SUMIF('Ref-Daten'!L:L,AF26,'Ref-Daten'!J:J)","v":0},0,{"$f":"AI26*SUMIF('Ref-Daten'!L:L,AF26,'Ref-Daten'!K:K)","v":0},0,null,{"$f":"IF(OR(AN26<>\"\",AP26<>\"\",AR26<>\"\",AT26<>\"\"),IF(Sprache=\"Deutsch\",Sprachen!$A$96,IF(Sprache=\"Français\",Sprachen!$B$96,Sprachen!$C$96)),0)","v":0},{"$f":"IF(A26<>\"\",IF(COUNTIF('Ref-Daten'!L:L,AF26)=1,\"\",\"Kombination Hersteller/Modell funktioniert nicht\"),\"\")","v":""},0,{"$f":"IF(AO26>0,IF(Sprache=\"deutsch\",Sprachen!$A$98,IF(Sprache=\"Français\",Sprachen!$B$98,Sprachen!$C$98))&\" \"&AO26&IF(Sprache=\"deutsch\",Sprachen!$A$99,IF(Sprache=\"Français\",Sprachen!$B$99,Sprachen!$C$99)),IF(AO26<0,IF(Sprache=\"deutsch\",Sprachen!$A$97,IF(Sprache=\"Français\",Sprachen!$B$97,Sprachen!$C$97))&\" \"&AO26&IF(Sprache=\"deutsch\",Sprachen!$A$100,IF(Sprache=\"Français\",Sprachen!$B$100,Sprachen!$C$100)),\"\"))","v":""},0,{"$f":"IF(AQ26<0,IF(Sprache=\"Deutsch\",Sprachen!$A$101,IF(Sprache=\"Français\",Sprachen!$B$101,Sprachen!$C$101)),\"\")","v":""},0,""]
[null,null,null,null,null,null,null,null,null,0,0,null,null,null,null,null,null,null,{"$f":"IF(AM27=0,IF(Sprache=\"Deutsch\",Sprachen!$A$94,IF(Sprache=\"Français\",Sprachen!$B$94,Sprachen!$C$94)),AM27&IF(AN27<>\"\",\" - \"&AN27,IF(AP27<>\"\",\" - \"&AP27,IF(AR27<>\"\",\" - \"&AR27,IF(AT27<>\"\",\" \"&AT27,\"\")))))","v":"Status ok"},{"$f":"SUMIF('Ref-Daten'!L:L,AF27,'Ref-Daten'!F:F)","v":0},0,{"$f":"IF(AND(3<>\"\",B27<>\"\"),VLOOKUP(VLOOKUP(A27&B27,CHOOSE({1,2},'Ref-Daten'!A:A&'Ref-Daten'!B:B,'Ref-Daten'!G:G),2,0),Ref_KTypen,IF(Sprache=\"Deutsch\",1,IF(Sprache=\"Français\",2,3)),FALSE),\"\")","v":""},{"$f":"SUMIF('Ref-Daten'!L:L,AF27,'Ref-Daten'!C:C)","v":0},{"$f":"SUMIF('Ref-Daten'!L:L,AF27,'Ref-Daten'!D:D)","v":0},{"$f":"SUMIF('Ref-Daten'!L:L,AF27,'Ref-Daten'!E:E)","v":0},0,0,0,0,0,null,"-",{"$f":"SUMIF('Ref-Daten'!L:L,AF27,'Ref-Daten'!I:I)","v":0},{"$f":"SUMIF('Ref-Daten'!L:L,AF27,'Ref-Daten'!J:J)","v":0},0,{"$f":"AI27*SUMIF('Ref-Daten'!L:L,AF27,'Ref-Daten'!K:K)","v":0},0,null,{"$f":"IF(OR(AN27<>\"\",AP27<>\"\",AR27<>\"\",AT27<>\"\"),IF(Sprache=\"Deutsch\",Sprachen!$A$96,IF(Sprache=\"Français\",Sprachen!$B$96,Sprachen!$C$96)),0)","v":0},{"$f":"IF(A27<>\"\",IF(COUNTIF('Ref-Daten'!L:L,AF27)=1,\"\",\"Kombination Hersteller/Modell funktioniert nicht\"),\"\")","v":""},0,{"$f":"IF(AO27>0,IF(Sprache=\"deutsch\",Sprachen!$A$98,IF(Sprache=\"Français\",Sprachen!$B$98,Sprachen!$C$98))&\" \"&AO27&IF(Sprache=\"deutsch\",Sprachen!$A$99,IF(Sprache=\"Français\",Sprachen!$B$99,Sprachen!$C$99)),IF(AO27<0,IF(Sprache=\"deutsch\",Sprachen!$A$97,IF(Sprache=\"Français\",Sprachen!$B$97,Sprachen!$C$97))&\" \"&AO27&IF(Sprache=\"deutsch\",Sprachen!$A$100,IF(Sprache=\"Français\",Sprachen!$B$100,Sprachen!$C$100)),\"\"))","v":""},0,{"$f":"IF(AQ27<0,IF(Sprache=\"Deutsch\",Sprachen!$A$101,IF(Sprache=\"Français\",Sprachen!$B$101,Sprachen!$C$101)),\"\")","v":""},0,""]
[null,null,null,null,null,null,null,null,null,0,0,null,null,null,null,null,null,null,{"$f":"IF(AM28=0,IF(Sprache=\"Deutsch\",Sprachen!$A$94,IF(Sprache=\"Français\",Sprachen!$B$94,Sprachen!$C$94)),AM28&IF(AN28<>\"\",\" - \"&AN28,IF(AP28<>\"\",\" - \"&AP28,IF(AR28<>\"\",\" - \"&AR28,IF(AT28<>\"\",\" \"&AT28,\"\")))))","v":"Status ok"},{"$f":"SUMIF('Ref-Daten'!L:L,AF28,'Ref-Daten'!F:F)","v":0},0,{"$f":"IF(AND(3<>\"\",B28<>\"\"),VLOOKUP(VLOOKUP(A28&B28,CHOOSE({1,2},'Ref-Daten'!A:A&'Ref-Daten'!B:B,'Ref-Daten'!G:G),2,0),Ref_KTypen,IF(Sprache=\"Deutsch\",1,IF(Sprache=\"Français\",2,3)),FALSE),\"\")","v":""},{"$f":"SUMIF('Ref-Daten'!L:L,AF28,'Ref-Daten'!C:C)","v":0},{"$f":"SUMIF('Ref-Daten'!L:L,AF28,'Ref-Daten'!D:D)","v":0},{"$f":"SUMIF('Ref-Daten'!L:L,AF28,'Ref-Daten'!E:E)","v":0},0,0,0,0,0,null,"-",{"$f":"SUMIF('Ref-Daten'!L:L,AF28,'Ref-Daten'!I:I)","v":0},{"$f":"SUMIF('Ref-Daten'!L:L,AF28,'Ref-Daten'!J:J)","v":0},0,{"$f":"AI28*SUMIF('Ref-Daten'!L:L,AF28,'Ref-Daten'!K:K)","v":0},0,null,{"$f":"IF(OR(AN28<>\"\",AP28<>\"\",AR28<>\"\",AT28<>\"\"),IF(Sprache=\"Deutsch\",Sprachen!$A$96,IF(Sprache=\"Français\",Sprachen!$B$96,Sprachen!$C$96)),0)","v":0},{"$f":"IF(A28<>\"\",IF(COUNTIF('Ref-Daten'!L:L,AF28)=1,\"\",\"Kombination Hersteller/Modell funktioniert nicht\"),\"\")","v":""},0,{"$f":"IF(AO28>0,IF(Sprache=\"deutsch\",Sprachen!$A$98,IF(Sprache=\"Français\",Sprachen!$B$98,Sprachen!$C$98))&\" \"&AO28&IF(Sprache=\"deutsch\",Sprachen!$A$99,IF(Sprache=\"Français\",Sprachen!$B$99,Sprachen!$C$99)),IF(AO28<0,IF(Sprache=\"deutsch\",Sprachen!$A$97,IF(Sprache=\"Français\",Sprachen!$B$97,Sprachen!$C$97))&\" \"&AO28&IF(Sprache=\"deutsch\",Sprachen!$A$100,IF(Sprache=\"Français\",Sprachen!$B$100,Sprachen!$C$100)),\"\"))","v":""},0,{"$f":"IF(AQ28<0,IF(Sprache=\"Deutsch\",Sprachen!$A$101,IF(Sprache=\"Français\",Sprachen!$B$101,Sprachen!$C$101)),\"\")","v":""},0,""]
[null,null,null,null,null,null,null,null,null,0,0,null,null,null,null,null,null,null,{"$f":"IF(AM29=0,IF(Sprache=\"Deutsch\",Sprachen!$A$94,IF(Sprache=\"Français\",Sprachen!$B$94,Sprachen!$C$94)),AM29&IF(AN29<>\"\",\" - \"&AN29,IF(AP29<>\"\",\" - \"&AP29,IF(AR29<>\"\",\" - \"&AR29,IF(AT29<>\"\",\" \"&AT29,\"\")))))","v":"Status ok"},{"$f":"SUMIF('Ref-Daten'!L:L,AF29,'Ref-Daten'!F:F)","v":0},0,{"$f":"IF(AND(3<>\"\",B29<>\"\"),VLOOKUP(VLOOKUP(A29&B29,CHOOSE({1,2},'Ref-Daten'!A:A&'Ref-Daten'!B:B,'Ref-Daten'!G:G),2,0),Ref_KTypen,IF(Sprache=\"Deutsch\",1,IF(Sprache=\"Français\",2,3)),FALSE),\"\")","v":""},{"$f":"SUMIF('Ref-Daten'!L:L,AF29,'Ref-Daten'!C:C)","v":0},{"$f":"SUMIF('Ref-Daten'!L:L,AF29,'Ref-Daten'!D:D)","v":0},{"$f":"SUMIF('Ref-Daten'!L:L,AF29,'Ref-Daten'!E:E)","v":0},0,0,0,0,0,null,"-",{"$f":"SUMIF('Ref-Daten'!L:L,AF29,'Ref-Daten'!I:I)","v":0},{"$f":"SUMIF('Ref-Daten'!L:L,AF29,'Ref-Daten'!J:J)","v":0},0,{"$f":"AI29*SUMIF('Ref-Daten'!L:L,AF29,'Ref-Daten'!K:K)","v":0},0,null,{"$f":"IF(OR(AN29<>\"\",AP29<>\"\",AR29<>\"\",AT29<>\"\"),IF(Sprache=\"Deutsch\",Sprachen!$A$96,IF(Sprache=\"Français\",Sprachen!$B$96,Sprachen!$C$96)),0)","v":0},{"$f":"IF(A29<>\"\",IF(COUNTIF('Ref-Daten'!L:L,AF29)=1,\"\",\"Kombination Hersteller/Modell funktioniert nicht\"),\"\")","v":""},0,{"$f":"IF(AO29>0,IF(Sprache=\"deutsch\",Sprachen!$A$98,IF(Sprache=\"Français\",Sprachen!$B$98,Sprachen!$C$98))&\" \"&AO29&IF(Sprache=\"deutsch\",Sprachen!$A$99,IF(Sprache=\"Français\",Sprachen!$B$99,Sprachen!$C$99)),IF(AO29<0,IF(Sprache=\"deutsch\",Sprachen!$A$97,IF(Sprache=\"Français\",Sprachen!$B$97,Sprachen!$C$97))&\" \"&AO29&IF(Sprache=\"deutsch\",Sprachen!$A$100,IF(Sprache=\"Français\",Sprachen!$B$100,Sprachen!$C$100)),\"\"))","v":""},0,{"$f":"IF(AQ29<0,IF(Sprache=\"Deutsch\",Sprachen!$A$101,IF(Sprache=\"Français\",Sprachen!$B$101,Sprachen!$C$101)),\"\")","v":""},0,""]
[null,null,null,null,null,null,null,null,null,0,0,null,null,null,null,null,null,null,{"$f":"IF(AM30=0,IF(Sprache=\"Deutsch\",Sprachen!$A$94,IF(Sprache=\"Français\",Sprachen!$B$94,Sprachen!$C$94)),AM30&IF(AN30<>\"\",\" - \"&AN30,IF(AP30<>\"\",\" - \"&AP30,IF(AR30<>\"\",\" - \"&AR30,IF(AT30<>\"\",\" \"&AT30,\"\")))))","v":"Status ok"},{"$f":"SUMIF('Ref-Daten'!L:L,AF30,'Ref-Daten'!F:F)","v":0},0,{"$f":"IF(AND(3<>\"\",B30<>\"\"),VLOOKUP(VLOOKUP(A30&B30,CHOOSE({1,2},'Ref-Daten'!A:A&'Ref-Daten'!B:B,'Ref-Daten'!G:G),2,0),Ref_KTypen,IF(Sprache=\"Deutsch\",1,IF(Sprache=\"Français\",2,3)),FALSE),\"\")","v":""},{"$f":"SUMIF('Ref-Daten'!L:L,AF30,'Ref-Daten'!C:C)","v":0},{"$f":"SUMIF('Ref-Daten'!L:L,AF30,'Ref-Daten'!D:D)","v":0},{"$f":"SUMIF('Ref-Daten'!L:L,AF30,'Ref-Daten'!E:E)","v":0},0,0,0,0,0,null,"-",{"$f":"SUMIF('Ref-Daten'!L:L,AF30,'Ref-Daten'!I:I)","v":0},{"$f":"SUMIF('Ref-Daten'!L:L,AF30,'Ref-Daten'!J:J)","v":0},0,{"$f":"AI30*SUMIF('Ref-Daten'!L:L,AF30,'Ref-Daten'!K:K)","v":0},0,null,{"$f":"IF(OR(AN30<>\"\",AP30<>\"\",AR30<>\"\",AT30<>\"\"),IF(Sprache=\"Deutsch\",Sprachen!$A$96,IF(Sprache=\"Français\",Sprachen!$B$96,Sprachen!$C$96)),0)","v":0},{"$f":"IF(A30<>\"\",IF(COUNTIF('Ref-Daten'!L:L,AF30)=1,\"\",\"Kombination Hersteller/Modell funktioniert nicht\"),\"\")","v":""},0,{"$f":"IF(AO30>0,IF(Sprache=\"deutsch\",Sprachen!$A$98,IF(Sprache=\"Français\",Sprachen!$B$98,Sprachen!$C$98))&\" \"&AO30&IF(Sprache=\"deutsch\",Sprachen!$A$99,IF(Sprache=\"Français\",Sprachen!$B$99,Sprachen!$C$99)),IF(AO30<0,IF(Sprache=\"deutsch\",Sprachen!$A$97,IF(Sprache=\"Français\",Sprachen!$B$97,Sprachen!$C$97))&\" \"&AO30&IF(Sprache=\"deutsch\",Sprachen!$A$100,IF(Sprache=\"Français\",Sprachen!$B$100,Sprachen!$C$100)),\"\"))","v":""},0,{"$f":"IF(AQ30<0,IF(Sprache=\"Deutsch\",Sprachen!$A$101,IF(Sprache=\"Français\",Sprachen!$B$101,Sprachen!$C$101)),\"\")","v":""},0,""]
[null,null,null,null,null,null,null,null,null,0,0,null,null,null,null,null,null,null,{"$f":"IF(AM31=0,IF(Sprache=\"Deutsch\",Sprachen!$A$94,IF(Sprache=\"Français\",Sprachen!$B$94,Sprachen!$C$94)),AM31&IF(AN31<>\"\",\" - \"&AN31,IF(AP31<>\"\",\" - \"&AP31,IF(AR31<>\"\",\" - \"&AR31,IF(AT31<>\"\",\" \"&AT31,\"\")))))","v":"Status ok"},{"$f":"SUMIF('Ref-Daten'!L:L,AF31,'Ref-Daten'!F:F)","v":0},0,{"$f":"IF(AND(3<>\"\",B31<>\"\"),VLOOKUP(VLOOKUP(A31&B31,CHOOSE({1,2},'Ref-Daten'!A:A&'Ref-Daten'!B:B,'Ref-Daten'!G:G),2,0),Ref_KTypen,IF(Sprache=\"Deutsch\",1,IF(Sprache=\"Français\",2,3)),FALSE),\"\")","v":""},{"$f":"SUMIF('Ref-Daten'!L:L,AF31,'Ref-Daten'!C:C)","v":0},{"$f":"SUMIF('Ref-Daten'!L:L,AF31,'Ref-Daten'!D:D)","v":0},{"$f":"SUMIF('Ref-Daten'!L:L,AF31,'Ref-Daten'!E:E)","v":0},0,0,0,0,0,null,"-",{"$f":"SUMIF('Ref-Daten'!L:L,AF31,'Ref-Daten'!I:I)","v":0},{"$f":"SUMIF('Ref-Daten'!L:L,AF31,'Ref-Daten'!J:J)","v":0},0,{"$f":"AI31*SUMIF('Ref-Daten'!L:L,AF31,'Ref-Daten'!K:K)","v":0},0,null,{"$f":"IF(OR(AN31<>\"\",AP31<>\"\",AR31<>\"\",AT31<>\"\"),IF(Sprache=\"Deutsch\",Sprachen!$A$96,IF(Sprache=\"Français\",Sprachen!$B$96,Sprachen!$C$96)),0)","v":0},{"$f":"IF(A31<>\"\",IF(COUNTIF('Ref-Daten'!L:L,AF31)=1,\"\",\"Kombination Hersteller/Modell funktioniert nicht\"),\"\")","v":""},0,{"$f":"IF(AO31>0,IF(Sprache=\"deutsch\",Sprachen!$A$98,IF(Sprache=\"Français\",Sprachen!$B$98,Sprachen!$C$98))&\" \"&AO31&IF(Sprache=\"deutsch\",Sprachen!$A$99,IF(Sprache=\"Français\",Sprachen!$B$99,Sprachen!$C$99)),IF(AO31<0,IF(Sprache=\"deutsch\",Sprachen!$A$97,IF(Sprache=\"Français\",Sprachen!$B$97,Sprachen!$C$97))&\" \"&AO31&IF(Sprache=\"deutsch\",Sprachen!$A$100,IF(Sprache=\"Français\",Sprachen!$B$100,Sprachen!$C$100)),\"\"))","v":""},0,{"$f":"IF(AQ31<0,IF(Sprache=\"Deutsch\",Sprachen!$A$101,IF(Sprache=\"Français\",Sprachen!$B$101,Sprachen!$C$101)),\"\")","v":""},0,""]
[null,null,null,null,null,null,null,null,null,0,0,null,null,null,null,null,null,null,{"$f":"IF(AM32=0,IF(Sprache=\"Deutsch\",Sprachen!$A$94,IF(Sprache=\"Français\",Sprachen!$B$94,Sprachen!$C$94)),AM32&IF(AN32<>\"\",\" - \"&AN32,IF(AP32<>\"\",\" - \"&AP32,IF(AR32<>\"\",\" - \"&AR32,IF(AT32<>\"\",\" \"&AT32,\"\")))))","v":"Status ok"},{"$f":"SUMIF('Ref-Daten'!L:L,AF32,'Ref-Daten'!F:F)","v":0},0,{"$f":"IF(AND(3<>\"\",B32<>\"\"),VLOOKUP(VLOOKUP(A32&B32,CHOOSE({1,2},'Ref-Daten'!A:A&'Ref-Daten'!B:B,'Ref-Daten'!G:G),2,0),Ref_KTypen,IF(Sprache=\"Deutsch\",1,IF(Sprache=\"Français\",2,3)),FALSE),\"\")","v":""},{"$f":"SUMIF('Ref-Daten'!L:L,AF32,'Ref-Daten'!C:C)","v":0},{"$f":"SUMIF('Ref-Daten'!L:L,AF32,'Ref-Daten'!D:D)","v":0},{"$f":"SUMIF('Ref-Daten'!L:L,AF32,'Ref-Daten'!E:E)","v":0},0,0,0,0,0,null,"-",{"$f":"SUMIF('Ref-Daten'!L:L,AF32,'Ref-Daten'!I:I)","v":0},{"$f":"SUMIF('Ref-Daten'!L:L,AF32,'Ref-Daten'!J:J)","v":0},0,{"$f":"AI32*SUMIF('Ref-Daten'!L:L,AF32,'Ref-Daten'!K:K)","v":0},0,null,{"$f":"IF(OR(AN32<>\"\",AP32<>\"\",AR32<>\"\",AT32<>\"\"),IF(Sprache=\"Deutsch\",Sprachen!$A$96,IF(Sprache=\"Français\",Sprachen!$B$96,Sprachen!$C$96)),0)","v":0},{"$f":"IF(A32<>\"\",IF(COUNTIF('Ref-Daten'!L:L,AF32)=1,\"\",\"Kombination Hersteller/Modell funktioniert nicht\"),\"\")","v":""},0,{"$f":"IF(AO32>0,IF(Sprache=\"deutsch\",Sprachen!$A$98,IF(Sprache=\"Français\",Sprachen!$B$98,Sprachen!$C$98))&\" \"&AO32&IF(Sprache=\"deutsch\",Sprachen!$A$99,IF(Sprache=\"Français\",Sprachen!$B$99,Sprachen!$C$99)),IF(AO32<0,IF(Sprache=\"deutsch\",Sprachen!$A$97,IF(Sprache=\"Français\",Sprachen!$B$97,Sprachen!$C$97))&\" \"&AO32&IF(Sprache=\"deutsch\",Sprachen!$A$100,IF(Sprache=\"Français\",Sprachen!$B$100,Sprachen!$C$100)),\"\"))","v":""},0,{"$f":"IF(AQ32<0,IF(Sprache=\"Deutsch\",Sprachen!$A$101,IF(Sprache=\"Français\",Sprachen!$B$101,Sprachen!$C$101)),\"\")","v":""},0,""]
[null,null,null,null,null,null,null,null,null,0,0,null,null,null,null,null,null,null,{"$f":"IF(AM33=0,IF(Sprache=\"Deutsch\",Sprachen!$A$94,IF(Sprache=\"Français\",Sprachen!$B$94,Sprachen!$C$94)),AM33&IF(AN33<>\"\",\" - \"&AN33,IF(AP33<>\"\",\" - \"&AP33,IF(AR33<>\"\",\" - \"&AR33,IF(AT33<>\"\",\" \"&AT33,\"\")))))","v":"Status ok"},{"$f":"SUMIF('Ref-Daten'!L:L,AF33,'Ref-Daten'!F:F)","v":0},0,{"$f":"IF(AND(3<>\"\",B33<>\"\"),VLOOKUP(VLOOKUP(A33&B33,CHOOSE({1,2},'Ref-Daten'!A:A&'Ref-Daten'!B:B,'Ref-Daten'!G:G),2,0),Ref_KTypen,IF(Sprache=\"Deutsch\",1,IF(Sprache=\"Français\",2,3)),FALSE),\"\")","v":""},{"$f":"SUMIF('Ref-Daten'!L:L,AF33,'Ref-Daten'!C:C)","v":0},{"$f":"SUMIF('Ref-Daten'!L:L,AF33,'Ref-Daten'!D:D)","v":0},{"$f":"SUMIF('Ref-Daten'!L:L,AF33,'Ref-Daten'!E:E)","v":0},0,0,0,0,0,null,"-",{"$f":"SUMIF('Ref-Daten'!L:L,AF33,'Ref-Daten'!I:I)","v":0},{"$f":"SUMIF('Ref-Daten'!L:L,AF33,'Ref-Daten'!J:J)","v":0},0,{"$f":"AI33*SUMIF('Ref-Daten'!L:L,AF33,'Ref-Daten'!K:K)","v":0},0,null,{"$f":"IF(OR(AN33<>\"\",AP33<>\"\",AR33<>\"\",AT33<>\"\"),IF(Sprache=\"Deutsch\",Sprachen!$A$96,IF(Sprache=\"Français\",Sprachen!$B$96,Sprachen!$C$96)),0)","v":0},{"$f":"IF(A33<>\"\",IF(COUNTIF('Ref-Daten'!L:L,AF33)=1,\"\",\"Kombination Hersteller/Modell funktioniert nicht\"),\"\")","v":""},0,{"$f":"IF(AO33>0,IF(Sprache=\"deutsch\",Sprachen!$A$98,IF(Sprache=\"Français\",Sprachen!$B$98,Sprachen!$C$98))&\" \"&AO33&IF(Sprache=\"deutsch\",Sprachen!$A$99,IF(Sprache=\"Français\",Sprachen!$B$99,Sprachen!$C$99)),IF(AO33<0,IF(Sprache=\"deutsch\",Sprachen!$A$97,IF(Sprache=\"Français\",Sprachen!$B$97,Sprachen!$C$97))&\" \"&AO33&IF(Sprache=\"deutsch\",Sprachen!$A$100,IF(Sprache=\"Français\",Sprachen!$B$100,Sprachen!$C$100)),\"\"))","v":""},0,{"$f":"IF(AQ33<0,IF(Sprache=\"Deutsch\",Sprachen!$A$101,IF(Sprache=\"Français\",Sprachen!$B$101,Sprachen!$C$101)),\"\")","v":""},0,""]
[null,null,null,null,null,null,null,null,null,0,0,null,null,null,null,null,null,null,{"$f":"IF(AM34=0,IF(Sprache=\"Deutsch\",Sprachen!$A$94,IF(Sprache=\"Français\",Sprachen!$B$94,Sprachen!$C$94)),AM34&IF(AN34<>\"\",\" - \"&AN34,IF(AP34<>\"\",\" - \"&AP34,IF(AR34<>\"\",\" - \"&AR34,IF(AT34<>\"\",\" \"&AT34,\"\")))))","v":"Status ok"},{"$f":"SUMIF('Ref-Daten'!L:L,AF34,'Ref-Daten'!F:F)","v":0},0,{"$f":"IF(AND(3<>\"\",B34<>\"\"),VLOOKUP(VLOOKUP(A34&B34,CHOOSE({1,2},'Ref-Daten'!A:A&'Ref-Daten'!B:B,'Ref-Daten'!G:G),2,0),Ref_KTypen,IF(Sprache=\"Deutsch\",1,IF(Sprache=\"Français\",2,3)),FALSE),\"\")","v":""},{"$f":"SUMIF('Ref-Daten'!L:L,AF34,'Ref-Daten'!C:C)","v":0},{"$f":"SUMIF('Ref-Daten'!L:L,AF34,'Ref-Daten'!D:D)","v":0},{"$f":"SUMIF('Ref-Daten'!L:L,AF34,'Ref-Daten'!E:E)","v":0},0,0,0,0,0,null,"-",{"$f":"SUMIF('Ref-Daten'!L:L,AF34,'Ref-Daten'!I:I)","v":0},{"$f":"SUMIF('Ref-Daten'!L:L,AF34,'Ref-Daten'!J:J)","v":0},0,{"$f":"AI34*SUMIF('Ref-Daten'!L:L,AF34,'Ref-Daten'!K:K)","v":0},0,null,{"$f":"IF(OR(AN34<>\"\",AP34<>\"\",AR34<>\"\",AT34<>\"\"),IF(Sprache=\"Deutsch\",Sprachen!$A$96,IF(Sprache=\"Français\",Sprachen!$B$96,Sprachen!$C$96)),0)","v":0},{"$f":"IF(A34<>\"\",IF(COUNTIF('Ref-Daten'!L:L,AF34)=1,\"\",\"Kombination Hersteller/Modell funktioniert nicht\"),\"\")","v":""},0,{"$f":"IF(AO34>0,IF(Sprache=\"deutsch\",Sprachen!$A$98,IF(Sprache=\"Français\",Sprachen!$B$98,Sprachen!$C$98))&\" \"&AO34&IF(Sprache=\"deutsch\",Sprachen!$A$99,IF(Sprache=\"Français\",Sprachen!$B$99,Sprachen!$C$99)),IF(AO34<0,IF(Sprache=\"deutsch\",Sprachen!$A$97,IF(Sprache=\"Français\",Sprachen!$B$97,Sprachen!$C$97))&\" \"&AO34&IF(Sprache=\"deutsch\",Sprachen!$A$100,IF(Sprache=\"Français\",Sprachen!$B$100,Sprachen!$C$100)),\"\"))","v":""},0,{"$f":"IF(AQ34<0,IF(Sprache=\"Deutsch\",Sprachen!$A$101,IF(Sprache=\"Français\",Sprachen!$B$101,Sprachen!$C$101)),\"\")","v":""},0,""]
[null,null,null,null,null,null,null,null,null,0,0,null,null,null,null,null,null,null,{"$f":"IF(AM35=0,IF(Sprache=\"Deutsch\",Sprachen!$A$94,IF(Sprache=\"Français\",Sprachen!$B$94,Sprachen!$C$94)),AM35&IF(AN35<>\"\",\" - \"&AN35,IF(AP35<>\"\",\" - \"&AP35,IF(AR35<>\"\",\" - \"&AR35,IF(AT35<>\"\",\" \"&AT35,\"\")))))","v":"Status ok"},{"$f":"SUMIF('Ref-Daten'!L:L,AF35,'Ref-Daten'!F:F)","v":0},{"$f":"T35*J35","v":0},{"$f":"IF(AND(3<>\"\",B35<>\"\"),VLOOKUP(VLOOKUP(A35&B35,CHOOSE({1,2},'Ref-Daten'!A:A&'Ref-Daten'!B:B,'Ref-Daten'!G:G),2,0),Ref_KTypen,IF(Sprache=\"Deutsch\",1,IF(Sprache=\"Français\",2,3)),FALSE),\"\")","v":""},{"$f":"SUMIF('Ref-Daten'!L:L,AF35,'Ref-Daten'!C:C)","v":0},{"$f":"SUMIF('Ref-Daten'!L:L,AF35,'Ref-Daten'!D:D)","v":0},{"$f":"SUMIF('Ref-Daten'!L:L,AF35,'Ref-Daten'!E:E)","v":0},{"$f":"D35*W35","v":0},{"$f":"F35*X35","v":0},{"$f":"H35*Y35","v":0},0,0,null,{"$f":"A35&\"-\"&B35","v":"-"},{"$f":"SUMIF('Ref-Daten'!L:L,AF35,'Ref-Daten'!I:I)","v":0},{"$f":"SUMIF('Ref-Daten'!L:L,AF35,'Ref-Daten'!J:J)","v":0},{"$f":"IF(AG35=0,0,J35/AG35*AH35)","v":0},{"$f":"AI35*SUMIF('Ref-Daten'!L:L,AF35,'Ref-Daten'!K:K)","v":0},0,null,{"$f":"IF(OR(AN35<>\"\",AP35<>\"\",AR35<>\"\",AT35<>\"\"),IF(Sprache=\"Deutsch\",Sprachen!$A$96,IF(Sprache=\"Français\",Sprachen!$B$96,Sprachen!$C$96)),0)","v":0},{"$f":"IF(A35<>\"\",IF(COUNTIF('Ref-Daten'!L:L,AF35)=1,\"\",\"Kombination Hersteller/Modell funktioniert nicht\"),\"\")","v":""},{"$f":"SUM(K35)-SUM(L35:P35)","v":0},{"$f":"IF(AO35>0,IF(Sprache=\"deutsch\",Sprachen!$A$98,IF(Sprache=\"Français\",Sprachen!$B$98,Sprachen!$C$98))&\" \"&AO35&IF(Sprache=\"deutsch\",Sprachen!$A$99,IF(Sprache=\"Français\",Sprachen!$B$99,Sprachen!$C$99)),IF(AO35<0,IF(Sprache=\"deutsch\",Sprachen!$A$97,IF(Sprache=\"Français\",Sprachen!$B$97,Sprachen!$C$97))&\" \"&AO35&IF(Sprache=\"deutsch\",Sprachen!$A$100,IF(Sprache=\"Français\",Sprachen!$B$100,Sprachen!$C$100)),\"\"))","v":""},0,{"$f":"IF(AQ35<0,IF(Sprache=\"Deutsch\",Sprachen!$A$101,IF(Sprache=\"Français\",Sprachen!$B$101,Sprachen!$C$101)),\"\")","v":""},0,""]
[null,null,null,null,null,null,null,null,null,0,0,null,null,null,null,null,null,null,{"$f":"IF(AM36=0,IF(Sprache=\"Deutsch\",Sprachen!$A$94,IF(Sprache=\"Français\",Sprachen!$B$94,Sprachen!$C$94)),AM36&IF(AN36<>\"\",\" - \"&AN36,IF(AP36<>\"\",\" - \"&AP36,IF(AR36<>\"\",\" - \"&AR36,IF(AT36<>\"\",\" \"&AT36,\"\")))))","v":"Status ok"},{"$f":"SUMIF('Ref-Daten'!L:L,AF36,'Ref-Daten'!F:F)","v":0},0,{"$f":"IF(AND(3<>\"\",B36<>\"\"),VLOOKUP(VLOOKUP(A36&B36,CHOOSE({1,2},'Ref-Daten'!A:A&'Ref-Daten'!B:B,'Ref-Daten'!G:G),2,0),Ref_KTypen,IF(Sprache=\"Deutsch\",1,IF(Sprache=\"Français\",2,3)),FALSE),\"\")","v":""},{"$f":"SUMIF('Ref-Daten'!L:L,AF36,'Ref-Daten'!C:C)","v":0},{"$f":"SUMIF('Ref-Daten'!L:L,AF36,'Ref-Daten'!D:D)","v":0},{"$f":"SUMIF('Ref-Daten'!L:L,AF36,'Ref-Daten'!E:E)","v":0},0,0,0,0,0,null,"-",{"$f":"SUMIF('Ref-Daten'!L:L,AF36,'Ref-Daten'!I:I)","v":0},{"$f":"SUMIF('Ref-Daten'!L:L,AF36,'Ref-Daten'!J:J)","v":0},0,{"$f":"AI36*SUMIF('Ref-Daten'!L:L,AF36,'Ref-Daten'!K:K)","v":0},0,null,{"$f":"IF(OR(AN36<>\"\",AP36<>\"\",AR36<>\"\",AT36<>\"\"),IF(Sprache=\"Deutsch\",Sprachen!$A$96,IF(Sprache=\"Français\",Sprachen!$B$96,Sprachen!$C$96)),0)","v":0},{"$f":"IF(A36<>\"\",IF(COUNTIF('Ref-Daten'!L:L,AF36)=1,\"\",\"Kombination Hersteller/Modell funktioniert nicht\"),\"\")","v":""},0,{"$f":"IF(AO36>0,IF(Sprache=\"deutsch\",Sprachen!$A$98,IF(Sprache=\"Français\",Sprachen!$B$98,Sprachen!$C$98))&\" \"&AO36&IF(Sprache=\"deutsch\",Sprachen!$A$99,IF(Sprache=\"Français\",Sprachen!$B$99,Sprachen!$C$99)),IF(AO36<0,IF(Sprache=\"deutsch\",Sprachen!$A$97,IF(Sprache=\"Français\",Sprachen!$B$97,Sprachen!$C$97))&\" \"&AO36&IF(Sprache=\"deutsch\",Sprachen!$A$100,IF(Sprache=\"Français\",Sprachen!$B$100,Sprachen!$C$100)),\"\"))","v":""},0,{"$f":"IF(AQ36<0,IF(Sprache=\"Deutsch\",Sprachen!$A$101,IF(Sprache=\"Français\",Sprachen!$B$101,Sprachen!$C$101)),\"\")","v":""},0,""]
[null,null,null,null,null,null,null,null,null,0,0,null,null,null,null,null,null,null,{"$f":"IF(AM37=0,IF(Sprache=\"Deutsch\",Sprachen!$A$94,IF(Sprache=\"Français\",Sprachen!$B$94,Sprachen!$C$94)),AM37&IF(AN37<>\"\",\" - \"&AN37,IF(AP37<>\"\",\" - \"&AP37,IF(AR37<>\"\",\" - \"&AR37,IF(AT37<>\"\",\" \"&AT37,\"\")))))","v":"Status ok"},{"$f":"SUMIF('Ref-Daten'!L:L,AF37,'Ref-Daten'!F:F)","v":0},0,{"$f":"IF(AND(3<>\"\",B37<>\"\"),VLOOKUP(VLOOKUP(A37&B37,CHOOSE({1,2},'Ref-Daten'!A:A&'Ref-Daten'!B:B,'Ref-Daten'!G:G),2,0),Ref_KTypen,IF(Sprache=\"Deutsch\",1,IF(Sprache=\"Français\",2,3)),FALSE),\"\")","v":""},{"$f":"SUMIF('Ref-Daten'!L:L,AF37,'Ref-Daten'!C:C)","v":0},{"$f":"SUMIF('Ref-Daten'!L:L,AF37,'Ref-Daten'!D:D)","v":0},{"$f":"SUMIF('Ref-Daten'!L:L,AF37,'Ref-Daten'!E:E)","v":0},0,0,0,0,0,null,"-",{"$f":"SUMIF('Ref-Daten'!L:L,AF37,'Ref-Daten'!I:I)","v":0},{"$f":"SUMIF('Ref-Daten'!L:L,AF37,'Ref-Daten'!J:J)","v":0},0,{"$f":"AI37*SUMIF('Ref-Daten'!L:L,AF37,'Ref-Daten'!K:K)","v":0},0,null,{"$f":"IF(OR(AN37<>\"\",AP37<>\"\",AR37<>\"\",AT37<>\"\"),IF(Sprache=\"Deutsch\",Sprachen!$A$96,IF(Sprache=\"Français\",Sprachen!$B$96,Sprachen!$C$96)),0)","v":0},{"$f":"IF(A37<>\"\",IF(COUNTIF('Ref-Daten'!L:L,AF37)=1,\"\",\"Kombination Hersteller/Modell funktioniert nicht\"),\"\")","v":""},0,{"$f":"IF(AO37>0,IF(Sprache=\"deutsch\",Sprachen!$A$98,IF(Sprache=\"Français\",Sprachen!$B$98,Sprachen!$C$98))&\" \"&AO37&IF(Sprache=\"deutsch\",Sprachen!$A$99,IF(Sprache=\"Français\",Sprachen!$B$99,Sprachen!$C$99)),IF(AO37<0,IF(Sprache=\"deutsch\",Sprachen!$A$97,IF(Sprache=\"Français\",Sprachen!$B$97,Sprachen!$C$97))&\" \"&AO37&IF(Sprache=\"deutsch\",Sprachen!$A$100,IF(Sprache=\"Français\",Sprachen!$B$100,Sprachen!$C$100)),\"\"))","v":""},0,{"$f":"IF(AQ37<0,IF(Sprache=\"Deutsch\",Sprachen!$A$101,IF(Sprache=\"Français\",Sprachen!$B$101,Sprachen!$C$101)),\"\")","v":""},0,""]
[null,null,null,null,null,null,null,null,null,0,0,null,null,null,null,null,null,null,{"$f":"IF(AM38=0,IF(Sprache=\"Deutsch\",Sprachen!$A$94,IF(Sprache=\"Français\",Sprachen!$B$94,Sprachen!$C$94)),AM38&IF(AN38<>\"\",\" - \"&AN38,IF(AP38<>\"\",\" - \"&AP38,IF(AR38<>\"\",\" - \"&AR38,IF(AT38<>\"\",\" \"&AT38,\"\")))))","v":"Status ok"},{"$f":"SUMIF('Ref-Daten'!L:L,AF38,'Ref-Daten'!F:F)","v":0},0,{"$f":"IF(AND(3<>\"\",B38<>\"\"),VLOOKUP(VLOOKUP(A38&B38,CHOOSE({1,2},'Ref-Daten'!A:A&'Ref-Daten'!B:B,'Ref-Daten'!G:G),2,0),Ref_KTypen,IF(Sprache=\"Deutsch\",1,IF(Sprache=\"Français\",2,3)),FALSE),\"\")","v":""},{"$f":"SUMIF('Ref-Daten'!L:L,AF38,'Ref-Daten'!C:C)","v":0},{"$f":"SUMIF('Ref-Daten'!L:L,AF38,'Ref-Daten'!D:D)","v":0},{"$f":"SUMIF('Ref-Daten'!L:L,AF38,'Ref-Daten'!E:E)","v":0},0,0,0,0,0,null,"-",{"$f":"SUMIF('Ref-Daten'!L:L,AF38,'Ref-Daten'!I:I)","v":0},{"$f":"SUMIF('Ref-Daten'!L:L,AF38,'Ref-Daten'!J:J)","v":0},0,{"$f":"AI38*SUMIF('Ref-Daten'!L:L,AF38,'Ref-Daten'!K:K)","v":0},0,null,{"$f":"IF(OR(AN38<>\"\",AP38<>\"\",AR38<>\"\",AT38<>\"\"),IF(Sprache=\"Deutsch\",Sprachen!$A$96,IF(Sprache=\"Français\",Sprachen!$B$96,Sprachen!$C$96)),0)","v":0},{"$f":"IF(A38<>\"\",IF(COUNTIF('Ref-Daten'!L:L,AF38)=1,\"\",\"Kombination Hersteller/Modell funktioniert nicht\"),\"\")","v":""},0,{"$f":"IF(AO38>0,IF(Sprache=\"deutsch\",Sprachen!$A$98,IF(Sprache=\"Français\",Sprachen!$B$98,Sprachen!$C$98))&\" \"&AO38&IF(Sprache=\"deutsch\",Sprachen!$A$99,IF(Sprache=\"Français\",Sprachen!$B$99,Sprachen!$C$99)),IF(AO38<0,IF(Sprache=\"deutsch\",Sprachen!$A$97,IF(Sprache=\"Français\",Sprachen!$B$97,Sprachen!$C$97))&\" \"&AO38&IF(Sprache=\"deutsch\",Sprachen!$A$100,IF(Sprache=\"Français\",Sprachen!$B$100,Sprachen!$C$100)),\"\"))","v":""},0,{"$f":"IF(AQ38<0,IF(Sprache=\"Deutsch\",Sprachen!$A$101,IF(Sprache=\"Français\",Sprachen!$B$101,Sprachen!$C$101)),\"\")","v":""},0,""]
[null,null,null,null,null,null,null,null,null,0,0,null,null,null,null,null,null,null,{"$f":"IF(AM39=0,IF(Sprache=\"Deutsch\",Sprachen!$A$94,IF(Sprache=\"Français\",Sprachen!$B$94,Sprachen!$C$94)),AM39&IF(AN39<>\"\",\" - \"&AN39,IF(AP39<>\"\",\" - \"&AP39,IF(AR39<>\"\",\" - \"&AR39,IF(AT39<>\"\",\" \"&AT39,\"\")))))","v":"Status ok"},{"$f":"SUMIF('Ref-Daten'!L:L,AF39,'Ref-Daten'!F:F)","v":0},0,{"$f":"IF(AND(3<>\"\",B39<>\"\"),VLOOKUP(VLOOKUP(A39&B39,CHOOSE({1,2},'Ref-Daten'!A:A&'Ref-Daten'!B:B,'Ref-Daten'!G:G),2,0),Ref_KTypen,IF(Sprache=\"Deutsch\",1,IF(Sprache=\"Français\",2,3)),FALSE),\"\")","v":""},{"$f":"SUMIF('Ref-Daten'!L:L,AF39,'Ref-Daten'!C:C)","v":0},{"$f":"SUMIF('Ref-Daten'!L:L,AF39,'Ref-Daten'!D:D)","v":0},{"$f":"SUMIF('Ref-Daten'!L:L,AF39,'Ref-Daten'!E:E)","v":0},0,0,0,0,0,null,"-",{"$f":"SUMIF('Ref-Daten'!L:L,AF39,'Ref-Daten'!I:I)","v":0},{"$f":"SUMIF('Ref-Daten'!L:L,AF39,'Ref-Daten'!J:J)","v":0},0,{"$f":"AI39*SUMIF('Ref-Daten'!L:L,AF39,'Ref-Daten'!K:K)","v":0},0,null,{"$f":"IF(OR(AN39<>\"\",AP39<>\"\",AR39<>\"\",AT39<>\"\"),IF(Sprache=\"Deutsch\",Sprachen!$A$96,IF(Sprache=\"Français\",Sprachen!$B$96,Sprachen!$C$96)),0)","v":0},{"$f":"IF(A39<>\"\",IF(COUNTIF('Ref-Daten'!L:L,AF39)=1,\"\",\"Kombination Hersteller/Modell funktioniert nicht\"),\"\")","v":""},0,{"$f":"IF(AO39>0,IF(Sprache=\"deutsch\",Sprachen!$A$98,IF(Sprache=\"Français\",Sprachen!$B$98,Sprachen!$C$98))&\" \"&AO39&IF(Sprache=\"deutsch\",Sprachen!$A$99,IF(Sprache=\"Français\",Sprachen!$B$99,Sprachen!$C$99)),IF(AO39<0,IF(Sprache=\"deutsch\",Sprachen!$A$97,IF(Sprache=\"Français\",Sprachen!$B$97,Sprachen!$C$97))&\" \"&AO39&IF(Sprache=\"deutsch\",Sprachen!$A$100,IF(Sprache=\"Français\",Sprachen!$B$100,Sprachen!$C$100)),\"\"))","v":""},0,{"$f":"IF(AQ39<0,IF(Sprache=\"Deutsch\",Sprachen!$A$101,IF(Sprache=\"Français\",Sprachen!$B$101,Sprachen!$C$101)),\"\")","v":""},0,""]
[null,null,null,null,null,null,null,null,null,0,0,null,null,null,null,null,null,null,{"$f":"IF(AM40=0,IF(Sprache=\"Deutsch\",Sprachen!$A$94,IF(Sprache=\"Français\",Sprachen!$B$94,Sprachen!$C$94)),AM40&IF(AN40<>\"\",\" - \"&AN40,IF(AP40<>\"\",\" - \"&AP40,IF(AR40<>\"\",\" - \"&AR40,IF(AT40<>\"\",\" \"&AT40,\"\")))))","v":"Status ok"},{"$f":"SUMIF('Ref-Daten'!L:L,AF40,'Ref-Daten'!F:F)","v":0},0,{"$f":"IF(AND(3<>\"\",B40<>\"\"),VLOOKUP(VLOOKUP(A40&B40,CHOOSE({1,2},'Ref-Daten'!A:A&'Ref-Daten'!B:B,'Ref-Daten'!G:G),2,0),Ref_KTypen,IF(Sprache=\"Deutsch\",1,IF(Sprache=\"Français\",2,3)),FALSE),\"\")","v":""},{"$f":"SUMIF('Ref-Daten'!L:L,AF40,'Ref-Daten'!C:C)","v":0},{"$f":"SUMIF('Ref-Daten'!L:L,AF40,'Ref-Daten'!D:D)","v":0},{"$f":"SUMIF('Ref-Daten'!L:L,AF40,'Ref-Daten'!E:E)","v":0},0,0,0,0,0,null,"-",{"$f":"SUMIF('Ref-Daten'!L:L,AF40,'Ref-Daten'!I:I)","v":0},{"$f":"SUMIF('Ref-Daten'!L:L,AF40,'Ref-Daten'!J:J)","v":0},0,{"$f":"AI40*SUMIF('Ref-Daten'!L:L,AF40,'Ref-Daten'!K:K)","v":0},0,null,{"$f":"IF(OR(AN40<>\"\",AP40<>\"\",AR40<>\"\",AT40<>\"\"),IF(Sprache=\"Deutsch\",Sprachen!$A$96,IF(Sprache=\"Français\",Sprachen!$B$96,Sprachen!$C$96)),0)","v":0},{"$f":"IF(A40<>\"\",IF(COUNTIF('Ref-Daten'!L:L,AF40)=1,\"\",\"Kombination Hersteller/Modell funktioniert nicht\"),\"\")","v":""},0,{"$f":"IF(AO40>0,IF(Sprache=\"deutsch\",Sprachen!$A$98,IF(Sprache=\"Français\",Sprachen!$B$98,Sprachen!$C$98))&\" \"&AO40&IF(Sprache=\"deutsch\",Sprachen!$A$99,IF(Sprache=\"Français\",Sprachen!$B$99,Sprachen!$C$99)),IF(AO40<0,IF(Sprache=\"deutsch\",Sprachen!$A$97,IF(Sprache=\"Français\",Sprachen!$B$97,Sprachen!$C$97))&\" \"&AO40&IF(Sprache=\"deutsch\",Sprachen!$A$100,IF(Sprache=\"Français\",Sprachen!$B$100,Sprachen!$C$100)),\"\"))","v":""},0,{"$f":"IF(AQ40<0,IF(Sprache=\"Deutsch\",Sprachen!$A$101,IF(Sprache=\"Français\",Sprachen!$B$101,Sprachen!$C$101)),\"\")","v":""},0,""]
[null,null,null,null,null,null,null,null,null,0,0,null,null,null,null,null,null,null,{"$f":"IF(AM41=0,IF(Sprache=\"Deutsch\",Sprachen!$A$94,IF(Sprache=\"Français\",Sprachen!$B$94,Sprachen!$C$94)),AM41&IF(AN41<>\"\",\" - \"&AN41,IF(AP41<>\"\",\" - \"&AP41,IF(AR41<>\"\",\" - \"&AR41,IF(AT41<>\"\",\" \"&AT41,\"\")))))","v":"Status ok"},{"$f":"SUMIF('Ref-Daten'!L:L,AF41,'Ref-Daten'!F:F)","v":0},0,{"$f":"IF(AND(3<>\"\",B41<>\"\"),VLOOKUP(VLOOKUP(A41&B41,CHOOSE({1,2},'Ref-Daten'!A:A&'Ref-Daten'!B:B,'Ref-Daten'!G:G),2,0),Ref_KTypen,IF(Sprache=\"Deutsch\",1,IF(Sprache=\"Français\",2,3)),FALSE),\"\")","v":""},{"$f":"SUMIF('Ref-Daten'!L:L,AF41,'Ref-Daten'!C:C)","v":0},{"$f":"SUMIF('Ref-Daten'!L:L,AF41,'Ref-Daten'!D:D)","v":0},{"$f":"SUMIF('Ref-Daten'!L:L,AF41,'Ref-Daten'!E:E)","v":0},0,0,0,0,0,null,"-",{"$f":"SUMIF('Ref-Daten'!L:L,AF41,'Ref-Daten'!I:I)","v":0},{"$f":"SUMIF('Ref-Daten'!L:L,AF41,'Ref-Daten'!J:J)","v":0},0,{"$f":"AI41*SUMIF('Ref-Daten'!L:L,AF41,'Ref-Daten'!K:K)","v":0},0,null,{"$f":"IF(OR(AN41<>\"\",AP41<>\"\",AR41<>\"\",AT41<>\"\"),IF(Sprache=\"Deutsch\",Sprachen!$A$96,IF(Sprache=\"Français\",Sprachen!$B$96,Sprachen!$C$96)),0)","v":0},{"$f":"IF(A41<>\"\",IF(COUNTIF('Ref-Daten'!L:L,AF41)=1,\"\",\"Kombination Hersteller/Modell funktioniert nicht\"),\"\")","v":""},0,{"$f":"IF(AO41>0,IF(Sprache=\"deutsch\",Sprachen!$A$98,IF(Sprache=\"Français\",Sprachen!$B$98,Sprachen!$C$98))&\" \"&AO41&IF(Sprache=\"deutsch\",Sprachen!$A$99,IF(Sprache=\"Français\",Sprachen!$B$99,Sprachen!$C$99)),IF(AO41<0,IF(Sprache=\"deutsch\",Sprachen!$A$97,IF(Sprache=\"Français\",Sprachen!$B$97,Sprachen!$C$97))&\" \"&AO41&IF(Sprache=\"deutsch\",Sprachen!$A$100,IF(Sprache=\"Français\",Sprachen!$B$100,Sprachen!$C$100)),\"\"))","v":""},0,{"$f":"IF(AQ41<0,IF(Sprache=\"Deutsch\",Sprachen!$A$101,IF(Sprache=\"Français\",Sprachen!$B$101,Sprachen!$C$101)),\"\")","v":""},0,""]
[null,null,null,null,null,null,null,null,null,0,0,null,null,null,null,null,null,null,{"$f":"IF(AM42=0,IF(Sprache=\"Deutsch\",Sprachen!$A$94,IF(Sprache=\"Français\",Sprachen!$B$94,Sprachen!$C$94)),AM42&IF(AN42<>\"\",\" - \"&AN42,IF(AP42<>\"\",\" - \"&AP42,IF(AR42<>\"\",\" - \"&AR42,IF(AT42<>\"\",\" \"&AT42,\"\")))))","v":"Status ok"},{"$f":"SUMIF('Ref-Daten'!L:L,AF42,'Ref-Daten'!F:F)","v":0},0,{"$f":"IF(AND(3<>\"\",B42<>\"\"),VLOOKUP(VLOOKUP(A42&B42,CHOOSE({1,2},'Ref-Daten'!A:A&'Ref-Daten'!B:B,'Ref-Daten'!G:G),2,0),Ref_KTypen,IF(Sprache=\"Deutsch\",1,IF(Sprache=\"Français\",2,3)),FALSE),\"\")","v":""},{"$f":"SUMIF('Ref-Daten'!L:L,AF42,'Ref-Daten'!C:C)","v":0},{"$f":"SUMIF('Ref-Daten'!L:L,AF42,'Ref-Daten'!D:D)","v":0},{"$f":"SUMIF('Ref-Daten'!L:L,AF42,'Ref-Daten'!E:E)","v":0},0,0,0,0,0,null,"-",{"$f":"SUMIF('Ref-Daten'!L:L,AF42,'Ref-Daten'!I:I)","v":0},{"$f":"SUMIF('Ref-Daten'!L:L,AF42,'Ref-Daten'!J:J)","v":0},0,{"$f":"AI42*SUMIF('Ref-Daten'!L:L,AF42,'Ref-Daten'!K:K)","v":0},0,null,{"$f":"IF(OR(AN42<>\"\",AP42<>\"\",AR42<>\"\",AT42<>\"\"),IF(Sprache=\"Deutsch\",Sprachen!$A$96,IF(Sprache=\"Français\",Sprachen!$B$96,Sprachen!$C$96)),0)","v":0},{"$f":"IF(A42<>\"\",IF(COUNTIF('Ref-Daten'!L:L,AF42)=1,\"\",\"Kombination Hersteller/Modell funktioniert nicht\"),\"\")","v":""},0,{"$f":"IF(AO42>0,IF(Sprache=\"deutsch\",Sprachen!$A$98,IF(Sprache=\"Français\",Sprachen!$B$98,Sprachen!$C$98))&\" \"&AO42&IF(Sprache=\"deutsch\",Sprachen!$A$99,IF(Sprache=\"Français\",Sprachen!$B$99,Sprachen!$C$99)),IF(AO42<0,IF(Sprache=\"deutsch\",Sprachen!$A$97,IF(Sprache=\"Français\",Sprachen!$B$97,Sprachen!$C$97))&\" \"&AO42&IF(Sprache=\"deutsch\",Sprachen!$A$100,IF(Sprache=\"Français\",Sprachen!$B$100,Sprachen!$C$100)),\"\"))","v":""},0,{"$f":"IF(AQ42<0,IF(Sprache=\"Deutsch\",Sprachen!$A$101,IF(Sprache=\"Français\",Sprachen!$B$101,Sprachen!$C$101)),\"\")","v":""},0,""]
[null,null,null,null,null,null,null,null,null,0,0,null,null,null,null,null,null,null,{"$f":"IF(AM43=0,IF(Sprache=\"Deutsch\",Sprachen!$A$94,IF(Sprache=\"Français\",Sprachen!$B$94,Sprachen!$C$94)),AM43&IF(AN43<>\"\",\" - \"&AN43,IF(AP43<>\"\",\" - \"&AP43,IF(AR43<>\"\",\" - \"&AR43,IF(AT43<>\"\",\" \"&AT43,\"\")))))","v":"Status ok"},{"$f":"SUMIF('Ref-Daten'!L:L,AF43,'Ref-Daten'!F:F)","v":0},0,{"$f":"IF(AND(3<>\"\",B43<>\"\"),VLOOKUP(VLOOKUP(A43&B43,CHOOSE({1,2},'Ref-Daten'!A:A&'Ref-Daten'!B:B,'Ref-Daten'!G:G),2,0),Ref_KTypen,IF(Sprache=\"Deutsch\",1,IF(Sprache=\"Français\",2,3)),FALSE),\"\")","v":""},{"$f":"SUMIF('Ref-Daten'!L:L,AF43,'Ref-Daten'!C:C)","v":0},{"$f":"SUMIF('Ref-Daten'!L:L,AF43,'Ref-Daten'!D:D)","v":0},{"$f":"SUMIF('Ref-Daten'!L:L,AF43,'Ref-Daten'!E:E)","v":0},0,0,0,0,0,null,"-",{"$f":"SUMIF('Ref-Daten'!L:L,AF43,'Ref-Daten'!I:I)","v":0},{"$f":"SUMIF('Ref-Daten'!L:L,AF43,'Ref-Daten'!J:J)","v":0},0,{"$f":"AI43*SUMIF('Ref-Daten'!L:L,AF43,'Ref-Daten'!K:K)","v":0},0,null,{"$f":"IF(OR(AN43<>\"\",AP43<>\"\",AR43<>\"\",AT43<>\"\"),IF(Sprache=\"Deutsch\",Sprachen!$A$96,IF(Sprache=\"Français\",Sprachen!$B$96,Sprachen!$C$96)),0)","v":0},{"$f":"IF(A43<>\"\",IF(COUNTIF('Ref-Daten'!L:L,AF43)=1,\"\",\"Kombination Hersteller/Modell funktioniert nicht\"),\"\")","v":""},0,{"$f":"IF(AO43>0,IF(Sprache=\"deutsch\",Sprachen!$A$98,IF(Sprache=\"Français\",Sprachen!$B$98,Sprachen!$C$98))&\" \"&AO43&IF(Sprache=\"deutsch\",Sprachen!$A$99,IF(Sprache=\"Français\",Sprachen!$B$99,Sprachen!$C$99)),IF(AO43<0,IF(Sprache=\"deutsch\",Sprachen!$A$97,IF(Sprache=\"Français\",Sprachen!$B$97,Sprachen!$C$97))&\" \"&AO43&IF(Sprache=\"deutsch\",Sprachen!$A$100,IF(Sprache=\"Français\",Sprachen!$B$100,Sprachen!$C$100)),\"\"))","v":""},0,{"$f":"IF(AQ43<0,IF(Sprache=\"Deutsch\",Sprachen!$A$101,IF(Sprache=\"Français\",Sprachen!$B$101,Sprachen!$C$101)),\"\")","v":""},0,""]
[null,null,null,null,null,null,null,null,null,0,0,null,null,null,null,null,null,null,{"$f":"IF(AM44=0,IF(Sprache=\"Deutsch\",Sprachen!$A$94,IF(Sprache=\"Français\",Sprachen!$B$94,Sprachen!$C$94)),AM44&IF(AN44<>\"\",\" - \"&AN44,IF(AP44<>\"\",\" - \"&AP44,IF(AR44<>\"\",\" - \"&AR44,IF(AT44<>\"\",\" \"&AT44,\"\")))))","v":"Status ok"},{"$f":"SUMIF('Ref-Daten'!L:L,AF44,'Ref-Daten'!F:F)","v":0},0,{"$f":"IF(AND(3<>\"\",B44<>\"\"),VLOOKUP(VLOOKUP(A44&B44,CHOOSE({1,2},'Ref-Daten'!A:A&'Ref-Daten'!B:B,'Ref-Daten'!G:G),2,0),Ref_KTypen,IF(Sprache=\"Deutsch\",1,IF(Sprache=\"Français\",2,3)),FALSE),\"\")","v":""},{"$f":"SUMIF('Ref-Daten'!L:L,AF44,'Ref-Daten'!C:C)","v":0},{"$f":"SUMIF('Ref-Daten'!L:L,AF44,'Ref-Daten'!D:D)","v":0},{"$f":"SUMIF('Ref-Daten'!L:L,AF44,'Ref-Daten'!E:E)","v":0},0,0,0,0,0,null,"-",{"$f":"SUMIF('Ref-Daten'!L:L,AF44,'Ref-Daten'!I:I)","v":0},{"$f":"SUMIF('Ref-Daten'!L:L,AF44,'Ref-Daten'!J:J)","v":0},0,{"$f":"AI44*SUMIF('Ref-Daten'!L:L,AF44,'Ref-Daten'!K:K)","v":0},0,null,{"$f":"IF(OR(AN44<>\"\",AP44<>\"\",AR44<>\"\",AT44<>\"\"),IF(Sprache=\"Deutsch\",Sprachen!$A$96,IF(Sprache=\"Français\",Sprachen!$B$96,Sprachen!$C$96)),0)","v":0},{"$f":"IF(A44<>\"\",IF(COUNTIF('Ref-Daten'!L:L,AF44)=1,\"\",\"Kombination Hersteller/Modell funktioniert nicht\"),\"\")","v":""},0,{"$f":"IF(AO44>0,IF(Sprache=\"deutsch\",Sprachen!$A$98,IF(Sprache=\"Français\",Sprachen!$B$98,Sprachen!$C$98))&\" \"&AO44&IF(Sprache=\"deutsch\",Sprachen!$A$99,IF(Sprache=\"Français\",Sprachen!$B$99,Sprachen!$C$99)),IF(AO44<0,IF(Sprache=\"deutsch\",Sprachen!$A$97,IF(Sprache=\"Français\",Sprachen!$B$97,Sprachen!$C$97))&\" \"&AO44&IF(Sprache=\"deutsch\",Sprachen!$A$100,IF(Sprache=\"Français\",Sprachen!$B$100,Sprachen!$C$100)),\"\"))","v":""},0,{"$f":"IF(AQ44<0,IF(Sprache=\"Deutsch\",Sprachen!$A$101,IF(Sprache=\"Français\",Sprachen!$B$101,Sprachen!$C$101)),\"\")","v":""},0,""]
[null,null,null,null,null,null,null,null,null,0,0,null,null,null,null,null,null,null,{"$f":"IF(AM45=0,IF(Sprache=\"Deutsch\",Sprachen!$A$94,IF(Sprache=\"Français\",Sprachen!$B$94,Sprachen!$C$94)),AM45&IF(AN45<>\"\",\" - \"&AN45,IF(AP45<>\"\",\" - \"&AP45,IF(AR45<>\"\",\" - \"&AR45,IF(AT45<>\"\",\" \"&AT45,\"\")))))","v":"Status ok"},{"$f":"SUMIF('Ref-Daten'!L:L,AF45,'Ref-Daten'!F:F)","v":0},0,{"$f":"IF(AND(3<>\"\",B45<>\"\"),VLOOKUP(VLOOKUP(A45&B45,CHOOSE({1,2},'Ref-Daten'!A:A&'Ref-Daten'!B:B,'Ref-Daten'!G:G),2,0),Ref_KTypen,IF(Sprache=\"Deutsch\",1,IF(Sprache=\"Français\",2,3)),FALSE),\"\")","v":""},{"$f":"SUMIF('Ref-Daten'!L:L,AF45,'Ref-Daten'!C:C)","v":0},{"$f":"SUMIF('Ref-Daten'!L:L,AF45,'Ref-Daten'!D:D)","v":0},{"$f":"SUMIF('Ref-Daten'!L:L,AF45,'Ref-Daten'!E:E)","v":0},0,0,0,0,0,null,"-",{"$f":"SUMIF('Ref-Daten'!L:L,AF45,'Ref-Daten'!I:I)","v":0},{"$f":"SUMIF('Ref-Daten'!L:L,AF45,'Ref-Daten'!J:J)","v":0},0,{"$f":"AI45*SUMIF('Ref-Daten'!L:L,AF45,'Ref-Daten'!K:K)","v":0},0,null,{"$f":"IF(OR(AN45<>\"\",AP45<>\"\",AR45<>\"\",AT45<>\"\"),IF(Sprache=\"Deutsch\",Sprachen!$A$96,IF(Sprache=\"Français\",Sprachen!$B$96,Sprachen!$C$96)),0)","v":0},{"$f":"IF(A45<>\"\",IF(COUNTIF('Ref-Daten'!L:L,AF45)=1,\"\",\"Kombination Hersteller/Modell funktioniert nicht\"),\"\")","v":""},0,{"$f":"IF(AO45>0,IF(Sprache=\"deutsch\",Sprachen!$A$98,IF(Sprache=\"Français\",Sprachen!$B$98,Sprachen!$C$98))&\" \"&AO45&IF(Sprache=\"deutsch\",Sprachen!$A$99,IF(Sprache=\"Français\",Sprachen!$B$99,Sprachen!$C$99)),IF(AO45<0,IF(Sprache=\"deutsch\",Sprachen!$A$97,IF(Sprache=\"Français\",Sprachen!$B$97,Sprachen!$C$97))&\" \"&AO45&IF(Sprache=\"deutsch\",Sprachen!$A$100,IF(Sprache=\"Français\",Sprachen!$B$100,Sprachen!$C$100)),\"\"))","v":""},0,{"$f":"IF(AQ45<0,IF(Sprache=\"Deutsch\",Sprachen!$A$101,IF(Sprache=\"Français\",Sprachen!$B$101,Sprachen!$C$101)),\"\")","v":""},0,""]
[null,null,null,null,null,null,null,null,null,0,0,null,null,null,null,null,null,null,{"$f":"IF(AM46=0,IF(Sprache=\"Deutsch\",Sprachen!$A$94,IF(Sprache=\"Français\",Sprachen!$B$94,Sprachen!$C$94)),AM46&IF(AN46<>\"\",\" - \"&AN46,IF(AP46<>\"\",\" - \"&AP46,IF(AR46<>\"\",\" - \"&AR46,IF(AT46<>\"\",\" \"&AT46,\"\")))))","v":"Status ok"},{"$f":"SUMIF('Ref-Daten'!L:L,AF46,'Ref-Daten'!F:F)","v":0},0,{"$f":"IF(AND(3<>\"\",B46<>\"\"),VLOOKUP(VLOOKUP(A46&B46,CHOOSE({1,2},'Ref-Daten'!A:A&'Ref-Daten'!B:B,'Ref-Daten'!G:G),2,0),Ref_KTypen,IF(Sprache=\"Deutsch\",1,IF(Sprache=\"Français\",2,3)),FALSE),\"\")","v":""},{"$f":"SUMIF('Ref-Daten'!L:L,AF46,'Ref-Daten'!C:C)","v":0},{"$f":"SUMIF('Ref-Daten'!L:L,AF46,'Ref-Daten'!D:D)","v":0},{"$f":"SUMIF('Ref-Daten'!L:L,AF46,'Ref-Daten'!E:E)","v":0},0,0,0,0,0,null,"-",{"$f":"SUMIF('Ref-Daten'!L:L,AF46,'Ref-Daten'!I:I)","v":0},{"$f":"SUMIF('Ref-Daten'!L:L,AF46,'Ref-Daten'!J:J)","v":0},0,{"$f":"AI46*SUMIF('Ref-Daten'!L:L,AF46,'Ref-Daten'!K:K)","v":0},0,null,{"$f":"IF(OR(AN46<>\"\",AP46<>\"\",AR46<>\"\",AT46<>\"\"),IF(Sprache=\"Deutsch\",Sprachen!$A$96,IF(Sprache=\"Français\",Sprachen!$B$96,Sprachen!$C$96)),0)","v":0},{"$f":"IF(A46<>\"\",IF(COUNTIF('Ref-Daten'!L:L,AF46)=1,\"\",\"Kombination Hersteller/Modell funktioniert nicht\"),\"\")","v":""},0,{"$f":"IF(AO46>0,IF(Sprache=\"deutsch\",Sprachen!$A$98,IF(Sprache=\"Français\",Sprachen!$B$98,Sprachen!$C$98))&\" \"&AO46&IF(Sprache=\"deutsch\",Sprachen!$A$99,IF(Sprache=\"Français\",Sprachen!$B$99,Sprachen!$C$99)),IF(AO46<0,IF(Sprache=\"deutsch\",Sprachen!$A$97,IF(Sprache=\"Français\",Sprachen!$B$97,Sprachen!$C$97))&\" \"&AO46&IF(Sprache=\"deutsch\",Sprachen!$A$100,IF(Sprache=\"Français\",Sprachen!$B$100,Sprachen!$C$100)),\"\"))","v":""},0,{"$f":"IF(AQ46<0,IF(Sprache=\"Deutsch\",Sprachen!$A$101,IF(Sprache=\"Français\",Sprachen!$B$101,Sprachen!$C$101)),\"\")","v":""},0,""]
[null,null,null,null,null,null,null,null,null,0,0,null,null,null,null,null,null,null,{"$f":"IF(AM47=0,IF(Sprache=\"Deutsch\",Sprachen!$A$94,IF(Sprache=\"Français\",Sprachen!$B$94,Sprachen!$C$94)),AM47&IF(AN47<>\"\",\" - \"&AN47,IF(AP47<>\"\",\" - \"&AP47,IF(AR47<>\"\",\" - \"&AR47,IF(AT47<>\"\",\" \"&AT47,\"\")))))","v":"Status ok"},{"$f":"SUMIF('Ref-Daten'!L:L,AF47,'Ref-Daten'!F:F)","v":0},0,{"$f":"IF(AND(3<>\"\",B47<>\"\"),VLOOKUP(VLOOKUP(A47&B47,CHOOSE({1,2},'Ref-Daten'!A:A&'Ref-Daten'!B:B,'Ref-Daten'!G:G),2,0),Ref_KTypen,IF(Sprache=\"Deutsch\",1,IF(Sprache=\"Français\",2,3)),FALSE),\"\")","v":""},{"$f":"SUMIF('Ref-Daten'!L:L,AF47,'Ref-Daten'!C:C)","v":0},{"$f":"SUMIF('Ref-Daten'!L:L,AF47,'Ref-Daten'!D:D)","v":0},{"$f":"SUMIF('Ref-Daten'!L:L,AF47,'Ref-Daten'!E:E)","v":0},0,0,0,0,0,null,"-",{"$f":"SUMIF('Ref-Daten'!L:L,AF47,'Ref-Daten'!I:I)","v":0},{"$f":"SUMIF('Ref-Daten'!L:L,AF47,'Ref-Daten'!J:J)","v":0},0,{"$f":"AI47*SUMIF('Ref-Daten'!L:L,AF47,'Ref-Daten'!K:K)","v":0},0,null,{"$f":"IF(OR(AN47<>\"\",AP47<>\"\",AR47<>\"\",AT47<>\"\"),IF(Sprache=\"Deutsch\",Sprachen!$A$96,IF(Sprache=\"Français\",Sprachen!$B$96,Sprachen!$C$96)),0)","v":0},{"$f":"IF(A47<>\"\",IF(COUNTIF('Ref-Daten'!L:L,AF47)=1,\"\",\"Kombination Hersteller/Modell funktioniert nicht\"),\"\")","v":""},0,{"$f":"IF(AO47>0,IF(Sprache=\"deutsch\",Sprachen!$A$98,IF(Sprache=\"Français\",Sprachen!$B$98,Sprachen!$C$98))&\" \"&AO47&IF(Sprache=\"deutsch\",Sprachen!$A$99,IF(Sprache=\"Français\",Sprachen!$B$99,Sprachen!$C$99)),IF(AO47<0,IF(Sprache=\"deutsch\",Sprachen!$A$97,IF(Sprache=\"Français\",Sprachen!$B$97,Sprachen!$C$97))&\" \"&AO47&IF(Sprache=\"deutsch\",Sprachen!$A$100,IF(Sprache=\"Français\",Sprachen!$B$100,Sprachen!$C$100)),\"\"))","v":""},0,{"$f":"IF(AQ47<0,IF(Sprache=\"Deutsch\",Sprachen!$A$101,IF(Sprache=\"Français\",Sprachen!$B$101,Sprachen!$C$101)),\"\")","v":""},0,""]
[null,null,null,null,null,null,null,null,null,0,0,null,null,null,null,null,null,null,{"$f":"IF(AM48=0,IF(Sprache=\"Deutsch\",Sprachen!$A$94,IF(Sprache=\"Français\",Sprachen!$B$94,Sprachen!$C$94)),AM48&IF(AN48<>\"\",\" - \"&AN48,IF(AP48<>\"\",\" - \"&AP48,IF(AR48<>\"\",\" - \"&AR48,IF(AT48<>\"\",\" \"&AT48,\"\")))))","v":"Status ok"},{"$f":"SUMIF('Ref-Daten'!L:L,AF48,'Ref-Daten'!F:F)","v":0},0,{"$f":"IF(AND(3<>\"\",B48<>\"\"),VLOOKUP(VLOOKUP(A48&B48,CHOOSE({1,2},'Ref-Daten'!A:A&'Ref-Daten'!B:B,'Ref-Daten'!G:G),2,0),Ref_KTypen,IF(Sprache=\"Deutsch\",1,IF(Sprache=\"Français\",2,3)),FALSE),\"\")","v":""},{"$f":"SUMIF('Ref-Daten'!L:L,AF48,'Ref-Daten'!C:C)","v":0},{"$f":"SUMIF('Ref-Daten'!L:L,AF48,'Ref-Daten'!D:D)","v":0},{"$f":"SUMIF('Ref-Daten'!L:L,AF48,'Ref-Daten'!E:E)","v":0},0,0,0,0,0,null,"-",{"$f":"SUMIF('Ref-Daten'!L:L,AF48,'Ref-Daten'!I:I)","v":0},{"$f":"SUMIF('Ref-Daten'!L:L,AF48,'Ref-Daten'!J:J)","v":0},0,{"$f":"AI48*SUMIF('Ref-Daten'!L:L,AF48,'Ref-Daten'!K:K)","v":0},0,null,{"$f":"IF(OR(AN48<>\"\",AP48<>\"\",AR48<>\"\",AT48<>\"\"),IF(Sprache=\"Deutsch\",Sprachen!$A$96,IF(Sprache=\"Français\",Sprachen!$B$96,Sprachen!$C$96)),0)","v":0},{"$f":"IF(A48<>\"\",IF(COUNTIF('Ref-Daten'!L:L,AF48)=1,\"\",\"Kombination Hersteller/Modell funktioniert nicht\"),\"\")","v":""},0,{"$f":"IF(AO48>0,IF(Sprache=\"deutsch\",Sprachen!$A$98,IF(Sprache=\"Français\",Sprachen!$B$98,Sprachen!$C$98))&\" \"&AO48&IF(Sprache=\"deutsch\",Sprachen!$A$99,IF(Sprache=\"Français\",Sprachen!$B$99,Sprachen!$C$99)),IF(AO48<0,IF(Sprache=\"deutsch\",Sprachen!$A$97,IF(Sprache=\"Français\",Sprachen!$B$97,Sprachen!$C$97))&\" \"&AO48&IF(Sprache=\"deutsch\",Sprachen!$A$100,IF(Sprache=\"Français\",Sprachen!$B$100,Sprachen!$C$100)),\"\"))","v":""},0,{"$f":"IF(AQ48<0,IF(Sprache=\"Deutsch\",Sprachen!$A$101,IF(Sprache=\"Français\",Sprachen!$B$101,Sprachen!$C$101)),\"\")","v":""},0,""]
[null,null,null,null,null,null,null,null,null,0,0,null,null,null,null,null,null,null,{"$f":"IF(AM49=0,IF(Sprache=\"Deutsch\",Sprachen!$A$94,IF(Sprache=\"Français\",Sprachen!$B$94,Sprachen!$C$94)),AM49&IF(AN49<>\"\",\" - \"&AN49,IF(AP49<>\"\",\" - \"&AP49,IF(AR49<>\"\",\" - \"&AR49,IF(AT49<>\"\",\" \"&AT49,\"\")))))","v":"Status ok"},{"$f":"SUMIF('Ref-Daten'!L:L,AF49,'Ref-Daten'!F:F)","v":0},0,{"$f":"IF(AND(3<>\"\",B49<>\"\"),VLOOKUP(VLOOKUP(A49&B49,CHOOSE({1,2},'Ref-Daten'!A:A&'Ref-Daten'!B:B,'Ref-Daten'!G:G),2,0),Ref_KTypen,IF(Sprache=\"Deutsch\",1,IF(Sprache=\"Français\",2,3)),FALSE),\"\")","v":""},{"$f":"SUMIF('Ref-Daten'!L:L,AF49,'Ref-Daten'!C:C)","v":0},{"$f":"SUMIF('Ref-Daten'!L:L,AF49,'Ref-Daten'!D:D)","v":0},{"$f":"SUMIF('Ref-Daten'!L:L,AF49,'Ref-Daten'!E:E)","v":0},0,0,0,0,0,null,"-",{"$f":"SUMIF('Ref-Daten'!L:L,AF49,'Ref-Daten'!I:I)","v":0},{"$f":"SUMIF('Ref-Daten'!L:L,AF49,'Ref-Daten'!J:J)","v":0},0,{"$f":"AI49*SUMIF('Ref-Daten'!L:L,AF49,'Ref-Daten'!K:K)","v":0},0,null,{"$f":"IF(OR(AN49<>\"\",AP49<>\"\",AR49<>\"\",AT49<>\"\"),IF(Sprache=\"Deutsch\",Sprachen!$A$96,IF(Sprache=\"Français\",Sprachen!$B$96,Sprachen!$C$96)),0)","v":0},{"$f":"IF(A49<>\"\",IF(COUNTIF('Ref-Daten'!L:L,AF49)=1,\"\",\"Kombination Hersteller/Modell funktioniert nicht\"),\"\")","v":""},0,{"$f":"IF(AO49>0,IF(Sprache=\"deutsch\",Sprachen!$A$98,IF(Sprache=\"Français\",Sprachen!$B$98,Sprachen!$C$98))&\" \"&AO49&IF(Sprache=\"deutsch\",Sprachen!$A$99,IF(Sprache=\"Français\",Sprachen!$B$99,Sprachen!$C$99)),IF(AO49<0,IF(Sprache=\"deutsch\",Sprachen!$A$97,IF(Sprache=\"Français\",Sprachen!$B$97,Sprachen!$C$97))&\" \"&AO49&IF(Sprache=\"deutsch\",Sprachen!$A$100,IF(Sprache=\"Français\",Sprachen!$B$100,Sprachen!$C$100)),\"\"))","v":""},0,{"$f":"IF(AQ49<0,IF(Sprache=\"Deutsch\",Sprachen!$A$101,IF(Sprache=\"Français\",Sprachen!$B$101,Sprachen!$C$101)),\"\")","v":""},0,""]
[null,null,null,null,null,null,null,null,null,0,0,null,null,null,null,null,null,null,{"$f":"IF(AM50=0,IF(Sprache=\"Deutsch\",Sprachen!$A$94,IF(Sprache=\"Français\",Sprachen!$B$94,Sprachen!$C$94)),AM50&IF(AN50<>\"\",\" - \"&AN50,IF(AP50<>\"\",\" - \"&AP50,IF(AR50<>\"\",\" - \"&AR50,IF(AT50<>\"\",\" \"&AT50,\"\")))))","v":"Status ok"},{"$f":"SUMIF('Ref-Daten'!L:L,AF50,'Ref-Daten'!F:F)","v":0},0,{"$f":"IF(AND(3<>\"\",B50<>\"\"),VLOOKUP(VLOOKUP(A50&B50,CHOOSE({1,2},'Ref-Daten'!A:A&'Ref-Daten'!B:B,'Ref-Daten'!G:G),2,0),Ref_KTypen,IF(Sprache=\"Deutsch\",1,IF(Sprache=\"Français\",2,3)),FALSE),\"\")","v":""},{"$f":"SUMIF('Ref-Daten'!L:L,AF50,'Ref-Daten'!C:C)","v":0},{"$f":"SUMIF('Ref-Daten'!L:L,AF50,'Ref-Daten'!D:D)","v":0},{"$f":"SUMIF('Ref-Daten'!L:L,AF50,'Ref-Daten'!E:E)","v":0},0,0,0,0,0,null,"-",{"$f":"SUMIF('Ref-Daten'!L:L,AF50,'Ref-Daten'!I:I)","v":0},{"$f":"SUMIF('Ref-Daten'!L:L,AF50,'Ref-Daten'!J:J)","v":0},0,{"$f":"AI50*SUMIF('Ref-Daten'!L:L,AF50,'Ref-Daten'!K:K)","v":0},0,null,{"$f":"IF(OR(AN50<>\"\",AP50<>\"\",AR50<>\"\",AT50<>\"\"),IF(Sprache=\"Deutsch\",Sprachen!$A$96,IF(Sprache=\"Français\",Sprachen!$B$96,Sprachen!$C$96)),0)","v":0},{"$f":"IF(A50<>\"\",IF(COUNTIF('Ref-Daten'!L:L,AF50)=1,\"\",\"Kombination Hersteller/Modell funktioniert nicht\"),\"\")","v":""},0,{"$f":"IF(AO50>0,IF(Sprache=\"deutsch\",Sprachen!$A$98,IF(Sprache=\"Français\",Sprachen!$B$98,Sprachen!$C$98))&\" \"&AO50&IF(Sprache=\"deutsch\",Sprachen!$A$99,IF(Sprache=\"Français\",Sprachen!$B$99,Sprachen!$C$99)),IF(AO50<0,IF(Sprache=\"deutsch\",Sprachen!$A$97,IF(Sprache=\"Français\",Sprachen!$B$97,Sprachen!$C$97))&\" \"&AO50&IF(Sprache=\"deutsch\",Sprachen!$A$100,IF(Sprache=\"Français\",Sprachen!$B$100,Sprachen!$C$100)),\"\"))","v":""},0,{"$f":"IF(AQ50<0,IF(Sprache=\"Deutsch\",Sprachen!$A$101,IF(Sprache=\"Français\",Sprachen!$B$101,Sprachen!$C$101)),\"\")","v":""},0,""]
[null,null,null,null,null,null,null,null,null,0,0,null,null,null,null,null,null,null,{"$f":"IF(AM51=0,IF(Sprache=\"Deutsch\",Sprachen!$A$94,IF(Sprache=\"Français\",Sprachen!$B$94,Sprachen!$C$94)),AM51&IF(AN51<>\"\",\" - \"&AN51,IF(AP51<>\"\",\" - \"&AP51,IF(AR51<>\"\",\" - \"&AR51,IF(AT51<>\"\",\" \"&AT51,\"\")))))","v":"Status ok"},{"$f":"SUMIF('Ref-Daten'!L:L,AF51,'Ref-Daten'!F:F)","v":0},0,{"$f":"IF(AND(3<>\"\",B51<>\"\"),VLOOKUP(VLOOKUP(A51&B51,CHOOSE({1,2},'Ref-Daten'!A:A&'Ref-Daten'!B:B,'Ref-Daten'!G:G),2,0),Ref_KTypen,IF(Sprache=\"Deutsch\",1,IF(Sprache=\"Français\",2,3)),FALSE),\"\")","v":""},{"$f":"SUMIF('Ref-Daten'!L:L,AF51,'Ref-Daten'!C:C)","v":0},{"$f":"SUMIF('Ref-Daten'!L:L,AF51,'Ref-Daten'!D:D)","v":0},{"$f":"SUMIF('Ref-Daten'!L:L,AF51,'Ref-Daten'!E:E)","v":0},0,0,0,0,0,null,"-",{"$f":"SUMIF('Ref-Daten'!L:L,AF51,'Ref-Daten'!I:I)","v":0},{"$f":"SUMIF('Ref-Daten'!L:L,AF51,'Ref-Daten'!J:J)","v":0},0,{"$f":"AI51*SUMIF('Ref-Daten'!L:L,AF51,'Ref-Daten'!K:K)","v":0},0,null,{"$f":"IF(OR(AN51<>\"\",AP51<>\"\",AR51<>\"\",AT51<>\"\"),IF(Sprache=\"Deutsch\",Sprachen!$A$96,IF(Sprache=\"Français\",Sprachen!$B$96,Sprachen!$C$96)),0)","v":0},{"$f":"IF(A51<>\"\",IF(COUNTIF('Ref-Daten'!L:L,AF51)=1,\"\",\"Kombination Hersteller/Modell funktioniert nicht\"),\"\")","v":""},0,{"$f":"IF(AO51>0,IF(Sprache=\"deutsch\",Sprachen!$A$98,IF(Sprache=\"Français\",Sprachen!$B$98,Sprachen!$C$98))&\" \"&AO51&IF(Sprache=\"deutsch\",Sprachen!$A$99,IF(Sprache=\"Français\",Sprachen!$B$99,Sprachen!$C$99)),IF(AO51<0,IF(Sprache=\"deutsch\",Sprachen!$A$97,IF(Sprache=\"Français\",Sprachen!$B$97,Sprachen!$C$97))&\" \"&AO51&IF(Sprache=\"deutsch\",Sprachen!$A$100,IF(Sprache=\"Français\",Sprachen!$B$100,Sprachen!$C$100)),\"\"))","v":""},0,{"$f":"IF(AQ51<0,IF(Sprache=\"Deutsch\",Sprachen!$A$101,IF(Sprache=\"Français\",Sprachen!$B$101,Sprachen!$C$101)),\"\")","v":""},0,""]
[null,null,null,null,null,null,null,null,null,0,0,null,null,null,null,null,null,null,{"$f":"IF(AM52=0,IF(Sprache=\"Deutsch\",Sprachen!$A$94,IF(Sprache=\"Français\",Sprachen!$B$94,Sprachen!$C$94)),AM52&IF(AN52<>\"\",\" - \"&AN52,IF(AP52<>\"\",\" - \"&AP52,IF(AR52<>\"\",\" - \"&AR52,IF(AT52<>\"\",\" \"&AT52,\"\")))))","v":"Status ok"},{"$f":"SUMIF('Ref-Daten'!L:L,AF52,'Ref-Daten'!F:F)","v":0},0,{"$f":"IF(AND(3<>\"\",B52<>\"\"),VLOOKUP(VLOOKUP(A52&B52,CHOOSE({1,2},'Ref-Daten'!A:A&'Ref-Daten'!B:B,'Ref-Daten'!G:G),2,0),Ref_KTypen,IF(Sprache=\"Deutsch\",1,IF(Sprache=\"Français\",2,3)),FALSE),\"\")","v":""},{"$f":"SUMIF('Ref-Daten'!L:L,AF52,'Ref-Daten'!C:C)","v":0},{"$f":"SUMIF('Ref-Daten'!L:L,AF52,'Ref-Daten'!D:D)","v":0},{"$f":"SUMIF('Ref-Daten'!L:L,AF52,'Ref-Daten'!E:E)","v":0},0,0,0,0,0,null,"-",{"$f":"SUMIF('Ref-Daten'!L:L,AF52,'Ref-Daten'!I:I)","v":0},{"$f":"SUMIF('Ref-Daten'!L:L,AF52,'Ref-Daten'!J:J)","v":0},0,{"$f":"AI52*SUMIF('Ref-Daten'!L:L,AF52,'Ref-Daten'!K:K)","v":0},0,null,{"$f":"IF(OR(AN52<>\"\",AP52<>\"\",AR52<>\"\",AT52<>\"\"),IF(Sprache=\"Deutsch\",Sprachen!$A$96,IF(Sprache=\"Français\",Sprachen!$B$96,Sprachen!$C$96)),0)","v":0},{"$f":"IF(A52<>\"\",IF(COUNTIF('Ref-Daten'!L:L,AF52)=1,\"\",\"Kombination Hersteller/Modell funktioniert nicht\"),\"\")","v":""},0,{"$f":"IF(AO52>0,IF(Sprache=\"deutsch\",Sprachen!$A$98,IF(Sprache=\"Français\",Sprachen!$B$98,Sprachen!$C$98))&\" \"&AO52&IF(Sprache=\"deutsch\",Sprachen!$A$99,IF(Sprache=\"Français\",Sprachen!$B$99,Sprachen!$C$99)),IF(AO52<0,IF(Sprache=\"deutsch\",Sprachen!$A$97,IF(Sprache=\"Français\",Sprachen!$B$97,Sprachen!$C$97))&\" \"&AO52&IF(Sprache=\"deutsch\",Sprachen!$A$100,IF(Sprache=\"Français\",Sprachen!$B$100,Sprachen!$C$100)),\"\"))","v":""},0,{"$f":"IF(AQ52<0,IF(Sprache=\"Deutsch\",Sprachen!$A$101,IF(Sprache=\"Français\",Sprachen!$B$101,Sprachen!$C$101)),\"\")","v":""},{"$f":"SUM(K52)-SUM(R52)","v":0},""]
[null,null,null,null,null,null,null,null,null,0,0,null,null,null,null,null,null,null,{"$f":"IF(AM53=0,IF(Sprache=\"Deutsch\",Sprachen!$A$94,IF(Sprache=\"Français\",Sprachen!$B$94,Sprachen!$C$94)),AM53&IF(AN53<>\"\",\" - \"&AN53,IF(AP53<>\"\",\" - \"&AP53,IF(AR53<>\"\",\" - \"&AR53,IF(AT53<>\"\",\" \"&AT53,\"\")))))","v":"Status ok"},{"$f":"SUMIF('Ref-Daten'!L:L,AF53,'Ref-Daten'!F:F)","v":0},0,{"$f":"IF(AND(3<>\"\",B53<>\"\"),VLOOKUP(VLOOKUP(A53&B53,CHOOSE({1,2},'Ref-Daten'!A:A&'Ref-Daten'!B:B,'Ref-Daten'!G:G),2,0),Ref_KTypen,IF(Sprache=\"Deutsch\",1,IF(Sprache=\"Français\",2,3)),FALSE),\"\")","v":""},{"$f":"SUMIF('Ref-Daten'!L:L,AF53,'Ref-Daten'!C:C)","v":0},{"$f":"SUMIF('Ref-Daten'!L:L,AF53,'Ref-Daten'!D:D)","v":0},{"$f":"SUMIF('Ref-Daten'!L:L,AF53,'Ref-Daten'!E:E)","v":0},0,0,0,0,0,null,"-",{"$f":"SUMIF('Ref-Daten'!L:L,AF53,'Ref-Daten'!I:I)","v":0},{"$f":"SUMIF('Ref-Daten'!L:L,AF53,'Ref-Daten'!J:J)","v":0},0,{"$f":"AI53*SUMIF('Ref-Daten'!L:L,AF53,'Ref-Daten'!K:K)","v":0},0,null,{"$f":"IF(OR(AN53<>\"\",AP53<>\"\",AR53<>\"\",AT53<>\"\"),IF(Sprache=\"Deutsch\",Sprachen!$A$96,IF(Sprache=\"Français\",Sprachen!$B$96,Sprachen!$C$96)),0)","v":0},{"$f":"IF(A53<>\"\",IF(COUNTIF('Ref-Daten'!L:L,AF53)=1,\"\",\"Kombination Hersteller/Modell funktioniert nicht\"),\"\")","v":""},0,{"$f":"IF(AO53>0,IF(Sprache=\"deutsch\",Sprachen!$A$98,IF(Sprache=\"Français\",Sprachen!$B$98,Sprachen!$C$98))&\" \"&AO53&IF(Sprache=\"deutsch\",Sprachen!$A$99,IF(Sprache=\"Français\",Sprachen!$B$99,Sprachen!$C$99)),IF(AO53<0,IF(Sprache=\"deutsch\",Sprachen!$A$97,IF(Sprache=\"Français\",Sprachen!$B$97,Sprachen!$C$97))&\" \"&AO53&IF(Sprache=\"deutsch\",Sprachen!$A$100,IF(Sprache=\"Français\",Sprachen!$B$100,Sprachen!$C$100)),\"\"))","v":""},0,{"$f":"IF(AQ53<0,IF(Sprache=\"Deutsch\",Sprachen!$A$101,IF(Sprache=\"Français\",Sprachen!$B$101,Sprachen!$C$101)),\"\")","v":""},{"$f":"SUM(K53)-SUM(R53)","v":0},""]
["Total","alle Kollektoren",null,{"$f":"SUM(D3:D53)","v":0},{"$f":"SUM(E3:E53)","v":0},0,0,0,0,0,0,0,0,0,0,0,0,{"$f":"SUM(R3:R53)","v":0},null,null,{"$f":"SUM(U3:U53)","v":0},null,{"$f":"SUM(W3:W53)","v":0},0,0,0,0,0,0,0]
[{"$f":"IF(Sprache=\"deutsch\",Sprachen!A113,IF(Sprache=\"Français\",Sprachen!B113,Sprachen!C113))","v":"Subtotal"},{"$f":"IF(Sprache=\"deutsch\",Sprachen!A52,IF(Sprache=\"Français\",Sprachen!B52,Sprachen!C52))","v":"Flachkollektor"},null,{"$f":"SUMIF($V$2:$V$54,$B55,D$2:D$54)","v":0},{"$f":"SUMIF($V$2:$V$54,$B55,E$2:E$54)","v":0},0,0,0,0,0,0,0,0,0,0,0,0,0,null,null,{"$f":"SUMIF($V$2:$V$54,$B55,U$2:U$54)","v":0},null,0,0,0,0,0,0,0,0]
[{"$f":"A55","v":"Subtotal"},{"$f":"IF(Sprache=\"deutsch\",Sprachen!A53,IF(Sprache=\"Français\",Sprachen!B53,Sprachen!C53))","v":"Röhrenkollektor"},null,{"$f":"SUMIF($V$2:$V$54,$B56,D$2:D$54)","v":0},0,0,0,0,0,0,0,0,0,0,0,0,0,0,null,null,0,null,0,0,0,0,0,0,0,0]
[{"$f":"A56","v":"Subtotal"},{"$f":"IF(Sprache=\"deutsch\",Sprachen!A54,IF(Sprache=\"Français\",Sprachen!B54,Sprachen!C54))","v":"WISC Kollektor"},null,0,0,0,0,0,0,0,0,0,0,0,0,0,0,0,null,null,0,null,0,0,0,0,0,0,0,0]

{"sheet":"Sprachen","index":2,"n_rows":113,"n_cols":3,"rows_kept":113,"cut":false,"hidden":true,"merged":[]}
["Deutsch","Französisch","Italienisch"]
["Statistik Sonnenenergie - Installation Solarthermie","Statistique énegie solaire installations solaire thermique","Statistica sull'energia solare installazione solare termico"]
["Unternehmen","Entreprise","Dati dell'azienda"]
["Firma","Nom","Nome dell'azienda"]
["Strasse","Rue","Indirizzo"]
["PLZ/Ort","NPA/lieu","NAP/Luogo"]
["Kontaktperson","Personne de contact","Persona di contatto"]
["Telefon","Téléphone","Telefono"]
["E-Mail","E-Mail","E-Mail"]
["Hersteller","Fabricant","Fabbricante"]
["Importeur","Importateur","Importatore"]
["Handelsunternehmung","Revendeur","Impresa commerciale"]
["Installateur","Planificateur / Installateur","Progettista / Installatore"]
["Andere","Autre","Altro"]
["Produktion & Handel","Production & commercialisation","Produzione & Comercio"]
["1. Herkunft der Kollektoren","1. Origine des capteurs","1. Provenienza dei collettori"]
["Eigenproduktion","Production propre","Produzione propria"]
["Bezug Schweiz","Achat en Suisse","Acquisti dalla Svizzera"]
["Import","Import","Import"]
["Summe Herkunft","Total origine","Totale provenienza"]
["Export","Moins Export","Export"]
["Verkauf Schweiz","Total Ventes en Suisse","Totale Vendita in Svizzera"]
["        Ich habe keine Anlagen produziert, gehandelt oder installiert","        Je n'ai pas fabriqué, commercialisé ou réalisé d'installation ","       Non ho fabbricato, negoziato o installato alcun impianto"]
["Flach-Kollektor in m2","Capteurs plans en m2","collettori piani in m2"]
["Röhren-Kollektor in m2","Capteurs à tubes sous-vide m2","collettori tubolari in m2"]
["WISC-Kollektor in m2","Capteurs WISC en m2","collettori WISC in m2"]
["2. Vertrieb der Kollektoren","2. Distribution des capteurs","2. Distribuzione dei collettori"]
["an Bauherrschaft","aux maîtres d'ouvrages","a committenti"]
["an Installateur","par l'installateur","a installatori"]
["an Handel","par d'autres revendeurs","a rivenditori"]
["Erfassen Sie die detaillierten Angaben für den Bereich Installation im Tabellenblatt 'Input' ->","Saisissez les informations détaillées concernant les installations dans la feuille \"Input\" ->","Inserire le informazioni dettagliate degli impianti installati nel foglio “Input” ->"]
["Installation - Zusammenfassung und Auswertung der Angaben","Installation - résumé et analyse des données","Installazione - Riepilogo e valutazione dei dati …"]
["... nach Ort der Anlage","... Selon le lieu","... per luogo dell'impianto"]
["Anz. Anlagen","No. d'inst.","Nu. impianti"]
["Fläche in m2","Surface en m2","Superficie in m2"]
["Leistung in KW","Puissance en KW","Potenza in KW"]
["Energie in kWh","Energie en kWh","Energia in kWh"]
["Einfamilienhäuser ","Maisons individuelles","Case monofamigliari"]
["Mehrfamilienhäuser ","Immeubles","Case plurifamigliari"]
["Industrie, Gewerbe","Industrie, commerce","Industria, artigianato"]
["Landwirtschaft","Agriculture","Agricoltura"]
["Dienstleistung","Services","Servizi"]
["Öffentliche Dienste","Secteur public","Servizi pubblici"]
["Verkehr","Transports","Trasporti"]
["Übrige Standorte","Divers","Altri luoghi"]
["Total","Total","Totale"]
["... nach Art der Anlage","... Selon le type d'installation","... per tipo di impianto"]
["Vorwärmung/Schwimmbad","Préchauffage / piscine","Preriscaldamento/Piscina"]
["Warmwasser","Eau chaude sanitaire","Acqua calda"]
["Heizungs-untertützung","Support chauffage","Supporto al riscaldamento"]
["… nach Kollektortyp","… par type de capteurs","… per tipo di collettore"]
["Flachkollektor","Capteurs plans","Collettore piano"]
["Röhrenkollektor","Capteurs à tubes sous-vide","Collettore tubolare"]
["WISC Kollektor","Capteurs WISC","Collettore WISC"]
["… nach Grösse der Anlage","… par surface de l'installation","… per grandezza dell'impianto"]
["Grundsätze","Principes","Aspetti generali"]
["Datenschutz\n","Protections des données","Protezione dei dati"]
["Zeitpunkt","Date","Periodo considerato"]
["Erhebungsgrössen","Données","Grandezze di riferimento"]
["Rücksendung","Retour","Termine di risposta:"]
["Die Zahlen der einzelnen Firmen werden streng vertraulich behandelt. Sie sind lediglich den verantwortlichen Personen von Swissolar sowie dem Bundesamt für Energie, Sektion Analysen und Perspektiven, zugänglich.","Les chiffres des différentes entreprises sont strictement confidentiels. Elles ne sont accessibles qu'aux personnes responsables de Swissolar et de l'Office fédéral de l'énergie, Section Analyses et perspectives.\n\n","I dati forniti dalle singole aziende vengono trattati in modo strettamente confidenziale. Essi sono accessibili unicamente ai collaboratori di Swissolare e dell'Ufficio federale dell'energia, Sezione Analisi e Prospettive, incaricati di elaborare le statistiche."]
[{"$f":"\"Massgebend für die Statistik ist der Zeitpunkt der Verkäufe und/oder Installationen im Jahre \" & Ref_Jahr & \".\"","v":"Massgebend für die Statistik ist der Zeitpunkt der Verkäufe und/oder Installationen im Jahre 2023."},{"$f":"\"La date prise en compte dans les statistiques est celle de la vente et / ou de l'installation pour l'année \" & Ref_Jahr & \".\"","v":"La date prise en compte dans les statistiques est celle de la vente et / ou de l'installation pour l'année 2023."},{"$f":"\"Per la statistica fanno stato unicamente i prodotti venduti e/o installati nel \" & Ref_Jahr & \".\"","v":"Per la statistica fanno stato unicamente i prodotti venduti e/o installati nel 2023."}]
["Für die Erhebung der Komponenten der thermischen Nutzung der Sonnenenergie ist die Thermischen Kollektor Nennleistung TKN massgebend, die auf der Basis der Norm ISO 9806:2017 geprüft und ausgemessen wird","Pour la collecte des composants de l'utilisation thermique de l'énergie solaire, la puissance nominale du capteur thermique est déterminante, qui est testée et mesurée sur la base de la norme ISO 9806:2017","Per il rilevamento dei componenti ad utilizzo termico dell'energia solare fa stato la potenza termica nominale del collettore (PTN), controllata e misurata sulla base della norma ISO 9806:2017"]
[{"$f":"TEXT(Datum_Eingang,\"TTTT, TT. MMMM JJJJ\")& \" an marktumfrage@swissolar.ch\"","v":"Freitag, 09. Februar 2024 an marktumfrage@swissolar.ch"},{"$f":"TEXT(Datum_Eingang,\"[$-100C]TTTT, T. MMMM JJJJ;@\")& \" à l'adresse e-mail marktumfrage@swissolar.ch\"","v":"vendredi, 9. février 2024 à l'adresse e-mail marktumfrage@swissolar.ch"},{"$f":"TEXT(Datum_Eingang,\"[$-810]TTTT, T. MMMM JJJJ;@\")& \" all'indirizzo e-mail marktumfrage@swissolar.ch\"","v":"venerdì, 9. febbraio 2024 all'indirizzo e-mail marktumfrage@swissolar.ch"}]
[]
[{"$f":"\"Bitte erfassen Sie die im Jahr \" & Ref_Jahr & \" in der Schweiz installierten thermische Solaranlagen:\"","v":"Bitte erfassen Sie die im Jahr 2023 in der Schweiz installierten thermische Solaranlagen:"},{"$f":"\"Veuillez indiquer les systèmes solaires thermiques installés en Suisse en \" & Ref_Jahr & \":\"","v":"Veuillez indiquer les systèmes solaires thermiques installés en Suisse en 2023:"},{"$f":"\"Si prega di registrare gli impianti solari termici installati in Svizzera nel \"& Ref_Jahr & \":\"","v":"Si prega di registrare gli impianti solari termici installati in Svizzera nel 2023:"}]
["Anzahl Anlagen mit \nAnlagegrösse","Nombre d'installations de taille","Numero di impianti con dimensione dell'impianto"]
["Ersatz","Remplacement","Sostituzione"]
["Status","Statut","Stato"]
["Nennleistung","Puissance nominale","Potenza nominale"]
["Gesamt-\nLeistung","Puissance totale","Potenza totale"]
["Kollektortyp","Type de capteurs","Tipo di collettore"]
["Jahresertrag\nin kWh/m2\t\t","Production annuelle en kWh/m2\n","Resa annua \nin kWh/m2"]
["Installierter \nJahresertrag kWh","Production annuelle installée en kWh","Resa annua installata \nin kWh"]
["CO2 \nEinsparung","Economies de CO2","Risparmio \ndi CO2"]
["Hersteller","Fournisseur","Fabbricante"]
["Modell","Modèle","Modello"]
["Ort","lieu","Luogo"]
["Bruttofläche m2","Surface brute en m2","Superficie lorda m2"]
["< 10 m2","< 10 m2","< 10 m2"]
["10 - 20 m2","10 - 20 m2","10 - 20 m2"]
["20 - 50 m2","20 - 50 m2","20 - 50 m2"]
["50 - 100 m2","50 - 100 m2","50 - 100 m2"]
["> 100 m2","> 100 m2","> 100 m2"]
["in kW/m2","en kW/m2","in kW/m2"]
["in kW","en kW","in kW"]
["VW","PC","Preriscaldamento"]
["WW","ECS","Acqua calda"]
["HU","SC","Supporto al riscaldamento"]
["in Tonnen","tonnes","Tonnellate"]
[]
[]
["Fehlermeldungen"]
["Status ok","Statut ok","Stato ok"]
["Status: Fehler!","Status: Erreur!","Stato: Errore!"]
["Fehler","Erreur","Errore"]
["Kombination Hersteller/Modell funktioniert nicht","La combinaison entre le fournisseur et le modèle ne fonctionne pas","La combinazione fabbricante/modello non funziona"]
["Anzahl Anlagen Verteilung Anlagengrösse um","Nombre d'installations - répartition par taille ","Numero di impianti per grandezza dell'impianto"]
["zu klein","Trop petit","troppo piccolo"]
["zu gross","Trop grand","troppo grande"]
["Ersatz Bruttofläche m2 zu hoch","Remplacement m2 surface brute trop élevé","Sostituzione superficie lorda m2 troppo alta"]
["Ersatz Anzahl Anlagen zu hoch","Remplacement nombre d'installations trop élevé","Sostituzione numero di impianti troppo alta"]
["Falls Fehler hier angezeigt:","Si erreur affiché ici:","Eventuali errori vengono visualizzati qui:"]
[{"$f":"'Ref-Tab'!C47","v":"Summer Verkauf Flachkollektoren Tabelle 1 <> Summe Flachkollektoren Tabelle 2"},"Somme ventes capteurs plans tableau 1 <> Somme ventes capteurs plans tableau 2","Tot. vendite collettori piani Tabella 1 <> Tot. vendite collettori piani Tabella 2"]
[{"$f":"'Ref-Tab'!C48","v":"Summer Verkauf Röhrenkollektoren Tabelle 1 <> Summe Röhrenkollektoren Tabelle 2"},"Somme ventes capteurs sous vide tableau 1 <> Somme ventes capteurs sous vides tableau 2","Tot. vendite collettori tubolari Tabella 1 <> Tot. vendite collettori tubolari Tabella 2"]
[{"$f":"'Ref-Tab'!C49","v":"Summer Verkauf WISC-Kollektoren Tabelle 1 <> Summe WISC-Kollektoren Tabelle 2"},"Somme ventes capteurs WISC tableau 1 <> Somme ventes capteurs WISC tableau 2","Tot. vendite collettori WISC Tabella 1 <> Tot. vendite collettori WISC Tabella 2"]
[{"$f":"'Ref-Tab'!C50","v":"Summe Tab. 2 an Bauherrschaft Flachkollektoren <> Summe aus Input  der Flachkollektoren"},"Somme tab 2. aux maîtres d'ouvrages capteurs plans <> Somme des inputs pour les capteurs plans","Totale tab 2. a committenti collettori piani <> Tot. collettori piani dal foglio 'Input'"]
[{"$f":"'Ref-Tab'!C51","v":"Summe Tab. 2 an Bauherrschaft Röhrenkollektoren <> Summe aus Input  der Röhrenkollektoren"},"Somme tab 2. aux maîtres d'ouvrages capteurs sous vide <> Somme des inputs pour les capteurs sous vide","Totale tab 2. a committenti collettori tubolari <> Tot. collettori tubolari dal foglio 'Input'"]
[{"$f":"'Ref-Tab'!C52","v":"Summe Tab. 2 an Bauherrschaft WISC-Kollektoren <> Summe aus Input  der WISC-Kollektoren"},"Somme tab 2. aux maîtres d'ouvrages capteurs WISC <> Somme des inputs pour les capteurs WISC","Totale tab 2. a committenti collettori WISC <> Tot. collettori WISC dal foglio 'Input'"]
["Datenkonsistenz Blatt 'Total'","Consistence des données - Onglet 'Total'","Coerenza dei dati nel foglio 'Total'"]
["Konsistenz zwischen Blatt Total und Input","Consistence entre les onglets Total et Input","Coerenza tra i fogli 'Total' e 'Input'"]
["Datenkonsistenz Blatt 'Input'","Consistence des données onglet 'Input'","Coerenza dei dati nel foglio 'Input'"]
["Subtotal","Sous-total","Subtotale"]

{"sheet":"Ref-Tab","index":3,"n_rows":59,"n_cols":10,"rows_kept":59,"cut":false,"hidden":true,"merged":[]}
["Stammdaten",null,null,"Ort",null,"Verbrauchergruppe nach GES","Kollektorart","Kollektorart-Kategorie","Art der Energienutzung","Handel-Herkunft"]
[null,null,null,{"$f":"Sprachen!A38","v":"Einfamilienhäuser "},"Haushalte","Haushalte","Flach-","Röhren- und Flachkollektoren","Vorwärmung /\nSchwimmbad","Handel Schweiz"]
["Version Datei",1.4,null,{"$f":"Sprachen!A39","v":"Mehrfamilienhäuser "},"Haushalte","Industrie","Röhren-","Unverglaste Kollektoren","Warmwasser","Import"]
["Letzte Aktualisierung","2024-01-12",null,{"$f":"Sprachen!A40","v":"Industrie, Gewerbe"},"Industrie","Dienstleistung","WISC-",null,"Heizungs-\nuntertützung"]
["Aktualisierung Referenzdaten","2023-12-21",null,{"$f":"Sprachen!A41","v":"Landwirtschaft"},"Statistische Differenz inkl. Landwirtschaft","Verkehr"]
[null,null,null,{"$f":"Sprachen!A42","v":"Dienstleistung"},"Dienstleistung","Statistische Differenz inkl. Landwirtschaft"]
["Jahr",2023,null,{"$f":"Sprachen!A43","v":"Öffentliche Dienste"},"Statistische Differenz inkl. Landwirtschaft"]
["Rücklaufdatum","2024-02-09",null,{"$f":"Sprachen!A44","v":"Verkehr"},"Verkehr"]
[null,null,null,{"$f":"Sprachen!A45","v":"Übrige Standorte"},"Statistische Differenz inkl. Landwirtschaft"]
[]
[null,null,null,"Ort FR"]
[null,null,null,{"$f":"Sprachen!B38","v":"Maisons individuelles"}]
[null,null,null,{"$f":"Sprachen!B39","v":"Immeubles"}]
[null,null,null,{"$f":"Sprachen!B40","v":"Industrie, commerce"}]
[null,null,null,{"$f":"Sprachen!B41","v":"Agriculture"}]
[null,null,null,{"$f":"Sprachen!B42","v":"Services"}]
["Datenfelder für Eingabe",null,null,{"$f":"Sprachen!B43","v":"Secteur public"}]
["Berechnete Werte",9999,null,{"$f":"Sprachen!B44","v":"Transports"}]
[null,null,null,{"$f":"Sprachen!B45","v":"Divers"}]
[]
[null,null,null,"Ort IT"]
[null,null,null,{"$f":"Sprachen!C38","v":"Case monofamigliari"}]
[null,null,null,{"$f":"Sprachen!C39","v":"Case plurifamigliari"}]
[null,null,null,{"$f":"Sprachen!C40","v":"Industria, artigianato"}]
[null,null,null,{"$f":"Sprachen!C41","v":"Agricoltura"}]
[null,null,null,{"$f":"Sprachen!C42","v":"Servizi"}]
[null,null,null,{"$f":"Sprachen!C43","v":"Servizi pubblici"}]
[null,null,null,{"$f":"Sprachen!C44","v":"Trasporti"}]
[null,null,null,{"$f":"Sprachen!C45","v":"Altri luoghi"}]
[]
[null,null,null,"Auswahl Refernzliste"]
[null,null,null,{"$f":"IF(Sprache=\"deutsch\",\"Ref_Ort\",IF(Sprache=\"Français\",\"Ref_Ort_FR\",\"Ref_Ort_IT\"))","v":"Ref_Ort"}]
[]
[]
[]
[]
["Übersetzungen Kollektortypen"]
[]
[]
[]
[]
[]
[]
[]
[]
["Prüfungen",{"$f":"SUM(A47:A52)","v":6},"Total in Ordnung"]
[{"$f":"IF(B47,1,0)","v":1},{"$f":"ROUND(Total!B21,0)=ROUND(Total!H19,0)","v":true},"Summer Verkauf Flachkollektoren Tabelle 1 <> Summe Flachkollektoren Tabelle 2"]
[{"$f":"IF(B48,1,0)","v":1},{"$f":"ROUND(Total!C21,0)=ROUND(Total!I19,0)","v":true},"Summer Verkauf Röhrenkollektoren Tabelle 1 <> Summe Röhrenkollektoren Tabelle 2"]
[1,{"$f":"ROUND(Total!D21,0)=ROUND(Total!J19,0)","v":true},"Summer Verkauf WISC-Kollektoren Tabelle 1 <> Summe WISC-Kollektoren Tabelle 2"]
[1,{"$f":"ROUND(Total!H16,0)=ROUND(Total!D46,0)","v":true},"Summe Tab. 2 an Bauherrschaft Flachkollektoren <> Summe aus Input  der Flachkollektoren"]
[1,{"$f":"ROUND(Total!I16,0)=ROUND(Total!D47,0)","v":true},"Summe Tab. 2 an Bauherrschaft Röhrenkollektoren <> Summe aus Input  der Röhrenkollektoren"]
[1,{"$f":"ROUND(Total!J16,0)=ROUND(Total!D48,0)","v":true},"Summe Tab. 2 an Bauherrschaft WISC-Kollektoren <> Summe aus Input  der WISC-Kollektoren"]
[]
[]
[]
["History Versionen","1.0.2","Version für SSOE 2020 (verbessertes Original)"]
[null,"1.2","Version für SSOE 2021 (Kollektordaten aktualisiert)"]
[null,"1.3","Version für SSOE 2022 (Kollektordaten aktualisiert / Formelbezüge Zeilen 51-52 korrigiert / Rundung Zeile 47 bis 52 eingefügt)"]
[null,"1.4","Version für SSOE 2023 (Kollektordaten aktualisiert / Fehlermdg mit Rundg verbessert)"]

{"sheet":"Ref-Daten","index":4,"n_rows":420,"n_cols":12,"rows_kept":420,"cut":false,"hidden":true,"merged":[]}
["Hersteller","Modell","VW","WW","HU","Nennleistung","Kollektortyp","KollektortypExt","Bruttofläche","Aperturfläche ","Standardleistung W/m2","Auswahl"]
["3S Solar Plus AG","ThermiePanel MS II",529.17999999999995,319.25,191.86,0.32017543859649122,"Flachkollektor","Flachkollektor (selektiv)",1.1399999999999999,0.77,0.7,{"$f":"A2&\"-\"&B2","v":"3S Solar Plus AG-ThermiePanel MS II"}]
["Agena Energies SA","AZUR 8+ AC 2.2V",753.24653405666038,494.80673598553341,328.25632911392393,0.49502712477396016,"Flachkollektor","Flachkollektor (selektiv)",2.2120000000000002,1.9570000000000001,0.7,{"$f":"A3&\"-\"&B3","v":"Agena Energies SA-AZUR 8+ AC 2.2V"}]
["Agena Energies SA","AZUR 8+ AC 2.3H",753.24653405666038,494.80673598553341,328.25632911392393,0.47957839262187091,"Flachkollektor","Flachkollektor (selektiv)",2.2770000000000001,1.952,0.7,"Agena Energies SA-AZUR 8+ AC 2.3H"]
["Agena Energies SA","AZUR 8+ AC 2.8H",753.24653405666038,494.80673598553341,328.25632911392393,0.49337155141526334,"Flachkollektor","Flachkollektor (selektiv)",2.7909999999999999,2.4630000000000001,0.7,"Agena Energies SA-AZUR 8+ AC 2.8H"]
["Agena Energies SA","AZUR 8+ AC 2.8V",753.24653405666038,494.80673598553341,328.25632911392393,0.49855491329479767,"Flachkollektor","Flachkollektor (selektiv)",2.7679999999999998,2.468,0.7,"Agena Energies SA-AZUR 8+ AC 2.8V"]
["Ako Tec","OEM Vario 1000-10 hp",587.65190487047346,424.28475721970523,309.20328262464233,0.42360248447204968,"Röhrenkollektor","Vakuumröhrenkollektor",1.61,1.47,0.7,"Ako Tec-OEM Vario 1000-10 hp"]
["Ako Tec","OEM Vario 1600-20",535.9287184393537,384.18976188944941,277.51123310961981,0.38307692307692309,"Röhrenkollektor","Vakuumröhrenkollektor",3.25,2.0299999999999998,0.7,"Ako Tec-OEM Vario 1600-20"]
["Ako Tec","OEM Vario 2000-20 hp",587.65190487047346,424.28475721970523,309.20328262464233,0.42476780185758517,"Röhrenkollektor","Vakuumröhrenkollektor",3.23,2.95,0.7,"Ako Tec-OEM Vario 2000-20 hp"]
["Ako Tec","OEM Vario 2400-30",535.9287184393537,384.18976188944941,277.51123310961981,0.38418891170431213,"Röhrenkollektor","Vakuumröhrenkollektor",4.87,3.05,0.7,"Ako Tec-OEM Vario 2400-30"]
["Ako Tec","OEM Vario 3000-30 hp",587.65190487047346,424.28475721970523,309.20328262464233,0.42433537832310847,"Röhrenkollektor","Vakuumröhrenkollektor",4.8899999999999997,4.46,0.7,"Ako Tec-OEM Vario 3000-30 hp"]
["Ako Tec","OEM Vario 400-5",535.9287184393537,384.18976188944941,277.51123310961981,0.38641975308641974,"Röhrenkollektor","Vakuumröhrenkollektor",0.81,0.51,0.7,"Ako Tec-OEM Vario 400-5"]
["Ako Tec","OEM Vario 500-5 hp",587.65190487047346,424.28475721970523,309.20328262464233,0.4158536585365854,"Röhrenkollektor","Vakuumröhrenkollektor",0.82,0.73,0.7,"Ako Tec-OEM Vario 500-5 hp"]
["Ako Tec","OEM Vario 800-10",535.9287184393537,384.18976188944941,277.51123310961981,0.38641975308641974,"Röhrenkollektor","Vakuumröhrenkollektor",1.62,1.02,0.7,"Ako Tec-OEM Vario 800-10"]
["AkoTec Produktionsgesellschaft mbH","Weiser Power 1000",630.44000000000005,461.82,340.03,0.46242038216560505,"Röhrenkollektor","Vakuumröhrenkollektor",1.57,1.44,0.7,"AkoTec Produktionsgesellschaft mbH-Weiser Power 1000"]
["AkoTec Produktionsgesellschaft mbH","Weiser Power 1200",541.79999999999995,393.49,286.89999999999998,0.39404255319148934,"Röhrenkollektor","Vakuumröhrenkollektor",2.35,1.52,0.7,"AkoTec Produktionsgesellschaft mbH-Weiser Power 1200"]
["AkoTec Produktionsgesellschaft mbH","Weiser Power 1500",630.44000000000005,461.82,340.03,0.46255319148936169,"Röhrenkollektor","Vakuumröhrenkollektor",2.35,2.15,0.7,"AkoTec Produktionsgesellschaft mbH-Weiser Power 1500"]
["AkoTec Produktionsgesellschaft mbH","Weiser Power 1600",541.79999999999995,393.49,286.89999999999998,0.39428571428571429,"Röhrenkollektor","Vakuumröhrenkollektor",3.15,2.0299999999999998,0.7,"AkoTec Produktionsgesellschaft mbH-Weiser Power 1600"]
["AkoTec Produktionsgesellschaft mbH","Weiser Power 2000",630.44000000000005,461.82,340.03,0.46285714285714286,"Röhrenkollektor","Vakuumröhrenkollektor",3.15,2.89,0.7,"AkoTec Produktionsgesellschaft mbH-Weiser Power 2000"]
["AkoTec Produktionsgesellschaft mbH","Weiser Power 2400",541.79999999999995,393.49,286.89999999999998,0.39345991561181431,"Röhrenkollektor","Vakuumröhrenkollektor",4.74,3.04,0.7,"AkoTec Produktionsgesellschaft mbH-Weiser Power 2400"]
["AkoTec Produktionsgesellschaft mbH","Weiser Power 3000",630.44000000000005,461.82,340.03,0.46181434599156118,"Röhrenkollektor","Vakuumröhrenkollektor",4.74,4.33,0.7,"AkoTec Produktionsgesellschaft mbH-Weiser Power 3000"]
["AkoTec Produktionsgesellschaft mbH","Weiser Power 800",541.79999999999995,393.49,286.89999999999998,0.39426751592356685,"Röhrenkollektor","Vakuumröhrenkollektor",1.57,1.01,0.7,"AkoTec Produktionsgesellschaft mbH-Weiser Power 800"]
["AMK Collectra AG","DRC10",602.65835122674798,445.97042480401763,331.24982288004946,0.44558823529411767,"Röhrenkollektor","Vakuumröhrenkollektor",2.04,1.74,0.7,"AMK Collectra AG-DRC10"]
["AMK Collectra AG","OPC10p",683.63110393020304,491.74020262145882,354.63523662346284,0.49150943396226415,"Röhrenkollektor","Vakuumröhrenkollektor",2.12,1.91,0.7,"AMK Collectra AG-OPC10p"]
["ARB Haustechnik GmbH","RST Sol 5",768.59,499.99,328.01,0.5,"Flachkollektor","Flachkollektor (selektiv)",2.25,2.1360000000000001,0.7,"ARB Haustechnik GmbH-RST Sol 5"]
["Augusta-solar GmbH","AS 100 DF6",627.76957149792713,457.53503039271033,335.07954240205163,0.45827814569536418,"Röhrenkollektor","Vakuumröhrenkollektor",1.51,1.1100000000000001,0.7,"Augusta-solar GmbH-AS 100 DF6"]
["Augusta-solar GmbH","AS 100 HP 12",581.16999999999996,423.32,310.13,0.4241830065359477,"Röhrenkollektor","Vakuumröhrenkollektor",3.06,2.2200000000000002,0.7,"Augusta-solar GmbH-AS 100 HP 12"]
["Augusta-solar GmbH","AS 100 HP16",581.16999999999996,423.32,310.13,0.42322738386308073,"Röhrenkollektor","Vakuumröhrenkollektor",4.09,2.96,0.7,"Augusta-solar GmbH-AS 100 HP16"]
["Augusta-solar GmbH","AS 100 HP8",581.16999999999996,423.32,310.13,0.42561576354679809,"Röhrenkollektor","Vakuumröhrenkollektor",2.0299999999999998,1.48,0.7,"Augusta-solar GmbH-AS 100 HP8"]
["Bosch Thermotechnik GmbH","Bosch FKC-2s",722.14824191279888,476.88607594936707,316.83713080168775,0.47679324894514763,"Flachkollektor","Flachkollektor (selektiv)",2.37,2.2519999999999998,0.7,"Bosch Thermotechnik GmbH-Bosch FKC-2s"]
["Bosch Thermotechnik GmbH","Bosch FKC-2w",718.72573839662448,465.00759493670893,302.84303797468357,0.46497890295358651,"Flachkollektor","Flachkollektor (selektiv)",2.37,2.2519999999999998,0.7,"Bosch Thermotechnik GmbH-Bosch FKC-2w"]
["Bosch Thermotechnik GmbH","Bosch FT 226-2H",767.15673202614369,496.73470588235301,323.32313725490189,0.49686274509803924,"Flachkollektor","Flachkollektor (selektiv)",2.5499999999999998,2.4260000000000002,0.7,"Bosch Thermotechnik GmbH-Bosch FT 226-2H"]
["Bosch Thermotechnik GmbH","Bosch FT 226-2V",759.10222222222217,492.75352941176476,321.90392156862742,0.49294117647058822,"Flachkollektor","Flachkollektor (selektiv)",2.5499999999999998,2.4260000000000002,0.7,"Bosch Thermotechnik GmbH-Bosch FT 226-2V"]
["Bosch Thermotechnik GmbH","Bosch VK120-2",389.62152114956461,261.29721155559503,176.48107963754904,0.2614754098360656,"Röhrenkollektor","Vakuumröhrenkollektor",1.22,0.46,0.7,"Bosch Thermotechnik GmbH-Bosch VK120-2"]
["Bosch Thermotechnik GmbH","Bosch VK120-2 CPC",606.29,447.61,331.54,0.44754098360655742,"Röhrenkollektor","Vakuumröhrenkollektor",1.22,0.98,0.7,"Bosch Thermotechnik GmbH-Bosch VK120-2 CPC"]
["Bosch Thermotechnik GmbH","Buderus Logasol SKN4.0-s",722.14824191279888,476.88607594936707,316.83713080168775,0.47679324894514763,"Flachkollektor","Flachkollektor (selektiv)",2.37,2.2519999999999998,0.7,"Bosch Thermotechnik GmbH-Buderus Logasol SKN4.0-s"]
["Bosch Thermotechnik GmbH","Buderus Logasol SKN4.0-w",718.72573839662448,465.00759493670893,302.84303797468357,0.46497890295358651,"Flachkollektor","Flachkollektor (selektiv)",2.37,2.2519999999999998,0.7,"Bosch Thermotechnik GmbH-Buderus Logasol SKN4.0-w"]
["Bosch Thermotechnik GmbH","Buderus Logasol SKR10 CPC",606.29,447.61,331.54,0.44754098360655742,"Röhrenkollektor","Vakuumröhrenkollektor",1.22,0.98,0.7,"Bosch Thermotechnik GmbH-Buderus Logasol SKR10 CPC"]
["Bosch Thermotechnik GmbH","Buderus Logasol SKR5",389.62,261.3,176.48,0.2614754098360656,"Röhrenkollektor","Vakuumröhrenkollektor",1.22,0.46,0.7,"Bosch Thermotechnik GmbH-Buderus Logasol SKR5"]
["Bosch Thermotechnik GmbH","Buderus Logasol SKT1.0-s",759.10222222222217,492.75352941176476,321.90392156862742,0.49294117647058822,"Flachkollektor","Flachkollektor (selektiv)",2.5499999999999998,2.4260000000000002,0.7,"Bosch Thermotechnik GmbH-Buderus Logasol SKT1.0-s"]
["Bosch Thermotechnik GmbH","Buderus Logasol SKT1.0-w",767.15673202614369,496.73470588235301,323.32313725490189,0.49686274509803924,"Flachkollektor","Flachkollektor (selektiv)",2.5499999999999998,2.4260000000000002,0.7,"Bosch Thermotechnik GmbH-Buderus Logasol SKT1.0-w"]
["Bosch Thermotechnik GmbH","Junkers FKC-2S",722.14824191279888,476.88607594936707,316.83713080168775,0.47679324894514763,"Flachkollektor","Flachkollektor (selektiv)",2.37,2.25,0.7,"Bosch Thermotechnik GmbH-Junkers FKC-2S"]
["Bosch Thermotechnik GmbH","Junkers FKC-2W",718.72573839662448,465.00759493670893,302.84303797468357,0.46497890295358651,"Flachkollektor","Flachkollektor (selektiv)",2.37,2.25,0.7,"Bosch Thermotechnik GmbH-Junkers FKC-2W"]
["Bosch Thermotechnik GmbH","Junkers FKT-2S",759.10222222222217,492.75352941176476,321.90392156862742,0.49294117647058822,"Flachkollektor","Flachkollektor (selektiv)",2.5499999999999998,2.4300000000000002,0.7,"Bosch Thermotechnik GmbH-Junkers FKT-2S"]
["Bosch Thermotechnik GmbH","Junkers FKT-2W",767.15673202614369,496.73470588235301,323.32313725490189,0.49686274509803924,"Flachkollektor","Flachkollektor (selektiv)",2.5499999999999998,2.4300000000000002,0.7,"Bosch Thermotechnik GmbH-Junkers FKT-2W"]
["Calpak-Cicero Hellas S.A.","M4-200",661.01041666666663,423.48323863636364,272.5625,0.41911764705882354,"Flachkollektor","Flachkollektor (selektiv)",2.04,1.87,0.7,"Calpak-Cicero Hellas S.A.-M4-200"]
["Calpak-Cicero Hellas S.A.","M4-210",661.01041666666663,423.48323863636364,272.5625,0.42112676056338033,"Flachkollektor","Flachkollektor (selektiv)",2.13,1.96,0.7,"Calpak-Cicero Hellas S.A.-M4-210"]
["Calpak-Cicero Hellas S.A.","M4-260",661.01041666666663,423.48323863636364,272.5625,0.42348484848484852,"Flachkollektor","Flachkollektor (selektiv)",2.64,2.44,0.7,"Calpak-Cicero Hellas S.A.-M4-260"]
["Calpak-Cicero Hellas S.A.","M4-260H",661.01041666666663,423.48323863636364,272.5625,0.42348484848484852,"Flachkollektor","Flachkollektor (selektiv)",2.64,2.44,0.7,"Calpak-Cicero Hellas S.A.-M4-260H"]
["CitrinSolar GmbH","CS 150",757.78,503.79,337.88,0.50386473429951695,"Flachkollektor","Flachkollektor (selektiv)",2.0699999999999998,1.9,0.7,"CitrinSolar GmbH-CS 150"]
["CitrinSolar GmbH","CS 155",727.29966832504135,466.66791044776119,301.01044776119403,0.46666666666666667,"Flachkollektor","Flachkollektor (selektiv)",2.0099999999999998,1.87,0.7,"CitrinSolar GmbH-CS 155"]
["CitrinSolar GmbH","CS 255",727.29966832504135,466.66791044776119,301.01044776119403,0.46666666666666667,"Flachkollektor","Flachkollektor (selektiv)",2.0099999999999998,1.87,0.7,"CitrinSolar GmbH-CS 255"]
["CitrinSolar GmbH","CS 350",727.24417989417987,466.72678571428577,301.06111111111107,0.46666666666666662,"Flachkollektor","Flachkollektor (selektiv)",2.52,2.35,0.7,"CitrinSolar GmbH-CS 350"]
["CitrinSolar GmbH","CS 500",767.19,502.83,331.03,0.5027237354085603,"Flachkollektor","Flachkollektor (selektiv)",2.57,2.38,0.7,"CitrinSolar GmbH-CS 500"]
["CitrinSolar GmbH","CS 550",767.19,502.83,331.03,0.5027237354085603,"Flachkollektor","Flachkollektor (selektiv)",2.57,2.38,0.7,"CitrinSolar GmbH-CS 550"]
["Consolar Solare Energiesysteme GmbH","Consolar Tubo II C",641.07107719263558,469.45962364880398,344.33503299410137,0.46967213114754097,"Röhrenkollektor","Vakuumröhrenkollektor",1.22,0.98,0.7,"Consolar Solare Energiesysteme GmbH-Consolar Tubo II C"]
["CoolTec","ES2V/2,65B AL-CU",735.3644947245283,480.59435526792453,316.09448212075461,0.48075471698113209,"Flachkollektor","Flachkollektor (selektiv)",2.65,2.4500000000000002,0.7,"CoolTec-ES2V/2,65B AL-CU"]
["CoolTec","ES2V/2,65S AL-CU",735.3644947245283,480.59435526792453,316.09448212075461,0.48075471698113209,"Flachkollektor","Flachkollektor (selektiv)",2.65,2.4500000000000002,0.7,"CoolTec-ES2V/2,65S AL-CU"]
["CoolTec","Optisun 245 H",699.56,454.98,295.42,0.45492424242424245,"Flachkollektor","Flachkollektor (selektiv)",2.64,2.44,0.7,"CoolTec-Optisun 245 H"]
["CoolTec","Optisun 245 V",699.56,454.98,295.42,0.45492424242424245,"Flachkollektor","Flachkollektor (selektiv)",2.64,2.44,0.7,"CoolTec-Optisun 245 V"]
["DualSun","DSTlxxxG1-360SBB5 (xxx = 370W to 400W in steps of 5W)",443.9,188.62,54.08,0.18882978723404256,"WISC Kollektor","PVT",1.88,1.88,0.8,"DualSun-DSTlxxxG1-360SBB5 (xxx = 370W to 400W in steps of 5W)"]
["DualSun","DSTNxxxG1-360SBB5 (xxx = 370W to 400W in steps of 5W)",290.74202127659572,67.332446808510639,0,6.7553191489361702E-2,"WISC Kollektor","PVT",1.88,1.88,0.8,"DualSun-DSTNxxxG1-360SBB5 (xxx = 370W to 400W in steps of 5W)"]
["DualSun","DSTIxxxM12-B320SBB7 (xxx = 420W to 440W)",247.53749999999997,67.232812500000009,0,6.7307692307692318E-2,"WISC Kollektor","PVT",2.08,2.08,0.8,"DualSun-DSTIxxxM12-B320SBB7 (xxx = 420W to 440W)"]
["DualSun","DSTNxxxM12-B320SBB7 (xxx = 420W to 440W)",232.48429487179482,51.654807692307685,0,5.144230769230769E-2,"WISC Kollektor","PVT",2.08,2.08,0.8,"DualSun-DSTNxxxM12-B320SBB7 (xxx = 420W to 440W)"]
["ELCO GmbH","AURON DF 10-2",529.41999999999996,382.12,277.08,0.3820784069695084,"Röhrenkollektor","Vakuumröhrenkollektor",1.607,1.0129999999999999,0.7,"ELCO GmbH-AURON DF 10-2"]
["ELCO GmbH","AURON DF 15-2",529.41999999999996,382.12,277.08,0.38170478170478173,"Röhrenkollektor","Vakuumröhrenkollektor",2.4049999999999998,1.5189999999999999,0.7,"ELCO GmbH-AURON DF 15-2"]
["ELCO GmbH","AURON DF 20-2",529.41999999999996,382.12,277.08,0.38170542635658916,"Röhrenkollektor","Vakuumröhrenkollektor",3.2250000000000001,2.0259999999999998,0.7,{"$f":"A67&\"-\"&B67","v":"ELCO GmbH-AURON DF 20-2"}]
["ELCO GmbH","AURON DF 30-2",529.41999999999996,382.12,277.08,0.38186699710863281,"Röhrenkollektor","Vakuumröhrenkollektor",4.8419999999999996,3.0390000000000001,0.7,"ELCO GmbH-AURON DF 30-2"]
["ELCO GmbH","Solatron S 2.5-1 H",744.22949735449708,496.8839285714285,333.95138888888886,0.49682539682539684,"Flachkollektor","Flachkollektor (selektiv)",2.52,2.2599999999999998,0.7,"ELCO GmbH-Solatron S 2.5-1 H"]
["ELCO GmbH","Solatron S 2.5-1 V",744.22949735449708,496.8839285714285,333.95138888888886,0.49682539682539684,"Flachkollektor","Flachkollektor (selektiv)",2.52,2.2599999999999998,0.7,"ELCO GmbH-Solatron S 2.5-1 V"]
["Ernst Schweizer AG","FK1-H2",755.87,495.72,327.26,0.49573643410852708,"Flachkollektor","Flachkollektor (selektiv)",2.58,2.3199999999999998,0.7,"Ernst Schweizer AG-FK1-H2"]
["Ernst Schweizer AG","FK1-V2",755.87,495.72,327.26,0.49573643410852708,"Flachkollektor","Flachkollektor (selektiv)",2.58,2.3199999999999998,0.7,"Ernst Schweizer AG-FK1-V2"]
["Ernst Schweizer AG","FK1-V2V",755.87,495.72,327.26,0.49573643410852708,"Flachkollektor","Flachkollektor (selektiv)",2.58,2.3199999999999998,0.7,"Ernst Schweizer AG-FK1-V2V"]
["Ernst Schweizer AG","FK2-XS H4",748.88977423638778,469.58486055776899,291.33944223107568,0.46972111553784868,"Flachkollektor","Flachkollektor (selektiv)",2.5099999999999998,2.33,0.7,"Ernst Schweizer AG-FK2-XS H4"]
["Ernst Schweizer AG","FK2-XS V4",748.88977423638778,469.58486055776899,291.33944223107568,0.46972111553784868,"Flachkollektor","Flachkollektor (selektiv)",2.5099999999999998,2.33,0.7,"Ernst Schweizer AG-FK2-XS V4"]
["ESTEC EnergieSparTechnik GmbH","IDMK Integra 1,25",693.15793650793648,446.9392857142858,290.0555555555556,0.42960000000000004,"Flachkollektor","Flachkollektor (selektiv)",1.25,1.1100000000000001,0.7,"ESTEC EnergieSparTechnik GmbH-IDMK Integra 1,25"]
["ESTEC EnergieSparTechnik GmbH","IDMK Integra 2,50",693.15793650793648,446.9392857142858,290.0555555555556,0.44682539682539679,"Flachkollektor","Flachkollektor (selektiv)",2.52,2.33,0.7,"ESTEC EnergieSparTechnik GmbH-IDMK Integra 2,50"]
["EuroSun Solarsystem GmbH","DF120-6",643.19000000000005,478.75,357.17,0.47848101265822779,"Röhrenkollektor","Vakuumröhrenkollektor",2.37,1.67,0.7,"EuroSun Solarsystem GmbH-DF120-6"]
["EuroSun Solarsystem GmbH","Germanstar HP 70/16",649.78,475.16,349.39,0.47517985611510793,"Röhrenkollektor","Vakuumröhrenkollektor",2.78,2.1,0.7,"EuroSun Solarsystem GmbH-Germanstar HP 70/16"]
["EuroSun Solarsystem GmbH","Germanstar HP 70/18",649.78,475.16,349.39,0.47499999999999998,"Röhrenkollektor","Vakuumröhrenkollektor",3.12,2.36,0.7,"EuroSun Solarsystem GmbH-Germanstar HP 70/18"]
["EuroSun Solarsystem GmbH","Germanstar HP 70/24",649.78,475.16,349.39,0.47518072289156621,"Röhrenkollektor","Vakuumröhrenkollektor",4.1500000000000004,3.14,0.7,"EuroSun Solarsystem GmbH-Germanstar HP 70/24"]
["EuroSun Solarsystem GmbH","Germanstar HP 70/8",649.78,475.16,349.39,0.47517730496453908,"Röhrenkollektor","Vakuumröhrenkollektor",1.41,1.05,0.7,"EuroSun Solarsystem GmbH-Germanstar HP 70/8"]
["Faivre Energie SA","PSH 2340H",738.83,482.33,317.43,0.48247863247863249,"Flachkollektor","Flachkollektor (selektiv)",2.34,2.2200000000000002,0.7,"Faivre Energie SA-PSH 2340H"]
["Faivre Energie SA","PSH 2340V",738.83,482.33,317.43,0.48247863247863249,"Flachkollektor","Flachkollektor (selektiv)",2.34,2.2200000000000002,0.7,"Faivre Energie SA-PSH 2340V"]
["FK Solartechnik GmbH","FK Solinas 3 Plus",503.51,353.07,250.5,0.35286343612334803,"Röhrenkollektor","Vakuumröhrenkollektor",2.27,1.38,0.7,"FK Solartechnik GmbH-FK Solinas 3 Plus"]
["FK Solartechnik GmbH","FK Solinas 3 plus kurz",416.34,278.85000000000002,188.68,0.27837837837837837,"Röhrenkollektor","Vakuumröhrenkollektor",1.1100000000000001,0.59,0.7,"FK Solartechnik GmbH-FK Solinas 3 plus kurz"]
["Fototherm S.r.l.","FTXXXAS (XXX=280W-305W)",436.69038166855779,175.39603501208893,40.554328101887599,0.17546012269938649,"WISC Kollektor","PVT",1.63,1.56,0.8,"Fototherm S.r.l.-FTXXXAS (XXX=280W-305W)"]
["GASOKOL GmbH","gevoSol 120",708.84083333333331,464.48268750000005,306.10562499999997,0.46449999999999997,"Flachkollektor","Flachkollektor (selektiv)",12,11,0.7,"GASOKOL GmbH-gevoSol 120"]
["GASOKOL GmbH","gevoSol 96",708.84083333333331,464.48268750000005,306.10562499999997,0.46451612903225814,"Flachkollektor","Flachkollektor (selektiv)",9.61,8.8000000000000007,0.7,"GASOKOL GmbH-gevoSol 96"]
["GASOKOL GmbH","gevoSol 72",708.84083333333331,464.48268750000005,306.10562499999997,0.46440443213296401,"Flachkollektor","Flachkollektor (selektiv)",7.22,6.6,0.7,"GASOKOL GmbH-gevoSol 72"]
["GASOKOL GmbH","gevoSol 49",708.84083333333331,464.48268750000005,306.10562499999997,0.46438923395445131,"Flachkollektor","Flachkollektor (selektiv)",4.83,4.4000000000000004,0.7,"GASOKOL GmbH-gevoSol 49"]
["GASOKOL GmbH","gevoSol 26",708.84083333333331,464.48268750000005,306.10562499999997,0.46434108527131779,"Flachkollektor","Flachkollektor (selektiv)",2.58,2.33,0.7,"GASOKOL GmbH-gevoSol 26"]
["GASOKOL GmbH","gevoSol 23",708.84083333333331,464.48268750000005,306.10562499999997,0.46444444444444444,"Flachkollektor","Flachkollektor (selektiv)",2.25,2.0099999999999998,0.7,"GASOKOL GmbH-gevoSol 23"]
["GASOKOL GmbH","gevoSol ",708.84083333333331,464.48268750000005,306.10562499999997,0.46400000000000002,"Flachkollektor","Flachkollektor auf Mass (selektiv)",1,0.87,0.7,"GASOKOL GmbH-gevoSol "]
["GASOKOL GmbH","gigaSol 120",640.27,416.41,272.77,0.41650000000000004,"Flachkollektor","Flachkollektor (selektiv)",12,11.05,0.7,"GASOKOL GmbH-gigaSol 120"]
["GASOKOL GmbH","gigaSol 24H",640.27,416.41,272.77,0.41639344262295086,"Flachkollektor","Flachkollektor (selektiv)",2.44,2.13,0.7,"GASOKOL GmbH-gigaSol 24H"]
["GASOKOL GmbH","gigaSol 35M",640.27,416.41,272.77,0.41637931034482761,"Flachkollektor","Flachkollektor (selektiv)",3.48,3.12,0.7,"GASOKOL GmbH-gigaSol 35M"]
["GASOKOL GmbH","gigaSol 48D",640.27,416.41,272.77,0.41659751037344395,"Flachkollektor","Flachkollektor (selektiv)",4.82,4.3899999999999997,0.7,"GASOKOL GmbH-gigaSol 48D"]
["GASOKOL GmbH","gigaSol 49",640.27,416.41,272.77,0.41656314699792962,"Flachkollektor","Flachkollektor (selektiv)",4.83,4.4000000000000004,0.7,"GASOKOL GmbH-gigaSol 49"]
["GASOKOL GmbH","gigaSol 60H",640.27,416.41,272.77,0.41650165016501656,"Flachkollektor","Flachkollektor (selektiv)",6.06,5.35,0.7,"GASOKOL GmbH-gigaSol 60H"]
["GASOKOL GmbH","gigaSol 86M",640.27,416.41,272.77,0.41651270207852198,"Flachkollektor","Flachkollektor (selektiv)",8.66,7.84,0.7,"GASOKOL GmbH-gigaSol 86M"]
["GASOKOL GmbH","gigaSol",640.27,416.41,272.77,0.41599999999999998,"Flachkollektor","Flachkollektor auf Mass (selektiv)",1,0.79500000000000004,0.7,"GASOKOL GmbH-gigaSol"]
["GASOKOL GmbH","sunnySol 23H",687.69,459.51,309.88,0.45911111111111108,"Flachkollektor","Flachkollektor (selektiv)",2.25,2.0099999999999998,0.7,"GASOKOL GmbH-sunnySol 23H"]
["GASOKOL GmbH","sunnySol 23V",687.69,459.51,309.88,0.45911111111111108,"Flachkollektor","Flachkollektor (selektiv)",2.25,2.0099999999999998,0.7,"GASOKOL GmbH-sunnySol 23V"]
["GASOKOL GmbH","sunWin 24",727.62,475,311.83,0.47899159663865543,"Flachkollektor","Flachkollektor (selektiv)",2.38,2.2200000000000002,0.7,"GASOKOL GmbH-sunWin 24"]
["GASOKOL GmbH","sunWin 27H",720.84,470.6,309.22000000000003,0.47074074074074068,"Flachkollektor","Flachkollektor (selektiv)",2.7,2.52,0.7,"GASOKOL GmbH-sunWin 27H"]
["GASOKOL GmbH","sunWin 27V",720.84,470.6,309.22000000000003,0.47074074074074068,"Flachkollektor","Flachkollektor (selektiv)",2.7,2.52,0.7,"GASOKOL GmbH-sunWin 27V"]
["GASOKOL GmbH","topSol 22",706.74,471.75,317.81,0.4718181818181818,"Flachkollektor","Flachkollektor (selektiv)",2.2000000000000002,2.02,0.7,"GASOKOL GmbH-topSol 22"]
["H. Lenz AG","Multisol M240",751.70133333333331,496.512,331.22133333333329,0.49644444444444447,"Flachkollektor","Flachkollektor (selektiv)",2.25,2,0.7,"H. Lenz AG-Multisol M240"]
["H. Lenz AG","Swiss-Collector",743.11185421513198,492.84037387185919,330.09234727245826,0.49299999999999999,"Flachkollektor","Flachkollektor auf Mass (selektiv)",1,0.88400000000000001,0.7,"H. Lenz AG-Swiss-Collector"]
["Hassler energia alternativa ag","Serpentino ADH",766.07,509.29,341.5,0.5091633466135459,"Flachkollektor","Flachkollektor (selektiv)",2.5099999999999998,2.33,0.7,"Hassler energia alternativa ag-Serpentino ADH"]
["Hassler energia alternativa ag","Serpentino ADV",766.07,509.29,341.5,0.5091633466135459,"Flachkollektor","Flachkollektor (selektiv)",2.5099999999999998,2.33,0.7,"Hassler energia alternativa ag-Serpentino ADV"]
["Hoval AG","UltraSol® 2-H",715.11,456.59,292.7,0.45652173913043481,"Flachkollektor","Flachkollektor (selektiv)",2.5299999999999998,2.33,0.7,"Hoval AG-UltraSol® 2-H"]
["Hoval AG","UltraSol® 2-V",715.11,456.59,292.7,0.45652173913043481,"Flachkollektor","Flachkollektor (selektiv)",2.5299999999999998,2.33,0.7,"Hoval AG-UltraSol® 2-V"]
["Liebi LNC AG","LNC/HAR",707.45,471.96,317.81,0.47227272727272718,"Flachkollektor","Flachkollektor (selektiv)",2.2000000000000002,2.02,0.7,"Liebi LNC AG-LNC/HAR"]
["Liebi LNC AG","LNC/SPY 2.25H",687.69,459.51,309.88,0.45911111111111108,"Flachkollektor","Flachkollektor (selektiv)",2.25,2.0099999999999998,0.7,"Liebi LNC AG-LNC/SPY 2.25H"]
["Liebi LNC AG","LNC/SPY 2.25H(i)",687.69,459.51,309.88,0.45911111111111108,"Flachkollektor","Flachkollektor (selektiv)",2.25,2.0099999999999998,0.7,"Liebi LNC AG-LNC/SPY 2.25H(i)"]
["Liebi LNC AG","LNC/SPY 2.25V",687.69,459.51,309.88,0.45911111111111108,"Flachkollektor","Flachkollektor (selektiv)",2.25,2.0099999999999998,0.7,"Liebi LNC AG-LNC/SPY 2.25V"]
["Liebi LNC AG","LNC/SPY 2.25V (i)",687.69,459.51,309.88,0.45911111111111108,"Flachkollektor","Flachkollektor (selektiv)",2.25,2.0099999999999998,0.7,"Liebi LNC AG-LNC/SPY 2.25V (i)"]
["Linuo Ritter International Co., Ltd.","CPC 1512",604.73,452.2,338.22,0.45219298245614037,"Röhrenkollektor","Vakuumröhrenkollektor",2.2799999999999998,2,0.7,"Linuo Ritter International Co., Ltd.-CPC 1512"]
["Linuo Ritter International Co., Ltd.","CPC 1515",604.73,452.2,338.22,0.49961240310077515,"Röhrenkollektor","Vakuumröhrenkollektor",2.58,2.4900000000000002,0.7,"Linuo Ritter International Co., Ltd.-CPC 1515"]
["Linuo Ritter International Co., Ltd.","CPC 1518",604.73,452.2,338.22,0.45219941348973608,"Röhrenkollektor","Vakuumröhrenkollektor",3.41,2.99,0.7,"Linuo Ritter International Co., Ltd.-CPC 1518"]
["Linuo Ritter International Co., Ltd.","CPC XL 1514",604.99,452.55,338.49,0.45263157894736838,"Röhrenkollektor","Vakuumröhrenkollektor",2.66,2.34,0.7,"Linuo Ritter International Co., Ltd.-CPC XL 1514"]
["Linuo Ritter International Co., Ltd.","CPC XL 1521",604.99,452.55,338.49,0.45251256281407032,"Röhrenkollektor","Vakuumröhrenkollektor",3.98,3.5,0.7,"Linuo Ritter International Co., Ltd.-CPC XL 1521"]
["Linuo Ritter International Co., Ltd.","CPC XL 1914",604.99,452.55,338.49,0.45239520958083829,"Röhrenkollektor","Vakuumröhrenkollektor",3.34,3.02,0.7,"Linuo Ritter International Co., Ltd.-CPC XL 1914"]
["Linuo Ritter International Co., Ltd.","CPC XL 1918",604.99,452.55,338.49,0.45257009345794391,"Röhrenkollektor","Vakuumröhrenkollektor",4.28,3.83,0.7,"Linuo Ritter International Co., Ltd.-CPC XL 1918"]
["Linuo Ritter International Co., Ltd.","CPC XL 1921",604.99,452.55,338.49,0.45250501002004007,"Röhrenkollektor","Vakuumröhrenkollektor",4.99,4.47,0.7,"Linuo Ritter International Co., Ltd.-CPC XL 1921"]
["Logic IP AG","hero.flat",277.27999999999997,59.85,0,6.1904761904761907E-2,"WISC Kollektor","PVT",0.21,0.21,0.8,"Logic IP AG-hero.flat"]
["Mastersol Est.","VRK 10",613.07419683453998,448.85155603798972,328.88894670399208,0.44864864864864862,"Röhrenkollektor","Vakuumröhrenkollektor",1.85,1.6,0.7,"Mastersol Est.-VRK 10"]
["Max Weishaupt GmbH","WTS-F1 K1",689.64159937984493,452.73861209302322,299.23433736434106,0.45271317829457358,"Flachkollektor","Flachkollektor (selektiv)",2.58,2.3199999999999998,0.7,"Max Weishaupt GmbH-WTS-F1 K1"]
["Max Weishaupt GmbH","WTS-F1 K2",689.64159937984493,452.73861209302322,299.23433736434106,0.45271317829457358,"Flachkollektor","Flachkollektor (selektiv)",2.58,2.3199999999999998,0.7,{"$f":"A131&\"-\"&B131","v":"Max Weishaupt GmbH-WTS-F1 K2"}]
["Max Weishaupt GmbH","WTS-F2 K5",748.88977423638778,469.58486055776899,291.33944223107568,0.46972111553784868,"Flachkollektor","Flachkollektor (selektiv)",2.5099999999999998,2.33,0.7,"Max Weishaupt GmbH-WTS-F2 K5"]
["Max Weishaupt GmbH","WTS-F2 K6",748.88977423638778,469.58486055776899,291.33944223107568,0.46972111553784868,"Flachkollektor","Flachkollektor (selektiv)",2.5099999999999998,2.33,0.7,"Max Weishaupt GmbH-WTS-F2 K6"]
["Meier Tobler AG","TERZA 251-H",720.18100929614877,471.82231075697217,312.02848605577691,0.47171314741035858,"Flachkollektor","Flachkollektor (selektiv)",2.5099999999999998,2.35,0.7,"Meier Tobler AG-TERZA 251-H"]
["Meier Tobler AG","TERZA 251-V",720.18100929614877,471.82231075697217,312.02848605577691,0.47171314741035858,"Flachkollektor","Flachkollektor (selektiv)",2.5099999999999998,2.34,0.7,"Meier Tobler AG-TERZA 251-V"]
["Membro Energietechnik GmbH & Co.KG","FK-2.5",781.62424242424231,499.07312252964431,319.76719367588936,0.49920948616600791,"Flachkollektor","Flachkollektor (selektiv)",2.5299999999999998,2.34,0.7,"Membro Energietechnik GmbH & Co.KG-FK-2.5"]
["Membro Energietechnik GmbH & Co.KG","Membro BHP-15",559.92859376003651,391.37946208164936,274.82145378271883,0.38,"Röhrenkollektor","Vakuumröhrenkollektor",2.35,1.4,0.7,"Membro Energietechnik GmbH & Co.KG-Membro BHP-15"]
["Membro Energietechnik GmbH & Co.KG","Membro BHP-20",559.92859376003651,391.37946208164936,274.82145378271883,0.38483870967741934,"Röhrenkollektor","Vakuumröhrenkollektor",3.1,1.87,0.7,"Membro Energietechnik GmbH & Co.KG-Membro BHP-20"]
["Membro Energietechnik GmbH & Co.KG","Membro BHP-30",559.92859376003651,391.37946208164936,274.82145378271883,0.3914847161572052,"Röhrenkollektor","Vakuumröhrenkollektor",4.58,2.81,0.7,"Membro Energietechnik GmbH & Co.KG-Membro BHP-30"]
["Müba Energietechnik AG","Müba-Sun",693.73891625615761,450.78694581280791,294.36206896551727,0.4507389162561577,"Flachkollektor","Flachkollektor (selektiv)",2.0299999999999998,1.92,0.7,"Müba Energietechnik AG-Müba-Sun"]
["Naked Energy Ltd","Virtu HOT",593.85,408.26,283.08999999999997,0.40769230769230769,"Röhrenkollektor","Vakuumröhrenkollektor",0.65,0.64,0.7,"Naked Energy Ltd-Virtu HOT"]
["Naked Energy Ltd","Virtu HOT HD",766.63,525.27,363.46,0.52553191489361706,"Röhrenkollektor","Vakuumröhrenkollektor",0.47,0.36,0.7,"Naked Energy Ltd-Virtu HOT HD"]
["NAU GmbH","NAU SAPHIRLINE",720.34,470.52,309.26,0.47021276595744677,"Flachkollektor","Flachkollektor (selektiv)",2.35,2.2029999999999998,0.7,"NAU GmbH-NAU SAPHIRLINE"]
["NAU GmbH","NAU SAPHIRLINE-Q",720.34,470.52,309.26,0.47063829787234046,"Flachkollektor","Flachkollektor (selektiv)",2.35,2.206,0.7,"NAU GmbH-NAU SAPHIRLINE-Q"]
["Neuma-Solar GmbH","GOLIATH Premium MF 2,4m2",609.32000000000005,386.88,247.02,0.38708333333333339,"Flachkollektor","Flachkollektor (selektiv)",2.4,2.04,0.7,"Neuma-Solar GmbH-GOLIATH Premium MF 2,4m2"]
["OEG GmbH","2Plus",752.37,495.47,329.51,0.49563106796116502,"Flachkollektor","Flachkollektor (selektiv)",2.06,1.89,0.7,"OEG GmbH-2Plus"]
["OEG GmbH","4Plus",784.45,501.04,321.10000000000002,0.50079051383399209,"Flachkollektor","Flachkollektor (selektiv)",2.5299999999999998,2.34,0.7,"OEG GmbH-4Plus"]
["ÖkoFEN Forschungs- und Entwicklungs Ges.m.b.H.","Pellesol-Top",779.32,510.01,335.82,0.50991379310344831,"Flachkollektor","Flachkollektor (selektiv)",2.3199999999999998,2.13,0.7,"ÖkoFEN Forschungs- und Entwicklungs Ges.m.b.H.-Pellesol-Top"]
["Olymp Werk GmbH","DF120-6",643.19000000000005,478.75,357.17,0.47848101265822779,"Röhrenkollektor","Vakuumröhrenkollektor",2.37,1.67,0.7,"Olymp Werk GmbH-DF120-6"]
["Olymp Werk GmbH","Sunstar 0870",649.78,475.16,349.39,0.47517730496453908,"Röhrenkollektor","Vakuumröhrenkollektor",1.41,1.05,0.7,"Olymp Werk GmbH-Sunstar 0870"]
["Olymp Werk GmbH","Sunstar 1670",649.78,475.16,349.39,0.47517985611510793,"Röhrenkollektor","Vakuumröhrenkollektor",2.78,2.1,0.7,"Olymp Werk GmbH-Sunstar 1670"]
["Olymp Werk GmbH","Sunstar 2470",649.78,475.16,349.39,0.47518072289156621,"Röhrenkollektor","Vakuumröhrenkollektor",4.1500000000000004,3.14,0.7,"Olymp Werk GmbH-Sunstar 2470"]
["Orionsolar Energietechnik GmbH","Plasma Spectral CPC 15",619.21,447.93,326.37,0.44751552795031058,"Röhrenkollektor","Vakuumröhrenkollektor",3.22,2.72,0.7,"Orionsolar Energietechnik GmbH-Plasma Spectral CPC 15"]
["Orionsolar Energietechnik GmbH","Plasma Spectral CPC 20",619.21,447.93,326.37,0.44777517564402813,"Röhrenkollektor","Vakuumröhrenkollektor",4.2699999999999996,3.66,0.7,"Orionsolar Energietechnik GmbH-Plasma Spectral CPC 20"]
["Orionsolar Energietechnik GmbH","Plasma Spectral CPC 24",619.21,447.93,326.37,0.44707031250000001,"Röhrenkollektor","Vakuumröhrenkollektor",5.12,4.41,0.7,"Orionsolar Energietechnik GmbH-Plasma Spectral CPC 24"]
["Orionsolar Energietechnik GmbH","Plasma Spectral CPC 8",619.21,447.93,326.37,0.44827586206896552,"Röhrenkollektor","Vakuumröhrenkollektor",1.74,1.41,0.7,"Orionsolar Energietechnik GmbH-Plasma Spectral CPC 8"]
["ORO TECHNOLOGIES SA","FK 8200L 2H",738.46,482.33,317.43,0.48217821782178216,"Flachkollektor","Flachkollektor (selektiv)",2.02,1.93,0.7,"ORO TECHNOLOGIES SA-FK 8200L 2H"]
["ORO TECHNOLOGIES SA","FK 8230L 2H",738.46,482.33,317.43,0.48247863247863249,"Flachkollektor","Flachkollektor (selektiv)",2.34,2.23,0.7,"ORO TECHNOLOGIES SA-FK 8230L 2H"]
["ORO TECHNOLOGIES SA","FK 8250L 2H",738.46,482.33,317.43,0.48253968253968255,"Flachkollektor","Flachkollektor (selektiv)",2.52,2.39,0.7,"ORO TECHNOLOGIES SA-FK 8250L 2H"]
["ORO TECHNOLOGIES SA","Oro-Tech Universel",775,500.76,325.51,0.50148514851485149,"Flachkollektor","Flachkollektor (selektiv)",2.02,1.84,0.7,"ORO TECHNOLOGIES SA-Oro-Tech Universel"]
["PA-ID Process GmbH","HM 1305 Mono Black ",253.45098039215685,75.57352941176471,0,7.5294117647058831E-2,"WISC Kollektor","PVT",1.7,1.7,0.8,"PA-ID Process GmbH-HM 1305 Mono Black "]
["Pleion S.r.l.","X-RAY 10R",683.63110393020304,491.74020262145882,354.63523662346284,0.49150943396226415,"Röhrenkollektor","Vakuumröhrenkollektor",2.12,1.91,0.7,"Pleion S.r.l.-X-RAY 10R"]
["Pleion S.r.l.","X-RAY 15R",703.64401160632065,515.26964882295454,378.34484703783374,0.51540880503144648,"Röhrenkollektor","Vakuumröhrenkollektor",3.18,2.87,0.7,"Pleion S.r.l.-X-RAY 15R"]
["Pleion S.r.l.","X-RAY 18R",703.64401160632065,515.26964882295454,378.34484703783374,0.51518324607329846,"Röhrenkollektor","Vakuumröhrenkollektor",3.82,3.45,0.7,"Pleion S.r.l.-X-RAY 18R"]
["Pleion S.r.l.","X-RAY 21R",700.59110165338427,523.32902160313006,391.49254302568329,0.52337078651685398,"Röhrenkollektor","Vakuumröhrenkollektor",4.45,4.0199999999999996,0.7,"Pleion S.r.l.-X-RAY 21R"]
["PVT Solar AG","PVT Hybridkollektor Silverstar SL 270 i",259.92,59.54,0,6.5993265993265993E-2,"WISC Kollektor","PVT",1.4850000000000001,1.4850000000000001,0.8,"PVT Solar AG-PVT Hybridkollektor Silverstar SL 270 i"]
["Retec Solar GmbH","RS",644.83000000000004,411.88,265.08,0.41979102642901051,"Flachkollektor","Flachkollektor (selektiv)",1.627,1.472,0.7,"Retec Solar GmbH-RS"]
["Riello SA","CSV 25 R",684.07,496.12,360.99,0.49602888086642605,"Röhrenkollektor","Vakuumröhrenkollektor",2.77,2.4,0.7,"Riello SA-CSV 25 R"]
["Riello SA","CSV 35 R",684.07,496.12,360.99,0.49590792838874681,"Röhrenkollektor","Vakuumröhrenkollektor",3.91,3.43,0.7,"Riello SA-CSV 35 R"]
["Riello SA","RPS 25/4",755.28,491.37,322.81,0.49130434782608695,"Flachkollektor","Flachkollektor (selektiv)",2.2999999999999998,2.15,0.7,"Riello SA-RPS 25/4"]
["Ritter Energie- und Umwelttechnik GmbH & Co. KG","AQUA PLASMA 15/27",625.67999999999995,474.49,359.65,0.47453183520599251,"Röhrenkollektor","Vakuumröhrenkollektor",2.67,2.33,0.7,"Ritter Energie- und Umwelttechnik GmbH & Co. KG-AQUA PLASMA 15/27"]
["Ritter Energie- und Umwelttechnik GmbH & Co. KG","AQUA PLASMA 15/40",625.67999999999995,474.49,359.65,0.47443609022556388,"Röhrenkollektor","Vakuumröhrenkollektor",3.99,3.49,0.7,"Ritter Energie- und Umwelttechnik GmbH & Co. KG-AQUA PLASMA 15/40"]
["Ritter Energie- und Umwelttechnik GmbH & Co. KG","AQUA PLASMA 19/34",625.67999999999995,474.49,359.65,0.47432835820895519,"Röhrenkollektor","Vakuumröhrenkollektor",3.35,3,0.7,"Ritter Energie- und Umwelttechnik GmbH & Co. KG-AQUA PLASMA 19/34"]
["Ritter Energie- und Umwelttechnik GmbH & Co. KG","AQUA PLASMA 19/50",625.67999999999995,474.49,359.65,0.47445109780439121,"Röhrenkollektor","Vakuumröhrenkollektor",5.01,4.5,0.7,"Ritter Energie- und Umwelttechnik GmbH & Co. KG-AQUA PLASMA 19/50"]
["Ritter Energie- und Umwelttechnik GmbH & Co. KG","SOLAR PLASMA+ 15/27",625.67999999999995,474.49,359.65,0.47453183520599251,"Röhrenkollektor","Vakuumröhrenkollektor",2.67,2.33,0.7,"Ritter Energie- und Umwelttechnik GmbH & Co. KG-SOLAR PLASMA+ 15/27"]
["Ritter Energie- und Umwelttechnik GmbH & Co. KG","SOLAR PLASMA+ 15/40",625.67999999999995,474.49,359.65,0.47443609022556388,"Röhrenkollektor","Vakuumröhrenkollektor",3.99,3.49,0.7,"Ritter Energie- und Umwelttechnik GmbH & Co. KG-SOLAR PLASMA+ 15/40"]
["Ritter Energie- und Umwelttechnik GmbH & Co. KG","SOLAR PLASMA+ 19/34",625.67999999999995,474.49,359.65,0.47432835820895519,"Röhrenkollektor","Vakuumröhrenkollektor",3.35,3,0.7,"Ritter Energie- und Umwelttechnik GmbH & Co. KG-SOLAR PLASMA+ 19/34"]
["Ritter Energie- und Umwelttechnik GmbH & Co. KG","SOLAR PLASMA+ 19/50",625.67999999999995,474.49,359.65,0.47445109780439121,"Röhrenkollektor","Vakuumröhrenkollektor",5.01,4.5,0.7,"Ritter Energie- und Umwelttechnik GmbH & Co. KG-SOLAR PLASMA+ 19/50"]
["Ritter Energie- und Umwelttechnik GmbH & Co. KG","STAR 15/26",639.18968608811292,477.44150078393795,357.19241718156866,0.4642585551330799,"Röhrenkollektor","Vakuumröhrenkollektor",2.63,2.33,0.7,"Ritter Energie- und Umwelttechnik GmbH & Co. KG-STAR 15/26"]
["Ritter Energie- und Umwelttechnik GmbH & Co. KG","STAR 15/39",639.18968608811292,477.44150078393795,357.19241718156866,0.46539440203562338,"Röhrenkollektor","Vakuumröhrenkollektor",3.93,3.49,0.7,"Ritter Energie- und Umwelttechnik GmbH & Co. KG-STAR 15/39"]
["Ritter Energie- und Umwelttechnik GmbH & Co. KG","STAR 19/33",639.18968608811292,477.44150078393795,357.19241718156866,0.47636363636363643,"Röhrenkollektor","Vakuumröhrenkollektor",3.3,3,0.7,"Ritter Energie- und Umwelttechnik GmbH & Co. KG-STAR 19/33"]
["Ritter Energie- und Umwelttechnik GmbH & Co. KG","STAR 19/49",639.18968608811292,477.44150078393795,357.19241718156866,0.4775303643724696,"Röhrenkollektor","Vakuumröhrenkollektor",4.9400000000000004,4.5,0.7,"Ritter Energie- und Umwelttechnik GmbH & Co. KG-STAR 19/49"]
["Ritter XL Solar GmbH","XL 15/26 P",642.08000000000004,486.04,367.95,0.48816793893129767,"Röhrenkollektor","Vakuumröhrenkollektor",2.62,2.33,0.7,"Ritter XL Solar GmbH-XL 15/26 P"]
["Ritter XL Solar GmbH","XL 19/49 P",661.32,501.31,379.99,0.50161943319838054,"Röhrenkollektor","Vakuumröhrenkollektor",4.9400000000000004,4.5,0.7,"Ritter XL Solar GmbH-XL 19/49 P"]
["Rossato Group SRL","FKA 200 H Al/Cu",662.75,437.2,290.75,0.43708920187793432,"Flachkollektor","Flachkollektor (selektiv)",2.13,1.84,0.7,"Rossato Group SRL-FKA 200 H Al/Cu"]
["Rossato Group SRL","FKA 200 V Al/Cu",662.75,437.2,290.75,0.43708920187793432,"Flachkollektor","Flachkollektor (selektiv)",2.13,1.84,0.7,"Rossato Group SRL-FKA 200 V Al/Cu"]
["Rossato Group SRL","FKA 240 H Al/Cu",662.75,437.2,290.75,0.43928571428571428,"Flachkollektor","Flachkollektor (selektiv)",2.52,2.19,0.7,"Rossato Group SRL-FKA 240 H Al/Cu"]
["Rossato Group SRL","FKA 240 V Al/Cu",662.75,437.2,290.75,0.43928571428571428,"Flachkollektor","Flachkollektor (selektiv)",2.52,2.19,0.7,"Rossato Group SRL-FKA 240 V Al/Cu"]
["Rossato Group SRL","FKA 270 H Al/Cu",662.75,437.2,290.75,0.43715277777777778,"Flachkollektor","Flachkollektor (selektiv)",2.88,2.5099999999999998,0.7,"Rossato Group SRL-FKA 270 H Al/Cu"]
["Rossato Group SRL","FKA 270 V Al/Cu",662.75,437.2,290.75,0.43715277777777778,"Flachkollektor","Flachkollektor (selektiv)",2.88,2.5099999999999998,0.7,"Rossato Group SRL-FKA 270 V Al/Cu"]
["ROTEX Heating Systems GmbH","H26P",712.21594258618472,460.48615916955009,300.41330257593233,0.46059207996924256,"Flachkollektor","Flachkollektor (selektiv)",2.601,2.3639999999999999,0.7,"ROTEX Heating Systems GmbH-H26P"]
["ROTEX Heating Systems GmbH","V21P",712.21594258618472,460.48615916955009,300.41330257593233,0.45183714001986103,"Flachkollektor","Flachkollektor (selektiv)",2.0139999999999998,1.7909999999999999,0.7,"ROTEX Heating Systems GmbH-V21P"]
["ROTEX Heating Systems GmbH","V26P",712.21594258618472,460.48615916955009,300.41330257593233,0.46059207996924256,"Flachkollektor","Flachkollektor (selektiv)",2.601,2.3639999999999999,0.7,"ROTEX Heating Systems GmbH-V26P"]
["Sailer GmbH","FOCUS AR",778.23716475095785,515.54137931034484,343.62222222222215,0.51570881226053644,"Flachkollektor","Flachkollektor (selektiv)",2.61,2.36,0.7,"Sailer GmbH-FOCUS AR"]
["Sailer GmbH","FOCUS HTF",678.37,436.58,282.05,0.43639846743295024,"Flachkollektor","Flachkollektor (selektiv)",2.61,2.36,0.7,{"$f":"A195&\"-\"&B195","v":"Sailer GmbH-FOCUS HTF"}]
["Santer Solarprofi GesmbH","VRK 15",455.02,302.25,203.54,0.29125475285171104,"Röhrenkollektor","Vakuumröhrenkollektor",2.63,1.41,0.7,"Santer Solarprofi GesmbH-VRK 15"]
["Santer Solarprofi GesmbH","VRK 30",455.02,302.25,203.54,0.30216535433070862,"Röhrenkollektor","Vakuumröhrenkollektor",5.08,2.83,0.7,"Santer Solarprofi GesmbH-VRK 30"]
["Savo-Solar Oyj","SF500-15",863.35,592.96,411.2,0.59304293324976498,"Flachkollektor","Flachkollektor (selektiv)",15.955,14.83,0.7,"Savo-Solar Oyj-SF500-15"]
["Schweizer Energie","Swisspipe",510.93,378.88,282.07,0.27679180887372012,"Röhrenkollektor","Vakuumröhrenkollektor",2.93,1.41,0.7,"Schweizer Energie-Swisspipe"]
["Sebasol Vaud","Sebasol CU 2022",649.91248139922266,439.5809013881177,300.00614847307048,0.39589117157134923,"Flachkollektor","Flachkollektor (selektiv)",1.8009999999999999,1.51,0.7,"Sebasol Vaud-Sebasol CU 2022"]
["Sebasol Vaud","Sebasol 2012",664.89922265408109,441.50471960022219,295.85980011104942,0.44142143253747923,"Flachkollektor","Flachkollektor (selektiv)",1.8009999999999999,1.5049999999999999,0.7,"Sebasol Vaud-Sebasol 2012"]
["Sferasol","SF-A",1051.5046296296296,323.74999999999994,0,0.32287822878228778,"Flachkollektor","Flachkollektor (selektiv)",1.0840000000000001,1,0.7,"Sferasol-SF-A"]
["Solar Tec SA","SOL-TEC 2.1 Plus",714.07,465.79,305.32,0.46585365853658539,"Flachkollektor","Flachkollektor (selektiv)",2.0499999999999998,1.85,0.7,"Solar Tec SA-SOL-TEC 2.1 Plus"]
["Solar² / Sunda","Seido 1-8",575.9444269016825,399.89487334780347,279.2743759599295,0.40000000000000008,"Röhrenkollektor","Vakuumröhrenkollektor",2.0299999999999998,1.45,0.7,"Solar² / Sunda-Seido 1-8"]
["Solar² / Sunda","Seido 1-12",575.9444269016825,399.89487334780347,279.2743759599295,0.4,"Röhrenkollektor","Vakuumröhrenkollektor",3.09,2.1800000000000002,0.7,"Solar² / Sunda-Seido 1-12"]
["Solar² / Sunda","Seido 1-16",575.9444269016825,399.89487334780347,279.2743759599295,0.39999999999999997,"Röhrenkollektor","Vakuumröhrenkollektor",4.09,2.9,0.7,"Solar² / Sunda-Seido 1-16"]
["Solar² / Sunda","Seido 2-6",655.75060296211768,468.23616189582322,334.63435004982131,0.46818181818181814,"Röhrenkollektor","Vakuumröhrenkollektor",1.54,1.1000000000000001,0.7,"Solar² / Sunda-Seido 2-6"]
["Solar² / Sunda","Seido 2-8",655.75060296211768,468.23616189582322,334.63435004982131,0.46844660194174753,"Röhrenkollektor","Vakuumröhrenkollektor",2.06,1.45,0.7,"Solar² / Sunda-Seido 2-8"]
["Solar² / Sunda","Seido 2-12",655.75060296211768,468.23616189582322,334.63435004982131,0.46806451612903227,"Röhrenkollektor","Vakuumröhrenkollektor",3.1,2.1800000000000002,0.7,"Solar² / Sunda-Seido 2-12"]
["Solar² / Sunda","Seido 2-16",655.75060296211768,468.23616189582322,334.63435004982131,0.4682808716707022,"Röhrenkollektor","Vakuumröhrenkollektor",4.13,2.93,0.7,"Solar² / Sunda-Seido 2-16"]
["Solarbayer GmbH","CPC 12 NERO",659.897664317676,479.85921420441059,351.11762265271562,0.47981651376146789,"Flachkollektor","Vakuumröhrenkollektor",2.1800000000000002,1.89,0.7,"Solarbayer GmbH-CPC 12 NERO"]
["Solarbayer GmbH","PremiumPlus AL 2.86 H",752.74,503.16,338.87,0.50244755244755246,"Flachkollektor","Flachkollektor (selektiv)",2.86,2.67,0.7,"Solarbayer GmbH-PremiumPlus AL 2.86 H"]
["Solarbayer GmbH","PremiumPlus AL 2.86 V",752.74,503.16,338.87,0.50244755244755246,"Flachkollektor","Flachkollektor (selektiv)",2.86,2.67,0.7,"Solarbayer GmbH-PremiumPlus AL 2.86 V"]
["Solarbayer GmbH","Silversun 2.02",679.1452145214522,441.87326732673267,290.11881188118815,0.44207920792079208,"Flachkollektor","Flachkollektor (selektiv)",2.02,1.83,0.7,"Solarbayer GmbH-Silversun 2.02"]
["solardirekt24 GmbH","EUROTHERM SOLAR CPC 16R",618.03,447.23,325.64999999999998,0.44709997085397846,"Röhrenkollektor","Vakuumröhrenkollektor",3.431,2.9060000000000001,0.7,"solardirekt24 GmbH-EUROTHERM SOLAR CPC 16R"]
["solardirekt24 GmbH","EUROTHERM SOLAR CPC 20R",618.03,447.23,325.64999999999998,0.44725146198830401,"Röhrenkollektor","Vakuumröhrenkollektor",4.2750000000000004,3.6560000000000001,0.7,"solardirekt24 GmbH-EUROTHERM SOLAR CPC 20R"]
["solardirekt24 GmbH","EUROTHERM SOLAR CPC 24R",618.03,447.23,325.64999999999998,0.44724501758499413,"Röhrenkollektor","Vakuumröhrenkollektor",5.1180000000000003,4.4059999999999997,0.7,"solardirekt24 GmbH-EUROTHERM SOLAR CPC 24R"]
["solardirekt24 GmbH","EUROTHERM SOLAR PRO 10R",559.16999999999996,390.65,274.13,0.37080745341614901,"Röhrenkollektor","Vakuumröhrenkollektor",1.61,0.94,0.7,"solardirekt24 GmbH-EUROTHERM SOLAR PRO 10R"]
["solardirekt24 GmbH","EUROTHERM SOLAR PRO 15R",559.16999999999996,390.65,274.13,0.38085106382978723,"Röhrenkollektor","Vakuumröhrenkollektor",2.35,1.4,0.7,"solardirekt24 GmbH-EUROTHERM SOLAR PRO 15R"]
["solardirekt24 GmbH","EUROTHERM SOLAR PRO 20R",559.16999999999996,390.65,274.13,0.38516129032258062,"Röhrenkollektor","Vakuumröhrenkollektor",3.1,1.87,0.7,"solardirekt24 GmbH-EUROTHERM SOLAR PRO 20R"]
["solardirekt24 GmbH","EUROTHERM SOLAR PRO 25R",559.16999999999996,390.65,274.13,0.38854166666666667,"Röhrenkollektor","Vakuumröhrenkollektor",3.84,2.34,0.7,"solardirekt24 GmbH-EUROTHERM SOLAR PRO 25R"]
["solardirekt24 GmbH","EUROTHERM SOLAR PRO 30R",559.16999999999996,390.65,274.13,0.39061135371179034,"Röhrenkollektor","Vakuumröhrenkollektor",4.58,2.81,0.7,"solardirekt24 GmbH-EUROTHERM SOLAR PRO 30R"]
["Solarfocus GmbH","CPC S1",607.65,368.02,220.59,0.3676258992805756,"Flachkollektor","Flachkollektor (selektiv)",2.78,2.5299999999999998,0.7,"Solarfocus GmbH-CPC S1"]
["Solarfocus GmbH","suneco 21",665.23,427.08,275.37,0.42718446601941745,"Flachkollektor","Flachkollektor (selektiv)",2.06,1.85,0.7,"Solarfocus GmbH-suneco 21"]
["Solarfocus GmbH","suneco 28",665.23,427.08,275.37,0.42697841726618713,"Flachkollektor","Flachkollektor (selektiv)",2.78,2.5099999999999998,0.7,"Solarfocus GmbH-suneco 28"]
["Solarfocus GmbH","Sunnyline 28",698.03,451.77,294.25,0.45143884892086328,"Flachkollektor","Flachkollektor (selektiv)",2.78,2.5299999999999998,0.7,"Solarfocus GmbH-Sunnyline 28"]
["Solarpartner GmbH","galando",705.25,471.6,318.44,0.4500896592946802,"Flachkollektor","Flachkollektor (selektiv)",1.673,1.4430000000000001,0.7,"Solarpartner GmbH-galando"]
["Solarpartner GmbH","solindo Q",720.84,470.6,309.22000000000003,0.47074074074074068,"Flachkollektor","Flachkollektor (selektiv)",2.7,2.52,0.7,"Solarpartner GmbH-solindo Q"]
["Solarpartner GmbH","solindo V",720.84,470.6,309.22000000000003,0.47074074074074068,"Flachkollektor","Flachkollektor (selektiv)",2.7,2.52,0.7,"Solarpartner GmbH-solindo V"]
["Solarpartner GmbH","sunWin AF20VM4",690.606783919598,439.42500000000007,280.35527638190956,0.43919597989949749,"Flachkollektor","Flachkollektor (selektiv)",1.99,1.82,0.7,"Solarpartner GmbH-sunWin AF20VM4"]
["Solator GmbH","PVTHERMAU280",324.5,92.53,0,9.2073170731707316E-2,"WISC Kollektor","PVT",1.64,1.58,0.8,"Solator GmbH-PVTHERMAU280"]
["Solator GmbH","PVTHERMAU300",324.5,92.53,0,9.2073170731707316E-2,"WISC Kollektor","PVT",1.64,1.58,0.8,"Solator GmbH-PVTHERMAU300"]
["Solator GmbH","THERMUVG16",615.16999999999996,196.61,0,0.26582278481012656,"WISC Kollektor","Unabgedeckter Kollektor (selektiv)",1.58,1.58,0.7,"Solator GmbH-THERMUVG16"]
["Solimpeks Solar Energy","Wunder ALS 1809",728.59,476.72,314.19,0.47666666666666663,"Flachkollektor","Flachkollektor (selektiv)",1.8,1.62,0.7,"Solimpeks Solar Energy-Wunder ALS 1809"]
["Solimpeks Solar Energy","Wunder ALS 2110",728.59,476.72,314.19,0.47632850241545899,"Flachkollektor","Flachkollektor (selektiv)",2.0699999999999998,1.88,0.7,"Solimpeks Solar Energy-Wunder ALS 2110"]
["Solimpeks Solar Energy","Wunder ALS 2412",728.59,476.72,314.19,0.47666666666666663,"Flachkollektor","Flachkollektor (selektiv)",2.4,2.2000000000000002,0.7,"Solimpeks Solar Energy-Wunder ALS 2412"]
["Solimpeks Solar Energy","Wunder ALS 2512",728.59,476.72,314.19,0.47654320987654314,"Flachkollektor","Flachkollektor (selektiv)",2.4300000000000002,2.23,0.7,"Solimpeks Solar Energy-Wunder ALS 2512"]
["Solimpeks Solar Energy","Wunder ALS 2710",728.59,476.72,314.19,0.47666666666666663,"Flachkollektor","Flachkollektor (selektiv)",2.7,2.4900000000000002,0.7,"Solimpeks Solar Energy-Wunder ALS 2710"]
["Solimpeks Solar Energy","Wunder ALS 3010",728.59,476.72,314.19,0.48793103448275865,"Flachkollektor","Flachkollektor (selektiv)",2.9,2.69,0.7,"Solimpeks Solar Energy-Wunder ALS 3010"]
["SOLISART","S7 2,5",758.19682539682526,487.8857142857143,315.46666666666664,0.48769841269841274,"Flachkollektor","Flachkollektor (selektiv)",2.52,2.31,0.7,"SOLISART-S7 2,5"]
["SOLTOP Energie AG","COBRA AK 2.2 V",759.58,500.62,333.28,0.50090497737556561,"Flachkollektor","Flachkollektor (selektiv)",2.21,1.96,0.7,"SOLTOP Energie AG-COBRA AK 2.2 V"]
["SOLTOP Energie AG","COBRA AK 2.3 H",759.58,500.62,333.28,0.5,"Flachkollektor","Flachkollektor (selektiv)",2.2799999999999998,1.95,0.7,"SOLTOP Energie AG-COBRA AK 2.3 H"]
["SOLTOP Energie AG","COBRA AK 2.7 H",759.58,500.62,333.28,0.5,"Flachkollektor","Flachkollektor (selektiv)",2.61,2.2999999999999998,0.7,"SOLTOP Energie AG-COBRA AK 2.7 H"]
["SOLTOP Energie AG","COBRA AK 2.7 V",759.58,500.62,333.28,0.5,"Flachkollektor","Flachkollektor (selektiv)",2.59,2.31,0.7,"SOLTOP Energie AG-COBRA AK 2.7 V"]
["SOLTOP Energie AG","COBRA AK 2.8 H",759.58,500.62,333.28,0.50071684587813625,"Flachkollektor","Flachkollektor (selektiv)",2.79,2.46,0.7,"SOLTOP Energie AG-COBRA AK 2.8 H"]
["SOLTOP Energie AG","COBRA AK 2.8 V",759.58,500.62,333.28,0.50036101083032491,"Flachkollektor","Flachkollektor (selektiv)",2.77,2.4700000000000002,0.7,"SOLTOP Energie AG-COBRA AK 2.8 V"]
["SOLTOP Energie AG","COBRALINO AK 2.2 V",769.97,510.21,341.31,0.51085972850678729,"Flachkollektor","Flachkollektor (selektiv)",2.21,1.96,0.7,"SOLTOP Energie AG-COBRALINO AK 2.2 V"]
["SOLTOP Energie AG","COBRALINO AK 2.3 H",769.97,510.21,341.31,0.50969162995594719,"Flachkollektor","Flachkollektor (selektiv)",2.27,2.02,0.7,"SOLTOP Energie AG-COBRALINO AK 2.3 H"]
["SOLTOP Energie AG","COBRALINO AK 2.8 H",769.97,510.21,341.31,0.51079136690647486,"Flachkollektor","Flachkollektor (selektiv)",2.78,2.5099999999999998,0.7,"SOLTOP Energie AG-COBRALINO AK 2.8 H"]
["SOLTOP Energie AG","COBRALINO AK 2.8 V",769.97,510.21,341.31,0.50935251798561154,"Flachkollektor","Flachkollektor (selektiv)",2.78,2.4700000000000002,0.7,"SOLTOP Energie AG-COBRALINO AK 2.8 V"]
["SOLTOP Energie AG","ELEKTRA One 1.7H",705.3964046313223,460.57952468007312,303.08592321755026,0.46069469835466181,"Flachkollektor","Flachkollektor (selektiv)",1.641,1.3560000000000001,0.7,"SOLTOP Energie AG-ELEKTRA One 1.7H"]
["SOLTOP Energie AG","T6-DF",627.77,457.54,335.08,0.45767195767195762,"Röhrenkollektor","Vakuumröhrenkollektor",1.512,1.1120000000000001,0.7,"SOLTOP Energie AG-T6-DF"]
["SOLTOP Energie AG","Kollektor AS",783.50599471215105,311.95589573507499,69.710784119180701,0.31219512195121957,"WISC Kollektor","Unabgedeckter Kollektor (selektiv)",2.0499999999999998,1.99,0.7,"SOLTOP Energie AG-Kollektor AS"]
["SOLTOP Energie AG","Solardach AS",755.24,323.74,95.87,0.32371332371332373,"WISC Kollektor","Unabgedeckter Kollektor (selektiv)",2.0790000000000002,1.8320000000000001,0.7,"SOLTOP Energie AG-Solardach AS"]
["SOLTOP Energie AG","SOLINK PVT-Wärmepumpenkollektor",154.49,10.91,0,1.111111111111111E-2,"WISC Kollektor","PVT",1.98,1.98,0.8,"SOLTOP Energie AG-SOLINK PVT-Wärmepumpenkollektor"]
["Solvis GmbH","SolvisCala 254 Eco",753.82,484.55,311.56,0.48458498023715418,"Flachkollektor","Flachkollektor (selektiv)",2.5299999999999998,2.395,0.7,"Solvis GmbH-SolvisCala 254 Eco"]
["Solvis GmbH","SolvisLuna LU-304",628.39573148350155,469.37207473199902,351.12342723617132,0.46933797909407665,"Röhrenkollektor","Vakuumröhrenkollektor",2.87,2.57,0.7,"Solvis GmbH-SolvisLuna LU-304"]
["Sonnenkraft","PFMS2000",689.34,441.61,284.10000000000002,0.44179104477611947,"Flachkollektor","Flachkollektor (selektiv)",2.0099999999999998,1.89,0.7,"Sonnenkraft-PFMS2000"]
["Sonnenkraft","PFMS2500",689.34,441.61,284.10000000000002,0.44156862745098036,"Flachkollektor","Flachkollektor (selektiv)",2.5499999999999998,2.41,0.7,{"$f":"A259&\"-\"&B259","v":"Sonnenkraft-PFMS2500"}]
["Sonnenkraft","PFMS3300",689.34,441.61,284.10000000000002,0.44156626506024099,"Flachkollektor","Flachkollektor (selektiv)",3.32,3.15,0.7,"Sonnenkraft-PFMS3300"]
["Sonnenkraft","PFMW2500",689.23,441.47,284.08,0.44156862745098036,"Flachkollektor","Flachkollektor (selektiv)",2.5499999999999998,2.41,0.7,"Sonnenkraft-PFMW2500"]
["Sonnenkraft","SKR500",739.34,481.84,316.08,0.48178294573643415,"Flachkollektor","Flachkollektor (selektiv)",2.58,2.21,0.7,"Sonnenkraft-SKR500"]
["Sonnenkraft","SKR500L",735.29,483.82,321.54000000000002,0.48372093023255813,"Flachkollektor","Flachkollektor (selektiv)",2.58,2.21,0.7,"Sonnenkraft-SKR500L"]
["STI Solar-Technologie-International GmbH","ALDO+Hoch",757.92,495.09,325.5,0.49514170040485828,"Flachkollektor","Flachkollektor (selektiv)",2.4700000000000002,2.2999999999999998,0.7,"STI Solar-Technologie-International GmbH-ALDO+Hoch"]
["STI Solar-Technologie-International GmbH","ALDO+Quer",757.92,495.09,325.5,0.49514170040485828,"Flachkollektor","Flachkollektor (selektiv)",2.4700000000000002,2.2999999999999998,0.7,"STI Solar-Technologie-International GmbH-ALDO+Quer"]
["STI Solar-Technologie-International GmbH","FKA 200 H Al/Cu",670.59375000000011,442.19531250000006,293.890625,0.43708920187793432,"Flachkollektor","Flachkollektor (selektiv)",2.13,1.84,0.7,"STI Solar-Technologie-International GmbH-FKA 200 H Al/Cu"]
["STI Solar-Technologie-International GmbH","FKA 200 V Al/Cu",670.59375000000011,442.19531250000006,293.890625,0.43708920187793432,"Flachkollektor","Flachkollektor (selektiv)",2.13,1.84,0.7,"STI Solar-Technologie-International GmbH-FKA 200 V Al/Cu"]
["STI Solar-Technologie-International GmbH","FKA 240 H Al/Cu",670.59375000000011,442.19531250000006,293.890625,0.43928571428571428,"Flachkollektor","Flachkollektor (selektiv)",2.52,2.19,0.7,"STI Solar-Technologie-International GmbH-FKA 240 H Al/Cu"]
["STI Solar-Technologie-International GmbH","FKA 240 V Al/Cu",670.59375000000011,442.19531250000006,293.890625,0.43928571428571428,"Flachkollektor","Flachkollektor (selektiv)",2.52,2.19,0.7,"STI Solar-Technologie-International GmbH-FKA 240 V Al/Cu"]
["STI Solar-Technologie-International GmbH","FKA 270 H Al/Cu",670.59375000000011,442.19531250000006,293.890625,0.44236111111111115,"Flachkollektor","Flachkollektor (selektiv)",2.88,2.5099999999999998,0.7,"STI Solar-Technologie-International GmbH-FKA 270 H Al/Cu"]
["STI Solar-Technologie-International GmbH","FKA 270 V Al/Cu",670.59375000000011,442.19531250000006,293.890625,0.44236111111111115,"Flachkollektor","Flachkollektor (selektiv)",2.88,2.5099999999999998,0.7,"STI Solar-Technologie-International GmbH-FKA 270 V Al/Cu"]
["STI Solar-Technologie-International GmbH","FKF 200 H AlCu",671.23684210526312,424.82368421052638,269.35263157894735,0.41857142857142854,"Flachkollektor","Flachkollektor (selektiv)",2.1,1.83,0.7,"STI Solar-Technologie-International GmbH-FKF 200 H AlCu"]
["STI Solar-Technologie-International GmbH","FKF 200 H CuCu",683.5842105263157,441.09473684210519,286.48421052631574,0.43476190476190474,"Flachkollektor","Flachkollektor (selektiv)",2.1,1.83,0.7,"STI Solar-Technologie-International GmbH-FKF 200 H CuCu"]
["STI Solar-Technologie-International GmbH","FKF 200 V AlCu",671.23684210526312,424.82368421052638,269.35263157894735,0.41857142857142854,"Flachkollektor","Flachkollektor (selektiv)",2.1,1.83,0.7,"STI Solar-Technologie-International GmbH-FKF 200 V AlCu"]
["STI Solar-Technologie-International GmbH","FKF 200 V CuCu",683.5842105263157,441.09473684210519,286.48421052631574,0.43476190476190474,"Flachkollektor","Flachkollektor (selektiv)",2.1,1.83,0.7,"STI Solar-Technologie-International GmbH-FKF 200 V CuCu"]
["STI Solar-Technologie-International GmbH","FKF 240 H AlCu",671.23684210526312,424.82368421052638,269.35263157894735,0.42341269841269841,"Flachkollektor","Flachkollektor (selektiv)",2.52,2.2200000000000002,0.7,"STI Solar-Technologie-International GmbH-FKF 240 H AlCu"]
["STI Solar-Technologie-International GmbH","FKF 240 H CuCu",683.5842105263157,441.09473684210519,286.48421052631574,0.43928571428571428,"Flachkollektor","Flachkollektor (selektiv)",2.52,2.2200000000000002,0.7,"STI Solar-Technologie-International GmbH-FKF 240 H CuCu"]
["STI Solar-Technologie-International GmbH","FKF 240 V AlCu",671.23684210526312,424.82368421052638,269.35263157894735,0.42341269841269841,"Flachkollektor","Flachkollektor (selektiv)",2.52,2.2200000000000002,0.7,"STI Solar-Technologie-International GmbH-FKF 240 V AlCu"]
["STI Solar-Technologie-International GmbH","FKF 240 V CuCu",683.5842105263157,441.09473684210519,286.48421052631574,0.43928571428571428,"Flachkollektor","Flachkollektor (selektiv)",2.52,2.2200000000000002,0.7,"STI Solar-Technologie-International GmbH-FKF 240 V CuCu"]
["STI Solar-Technologie-International GmbH","FKF 270 H AlCu",671.23684210526312,424.82368421052638,269.35263157894735,0.42491228070175441,"Flachkollektor","Flachkollektor (selektiv)",2.85,2.52,0.7,"STI Solar-Technologie-International GmbH-FKF 270 H AlCu"]
["STI Solar-Technologie-International GmbH","FKF 270 H CuCu",683.5842105263157,441.09473684210519,286.48421052631574,0.44105263157894731,"Flachkollektor","Flachkollektor (selektiv)",2.85,2.52,0.7,"STI Solar-Technologie-International GmbH-FKF 270 H CuCu"]
["STI Solar-Technologie-International GmbH","FKF 270 V AlCu",671.23684210526312,424.82368421052638,269.35263157894735,0.42491228070175441,"Flachkollektor","Flachkollektor (selektiv)",2.85,2.52,0.7,"STI Solar-Technologie-International GmbH-FKF 270 V AlCu"]
["STI Solar-Technologie-International GmbH","FKF 270 V CuCu",683.5842105263157,441.09473684210519,286.48421052631574,0.44105263157894731,"Flachkollektor","Flachkollektor (selektiv)",2.85,2.52,0.7,"STI Solar-Technologie-International GmbH-FKF 270 V CuCu"]
["STI Solar-Technologie-International GmbH","WPK 250 H Al/Al",603.05999999999995,353.77,202.86,0.35361216730038025,"Flachkollektor","Flachkollektor (selektiv)",2.63,2.31,0.7,"STI Solar-Technologie-International GmbH-WPK 250 H Al/Al"]
["STI Solar-Technologie-International GmbH","WPK 250 V Al/Al",603.05999999999995,353.77,202.86,0.35361216730038025,"Flachkollektor","Flachkollektor (selektiv)",2.63,2.31,0.7,"STI Solar-Technologie-International GmbH-WPK 250 V Al/Al"]
["STIEBEL ELTRON GMBH & CO. KG","SOL 23 premium",731.64393939393926,484.59253246753246,323.57575757575751,0.48441558441558441,"Flachkollektor","Flachkollektor (selektiv)",2.31,2.04,0.7,"STIEBEL ELTRON GMBH & CO. KG-SOL 23 premium"]
["STIEBEL ELTRON GMBH & CO. KG","SOL 27 Basic W",742.59090909090901,488.30513833992109,323.31284584980239,0.48431372549019613,"Flachkollektor","Flachkollektor (selektiv)",2.5499999999999998,2.39,0.7,"STIEBEL ELTRON GMBH & CO. KG-SOL 27 Basic W"]
["STIEBEL ELTRON GMBH & CO. KG","SOL 27 premium S",790.88431372549019,522.63970588235304,347.75588235294117,0.52274509803921576,"Flachkollektor","Flachkollektor (selektiv)",2.5499999999999998,2.39,0.7,"STIEBEL ELTRON GMBH & CO. KG-SOL 27 premium S"]
["STIEBEL ELTRON GMBH & CO. KG","SOL 27 premium W",793.74052287581696,525.40588235294115,349.97254901960787,0.5275590551181103,"Flachkollektor","Flachkollektor (selektiv)",2.54,2.39,0.7,"STIEBEL ELTRON GMBH & CO. KG-SOL 27 premium W"]
["SUNEX S.A.","AMP 2.0",672.9,429.36,276.77999999999997,0.42935323383084584,"Flachkollektor","Flachkollektor (selektiv)",2.0099999999999998,1.84,0.7,"SUNEX S.A.-AMP 2.0"]
["SUNEX S.A.","AMP 2.19",672.9,429.36,276.77999999999997,0.42968036529680365,"Flachkollektor","Flachkollektor (selektiv)",2.19,2,0.7,"SUNEX S.A.-AMP 2.19"]
["SUNEX S.A.","AMP 2.38",672.9,429.36,276.77999999999997,0.43122362869198311,"Flachkollektor","Flachkollektor (selektiv)",2.37,2.1800000000000002,0.7,"SUNEX S.A.-AMP 2.38"]
["SUNEX S.A.","AMP 2.51",672.9,429.36,276.77999999999997,0.43079999999999996,"Flachkollektor","Flachkollektor (selektiv)",2.5,2.31,0.7,"SUNEX S.A.-AMP 2.51"]
["SUNEX S.A.","AMP 2.85",672.9,429.36,276.77999999999997,0.43098591549295778,"Flachkollektor","Flachkollektor (selektiv)",2.84,2.64,0.7,"SUNEX S.A.-AMP 2.85"]
["SUNEX S.A.","HP 12",518.82000000000005,366.56,261.26,0.36633663366336633,"Röhrenkollektor","Vakuumröhrenkollektor",2.02,1.42,0.7,"SUNEX S.A.-HP 12"]
["SUNEX S.A.","HP 13",518.82000000000005,366.56,261.26,0.36651376146788989,"Röhrenkollektor","Vakuumröhrenkollektor",2.1800000000000002,1.54,0.7,"SUNEX S.A.-HP 13"]
["SUNEX S.A.","HP 14",518.82000000000005,366.56,261.26,0.36623931623931627,"Röhrenkollektor","Vakuumröhrenkollektor",2.34,1.65,0.7,"SUNEX S.A.-HP 14"]
["SUNEX S.A.","HP 15",518.82000000000005,366.56,261.26,0.3664,"Röhrenkollektor","Vakuumröhrenkollektor",2.5,1.77,0.7,"SUNEX S.A.-HP 15"]
["SUNEX S.A.","HP 16",518.82000000000005,366.56,261.26,0.36654135338345861,"Röhrenkollektor","Vakuumröhrenkollektor",2.66,1.89,0.7,"SUNEX S.A.-HP 16"]
["SUNEX S.A.","HP 17",518.82000000000005,366.56,261.26,0.36631205673758865,"Röhrenkollektor","Vakuumröhrenkollektor",2.82,2.0099999999999998,0.7,"SUNEX S.A.-HP 17"]
["SUNEX S.A.","HP 18",518.82000000000005,366.56,261.26,0.36644295302013424,"Röhrenkollektor","Vakuumröhrenkollektor",2.98,2.13,0.7,"SUNEX S.A.-HP 18"]
["SUNEX S.A.","HP 19",518.82000000000005,366.56,261.26,0.36645367412140578,"Röhrenkollektor","Vakuumröhrenkollektor",3.13,2.2400000000000002,0.7,"SUNEX S.A.-HP 19"]
["SUNEX S.A.","HP 20",518.82000000000005,366.56,261.26,0.36656534954407294,"Röhrenkollektor","Vakuumröhrenkollektor",3.29,2.36,0.7,"SUNEX S.A.-HP 20"]
["SUNEX S.A.","HP 21",518.82000000000005,366.56,261.26,0.36637681159420288,"Röhrenkollektor","Vakuumröhrenkollektor",3.45,2.48,0.7,"SUNEX S.A.-HP 21"]
["SUNEX S.A.","HP 22",518.82000000000005,366.56,261.26,0.36648199445983382,"Röhrenkollektor","Vakuumröhrenkollektor",3.61,2.6,0.7,"SUNEX S.A.-HP 22"]
["SUNEX S.A.","HP 23",518.82000000000005,366.56,261.26,0.36657824933687,"Röhrenkollektor","Vakuumröhrenkollektor",3.77,2.72,0.7,"SUNEX S.A.-HP 23"]
["SUNEX S.A.","HP 24",518.82000000000005,366.56,261.26,0.36641221374045796,"Röhrenkollektor","Vakuumröhrenkollektor",3.93,2.84,0.7,"SUNEX S.A.-HP 24"]
["SUNEX S.A.","HP 26",518.82000000000005,366.56,261.26,0.36635294117647055,"Röhrenkollektor","Vakuumröhrenkollektor",4.25,3.07,0.7,"SUNEX S.A.-HP 26"]
["SUNEX S.A.","HP 28",518.82000000000005,366.56,261.26,0.36652078774617064,"Röhrenkollektor","Vakuumröhrenkollektor",4.57,3.31,0.7,"SUNEX S.A.-HP 28"]
["SUNEX S.A.","HP 30",518.82000000000005,366.56,261.26,0.36646216768916157,"Röhrenkollektor","Vakuumröhrenkollektor",4.8899999999999997,3.54,0.7,"SUNEX S.A.-HP 30"]
["SUNEX S.A.","NX 2.5 H4CU",650.89393939393938,424.83201581027674,279.39130434782606,0.42490118577075098,"Flachkollektor","Flachkollektor (selektiv)",2.5299999999999998,2.3199999999999998,0.7,"SUNEX S.A.-NX 2.5 H4CU"]
["SUNEX S.A.","SX 2.0",685.51,451.17,299.88,0.45124378109452745,"Flachkollektor","Flachkollektor (selektiv)",2.0099999999999998,1.85,0.7,"SUNEX S.A.-SX 2.0"]
["SUNEX S.A.","SX 2.51",685.51,451.17,299.88,0.45139442231075699,"Flachkollektor","Flachkollektor (selektiv)",2.5099999999999998,2.33,0.7,"SUNEX S.A.-SX 2.51"]
["SUNEX S.A.","SX 2.85",685.51,451.17,299.88,0.45122807017543859,"Flachkollektor","Flachkollektor (selektiv)",2.85,2.65,0.7,"SUNEX S.A.-SX 2.85"]
["THERMO/SOLAR Ziar s.r.o.","TS 250",725.55562068965548,479.88580788177353,320.18210344827594,0.47980295566502468,"Flachkollektor","Flachkollektor (selektiv)",2.0299999999999998,1.78,0.7,"THERMO/SOLAR Ziar s.r.o.-TS 250"]
["THERMO/SOLAR Ziar s.r.o.","TS 300",725.55562068965548,479.88580788177353,320.18210344827594,0.47980295566502468,"Flachkollektor","Flachkollektor (selektiv)",2.0299999999999998,1.78,0.7,"THERMO/SOLAR Ziar s.r.o.-TS 300"]
["THERMO/SOLAR Ziar s.r.o.","TS 330/M",720.69,472.82,312.55,0.47290640394088673,"Flachkollektor","Flachkollektor (selektiv)",2.0299999999999998,1.78,0.7,"THERMO/SOLAR Ziar s.r.o.-TS 330/M"]
["THERMO/SOLAR Ziar s.r.o.","TS 400",742.54,504.02,345.8,0.50394088669950743,"Flachkollektor","Flachkollektor (selektiv)",2.0299999999999998,1.85,0.7,"THERMO/SOLAR Ziar s.r.o.-TS 400"]
["THERMO/SOLAR Ziar s.r.o.","TS 500",725.55562068965548,479.88580788177353,323.19,0.43913043478260871,"Flachkollektor","Flachkollektor (selektiv)",2.5299999999999998,2.2599999999999998,0.7,"THERMO/SOLAR Ziar s.r.o.-TS 500"]
["THERMO/SOLAR Ziar s.r.o.","TS 530/M",720.69,472.82,312.55,0.47272727272727272,"Flachkollektor","Flachkollektor (selektiv)",2.5299999999999998,2.2599999999999998,0.7,"THERMO/SOLAR Ziar s.r.o.-TS 530/M"]
["TIGI LTD.","HC1-A",662.88,473.91,341.96,0.47368421052631582,"Flachkollektor","Flachkollektor (selektiv)",2.09,1.8,0.7,"TIGI LTD.-HC1-A"]
["Tobler Haustechnik AG","FKC-2S",722.14824191279888,476.88607594936707,316.83713080168775,0.47679324894514763,"Flachkollektor","Flachkollektor (selektiv)",2.37,2.25,0.7,"Tobler Haustechnik AG-FKC-2S"]
["Tobler Haustechnik AG","FKC-2W",718.72573839662448,465.00759493670893,302.84303797468357,0.46497890295358651,"Flachkollektor","Flachkollektor (selektiv)",2.37,2.25,0.7,{"$f":"A323&\"-\"&B323","v":"Tobler Haustechnik AG-FKC-2W"}]
["TVP Solar SA","MT-Power v4",790.61,598.07000000000005,451.87,0.59795918367346934,"Flachkollektor","Flachkollektor (selektiv)",1.96,1.83,0.7,"TVP Solar SA-MT-Power v4"]
["TWL Technologie GmbH","EtaSun Pro® VRK20 ",546.58000000000004,385.08,273.57,0.38516129032258062,"Röhrenkollektor","Vakuumröhrenkollektor",3.1,1.871,0.7,"TWL Technologie GmbH-EtaSun Pro® VRK20 "]
["TWL Technologie GmbH","EtaSun Pro® VRK30 ",546.58000000000004,385.08,273.57,0.38537333041383837,"Röhrenkollektor","Vakuumröhrenkollektor",4.5670000000000002,2.8069999999999999,0.7,"TWL Technologie GmbH-EtaSun Pro® VRK30 "]
["TWL Technologie GmbH","FK200",694.14,450.16,293.26,0.45042735042735049,"Flachkollektor","Flachkollektor (selektiv)",2.34,2.2200000000000002,0.7,"TWL Technologie GmbH-FK200"]
["Vaillant GmbH","VFK 145/2 H",712.77,461.09,299.56,0.46095617529880484,"Flachkollektor","Flachkollektor (selektiv)",2.5099999999999998,2.35,0.7,"Vaillant GmbH-VFK 145/2 H"]
["Vaillant GmbH","VFK 145/2 V",712.77,461.09,299.56,0.46095617529880484,"Flachkollektor","Flachkollektor (selektiv)",2.5099999999999998,2.35,0.7,"Vaillant GmbH-VFK 145/2 V"]
["Vaillant GmbH","VFK 155/2 H",759.79,496.7,327.13,0.49681274900398414,"Flachkollektor","Flachkollektor (selektiv)",2.5099999999999998,2.35,0.7,"Vaillant GmbH-VFK 155/2 H"]
["Vaillant GmbH","VFK 155/2 V",759.79,496.7,327.13,0.49681274900398414,"Flachkollektor","Flachkollektor (selektiv)",2.5099999999999998,2.35,0.7,"Vaillant GmbH-VFK 155/2 V"]
["Vaillant GmbH","VTK 1140/2",604.79999999999995,452.23,338.68,0.4521551724137931,"Röhrenkollektor","Vakuumröhrenkollektor",2.3199999999999998,2,0.7,"Vaillant GmbH-VTK 1140/2"]
["Vaillant GmbH","VTK 570/2",604.79999999999995,452.23,338.68,0.45258620689655177,"Röhrenkollektor","Vakuumröhrenkollektor",1.1599999999999999,1,0.7,"Vaillant GmbH-VTK 570/2"]
["Viessmann Werke GmbH & Co. KG","Vitosol 100-FM SVKF",704.17,426.93,254.81,0.42706422018348622,"Flachkollektor","Flachkollektor (selektiv)",2.1800000000000002,2.02,0.7,"Viessmann Werke GmbH & Co. KG-Vitosol 100-FM SVKF"]
["Viessmann Werke GmbH & Co. KG","Vitosol 100-FM SVKG",689.5,417.72,248.89,0.42706422018348622,"Flachkollektor","Flachkollektor (selektiv)",2.1800000000000002,2.02,0.7,"Viessmann Werke GmbH & Co. KG-Vitosol 100-FM SVKG"]
["Viessmann Werke GmbH & Co. KG","Vitosol 200-F SH2C",743.52921646746347,476.71673306772919,306.06454183266936,0.4768924302788845,"Flachkollektor","Flachkollektor (selektiv)",2.5099999999999998,2.33,0.7,"Viessmann Werke GmbH & Co. KG-Vitosol 200-F SH2C"]
["Viessmann Werke GmbH & Co. KG","Vitosol 200-F SH2E",743.52921646746347,476.71673306772919,306.06454183266936,0.4768924302788845,"Flachkollektor","Flachkollektor (selektiv)",2.5099999999999998,2.33,0.7,"Viessmann Werke GmbH & Co. KG-Vitosol 200-F SH2E"]
["Viessmann Werke GmbH & Co. KG","Vitosol 200-F SV2C",743.52921646746347,476.71673306772919,306.06454183266936,0.4768924302788845,"Flachkollektor","Flachkollektor (selektiv)",2.5099999999999998,2.33,0.7,"Viessmann Werke GmbH & Co. KG-Vitosol 200-F SV2C"]
["Viessmann Werke GmbH & Co. KG","Vitosol 200-F SV2E",743.52921646746347,476.71673306772919,306.06454183266936,0.4768924302788845,"Flachkollektor","Flachkollektor (selektiv)",2.5099999999999998,2.33,0.7,"Viessmann Werke GmbH & Co. KG-Vitosol 200-F SV2E"]
["Viessmann Werke GmbH & Co. KG","Vitosol 200-F SVK",700.01,451.37,292.64999999999998,0.46192660550458708,"Flachkollektor","Flachkollektor (selektiv)",2.1800000000000002,2.0099999999999998,0.7,"Viessmann Werke GmbH & Co. KG-Vitosol 200-F SVK"]
["Viessmann Werke GmbH & Co. KG","Vitosol 200-F SVKA",700.01,451.37,292.64999999999998,0.45156950672645735,"Flachkollektor","Flachkollektor (selektiv)",2.23,2.0099999999999998,0.7,"Viessmann Werke GmbH & Co. KG-Vitosol 200-F SVKA"]
["Viessmann Werke GmbH & Co. KG","Vitosol 200-FM SH2F",710.99,425.93,250.13,0.42589641434262948,"Flachkollektor","Flachkollektor (selektiv)",2.5099999999999998,2.33,0.7,"Viessmann Werke GmbH & Co. KG-Vitosol 200-FM SH2F"]
["Viessmann Werke GmbH & Co. KG","Vitosol 200-FM SH2G",720.85,431.39,252.77,0.431640625,"Flachkollektor","Flachkollektor (selektiv)",2.56,2.33,0.7,"Viessmann Werke GmbH & Co. KG-Vitosol 200-FM SH2G"]
["Viessmann Werke GmbH & Co. KG","Vitosol 200-FM SV2F",712.36,432.94,258.86,0.43266932270916342,"Flachkollektor","Flachkollektor (selektiv)",2.5099999999999998,2.33,0.7,"Viessmann Werke GmbH & Co. KG-Vitosol 200-FM SV2F"]
["Viessmann Werke GmbH & Co. KG","Vitosol 200-FM SV2G",698.03,423.93,253.25,0.43266932270916342,"Flachkollektor","Flachkollektor (selektiv)",2.5099999999999998,2.33,0.7,"Viessmann Werke GmbH & Co. KG-Vitosol 200-FM SV2G"]
["Viessmann Werke GmbH & Co. KG","Vitosol 200-T SP2A-12 1.51 m²",573.4765603660328,424.4782415264774,315.67925566732708,0.41652542372881357,"Röhrenkollektor","Vakuumröhrenkollektor",2.36,1.6,0.7,"Viessmann Werke GmbH & Co. KG-Vitosol 200-T SP2A-12 1.51 m²"]
["Viessmann Werke GmbH & Co. KG","Vitosol 200-T SP2A-24 3.03 m²",573.4765603660328,424.4782415264774,315.67925566732708,0.42445887445887448,"Röhrenkollektor","Vakuumröhrenkollektor",4.62,3.19,0.7,"Viessmann Werke GmbH & Co. KG-Vitosol 200-T SP2A-24 3.03 m²"]
["Viessmann Werke GmbH & Co. KG","Vitosol 200-T SPE 1.63 m²",466.58,332.41,238.28,0.32536231884057976,"Röhrenkollektor","Vakuumröhrenkollektor",2.76,1.73,0.7,"Viessmann Werke GmbH & Co. KG-Vitosol 200-T SPE 1.63 m²"]
["Viessmann Werke GmbH & Co. KG","Vitosol 200-T SPE 3.26 m²",466.58,332.41,238.28,0.33240740740740737,"Röhrenkollektor","Vakuumröhrenkollektor",5.4,3.46,0.7,"Viessmann Werke GmbH & Co. KG-Vitosol 200-T SPE 3.26 m²"]
["Viessmann Werke GmbH & Co. KG","Vitosol 200-TM SPEA 1.63 m2",535.99,386.06,280.20999999999998,0.38614232209737825,"Röhrenkollektor","Vakuumröhrenkollektor",2.67,1.73,0.7,"Viessmann Werke GmbH & Co. KG-Vitosol 200-TM SPEA 1.63 m2"]
["Viessmann Werke GmbH & Co. KG","Vitosol 200-TM SPEA 3.26 m2",542.09,392.52,286.02,0.39245283018867927,"Röhrenkollektor","Vakuumröhrenkollektor",5.3,3.46,0.7,"Viessmann Werke GmbH & Co. KG-Vitosol 200-TM SPEA 3.26 m2"]
["Viessmann Werke GmbH & Co. KG","Vitosol 300-F SH3C",789.25278884462159,523.05059760956192,347.8121513944223,0.52310756972111561,"Flachkollektor","Flachkollektor (selektiv)",2.5099999999999998,2.33,0.7,"Viessmann Werke GmbH & Co. KG-Vitosol 300-F SH3C"]
["Viessmann Werke GmbH & Co. KG","Vitosol 300-F SH3E",789.25278884462159,523.05059760956192,347.8121513944223,0.52310756972111561,"Flachkollektor","Flachkollektor (selektiv)",2.5099999999999998,2.33,0.7,"Viessmann Werke GmbH & Co. KG-Vitosol 300-F SH3E"]
["Viessmann Werke GmbH & Co. KG","Vitosol 300-F SV3C",789.25278884462159,523.05059760956192,347.8121513944223,0.52310756972111561,"Flachkollektor","Flachkollektor (selektiv)",2.5099999999999998,2.33,0.7,"Viessmann Werke GmbH & Co. KG-Vitosol 300-F SV3C"]
["Viessmann Werke GmbH & Co. KG","Vitosol 300-F SV3E",789.25278884462159,523.05059760956192,347.8121513944223,0.52310756972111561,"Flachkollektor","Flachkollektor (selektiv)",2.5099999999999998,2.33,0.7,"Viessmann Werke GmbH & Co. KG-Vitosol 300-F SV3E"]
["Viessmann Werke GmbH & Co. KG","Vitosol 300-T SP3B-12 1.51 m²",577.34375972829503,426.3426932853061,316.07848867885582,0.41864406779661018,"Röhrenkollektor","Vakuumröhrenkollektor",2.36,1.6,0.7,"Viessmann Werke GmbH & Co. KG-Vitosol 300-T SP3B-12 1.51 m²"]
["Viessmann Werke GmbH & Co. KG","Vitosol 300-T SP3B-24 3.03 m²",577.34375972829503,426.3426932853061,316.07848867885582,0.4264069264069264,"Röhrenkollektor","Vakuumröhrenkollektor",4.62,3.19,0.7,"Viessmann Werke GmbH & Co. KG-Vitosol 300-T SP3B-24 3.03 m²"]
["Viessmann Werke GmbH & Co. KG","Vitosol 300-TM SP3C 1.25 m2 HW",558.17999999999995,386.02,267.19,0.38585858585858585,"Röhrenkollektor","Vakuumröhrenkollektor",1.98,1.33,0.7,"Viessmann Werke GmbH & Co. KG-Vitosol 300-TM SP3C 1.25 m2 HW"]
["Viessmann Werke GmbH & Co. KG","Vitosol 300-TM SP3C 1.51 m2 HW",558.17999999999995,386.02,267.19,0.38601694915254242,"Röhrenkollektor","Vakuumröhrenkollektor",2.36,1.6,0.7,"Viessmann Werke GmbH & Co. KG-Vitosol 300-TM SP3C 1.51 m2 HW"]
["Viessmann Werke GmbH & Co. KG","Vitosol 300-TM SP3C 3.03 m2 HW",558.17999999999995,386.02,267.19,0.38611713665943598,"Röhrenkollektor","Vakuumröhrenkollektor",4.6100000000000003,3.2,0.7,"Viessmann Werke GmbH & Co. KG-Vitosol 300-TM SP3C 3.03 m2 HW"]
["VON BARTELS GmbH","Zeus cpc 8",455.78766815051057,308.42455556910517,210.45273892615413,0.30833333333333335,"Röhrenkollektor","Vakuumröhrenkollektor",1.68,1.2106666666666668,0.7,"VON BARTELS GmbH-Zeus cpc 8"]
["VON BARTELS GmbH","Zeus cpc 9",455.78766815051057,308.42455556910517,210.45273892615413,0.30837696335078535,"Röhrenkollektor","Vakuumröhrenkollektor",1.91,1.3620000000000001,0.7,"VON BARTELS GmbH-Zeus cpc 9"]
["VON BARTELS GmbH","Zeus cpc 10",455.78766815051057,308.42455556910517,210.45273892615413,0.30845070422535215,"Röhrenkollektor","Vakuumröhrenkollektor",2.13,1.5133333333333334,0.7,"VON BARTELS GmbH-Zeus cpc 10"]
["VON BARTELS GmbH","Zeus cpc 11",455.78766815051057,308.42455556910517,210.45273892615413,0.30847457627118646,"Röhrenkollektor","Vakuumröhrenkollektor",2.36,1.6646666666666667,0.7,"VON BARTELS GmbH-Zeus cpc 11"]
["VON BARTELS GmbH","Zeus cpc 12",455.78766815051057,308.42455556910517,210.45273892615413,0.30849420849420855,"Röhrenkollektor","Vakuumröhrenkollektor",2.59,1.8160000000000003,0.7,"VON BARTELS GmbH-Zeus cpc 12"]
["VON BARTELS GmbH","Zeus cpc 13",455.78766815051057,308.42455556910517,210.45273892615413,0.30854092526690391,"Röhrenkollektor","Vakuumröhrenkollektor",2.81,1.9673333333333336,0.7,"VON BARTELS GmbH-Zeus cpc 13"]
["VON BARTELS GmbH","Zeus cpc 14",455.78766815051057,308.42455556910517,210.45273892615413,0.30855263157894736,"Röhrenkollektor","Vakuumröhrenkollektor",3.04,2.1186666666666669,0.7,"VON BARTELS GmbH-Zeus cpc 14"]
["VON BARTELS GmbH","Zeus cpc 15",455.78766815051057,308.42455556910517,210.45273892615413,0.30856269113149842,"Röhrenkollektor","Vakuumröhrenkollektor",3.27,2.27,0.7,"VON BARTELS GmbH-Zeus cpc 15"]
["VON BARTELS GmbH","Zeus cpc 16",455.78766815051057,308.42455556910517,210.45273892615413,0.30828571428571427,"Röhrenkollektor","Vakuumröhrenkollektor",3.5,2.4213333333333336,0.7,"VON BARTELS GmbH-Zeus cpc 16"]
["VON BARTELS GmbH","Zeus cpc 17",455.78766815051057,308.42455556910517,210.45273892615413,0.30833333333333335,"Röhrenkollektor","Vakuumröhrenkollektor",3.72,2.5726666666666671,0.7,"VON BARTELS GmbH-Zeus cpc 17"]
["VON BARTELS GmbH","Zeus cpc 18",455.78766815051057,308.42455556910517,210.45273892615413,0.3083544303797468,"Röhrenkollektor","Vakuumröhrenkollektor",3.95,2.7240000000000002,0.7,"VON BARTELS GmbH-Zeus cpc 18"]
["VON BARTELS GmbH","Zeus cpc 19",455.78766815051057,308.42455556910517,210.45273892615413,0.3083732057416268,"Röhrenkollektor","Vakuumröhrenkollektor",4.18,2.8753333333333337,0.7,"VON BARTELS GmbH-Zeus cpc 19"]
["VON BARTELS GmbH","Zeus cpc 20",455.78766815051057,308.42455556910517,210.45273892615413,0.30840909090909085,"Röhrenkollektor","Vakuumröhrenkollektor",4.4000000000000004,3.0266666666666668,0.7,"VON BARTELS GmbH-Zeus cpc 20"]
["VON BARTELS GmbH","Zeus cpc 21",455.78766815051057,308.42455556910517,210.45273892615413,0.30842332613390927,"Röhrenkollektor","Vakuumröhrenkollektor",4.63,3.1780000000000004,0.7,"VON BARTELS GmbH-Zeus cpc 21"]
["VON BARTELS GmbH","Zeus cpc 22",455.78766815051057,308.42455556910517,210.45273892615413,0.30843621399176957,"Röhrenkollektor","Vakuumröhrenkollektor",4.8600000000000003,3.3293333333333335,0.7,"VON BARTELS GmbH-Zeus cpc 22"]
["VON BARTELS GmbH","Zeus cpc 23",455.78766815051057,308.42455556910517,210.45273892615413,0.30846456692913382,"Röhrenkollektor","Vakuumröhrenkollektor",5.08,3.480666666666667,0.7,"VON BARTELS GmbH-Zeus cpc 23"]
["VON BARTELS GmbH","Zeus cpc 24",455.78766815051057,308.42455556910517,210.45273892615413,0.30847457627118646,"Röhrenkollektor","Vakuumröhrenkollektor",5.31,3.63,0.7,"VON BARTELS GmbH-Zeus cpc 24"]
["VON BARTELS GmbH","Zeus cpc 25",455.78766815051057,308.42455556910517,210.45273892615413,0.30848375451263538,"Röhrenkollektor","Vakuumröhrenkollektor",5.54,3.78,0.7,"VON BARTELS GmbH-Zeus cpc 25"]
["VON BARTELS GmbH","Zeus cpc 26",455.78766815051057,308.42455556910517,210.45273892615413,0.30850694444444443,"Röhrenkollektor","Vakuumröhrenkollektor",5.76,3.93,0.7,"VON BARTELS GmbH-Zeus cpc 26"]
["VON BARTELS GmbH","Zeus cpc 27",455.78766815051057,308.42455556910517,210.45273892615413,0.30834724540901504,"Röhrenkollektor","Vakuumröhrenkollektor",5.99,4.09,0.7,"VON BARTELS GmbH-Zeus cpc 27"]
["VON BARTELS GmbH","Zeus cpc 28",455.78766815051057,308.42455556910517,210.45273892615413,0.30836012861736334,"Röhrenkollektor","Vakuumröhrenkollektor",6.22,4.24,0.7,"VON BARTELS GmbH-Zeus cpc 28"]
["VON BARTELS GmbH","Zeus cpc 29",455.78766815051057,308.42455556910517,210.45273892615413,0.30838509316770185,"Röhrenkollektor","Vakuumröhrenkollektor",6.44,4.3899999999999997,0.7,"VON BARTELS GmbH-Zeus cpc 29"]
["VON BARTELS GmbH","Zeus cpc 30",455.78766815051057,308.42455556910517,210.45273892615413,0.30839580209895051,"Röhrenkollektor","Vakuumröhrenkollektor",6.67,4.54,0.7,"VON BARTELS GmbH-Zeus cpc 30"]
["Wagner Solar GmbH","EURO L20 AR",756.82,501.56,334.88,0.50153256704980842,"Flachkollektor","Flachkollektor (selektiv)",2.61,2.36,0.7,"Wagner Solar GmbH-EURO L20 AR"]
["Wagner Solar GmbH","EURO L20 MH AR",758.63,501.15,333.31,0.49923664122137407,"Flachkollektor","Flachkollektor (selektiv)",2.62,2.36,0.7,"Wagner Solar GmbH-EURO L20 MH AR"]
["Wagner Solar GmbH","EURO L20 MQ AR",762.80114503816799,502.4395992366413,333.0784351145038,0.50421455938697324,"Flachkollektor","Flachkollektor (selektiv)",2.61,2.37,0.7,"Wagner Solar GmbH-EURO L20 MQ AR"]
["Wagner Solar GmbH","EURO L22 AR",745.79799999999989,493.08600000000001,328.24866666666668,0.49288888888888888,"Flachkollektor","Flachkollektor (selektiv)",2.25,2.0099999999999998,0.7,{"$f":"A387&\"-\"&B387","v":"Wagner Solar GmbH-EURO L22 AR"}]
["Wallnöfer GmbH","KA88/2020 Comfort",762.82,500.32,330.05,0.50040485829959513,"Flachkollektor","Flachkollektor (selektiv)",2.4700000000000002,2.2799999999999998,0.7,"Wallnöfer GmbH-KA88/2020 Comfort"]
["Wallnöfer GmbH","KA88/2020 INOX",762.82,500.32,330.05,0.50040485829959513,"Flachkollektor","Flachkollektor (selektiv)",2.4700000000000002,2.2799999999999998,0.7,"Wallnöfer GmbH-KA88/2020 INOX"]
["Wallnöfer GmbH","KA88/2020 Standard",762.82,500.32,330.05,0.50055555555555553,"Flachkollektor","Flachkollektor (selektiv)",1.8,1.65,0.7,"Wallnöfer GmbH-KA88/2020 Standard"]
["Westech Solar","WT-B58-10",472.75,337.15,242.43,0.31325966850828724,"Röhrenkollektor","Vakuumröhrenkollektor",1.81,0.94,0.7,"Westech Solar-WT-B58-10"]
["Westech Solar","WT-B58-12",472.75,337.15,242.43,0.31924882629107987,"Röhrenkollektor","Vakuumröhrenkollektor",2.13,1.1299999999999999,0.7,"Westech Solar-WT-B58-12"]
["Westech Solar","WT-B58-15",472.75,337.15,242.43,0.32442748091603052,"Röhrenkollektor","Vakuumröhrenkollektor",2.62,1.41,0.7,"Westech Solar-WT-B58-15"]
["Westech Solar","WT-B58-18",472.75,337.15,242.43,0.32797427652733119,"Röhrenkollektor","Vakuumröhrenkollektor",3.11,1.7,0.7,"Westech Solar-WT-B58-18"]
["Westech Solar","WT-B58-20",472.75,337.15,242.43,0.33061224489795915,"Röhrenkollektor","Vakuumröhrenkollektor",3.43,1.89,0.7,"Westech Solar-WT-B58-20"]
["Westech Solar","WT-B58-22",472.75,337.15,242.43,0.33164893617021279,"Röhrenkollektor","Vakuumröhrenkollektor",3.76,2.08,0.7,"Westech Solar-WT-B58-22"]
["Westech Solar","WT-B58-24",472.75,337.15,242.43,0.33333333333333337,"Röhrenkollektor","Vakuumröhrenkollektor",4.08,2.2599999999999998,0.7,"Westech Solar-WT-B58-24"]
["Westech Solar","WT-B58-25",472.75,337.15,242.43,0.33419811320754716,"Röhrenkollektor","Vakuumröhrenkollektor",4.24,2.36,0.7,"Westech Solar-WT-B58-25"]
["Westech Solar","WT-B58-30",472.75,337.15,242.43,0.3361660079051384,"Röhrenkollektor","Vakuumröhrenkollektor",5.0599999999999996,2.83,0.7,"Westech Solar-WT-B58-30"]
["Windhager Zentralheizung Schweiz AG","SDG22V / SDE22V",759.58,500.62,333.28,0.50090497737556561,"Flachkollektor","Flachkollektor (selektiv)",2.21,1.96,0.7,"Windhager Zentralheizung Schweiz AG-SDG22V / SDE22V"]
["Windhager Zentralheizung Schweiz AG","SDG23H / SDE23H",759.58,500.62,333.28,0.5,"Flachkollektor","Flachkollektor (selektiv)",2.2799999999999998,1.95,0.7,"Windhager Zentralheizung Schweiz AG-SDG23H / SDE23H"]
["Windhager Zentralheizung Schweiz AG","SDG28H / SDE28H",759.58,500.62,333.28,0.50071684587813625,"Flachkollektor","Flachkollektor (selektiv)",2.79,2.46,0.7,"Windhager Zentralheizung Schweiz AG-SDG28H / SDE28H"]
["Windhager Zentralheizung Schweiz AG","SDG28V / SDE28V",759.58,500.62,333.28,0.50036101083032491,"Flachkollektor","Flachkollektor (selektiv)",2.77,2.4700000000000002,0.7,"Windhager Zentralheizung Schweiz AG-SDG28V / SDE28V"]
["Winkler Solar GmbH","Metrosol 20",660.91068580542253,418.01555023923447,264.87519936204143,0.41442786069651744,"Flachkollektor","Flachkollektor (selektiv)",2.0099999999999998,1.87,0.7,"Winkler Solar GmbH-Metrosol 20"]
["Winkler Solar GmbH","Metrosol 25",660.91068580542253,418.01555023923447,264.87519936204143,0.4175298804780877,"Flachkollektor","Flachkollektor (selektiv)",2.5099999999999998,2.35,0.7,"Winkler Solar GmbH-Metrosol 25"]
["Winkler Solar GmbH","VarioSol A",677.43,443.49,291.43,0.42099999999999999,"Flachkollektor","Flachkollektor auf Mass (selektiv)",1,0.89,0.7,"Winkler Solar GmbH-VarioSol A"]
["Winkler Solar GmbH","VarioSol A-antireflex",720.05,474.19,314.17,0.47399999999999998,"Flachkollektor","Flachkollektor auf Mass (selektiv)",1,0.91,0.7,"Winkler Solar GmbH-VarioSol A-antireflex"]
["Winkler Solar GmbH","VarioSol E",687.9,451.68,298.43,0.41899999999999998,"Flachkollektor","Flachkollektor auf Mass (selektiv)",1,0.89,0.7,"Winkler Solar GmbH-VarioSol E"]
["Winkler Solar GmbH","VarioSol E-antireflex",724.33462021276591,477.00848297872352,316.03621595744687,0.46899999999999997,"Flachkollektor","Flachkollektor auf Mass (selektiv)",1,0.9,0.7,"Winkler Solar GmbH-VarioSol E-antireflex"]
["Wolf GmbH","TopSon F3-1",695.11,456.64,301.70999999999998,0.45652173913043481,"Flachkollektor","Flachkollektor (selektiv)",2.2999999999999998,2.11,0.7,"Wolf GmbH-TopSon F3-1"]
["Wolf GmbH","TopSon F3-1Q",715.96666666666658,473.57608695652175,315.83999999999997,0.47347826086956524,"Flachkollektor","Flachkollektor (selektiv)",2.2999999999999998,2.11,0.7,"Wolf GmbH-TopSon F3-1Q"]
["Ygnis AG","Solerio F4-H (Al/Cu)",671.23684210526312,424.82368421052638,269.35263157894735,0.42491228070175441,"Flachkollektor","Flachkollektor (selektiv)",2.85,2.52,0.7,"Ygnis AG-Solerio F4-H (Al/Cu)"]
["Ygnis AG","Solerio F4-Q (Al/Cu)",671.23684210526312,424.82368421052638,269.35263157894735,0.42491228070175441,"Flachkollektor","Flachkollektor (selektiv)",2.85,2.52,0.7,"Ygnis AG-Solerio F4-Q (Al/Cu)"]
["Ygnis AG","Solerio F5-H (Al/Cu)",671.23684210526312,424.82368421052638,269.35263157894735,0.42341269841269841,"Flachkollektor","Flachkollektor (selektiv)",2.52,2.2200000000000002,0.7,"Ygnis AG-Solerio F5-H (Al/Cu)"]
["Ygnis AG","Solerio F5-Q (Al/Cu)",671.23684210526312,424.82368421052638,269.35263157894735,0.42341269841269841,"Flachkollektor","Flachkollektor (selektiv)",2.52,2.2200000000000002,0.7,"Ygnis AG-Solerio F5-Q (Al/Cu)"]
["Ygnis AG","Solerio F6-H (Al/Cu)",671.23684210526312,424.82368421052638,269.35263157894735,0.41857142857142854,"Flachkollektor","Flachkollektor (selektiv)",2.1,1.83,0.7,"Ygnis AG-Solerio F6-H (Al/Cu)"]
["Ygnis AG","Solerio F6-Q (Al/Cu)",671.23684210526312,424.82368421052638,269.35263157894735,0.41857142857142854,"Flachkollektor","Flachkollektor (selektiv)",2.1,1.83,0.7,"Ygnis AG-Solerio F6-Q (Al/Cu)"]
["Kollektor ohne Förderung","Flachkollektor",740.81332949670616,480.73232463960852,314.00768735151155,0.46094523239145457,"Flachkollektor","Flachkollektor (selektiv)",1,0.9065344408939271,{"$f":"IF(OR(H418=\"PVT\",H418=\"Unabgedeckter Kollektor (nicht selektiv)\"),0.8,0.7)","v":0.7},{"$f":"A418&\"-\"&B418","v":"Kollektor ohne Förderung-Flachkollektor"}]
["Kollektor ohne Förderung","Röhrenkollektor",612.47021464123782,442.48291852609628,321.5949360747054,0.41189976750497959,"Röhrenkollektor","Vakuumröhrenkollektor",1,0.72113824769853896,0.7,"Kollektor ohne Förderung-Röhrenkollektor"]
["Kollektor ohne Förderung","WISC",377.66220165982668,120.59497283548134,11.550070631849685,0.12487868575342237,"Röhrenkollektor","Unabgedeckter Kollektor (nicht selektiv)",1,0.97846534846019395,0.8,"Kollektor ohne Förderung-WISC"]

{"sheet":"Ref-Modelle","index":5,"n_rows":28,"n_cols":86,"rows_kept":28,"cut":false,"hidden":true,"merged":[]}
["3S Solar Plus AG","Agena Energies SA","Ako Tec","AkoTec Produktionsgesellschaft mbH","AMK Collectra AG","ARB Haustechnik GmbH","Augusta-solar GmbH","Bosch Thermotechnik GmbH","Calpak-Cicero Hellas S.A.","CitrinSolar GmbH","Consolar Solare Energiesysteme GmbH","CoolTec","DualSun","ELCO GmbH","Ernst Schweizer AG","ESTEC EnergieSparTechnik GmbH","EuroSun Solarsystem GmbH","Faivre Energie SA","FK Solartechnik GmbH","Fototherm S.r.l.","GASOKOL GmbH","H. Lenz AG","Hassler energia alternativa ag","Hoval AG","Liebi LNC AG","Linuo Ritter International Co., Ltd.","Logic IP AG","Mastersol Est.","Max Weishaupt GmbH","Meier Tobler AG","Membro Energietechnik GmbH & Co.KG","Müba Energietechnik AG","Naked Energy Ltd","NAU GmbH","Neuma-Solar GmbH","OEG GmbH","ÖkoFEN Forschungs- und Entwicklungs Ges.m.b.H.","Olymp Werk GmbH","Orionsolar Energietechnik GmbH","ORO TECHNOLOGIES SA","PA-ID Process GmbH","Pleion S.r.l.","PVT Solar AG","Retec Solar GmbH","Riello SA","Ritter Energie- und Umwelttechnik GmbH & Co. KG","Ritter XL Solar GmbH","Rossato Group SRL","ROTEX Heating Systems GmbH","Sailer GmbH","Santer Solarprofi GesmbH","Savo-Solar Oyj","Schweizer Energie","Sebasol Vaud","Sferasol","Solar Tec SA","Solar² / Sunda","Solarbayer GmbH","Solarpartner GmbH","solardirekt24 GmbH","Solarfocus GmbH","Solator GmbH","Solimpeks Solar Energy","SOLISART","SOLTOP Energie AG","Solvis GmbH","Sonnenkraft","STI Solar-Technologie-International GmbH","STIEBEL ELTRON GMBH & CO. KG","SUNEX S.A.","THERMO/SOLAR Ziar s.r.o.","TIGI LTD.","Tobler Haustechnik AG","TVP Solar SA","TWL Technologie GmbH","Vaillant GmbH","Viessmann Werke GmbH & Co. KG","VON BARTELS GmbH","Wagner Solar GmbH","Wallnöfer GmbH","Winkler Solar GmbH","Westech Solar","Windhager Zentralheizung Schweiz AG","Wolf GmbH","Ygnis AG","Kollektor ohne Förderung"]
["ThermiePanel MS II","AZUR 8+ AC 2.2V","OEM Vario 1000-10 hp","Weiser Power 1000","OPC10p","RST Sol 5","AS 100 DF6","Bosch FKC-2s","M4-200","CS 150","Consolar Tubo II C","ES2V/2,65B AL-CU","DSTlxxxG1-360SBB5 (xxx = 370W to 400W in steps of 5W)","AURON DF 10-2","FK1-H2","IDMK Integra 1,25","DF120-6","PSH 2340H","FK Solinas 3 Plus","FTXXXAS (XXX=280W-305W)","gevoSol 120","Multisol M240","Serpentino ADH","UltraSol® 2-H","LNC/HAR","CPC 1512","hero.flat","VRK 10","WTS-F1 K1","TERZA 251-H","FK-2.5","Müba-Sun","Virtu HOT","NAU SAPHIRLINE","GOLIATH Premium MF 2,4m2","2Plus","Pellesol-Top","DF120-6","Plasma Spectral CPC 15","FK 8200L 2H","HM 1305 Mono Black ","X-RAY 10R","PVT Hybridkollektor Silverstar SL 270 i","RS","CSV 25 R","AQUA PLASMA 15/27","XL 15/26 P","FKA 200 H Al/Cu","H26P","FOCUS AR","VRK 15","SF500-15","Swisspipe","Sebasol CU 2022","SF-A","SOL-TEC 2.1 Plus","Seido 1-8","CPC 12 NERO","galando","EUROTHERM SOLAR CPC 16R","CPC S1","PVTHERMAU280","Wunder ALS 1809","S7 2,5","COBRA AK 2.2 V","SolvisCala 254 Eco","PFMS2000","ALDO+Hoch","SOL 23 premium","AMP 2.0","TS 250","HC1-A","FKC-2S","MT-Power v4","EtaSun Pro® VRK20 ","VFK 145/2 H","Vitosol 100-FM SVKF","Zeus cpc 8","EURO L20 AR","KA88/2020 Comfort","Metrosol 20","WT-B58-10","SDG22V / SDE22V","TopSon F3-1","Solerio F4-H (Al/Cu)","Flachkollektor"]
[null,"AZUR 8+ AC 2.3H","OEM Vario 1600-20","Weiser Power 1200","DRC10",null,"AS 100 HP 12","Bosch FKC-2w","M4-210","CS 155",null,"ES2V/2,65S AL-CU","DSTNxxxG1-360SBB5 (xxx = 370W to 400W in steps of 5W)","AURON DF 15-2","FK1-V2","IDMK Integra 2,50","Germanstar HP 70/16","PSH 2340V","FK Solinas 3 plus kurz",null,"gevoSol 96","Swiss-Collector","Serpentino ADV","UltraSol® 2-V","LNC/SPY 2.25H","CPC 1515",null,null,"WTS-F1 K2","TERZA 251-V","Membro BHP-15",null,"Virtu HOT HD","NAU SAPHIRLINE-Q",null,"4Plus",null,"Sunstar 0870","Plasma Spectral CPC 20","FK 8230L 2H",null,"X-RAY 15R",null,null,"CSV 35 R","AQUA PLASMA 15/40","XL 19/49 P","FKA 200 V Al/Cu","V21P","FOCUS HTF","VRK 30",null,null,"Sebasol 2012",null,null,"Seido 1-12","PremiumPlus AL 2.86 H","solindo Q","EUROTHERM SOLAR CPC 20R","suneco 21","PVTHERMAU300","Wunder ALS 2110",null,"COBRA AK 2.3 H","SolvisLuna LU-304","PFMS2500","ALDO+Quer","SOL 27 Basic W","AMP 2.19","TS 300",null,"FKC-2W",null,"EtaSun Pro® VRK30 ","VFK 145/2 V","Vitosol 100-FM SVKG","Zeus cpc 9","EURO L20 MH AR","KA88/2020 INOX","Metrosol 25","WT-B58-12","SDG23H / SDE23H","TopSon F3-1Q","Solerio F4-Q (Al/Cu)","Röhrenkollektor"]
[null,"AZUR 8+ AC 2.8H","OEM Vario 2000-20 hp","Weiser Power 1500",null,null,"AS 100 HP16","Bosch FT 226-2H","M4-260","CS 255",null,"Optisun 245 H","DSTIxxxM12-B320SBB7 (xxx = 420W to 440W)","AURON DF 20-2","FK1-V2V",null,"Germanstar HP 70/18",null,null,null,"gevoSol 72",null,null,null,"LNC/SPY 2.25H(i)","CPC 1518",null,null,"WTS-F2 K5",null,"Membro BHP-20",null,null,null,null,null,null,"Sunstar 1670","Plasma Spectral CPC 24","FK 8250L 2H",null,"X-RAY 18R",null,null,"RPS 25/4","AQUA PLASMA 19/34",null,"FKA 240 H Al/Cu","V26P",null,null,null,null,null,null,null,"Seido 1-16","PremiumPlus AL 2.86 V","solindo V","EUROTHERM SOLAR CPC 24R","suneco 28","THERMUVG16","Wunder ALS 2412",null,"COBRA AK 2.7 H",null,"PFMS3300","FKA 200 H Al/Cu","SOL 27 premium S","AMP 2.38","TS 330/M",null,null,null,"FK200","VFK 155/2 H","Vitosol 200-F SH2C","Zeus cpc 10","EURO L20 MQ AR","KA88/2020 Standard","VarioSol A","WT-B58-15","SDG28H / SDE28H",null,"Solerio F5-H (Al/Cu)","WISC"]
[null,"AZUR 8+ AC 2.8V","OEM Vario 2400-30","Weiser Power 1600",null,null,"AS 100 HP8","Bosch FT 226-2V","M4-260H","CS 350",null,"Optisun 245 V","DSTNxxxM12-B320SBB7 (xxx = 420W to 440W)","AURON DF 30-2","FK2-XS H4",null,"Germanstar HP 70/24",null,null,null,"gevoSol 49",null,null,null,"LNC/SPY 2.25V","CPC XL 1514",null,null,"WTS-F2 K6",null,"Membro BHP-30",null,null,null,null,null,null,"Sunstar 2470","Plasma Spectral CPC 8","Oro-Tech Universel",null,"X-RAY 21R",null,null,null,"AQUA PLASMA 19/50",null,"FKA 240 V Al/Cu",null,null,null,null,null,null,null,null,"Seido 2-6","Silversun 2.02","sunWin AF20VM4","EUROTHERM SOLAR PRO 10R","Sunnyline 28",null,"Wunder ALS 2512",null,"COBRA AK 2.7 V",null,"PFMW2500","FKA 200 V Al/Cu","SOL 27 premium W","AMP 2.51","TS 400",null,null,null,null,"VFK 155/2 V","Vitosol 200-F SH2E","Zeus cpc 11","EURO L22 AR",null,"VarioSol A-antireflex","WT-B58-18","SDG28V / SDE28V",null,"Solerio F5-Q (Al/Cu)"]
[null,null,"OEM Vario 3000-30 hp","Weiser Power 2000",null,null,null,"Bosch VK120-2",null,"CS 500",null,null,null,"Solatron S 2.5-1 H","FK2-XS V4",null,"Germanstar HP 70/8",null,null,null,"gevoSol 26",null,null,null,"LNC/SPY 2.25V (i)","CPC XL 1521",null,null,null,null,null,null,null,null,null,null,null,null,null,null,null,null,null,null,null,"SOLAR PLASMA+ 15/27",null,"FKA 270 H Al/Cu",null,null,null,null,null,null,null,null,"Seido 2-8",null,null,"EUROTHERM SOLAR PRO 15R",null,null,"Wunder ALS 2710",null,"COBRA AK 2.8 H",null,"SKR500","FKA 240 H Al/Cu",null,"AMP 2.85","TS 500",null,null,null,null,"VTK 1140/2","Vitosol 200-F SV2C","Zeus cpc 12",null,null,"VarioSol E","WT-B58-20",null,null,"Solerio F6-H (Al/Cu)"]
[null,null,"OEM Vario 400-5","Weiser Power 2400",null,null,null,"Bosch VK120-2 CPC",null,"CS 550",null,null,null,"Solatron S 2.5-1 V",null,null,null,null,null,null,"gevoSol 23",null,null,null,null,"CPC XL 1914",null,null,null,null,null,null,null,null,null,null,null,null,null,null,null,null,null,null,null,"SOLAR PLASMA+ 15/40",null,"FKA 270 V Al/Cu",null,null,null,null,null,null,null,null,"Seido 2-12",null,null,"EUROTHERM SOLAR PRO 20R",null,null,"Wunder ALS 3010",null,"COBRA AK 2.8 V",null,"SKR500L","FKA 240 V Al/Cu",null,"HP 12","TS 530/M",null,null,null,null,"VTK 570/2","Vitosol 200-F SV2E","Zeus cpc 13",null,null,"VarioSol E-antireflex","WT-B58-22",null,null,"Solerio F6-Q (Al/Cu)"]
[null,null,"OEM Vario 500-5 hp","Weiser Power 3000",null,null,null,"Buderus Logasol SKN4.0-s",null,null,null,null,null,null,null,null,null,null,null,null,"gevoSol ",null,null,null,null,"CPC XL 1918",null,null,null,null,null,null,null,null,null,null,null,null,null,null,null,null,null,null,null,"SOLAR PLASMA+ 19/34",null,null,null,null,null,null,null,null,null,null,"Seido 2-16",null,null,"EUROTHERM SOLAR PRO 25R",null,null,null,null,"COBRALINO AK 2.2 V",null,null,"FKA 270 H Al/Cu",null,"HP 13",null,null,null,null,null,null,"Vitosol 200-F SVK","Zeus cpc 14",null,null,null,"WT-B58-24"]
[null,null,"OEM Vario 800-10","Weiser Power 800",null,null,null,"Buderus Logasol SKN4.0-w",null,null,null,null,null,null,null,null,null,null,null,null,"gigaSol 120",null,null,null,null,"CPC XL 1921",null,null,null,null,null,null,null,null,null,null,null,null,null,null,null,null,null,null,null,"SOLAR PLASMA+ 19/50",null,null,null,null,null,null,null,null,null,null,null,null,null,"EUROTHERM SOLAR PRO 30R",null,null,null,null,"COBRALINO AK 2.3 H",null,null,"FKA 270 V Al/Cu",null,"HP 14",null,null,null,null,null,null,"Vitosol 200-F SVKA","Zeus cpc 15",null,null,null,"WT-B58-25"]
[null,null,null,null,null,null,null,"Buderus Logasol SKR10 CPC",null,null,null,null,null,null,null,null,null,null,null,null,"gigaSol 24H",null,null,null,null,null,null,null,null,null,null,null,null,null,null,null,null,null,null,null,null,null,null,null,null,"STAR 15/26",null,null,null,null,null,null,null,null,null,null,null,null,null,null,null,null,null,null,"COBRALINO AK 2.8 H",null,null,"FKF 200 H AlCu",null,"HP 15",null,null,null,null,null,null,"Vitosol 200-FM SH2F","Zeus cpc 16",null,null,null,"WT-B58-30"]
[null,null,null,null,null,null,null,"Buderus Logasol SKR5",null,null,null,null,null,null,null,null,null,null,null,null,"gigaSol 35M",null,null,null,null,null,null,null,null,null,null,null,null,null,null,null,null,null,null,null,null,null,null,null,null,"STAR 15/39",null,null,null,null,null,null,null,null,null,null,null,null,null,null,null,null,null,null,"COBRALINO AK 2.8 V",null,null,"FKF 200 H CuCu",null,"HP 16",null,null,null,null,null,null,"Vitosol 200-FM SH2G","Zeus cpc 17"]
[null,null,null,null,null,null,null,"Buderus Logasol SKT1.0-s",null,null,null,null,null,null,null,null,null,null,null,null,"gigaSol 48D",null,null,null,null,null,null,null,null,null,null,null,null,null,null,null,null,null,null,null,null,null,null,null,null,"STAR 19/33",null,null,null,null,null,null,null,null,null,null,null,null,null,null,null,null,null,null,"ELEKTRA One 1.7H",null,null,"FKF 200 V AlCu",null,"HP 17",null,null,null,null,null,null,"Vitosol 200-FM SV2F","Zeus cpc 18"]
[null,null,null,null,null,null,null,"Buderus Logasol SKT1.0-w",null,null,null,null,null,null,null,null,null,null,null,null,"gigaSol 49",null,null,null,null,null,null,null,null,null,null,null,null,null,null,null,null,null,null,null,null,null,null,null,null,"STAR 19/49",null,null,null,null,null,null,null,null,null,null,null,null,null,null,null,null,null,null,"T6-DF",null,null,"FKF 200 V CuCu",null,"HP 18",null,null,null,null,null,null,"Vitosol 200-FM SV2G","Zeus cpc 19"]
[null,null,null,null,null,null,null,"Junkers FKC-2S",null,null,null,null,null,null,null,null,null,null,null,null,"gigaSol 60H",null,null,null,null,null,null,null,null,null,null,null,null,null,null,null,null,null,null,null,null,null,null,null,null,null,null,null,null,null,null,null,null,null,null,null,null,null,null,null,null,null,null,null,"Kollektor AS",null,null,"FKF 240 H AlCu",null,"HP 19",null,null,null,null,null,null,"Vitosol 200-T SP2A-12 1.51 m²","Zeus cpc 20"]
[null,null,null,null,null,null,null,"Junkers FKC-2W",null,null,null,null,null,null,null,null,null,null,null,null,"gigaSol 86M",null,null,null,null,null,null,null,null,null,null,null,null,null,null,null,null,null,null,null,null,null,null,null,null,null,null,null,null,null,null,null,null,null,null,null,null,null,null,null,null,null,null,null,"Solardach AS",null,null,"FKF 240 H CuCu",null,"HP 20",null,null,null,null,null,null,"Vitosol 200-T SP2A-24 3.03 m²","Zeus cpc 21"]
[null,null,null,null,null,null,null,"Junkers FKT-2S",null,null,null,null,null,null,null,null,null,null,null,null,"gigaSol",null,null,null,null,null,null,null,null,null,null,null,null,null,null,null,null,null,null,null,null,null,null,null,null,null,null,null,null,null,null,null,null,null,null,null,null,null,null,null,null,null,null,null,"SOLINK PVT-Wärmepumpenkollektor",null,null,"FKF 240 V AlCu",null,"HP 21",null,null,null,null,null,null,"Vitosol 200-T SPE 1.63 m²","Zeus cpc 22"]
[null,null,null,null,null,null,null,"Junkers FKT-2W",null,null,null,null,null,null,null,null,null,null,null,null,"sunnySol 23H",null,null,null,null,null,null,null,null,null,null,null,null,null,null,null,null,null,null,null,null,null,null,null,null,null,null,null,null,null,null,null,null,null,null,null,null,null,null,null,null,null,null,null,null,null,null,"FKF 240 V CuCu",null,"HP 22",null,null,null,null,null,null,"Vitosol 200-T SPE 3.26 m²","Zeus cpc 23"]
[null,null,null,null,null,null,null,null,null,null,null,null,null,null,null,null,null,null,null,null,"sunnySol 23V",null,null,null,null,null,null,null,null,null,null,null,null,null,null,null,null,null,null,null,null,null,null,null,null,null,null,null,null,null,null,null,null,null,null,null,null,null,null,null,null,null,null,null,null,null,null,"FKF 270 H AlCu",null,"HP 23",null,null,null,null,null,null,"Vitosol 200-TM SPEA 1.63 m2","Zeus cpc 24"]
[null,null,null,null,null,null,null,null,null,null,null,null,null,null,null,null,null,null,null,null,"sunWin 24",null,null,null,null,null,null,null,null,null,null,null,null,null,null,null,null,null,null,null,null,null,null,null,null,null,null,null,null,null,null,null,null,null,null,null,null,null,null,null,null,null,null,null,null,null,null,"FKF 270 H CuCu",null,"HP 24",null,null,null,null,null,null,"Vitosol 200-TM SPEA 3.26 m2","Zeus cpc 25"]
[null,null,null,null,null,null,null,null,null,null,null,null,null,null,null,null,null,null,null,null,"sunWin 27H",null,null,null,null,null,null,null,null,null,null,null,null,null,null,null,null,null,null,null,null,null,null,null,null,null,null,null,null,null,null,null,null,null,null,null,null,null,null,null,null,null,null,null,null,null,null,"FKF 270 V AlCu",null,"HP 26",null,null,null,null,null,null,"Vitosol 300-F SH3C","Zeus cpc 26"]
[null,null,null,null,null,null,null,null,null,null,null,null,null,null,null,null,null,null,null,null,"sunWin 27V",null,null,null,null,null,null,null,null,null,null,null,null,null,null,null,null,null,null,null,null,null,null,null,null,null,null,null,null,null,null,null,null,null,null,null,null,null,null,null,null,null,null,null,null,null,null,"FKF 270 V CuCu",null,"HP 28",null,null,null,null,null,null,"Vitosol 300-F SH3E","Zeus cpc 27"]
[null,null,null,null,null,null,null,null,null,null,null,null,null,null,null,null,null,null,null,null,"topSol 22",null,null,null,null,null,null,null,null,null,null,null,null,null,null,null,null,null,null,null,null,null,null,null,null,null,null,null,null,null,null,null,null,null,null,null,null,null,null,null,null,null,null,null,null,null,null,"WPK 250 H Al/Al",null,"HP 30",null,null,null,null,null,null,"Vitosol 300-F SV3C","Zeus cpc 28"]
[null,null,null,null,null,null,null,null,null,null,null,null,null,null,null,null,null,null,null,null,null,null,null,null,null,null,null,null,null,null,null,null,null,null,null,null,null,null,null,null,null,null,null,null,null,null,null,null,null,null,null,null,null,null,null,null,null,null,null,null,null,null,null,null,null,null,null,"WPK 250 V Al/Al",null,"NX 2.5 H4CU",null,null,null,null,null,null,"Vitosol 300-F SV3E","Zeus cpc 29"]
[null,null,null,null,null,null,null,null,null,null,null,null,null,null,null,null,null,null,null,null,null,null,null,null,null,null,null,null,null,null,null,null,null,null,null,null,null,null,null,null,null,null,null,null,null,null,null,null,null,null,null,null,null,null,null,null,null,null,null,null,null,null,null,null,null,null,null,null,null,"SX 2.0",null,null,null,null,null,null,"Vitosol 300-T SP3B-12 1.51 m²","Zeus cpc 30"]
[null,null,null,null,null,null,null,null,null,null,null,null,null,null,null,null,null,null,null,null,null,null,null,null,null,null,null,null,null,null,null,null,null,null,null,null,null,null,null,null,null,null,null,null,null,null,null,null,null,null,null,null,null,null,null,null,null,null,null,null,null,null,null,null,null,null,null,null,null,"SX 2.51",null,null,null,null,null,null,"Vitosol 300-T SP3B-24 3.03 m²"]
[null,null,null,null,null,null,null,null,null,null,null,null,null,null,null,null,null,null,null,null,null,null,null,null,null,null,null,null,null,null,null,null,null,null,null,null,null,null,null,null,null,null,null,null,null,null,null,null,null,null,null,null,null,null,null,null,null,null,null,null,null,null,null,null,null,null,null,null,null,"SX 2.85",null,null,null,null,null,null,"Vitosol 300-TM SP3C 1.25 m2 HW"]
[null,null,null,null,null,null,null,null,null,null,null,null,null,null,null,null,null,null,null,null,null,null,null,null,null,null,null,null,null,null,null,null,null,null,null,null,null,null,null,null,null,null,null,null,null,null,null,null,null,null,null,null,null,null,null,null,null,null,null,null,null,null,null,null,null,null,null,null,null,null,null,null,null,null,null,null,"Vitosol 300-TM SP3C 1.51 m2 HW"]
[null,null,null,null,null,null,null,null,null,null,null,null,null,null,null,null,null,null,null,null,null,null,null,null,null,null,null,null,null,null,null,null,null,null,null,null,null,null,null,null,null,null,null,null,null,null,null,null,null,null,null,null,null,null,null,null,null,null,null,null,null,null,null,null,null,null,null,null,null,null,null,null,null,null,null,null,"Vitosol 300-TM SP3C 3.03 m2 HW"]

{"sheet":"Export","index":6,"n_rows":163,"n_cols":129,"rows_kept":163,"cut":false,"hidden":true,"merged":[[26,0,31,0],[32,0,35,0],[36,0,39,0],[40,0,43,0],[41,6,44,6],[44,0,48,0]]}
["Statistik Sonnenenergie - Erhebung Solarthermie"]
["Zusammenzug und Datenübertragung von der Firmendatei in die Auswertung Markterhebung"]
[null,null,null,"Export1",null,null,"Dedaildaten siehe =>  ","Export2"]
[]
[null,"Kd-Nr.",{"$f":"MID(C7,SEARCH(\"[\",C7)+1,8)","v":"SSOE_202"},{"$f":"C5","v":"SSOE_202"},null,"Dateiname muss mit der 8-stelligen ID der entsprechenden Firma beginnen (Aktualisierung mit <F9>)"]
[null,"Inhalt","Originalwert",{"$f":"\"Import\"","v":"Import"}]
[null,"Dateiname",{"$f":"CELL(\"dateiname\")","v":"https://swissolar-my.sharepoint.com/personal/datasync_swissolar_ch/Documents/Allgemein/40_Markt Politik/Markt/Statistik Sonnenenergie/2023/04_Formulare/[SSOE_2023_Formular_SW_dfi_20240112.xlsx]Input"},{"$f":"C7","v":"https://swissolar-my.sharepoint.com/personal/datasync_swissolar_ch/Documents/Allgemein/40_Markt Politik/Markt/Statistik Sonnenenergie/2023/04_Formulare/[SSOE_2023_Formular_SW_dfi_20240112.xlsx]Input"}]
[null,"Jahr",{"$f":"Total!$J$1","v":2023},{"$f":"C8","v":2023}]
[null,"Sprache",{"$f":"Sprache","v":"Deutsch"},{"$f":"C9","v":"Deutsch"}]
[null,"Firma",{"$f":"Total!$B$4","v":0},{"$f":"IF(C10=0,\"-\",C10)","v":"-"}]
[null,"Strasse",{"$f":"Total!$B$5","v":0},{"$f":"IF(C11=0,\"-\",C11)","v":"-"}]
[null,"PLZ/Ort",{"$f":"Total!$B$6","v":0},"-"]
[null,"Kontaktperson",{"$f":"Total!$B$7","v":0},"-"]
[null,"Telefon",{"$f":"Total!$B$8","v":0},"-"]
[null,"E-Mail",{"$f":"Total!$B$9","v":0},"-"]
[null,"Keine Anlagen",false,{"$f":"IF(C16,1,0)","v":0},null,null,{"$f":"IF(AND($D$16=0,SUM(D27:D40)>0),\"plausibel\",\"NICHT PLAUSIBEL!!\")","v":"NICHT PLAUSIBEL!!"}]
[null,"Hersteller",false,{"$f":"IF(C17,1,0)","v":0}]
[null,"Importeur",false,0]
[null,"Handelsuntern.",false,0]
[null,"Installateur",false,0,null,null,{"$f":"IF(AND($D$20=1,SUM(D37:D40)>0),\"plausibel\",\"NICHT PLAUSIBEL!!\")","v":"NICHT PLAUSIBEL!!"}]
[null,"Andere",false,0]
[null,"Bemerkungen"]
[null,"Bearbeitet durch"]
[null,"Eingang"]
[null,"Erfass./Import",{"$f":"NOW()","v":"2024-01-12T12:30:18.680"},{"$f":"C25","v":"2024-01-12T12:30:18.680"}]
[null,"Status"]
["Herkunft (m2)","Eigenproduktion",{"$f":"SUM(Total!B16:D16)","v":0},{"$f":"C27","v":0}]
[null,"Bezug Schweiz",{"$f":"SUM(Total!B17:D17)","v":0},{"$f":"C28","v":0}]
[null,"Import",{"$f":"SUM(Total!B18:D18)","v":0},0]
[null,"Summe Herkunft",{"$f":"SUM(Total!B19:D19)","v":0},0]
[null,"Export",{"$f":"SUM(Total!B20:D20)","v":0},0]
[null,"Verkauf Schweiz",{"$f":"SUM(Total!B21:D21)","v":0},0]
["Vertrieb","an Bauherrschaft",{"$f":"SUM(Total!H16:J16)","v":0},{"$f":"C33","v":0}]
[null,"an Installateur",{"$f":"SUM(Total!H17:J17)","v":0},0]
[null,"an Handel",{"$f":"SUM(Total!H18:J18)","v":0},0,null,null,null,null,null,"Werte gem. Auswertung im Ber. Export2"]
[null,"Verkauf Schweiz",{"$f":"SUM(Total!H19:J19)","v":0},0,null,null,null,"Differenz*","Total","Flachkoll.","Röhrenkoll.","WISC"]
["Install.","Anz. Anlagen",{"$f":"Total!B49","v":0},{"$f":"C37","v":0},null,null,null,{"$f":"D37-I37","v":0},{"$f":"SUM(J37:L37)","v":0},{"$f":"$BV$136","v":0},{"$f":"$BV$140","v":0},{"$f":"$BV$144","v":0}]
[null,"Fläche in m2",{"$f":"Total!D49","v":0},{"$f":"C38","v":0},null,null,null,{"$f":"D38-I38","v":0},{"$f":"SUM(J38:L38)","v":0},{"$f":"$BU$136","v":0},{"$f":"$BU$140","v":0},{"$f":"$BU$144","v":0}]
[null,"Leistung in kW",{"$f":"Total!F49","v":0},0,null,null,null,0,0,{"$f":"$BW$136","v":0},{"$f":"$BW$140","v":0},{"$f":"$BW$144","v":0}]
[null,"Energie in kWh",{"$f":"Total!H49","v":0},0,null,null,null,0,0,{"$f":"$BX$136","v":0},{"$f":"$BX$140","v":0},{"$f":"$BX$144","v":0}]
["Ersatz","Anz. Anlagen",null,{"$f":"Input!R54","v":0},null,{"$f":"IFERROR(D41/D37,\"--\")","v":"--"},null,{"$f":"D41-I41","v":0},{"$f":"SUM(J41:L41)","v":0},{"$f":"$DF$136","v":0},{"$f":"$DF$140","v":0},{"$f":"$DF$144","v":0}]
[null,"Fläche in m2",null,{"$f":"Input!Q54","v":0},null,{"$f":"IFERROR(D42/D38,\"--\")","v":"--"},{"$f":"IF(SUM(H37:H49)=0,\"identische Werte\",\"ABWEICHUNG PRÜFEN!!\")","v":"identische Werte"},{"$f":"D42-I42","v":0},{"$f":"SUM(J42:L42)","v":0},{"$f":"$DE$136","v":0},{"$f":"$DE$140","v":0},{"$f":"$DE$144","v":0}]
[null,"Leistung in kW",null,{"$f":"DG148","v":0},null,"--"]
[null,"Energie in kWh",null,{"$f":"DH148","v":0},null,"--"]
["Anlagengrösse","Anz. Anl. < 10m2",null,{"$f":"Input!L54","v":0},null,null,null,0,0,{"$f":"$DI$136","v":0},{"$f":"$DI$140","v":0},{"$f":"$DI$144","v":0}]
[null,"Anz. Anl. 10-20m2",null,{"$f":"Input!M54","v":0},null,null,null,0,0,{"$f":"$DJ$136","v":0},{"$f":"$DJ$140","v":0},{"$f":"$DJ$144","v":0}]
[null,"Anz. Anl. 20-50m2",null,{"$f":"Input!N54","v":0},null,null,null,0,0,{"$f":"$DK$136","v":0},{"$f":"$DK$140","v":0},{"$f":"$DK$144","v":0}]
[null,"Anz. Anl. 50-100m2",null,{"$f":"Input!O54","v":0},null,null,null,0,0,{"$f":"$DL$136","v":0},{"$f":"$DL$140","v":0},{"$f":"$DL$144","v":0}]
[null,"Anz. Anl. > 100m2",null,{"$f":"Input!P54","v":0},null,null,null,0,0,{"$f":"$DM$136","v":0},{"$f":"$DM$140","v":0},{"$f":"$DM$144","v":0}]
[null,"Leerfeld 1"]
[null,"Leerfeld 2"]
[null,"Leerfeld 3"]
[null,"Leerfeld 4"]
[null,"Leerfeld 5",null,"Last"]
[null,"Version",null,{"$f":"\"Vers. \"&'Ref-Tab'!B3","v":"Vers. 1.4"},null,null,null,"* Differenz muss null sein, sonst prüfen!"]
[]
[null,null,null,"mögliche Stati:"]
[null,null,null,"Daten für Import plausibel"]
[null,null,null,"Detailabklärung im Gang"]
[null,null,null,"Erfassung im Gang"]
[null,null,null,"Alle Daten verarbeitet"]
[null,null,null,"nicht mehr anschreiben"]
[null,null,null,"Neu"]
[null,null,null,"wieder aufnehmen"]
[]
[]
[]
["Werte gemäss Blatt \"Input\":"]
[]
[]
[]
[]
[]
[]
[]
[]
[]
[]
[]
[]
[]
[]
[]
[]
[]
["Werte gemäss Blatt \"Total\":"]
[]
[]
[]
[]
[]
[]
[]
[]
[]
[]
[]
[]
[]
[]
[]
[]
[]
[]
[]
[]
[]
[]
[]
[]
[]
[]
[]
[]
[]
[]
[]
[]
[]
[]
[]
[]
[]
[]
[]
[]
[]
[]
[]
[null,null,null,null,null,null,null,null,null,null,null,null,null,null,"Export2",null,null,null,null,null,null,null,null,null,null,null,null,null,null,null,null,null,null,null,null,null,null,null,null,"Text Einbauort für Formeln (d/f/i) =>",{"$f":"IF(Sprache=\"deutsch\",Sprachen!$A$38,IF(Sprache=\"Français\",Sprachen!$B$38,Sprachen!$C$38))","v":"Einfamilienhäuser "},null,null,null,{"$f":"IF(Sprache=\"deutsch\",Sprachen!$A$39,IF(Sprache=\"Français\",Sprachen!$B$39,Sprachen!$C$39))","v":"Mehrfamilienhäuser "},null,null,null,{"$f":"IF(Sprache=\"deutsch\",Sprachen!$A$40,IF(Sprache=\"Français\",Sprachen!$B$40,Sprachen!$C$40))","v":"Industrie, Gewerbe"},null,null,null,{"$f":"IF(Sprache=\"deutsch\",Sprachen!$A$41,IF(Sprache=\"Français\",Sprachen!$B$41,Sprachen!$C$41))","v":"Landwirtschaft"},null,null,null,{"$f":"IF(Sprache=\"deutsch\",Sprachen!$A$42,IF(Sprache=\"Français\",Sprachen!$B$42,Sprachen!$C$42))","v":"Dienstleistung"},null,null,null,{"$f":"IF(Sprache=\"deutsch\",Sprachen!$A$43,IF(Sprache=\"Français\",Sprachen!$B$43,Sprachen!$C$43))","v":"Öffentliche Dienste"},null,null,null,{"$f":"IF(Sprache=\"deutsch\",Sprachen!$A$44,IF(Sprache=\"Français\",Sprachen!$B$44,Sprachen!$C$44))","v":"Verkehr"},null,null,null,{"$f":"IF(Sprache=\"deutsch\",Sprachen!$A$45,IF(Sprache=\"Français\",Sprachen!$B$45,Sprachen!$C$45))","v":"Übrige Standorte"},null,null,null,null,null,null,null,{"$f":"AO130","v":"Einfamilienhäuser "},null,null,null,{"$f":"AS130","v":"Mehrfamilienhäuser "},null,null,null,{"$f":"AW130","v":"Industrie, Gewerbe"},null,null,null,{"$f":"BA130","v":"Landwirtschaft"},null,null,null,{"$f":"BE130","v":"Dienstleistung"},null,null,null,{"$f":"BI130","v":"Öffentliche Dienste"},null,null,null,{"$f":"BM130","v":"Verkehr"},null,null,null,{"$f":"BQ130","v":"Übrige Standorte"},null,null,null,null,null,null,null,null,null,null,null,null,null,null,null,null,null,null,null,"nicht mehr verfügbare Daten"]
[null,null,null,null,null,null,null,null,null,null,null,null,null,null,"Detaildaten thermische Kollektoren für den Export in die Gesamtauswertung"]
[null,null,null,null,null,null,null,null,null,null,null,null,null,null,null,"Firmenangaben",null,null,null,null,null,null,null,"Daten gemäss Import",null,null,"Basisdaten für Datennutzung",null,null,null,"Tab. 1 :   Herkunft",null,null,null,null,null,"Tab. 2 :  Vertrieb",null,null,null,"Tab. 3 :  Eigene Installation Schweiz",null,null,null,null,null,null,null,null,null,null,null,null,null,null,null,null,null,null,null,null,null,null,null,null,null,null,null,null,null,null,null,null,null,null,null,"Tab. 4 :  Ersatz bestehender Flächen  (bereits in Tab. 3 enthalten)",null,null,null,null,null,null,null,null,null,null,null,null,null,null,null,null,null,null,null,null,null,null,null,null,null,null,null,null,null,null,null,null,null,null,null,"Tab. 5: Anlagen nach Grösse"]
[null,null,null,null,null,null,null,null,null,null,null,null,null,null,"Kd-Nr.","Firma","PLZ Ort","Herst.","Import.","Handel","Install.","and.","keine Anl.","Import-Dat.","Dateiname","Status gem. Importdatei","Code Inhalt","Jahr","Kollektor (d/f/i)","Art","Eigenpro.","Bezug CH","Direktimport","Tot. Herk.","Export","Verkauf CH","an Bauh.","an Install.","an Handel","Verkauf CH","EFH",null,null,null,"MFH",null,null,null,"Ind. / Gew.",null,null,null,"Landwirtsch.",null,null,null,"Dienstleistg",null,null,null,"öff. Dienste",null,null,null,"Verkehr",null,null,null,"übrige Standorte (neu)",null,null,null,"Total Installation",null,null,null,"EFH",null,null,null,"MFH",null,null,null,"Ind. / Gew.",null,null,null,"Landwirtsch.",null,null,null,"Dienstleistg",null,null,null,"öff. Dienste",null,null,null,"Verkehr",null,null,null,"übrige Standorte (neu)",null,null,null,"Total Ersatz",null,null,null,"1>10","11>20","21>50","51>100","ü.100","Total","Res.1","Res.2","Res.3","Res.4","Form. Vers.",null,"Planer/Architekt","Selbstbaugruppe","Eigenpro. als Bausatz","Eigenpro. Selbstbau gruppe","Eigenbedarf"]
[null,null,null,null,null,null,null,null,null,null,null,null,null,null,null,null,null,null,null,null,null,null,"gebaut",null,null,null,null,null,null,null,"[m2]","[m2]","[m2]","[m2]","[m2]","[m2]","[m2]","[m2]","[m2]","[m2]","[m2]","Anlagen","[kW]","[kWh]","[m2]","Anlagen","[kW]","[kWh]","[m2]","Anlagen","[kW]","[kWh]","[m2]","Anlagen","[kW]","[kWh]","[m2]","Anlagen","[kW]","[kWh]","[m2]","Anlagen","[kW]","[kWh]","[m2]","Anlagen","[kW]","[kWh]","[m2]","Anlagen","[kW]","[kWh]","[m2]","Anlagen","[kW]","[kWh]","[m2]","Anlagen","[kW]","[kWh]","[m2]","Anlagen","[kW]","[kWh]","[m2]","Anlagen","[kW]","[kWh]","[m2]","Anlagen","[kW]","[kWh]","[m2]","Anlagen","[kW]","[kWh]","[m2]","Anlagen","[kW]","[kWh]","[m2]","Anlagen","[kW]","[kWh]","[m2]","Anlagen","[kW]","[kWh]","[m2]","Anlagen","[kW]","[kWh]","Anlagen","Anlagen","Anlagen","Anlagen","Anlagen","Anlagen",null,null,null,null,null,null,null,null,"[m2]","[m2]","[m2]"]
[]
[null,null,null,null,null,null,null,null,null,null,null,null,null,null,{"$f":"$D$5","v":"SSOE_202"},{"$f":"$D$10","v":"-"},{"$f":"$D$12","v":"-"},{"$f":"$D$17","v":0},{"$f":"$D$18","v":0},{"$f":"$D$19","v":0},{"$f":"$D$20","v":0},{"$f":"$D$21","v":0},{"$f":"$D$16","v":0},{"$f":"$D$25","v":"2024-01-12T12:30:18.680"},{"$f":"$D$7","v":"https://swissolar-my.sharepoint.com/personal/datasync_swissolar_ch/Documents/Allgemein/40_Markt Politik/Markt/Statistik Sonnenenergie/2023/04_Formulare/[SSOE_2023_Formular_SW_dfi_20240112.xlsx]Input"},{"$f":"$D$26","v":"00:00:00"},"FlKo-Total",{"$f":"$D$8","v":2023},{"$f":"IF(Sprache=\"deutsch\",Sprachen!$A$52,IF(Sprache=\"Français\",Sprachen!$B$52,Sprachen!$C$52))","v":"Flachkollektor"},"Total",{"$f":"Total!$B$16","v":0},{"$f":"Total!$B$17","v":0},{"$f":"Total!$B$18","v":0},{"$f":"SUM(AE136:AG136)","v":0},{"$f":"Total!$B$20","v":0},{"$f":"AH136-AI136","v":0},{"$f":"Total!$H$16","v":0},{"$f":"Total!$H$17","v":0},{"$f":"Total!$H$18","v":0},{"$f":"SUM(AK136:AM136)","v":0},{"$f":"SUM(AO137:AO139)","v":0},{"$f":"SUM(AP137:AP139)","v":0},{"$f":"SUMIFS(Input!$U$2:$U$54,Input!$C$2:$C$54,Export!$AO$130,Input!$V$2:$V$54,$AC136)","v":0},{"$f":"SUM(AR137:AR139)","v":0},{"$f":"SUM(AS137:AS139)","v":0},{"$f":"SUM(AT137:AT139)","v":0},{"$f":"SUMIFS(Input!$U$2:$U$54,Input!$C$2:$C$54,Export!$AS$130,Input!$V$2:$V$54,$AC136)","v":0},{"$f":"SUM(AV137:AV139)","v":0},{"$f":"SUM(AW137:AW139)","v":0},{"$f":"SUM(AX137:AX139)","v":0},{"$f":"SUMIFS(Input!$U$2:$U$54,Input!$C$2:$C$54,Export!$AW$130,Input!$V$2:$V$54,$AC136)","v":0},{"$f":"SUM(AZ137:AZ139)","v":0},{"$f":"SUM(BA137:BA139)","v":0},{"$f":"SUM(BB137:BB139)","v":0},{"$f":"SUMIFS(Input!$U$2:$U$54,Input!$C$2:$C$54,Export!$BA$130,Input!$V$2:$V$54,$AC136)","v":0},{"$f":"SUM(BD137:BD139)","v":0},{"$f":"SUM(BE137:BE139)","v":0},{"$f":"SUM(BF137:BF139)","v":0},{"$f":"SUMIFS(Input!$U$2:$U$54,Input!$C$2:$C$54,Export!$BE$130,Input!$V$2:$V$54,$AC136)","v":0},{"$f":"SUM(BH137:BH139)","v":0},{"$f":"SUM(BI137:BI139)","v":0},{"$f":"SUM(BJ137:BJ139)","v":0},{"$f":"SUMIFS(Input!$U$2:$U$54,Input!$C$2:$C$54,Export!$BI$130,Input!$V$2:$V$54,$AC136)","v":0},{"$f":"SUM(BL137:BL139)","v":0},{"$f":"SUM(BM137:BM139)","v":0},{"$f":"SUM(BN137:BN139)","v":0},{"$f":"SUMIFS(Input!$U$2:$U$54,Input!$C$2:$C$54,Export!$BM$130,Input!$V$2:$V$54,$AC136)","v":0},{"$f":"SUM(BP137:BP139)","v":0},{"$f":"SUM(BQ137:BQ139)","v":0},{"$f":"SUM(BR137:BR139)","v":0},{"$f":"SUMIFS(Input!$U$2:$U$54,Input!$C$2:$C$54,Export!$BQ$130,Input!$V$2:$V$54,$AC136)","v":0},{"$f":"SUM(BT137:BT139)","v":0},{"$f":"SUM(BU137:BU139)","v":0},{"$f":"SUM(BV137:BV139)","v":0},{"$f":"SUM(BW137:BW139)","v":0},{"$f":"SUM(BX137:BX139)","v":0},{"$f":"SUMIFS(Input!$Q$2:$Q$54,Input!$C$2:$C$54,BY$130,Input!$V$2:$V$54,$AC136)","v":0},{"$f":"SUMIFS(Input!$R$2:$R$54,Input!$C$2:$C$54,BY$130,Input!$V$2:$V$54,$AC136)","v":0},{"$f":"IFERROR(AQ136/AO136*BY136,0)","v":0},{"$f":"IFERROR(AR136/AO136*BY136,0)","v":0},{"$f":"SUMIFS(Input!$Q$2:$Q$54,Input!$C$2:$C$54,CC$130,Input!$V$2:$V$54,$AC136)","v":0},{"$f":"SUMIFS(Input!$R$2:$R$54,Input!$C$2:$C$54,CC$130,Input!$V$2:$V$54,$AC136)","v":0},{"$f":"IFERROR(AU136/AS136*CC136,0)","v":0},{"$f":"IFERROR(AV136/AS136*CC136,0)","v":0},{"$f":"SUMIFS(Input!$Q$2:$Q$54,Input!$C$2:$C$54,CG$130,Input!$V$2:$V$54,$AC136)","v":0},{"$f":"SUMIFS(Input!$R$2:$R$54,Input!$C$2:$C$54,CG$130,Input!$V$2:$V$54,$AC136)","v":0},{"$f":"IFERROR(AY136/AW136*CG136,0)","v":0},{"$f":"IFERROR(AZ136/AW136*CG136,0)","v":0},{"$f":"SUMIFS(Input!$Q$2:$Q$54,Input!$C$2:$C$54,CK$130,Input!$V$2:$V$54,$AC136)","v":0},{"$f":"SUMIFS(Input!$R$2:$R$54,Input!$C$2:$C$54,CK$130,Input!$V$2:$V$54,$AC136)","v":0},{"$f":"IFERROR(BC136/BA136*CK136,0)","v":0},{"$f":"IFERROR(BD136/BA136*CK136,0)","v":0},{"$f":"SUMIFS(Input!$Q$2:$Q$54,Input!$C$2:$C$54,CO$130,Input!$V$2:$V$54,$AC136)","v":0},{"$f":"SUMIFS(Input!$R$2:$R$54,Input!$C$2:$C$54,CO$130,Input!$V$2:$V$54,$AC136)","v":0},{"$f":"IFERROR(BG136/BE136*CO136,0)","v":0},{"$f":"IFERROR(BH136/BE136*CO136,0)","v":0},{"$f":"SUMIFS(Input!$Q$2:$Q$54,Input!$C$2:$C$54,CS$130,Input!$V$2:$V$54,$AC136)","v":0},{"$f":"SUMIFS(Input!$R$2:$R$54,Input!$C$2:$C$54,CS$130,Input!$V$2:$V$54,$AC136)","v":0},{"$f":"IFERROR(BK136/BI136*CS136,0)","v":0},{"$f":"IFERROR(BL136/BI136*CS136,0)","v":0},{"$f":"SUMIFS(Input!$Q$2:$Q$54,Input!$C$2:$C$54,CW$130,Input!$V$2:$V$54,$AC136)","v":0},{"$f":"SUMIFS(Input!$R$2:$R$54,Input!$C$2:$C$54,CW$130,Input!$V$2:$V$54,$AC136)","v":0},{"$f":"IFERROR(BO136/BM136*CW136,0)","v":0},{"$f":"IFERROR(BP136/BM136*CW136,0)","v":0},{"$f":"SUMIFS(Input!$Q$2:$Q$54,Input!$C$2:$C$54,DA$130,Input!$V$2:$V$54,$AC136)","v":0},{"$f":"SUMIFS(Input!$R$2:$R$54,Input!$C$2:$C$54,DA$130,Input!$V$2:$V$54,$AC136)","v":0},{"$f":"IFERROR(BS136/BQ136*DA136,0)","v":0},{"$f":"IFERROR(BT136/BQ136*DA136,0)","v":0},{"$f":"BY136+CC136+CG136+CK136+CO136+CS136+CW136+DA136","v":0},{"$f":"BZ136+CD136+CH136+CL136+CP136+CT136+CX136+DB136","v":0},0,0,{"$f":"SUMIFS(Input!L$2:L$54,Input!$V$2:$V$54,$AC136)","v":0},{"$f":"SUMIFS(Input!M$2:M$54,Input!$V$2:$V$54,$AC136)","v":0},{"$f":"SUMIFS(Input!N$2:N$54,Input!$V$2:$V$54,$AC136)","v":0},{"$f":"SUMIFS(Input!O$2:O$54,Input!$V$2:$V$54,$AC136)","v":0},{"$f":"SUMIFS(Input!P$2:P$54,Input!$V$2:$V$54,$AC136)","v":0},{"$f":"SUM(DI136:DM136)","v":0},null,null,null,null,{"$f":"'Ref-Tab'!$B$3","v":1.4}]
[null,null,null,null,null,null,null,null,null,null,null,null,null,null,{"$f":"$D$5","v":"SSOE_202"},{"$f":"$D$10","v":"-"},{"$f":"$D$12","v":"-"},null,null,null,null,null,null,{"$f":"$D$25","v":"2024-01-12T12:30:18.680"},{"$f":"$D$7","v":"https://swissolar-my.sharepoint.com/personal/datasync_swissolar_ch/Documents/Allgemein/40_Markt Politik/Markt/Statistik Sonnenenergie/2023/04_Formulare/[SSOE_2023_Formular_SW_dfi_20240112.xlsx]Input"},{"$f":"$D$26","v":"00:00:00"},"FlKo-VW",{"$f":"$D$8","v":2023},{"$f":"AC136","v":"Flachkollektor"},"VW",null,null,null,null,null,null,null,null,null,null,{"$f":"SUMIFS(Input!$D$2:$D$54,Input!$C$2:$C$54,Export!$AO$130,Input!$V$2:$V$54,$AC137)","v":0},{"$f":"SUMIFS(Input!$E$2:$E$54,Input!$C$2:$C$54,Export!$AO$130,Input!$V$2:$V$54,$AC137)","v":0},{"$f":"IFERROR(AQ136/AO136*AO137,0)","v":0},{"$f":"SUMIFS(Input!$Z$2:$Z$54,Input!$C$2:$C$54,Export!$AO$130,Input!$V$2:$V$54,$AC137)","v":0},{"$f":"SUMIFS(Input!$D$2:$D$54,Input!$C$2:$C$54,Export!$AS$130,Input!$V$2:$V$54,$AC137)","v":0},{"$f":"SUMIFS(Input!$E$2:$E$54,Input!$C$2:$C$54,Export!$AS$130,Input!$V$2:$V$54,$AC137)","v":0},{"$f":"IFERROR(AU136/AS136*AS137,0)","v":0},{"$f":"SUMIFS(Input!$Z$2:$Z$54,Input!$C$2:$C$54,Export!$AS$130,Input!$V$2:$V$54,$AC137)","v":0},{"$f":"SUMIFS(Input!$D$2:$D$54,Input!$C$2:$C$54,Export!$AW$130,Input!$V$2:$V$54,$AC137)","v":0},{"$f":"SUMIFS(Input!$E$2:$E$54,Input!$C$2:$C$54,Export!$AW$130,Input!$V$2:$V$54,$AC137)","v":0},{"$f":"IFERROR(AY136/AW136*AW137,0)","v":0},{"$f":"SUMIFS(Input!$Z$2:$Z$54,Input!$C$2:$C$54,Export!$AW$130,Input!$V$2:$V$54,$AC137)","v":0},{"$f":"SUMIFS(Input!$D$2:$D$54,Input!$C$2:$C$54,Export!$BA$130,Input!$V$2:$V$54,$AC137)","v":0},{"$f":"SUMIFS(Input!$E$2:$E$54,Input!$C$2:$C$54,Export!$BA$130,Input!$V$2:$V$54,$AC137)","v":0},{"$f":"IFERROR(BC136/BA136*BA137,0)","v":0},{"$f":"SUMIFS(Input!$Z$2:$Z$54,Input!$C$2:$C$54,Export!$BA$130,Input!$V$2:$V$54,$AC137)","v":0},{"$f":"SUMIFS(Input!$D$2:$D$54,Input!$C$2:$C$54,Export!$BE$130,Input!$V$2:$V$54,$AC137)","v":0},{"$f":"SUMIFS(Input!$E$2:$E$54,Input!$C$2:$C$54,Export!$BE$130,Input!$V$2:$V$54,$AC137)","v":0},{"$f":"IFERROR(BG136/BE136*BE137,0)","v":0},{"$f":"SUMIFS(Input!$Z$2:$Z$54,Input!$C$2:$C$54,Export!$BE$130,Input!$V$2:$V$54,$AC137)","v":0},{"$f":"SUMIFS(Input!$D$2:$D$54,Input!$C$2:$C$54,Export!$BI$130,Input!$V$2:$V$54,$AC137)","v":0},{"$f":"SUMIFS(Input!$E$2:$E$54,Input!$C$2:$C$54,Export!$BI$130,Input!$V$2:$V$54,$AC137)","v":0},{"$f":"IFERROR(BK136/BI136*BI137,0)","v":0},{"$f":"SUMIFS(Input!$Z$2:$Z$54,Input!$C$2:$C$54,Export!$BI$130,Input!$V$2:$V$54,$AC137)","v":0},{"$f":"SUMIFS(Input!$D$2:$D$54,Input!$C$2:$C$54,Export!$BM$130,Input!$V$2:$V$54,$AC137)","v":0},{"$f":"SUMIFS(Input!$E$2:$E$54,Input!$C$2:$C$54,Export!$BM$130,Input!$V$2:$V$54,$AC137)","v":0},{"$f":"IFERROR(BO136/BM136*BM137,0)","v":0},{"$f":"SUMIFS(Input!$Z$2:$Z$54,Input!$C$2:$C$54,Export!$BM$130,Input!$V$2:$V$54,$AC137)","v":0},{"$f":"SUMIFS(Input!$D$2:$D$54,Input!$C$2:$C$54,Export!$BQ$130,Input!$V$2:$V$54,$AC137)","v":0},{"$f":"SUMIFS(Input!$E$2:$E$54,Input!$C$2:$C$54,Export!$BQ$130,Input!$V$2:$V$54,$AC137)","v":0},{"$f":"IFERROR(BS136/BQ136*BQ137,0)","v":0},{"$f":"SUMIFS(Input!$Z$2:$Z$54,Input!$C$2:$C$54,Export!$BQ$130,Input!$V$2:$V$54,$AC137)","v":0},{"$f":"AO137+AS137+AW137+BA137+BE137+BI137+BM137+BQ137","v":0},{"$f":"AP137+AT137+AX137+BB137+BF137+BJ137+BN137+BR137","v":0},0,0,null,null,null,null,null,null,null,null,null,null,null,null,null,null,null,null,null,null,null,null,null,null,null,null,null,null,null,null,null,null,null,null,null,null,null,null,null,null,null,null,null,null,null,null,null,null,{"$f":"'Ref-Tab'!$B$3","v":1.4}]
[null,null,null,null,null,null,null,null,null,null,null,null,null,null,"SSOE_202","-","-",null,null,null,null,null,null,"2024-01-12T12:30:18.680","https://swissolar-my.sharepoint.com/personal/datasync_swissolar_ch/Documents/Allgemein/40_Markt Politik/Markt/Statistik Sonnenenergie/2023/04_Formulare/[SSOE_2023_Formular_SW_dfi_20240112.xlsx]Input","00:00:00","FlKo-WW",2023,{"$f":"AC137","v":"Flachkollektor"},"WW",null,null,null,null,null,null,null,null,null,null,{"$f":"SUMIFS(Input!$F$2:$F$54,Input!$C$2:$C$54,Export!$AO$130,Input!$V$2:$V$54,$AC138)","v":0},{"$f":"SUMIFS(Input!$G$2:$G$54,Input!$C$2:$C$54,Export!$AO$130,Input!$V$2:$V$54,$AC138)","v":0},{"$f":"IFERROR(AQ136/AO136*AO138,0)","v":0},{"$f":"SUMIFS(Input!$AA$2:$AA$54,Input!$C$2:$C$54,Export!$AO$130,Input!$V$2:$V$54,$AC138)","v":0},{"$f":"SUMIFS(Input!$F$2:$F$54,Input!$C$2:$C$54,Export!$AS$130,Input!$V$2:$V$54,$AC138)","v":0},{"$f":"SUMIFS(Input!$G$2:$G$54,Input!$C$2:$C$54,Export!$AS$130,Input!$V$2:$V$54,$AC138)","v":0},{"$f":"IFERROR(AU136/AS136*AS138,0)","v":0},{"$f":"SUMIFS(Input!$AA$2:$AA$54,Input!$C$2:$C$54,Export!$AS$130,Input!$V$2:$V$54,$AC138)","v":0},{"$f":"SUMIFS(Input!$F$2:$F$54,Input!$C$2:$C$54,Export!$AW$130,Input!$V$2:$V$54,$AC138)","v":0},{"$f":"SUMIFS(Input!$G$2:$G$54,Input!$C$2:$C$54,Export!$AW$130,Input!$V$2:$V$54,$AC138)","v":0},{"$f":"IFERROR(AY136/AW136*AW138,0)","v":0},{"$f":"SUMIFS(Input!$AA$2:$AA$54,Input!$C$2:$C$54,Export!$AW$130,Input!$V$2:$V$54,$AC138)","v":0},{"$f":"SUMIFS(Input!$F$2:$F$54,Input!$C$2:$C$54,Export!$BA$130,Input!$V$2:$V$54,$AC138)","v":0},{"$f":"SUMIFS(Input!$G$2:$G$54,Input!$C$2:$C$54,Export!$BA$130,Input!$V$2:$V$54,$AC138)","v":0},{"$f":"IFERROR(BC136/BA136*BA138,0)","v":0},{"$f":"SUMIFS(Input!$AA$2:$AA$54,Input!$C$2:$C$54,Export!$BA$130,Input!$V$2:$V$54,$AC138)","v":0},{"$f":"SUMIFS(Input!$F$2:$F$54,Input!$C$2:$C$54,Export!$BE$130,Input!$V$2:$V$54,$AC138)","v":0},{"$f":"SUMIFS(Input!$G$2:$G$54,Input!$C$2:$C$54,Export!$BE$130,Input!$V$2:$V$54,$AC138)","v":0},{"$f":"IFERROR(BG136/BE136*BE138,0)","v":0},{"$f":"SUMIFS(Input!$AA$2:$AA$54,Input!$C$2:$C$54,Export!$BE$130,Input!$V$2:$V$54,$AC138)","v":0},{"$f":"SUMIFS(Input!$F$2:$F$54,Input!$C$2:$C$54,Export!$BI$130,Input!$V$2:$V$54,$AC138)","v":0},{"$f":"SUMIFS(Input!$G$2:$G$54,Input!$C$2:$C$54,Export!$BI$130,Input!$V$2:$V$54,$AC138)","v":0},{"$f":"IFERROR(BK136/BI136*BI138,0)","v":0},{"$f":"SUMIFS(Input!$AA$2:$AA$54,Input!$C$2:$C$54,Export!$BI$130,Input!$V$2:$V$54,$AC138)","v":0},{"$f":"SUMIFS(Input!$F$2:$F$54,Input!$C$2:$C$54,Export!$BM$130,Input!$V$2:$V$54,$AC138)","v":0},{"$f":"SUMIFS(Input!$G$2:$G$54,Input!$C$2:$C$54,Export!$BM$130,Input!$V$2:$V$54,$AC138)","v":0},{"$f":"IFERROR(BO136/BM136*BM138,0)","v":0},{"$f":"SUMIFS(Input!$AA$2:$AA$54,Input!$C$2:$C$54,Export!$BM$130,Input!$V$2:$V$54,$AC138)","v":0},{"$f":"SUMIFS(Input!$F$2:$F$54,Input!$C$2:$C$54,Export!$BQ$130,Input!$V$2:$V$54,$AC138)","v":0},{"$f":"SUMIFS(Input!$G$2:$G$54,Input!$C$2:$C$54,Export!$BQ$130,Input!$V$2:$V$54,$AC138)","v":0},{"$f":"IFERROR(BS136/BQ136*BQ138,0)","v":0},{"$f":"SUMIFS(Input!$AA$2:$AA$54,Input!$C$2:$C$54,Export!$BQ$130,Input!$V$2:$V$54,$AC138)","v":0},{"$f":"AO138+AS138+AW138+BA138+BE138+BI138+BM138+BQ138","v":0},0,0,0,null,null,null,null,null,null,null,null,null,null,null,null,null,null,null,null,null,null,null,null,null,null,null,null,null,null,null,null,null,null,null,null,null,null,null,null,null,null,null,null,null,null,null,null,null,null,{"$f":"'Ref-Tab'!$B$3","v":1.4}]
[null,null,null,null,null,null,null,null,null,null,null,null,null,null,"SSOE_202","-","-",null,null,null,null,null,null,"2024-01-12T12:30:18.680","https://swissolar-my.sharepoint.com/personal/datasync_swissolar_ch/Documents/Allgemein/40_Markt Politik/Markt/Statistik Sonnenenergie/2023/04_Formulare/[SSOE_2023_Formular_SW_dfi_20240112.xlsx]Input","00:00:00","FlKo-HU",2023,{"$f":"AC138","v":"Flachkollektor"},"HU",null,null,null,null,null,null,null,null,null,null,{"$f":"SUMIFS(Input!$H$2:$H$54,Input!$C$2:$C$54,Export!$AO$130,Input!$V$2:$V$54,$AC139)","v":0},{"$f":"SUMIFS(Input!$I$2:$I$54,Input!$C$2:$C$54,Export!$AO$130,Input!$V$2:$V$54,$AC139)","v":0},{"$f":"IFERROR(AQ136/AO136*AO139,0)","v":0},{"$f":"SUMIFS(Input!$AB$2:$AB$54,Input!$C$2:$C$54,Export!$AO$130,Input!$V$2:$V$54,$AC139)","v":0},{"$f":"SUMIFS(Input!$H$2:$H$54,Input!$C$2:$C$54,Export!$AS$130,Input!$V$2:$V$54,$AC139)","v":0},{"$f":"SUMIFS(Input!$I$2:$I$54,Input!$C$2:$C$54,Export!$AS$130,Input!$V$2:$V$54,$AC139)","v":0},{"$f":"IFERROR(AU136/AS136*AS139,0)","v":0},{"$f":"SUMIFS(Input!$AB$2:$AB$54,Input!$C$2:$C$54,Export!$AS$130,Input!$V$2:$V$54,$AC139)","v":0},{"$f":"SUMIFS(Input!$H$2:$H$54,Input!$C$2:$C$54,Export!$AQR$130,Input!$V$2:$V$54,$AC139)","v":0},{"$f":"SUMIFS(Input!$I$2:$I$54,Input!$C$2:$C$54,Export!$AW$130,Input!$V$2:$V$54,$AC139)","v":0},{"$f":"IFERROR(AY136/AW136*AW139,0)","v":0},{"$f":"SUMIFS(Input!$AB$2:$AB$54,Input!$C$2:$C$54,Export!$AW$130,Input!$V$2:$V$54,$AC139)","v":0},{"$f":"SUMIFS(Input!$H$2:$H$54,Input!$C$2:$C$54,Export!$BA$130,Input!$V$2:$V$54,$AC139)","v":0},{"$f":"SUMIFS(Input!$I$2:$I$54,Input!$C$2:$C$54,Export!$BA$130,Input!$V$2:$V$54,$AC139)","v":0},{"$f":"IFERROR(BC136/BA136*BA139,0)","v":0},{"$f":"SUMIFS(Input!$AB$2:$AB$54,Input!$C$2:$C$54,Export!$BA$130,Input!$V$2:$V$54,$AC139)","v":0},{"$f":"SUMIFS(Input!$H$2:$H$54,Input!$C$2:$C$54,Export!$BE$130,Input!$V$2:$V$54,$AC139)","v":0},{"$f":"SUMIFS(Input!$I$2:$I$54,Input!$C$2:$C$54,Export!$BE$130,Input!$V$2:$V$54,$AC139)","v":0},{"$f":"IFERROR(BG136/BE136*BE139,0)","v":0},{"$f":"SUMIFS(Input!$AB$2:$AB$54,Input!$C$2:$C$54,Export!$BE$130,Input!$V$2:$V$54,$AC139)","v":0},{"$f":"SUMIFS(Input!$H$2:$H$54,Input!$C$2:$C$54,Export!$BI$130,Input!$V$2:$V$54,$AC139)","v":0},{"$f":"SUMIFS(Input!$I$2:$I$54,Input!$C$2:$C$54,Export!$BI$130,Input!$V$2:$V$54,$AC139)","v":0},{"$f":"IFERROR(BK136/BI136*BI139,0)","v":0},{"$f":"SUMIFS(Input!$AB$2:$AB$54,Input!$C$2:$C$54,Export!$BI$130,Input!$V$2:$V$54,$AC139)","v":0},{"$f":"SUMIFS(Input!$H$2:$H$54,Input!$C$2:$C$54,Export!$BM$130,Input!$V$2:$V$54,$AC139)","v":0},{"$f":"SUMIFS(Input!$I$2:$I$54,Input!$C$2:$C$54,Export!$BM$130,Input!$V$2:$V$54,$AC139)","v":0},{"$f":"IFERROR(BO136/BM136*BM139,0)","v":0},{"$f":"SUMIFS(Input!$AB$2:$AB$54,Input!$C$2:$C$54,Export!$BM$130,Input!$V$2:$V$54,$AC139)","v":0},{"$f":"SUMIFS(Input!$H$2:$H$54,Input!$C$2:$C$54,Export!$BQ$130,Input!$V$2:$V$54,$AC139)","v":0},{"$f":"SUMIFS(Input!$I$2:$I$54,Input!$C$2:$C$54,Export!$BQ$130,Input!$V$2:$V$54,$AC139)","v":0},{"$f":"IFERROR(BS136/BQ136*BQ139,0)","v":0},{"$f":"SUMIFS(Input!$AB$2:$AB$54,Input!$C$2:$C$54,Export!$BQ$130,Input!$V$2:$V$54,$AC139)","v":0},0,0,0,0,null,null,null,null,null,null,null,null,null,null,null,null,null,null,null,null,null,null,null,null,null,null,null,null,null,null,null,null,null,null,null,null,null,null,null,null,null,null,null,null,null,null,null,null,null,null,{"$f":"'Ref-Tab'!$B$3","v":1.4}]
[null,null,null,null,null,null,null,null,null,null,null,null,null,null,{"$f":"$D$5","v":"SSOE_202"},{"$f":"$D$10","v":"-"},{"$f":"$D$12","v":"-"},{"$f":"$D$17","v":0},{"$f":"$D$18","v":0},{"$f":"$D$19","v":0},{"$f":"$D$20","v":0},{"$f":"$D$21","v":0},{"$f":"$D$16","v":0},{"$f":"$D$25","v":"2024-01-12T12:30:18.680"},"https://swissolar-my.sharepoint.com/personal/datasync_swissolar_ch/Documents/Allgemein/40_Markt Politik/Markt/Statistik Sonnenenergie/2023/04_Formulare/[SSOE_2023_Formular_SW_dfi_20240112.xlsx]Input",{"$f":"$D$26","v":"00:00:00"},"RöKo-Total",{"$f":"$D$8","v":2023},{"$f":"IF(Sprache=\"deutsch\",Sprachen!$A$53,IF(Sprache=\"Français\",Sprachen!$B$53,Sprachen!$C$53))","v":"Röhrenkollektor"},"Total",{"$f":"Total!$C$16","v":0},{"$f":"Total!$C$17","v":0},{"$f":"Total!$C$18","v":0},{"$f":"SUM(AE140:AG140)","v":0},{"$f":"Total!$C$20","v":0},{"$f":"AH140-AI140","v":0},{"$f":"Total!$I$16","v":0},{"$f":"Total!$I$17","v":0},{"$f":"Total!$I$18","v":0},{"$f":"SUM(AK140:AM140)","v":0},{"$f":"SUM(AO141:AO143)","v":0},{"$f":"SUM(AP141:AP143)","v":0},{"$f":"SUMIFS(Input!$U$2:$U$54,Input!$C$2:$C$54,Export!$AO$130,Input!$V$2:$V$54,$AC140)","v":0},{"$f":"SUM(AR141:AR143)","v":0},{"$f":"SUM(AS141:AS143)","v":0},{"$f":"SUM(AT141:AT143)","v":0},{"$f":"SUMIFS(Input!$U$2:$U$54,Input!$C$2:$C$54,Export!$AS$130,Input!$V$2:$V$54,$AC140)","v":0},{"$f":"SUM(AV141:AV143)","v":0},{"$f":"SUM(AW141:AW143)","v":0},{"$f":"SUM(AX141:AX143)","v":0},{"$f":"SUMIFS(Input!$U$2:$U$54,Input!$C$2:$C$54,Export!$AW$130,Input!$V$2:$V$54,$AC140)","v":0},{"$f":"SUM(AZ141:AZ143)","v":0},{"$f":"SUM(BA141:BA143)","v":0},{"$f":"SUM(BB141:BB143)","v":0},{"$f":"SUMIFS(Input!$U$2:$U$54,Input!$C$2:$C$54,Export!$BA$130,Input!$V$2:$V$54,$AC140)","v":0},{"$f":"SUM(BD141:BD143)","v":0},{"$f":"SUM(BE141:BE143)","v":0},{"$f":"SUM(BF141:BF143)","v":0},{"$f":"SUMIFS(Input!$U$2:$U$54,Input!$C$2:$C$54,Export!$BE$130,Input!$V$2:$V$54,$AC140)","v":0},{"$f":"SUM(BH141:BH143)","v":0},{"$f":"SUM(BI141:BI143)","v":0},{"$f":"SUM(BJ141:BJ143)","v":0},{"$f":"SUMIFS(Input!$U$2:$U$54,Input!$C$2:$C$54,Export!$BI$130,Input!$V$2:$V$54,$AC140)","v":0},{"$f":"SUM(BL141:BL143)","v":0},{"$f":"SUM(BM141:BM143)","v":0},{"$f":"SUM(BN141:BN143)","v":0},{"$f":"SUMIFS(Input!$U$2:$U$54,Input!$C$2:$C$54,Export!$BM$130,Input!$V$2:$V$54,$AC140)","v":0},{"$f":"SUM(BP141:BP143)","v":0},{"$f":"SUM(BQ141:BQ143)","v":0},{"$f":"SUM(BR141:BR143)","v":0},{"$f":"SUMIFS(Input!$U$2:$U$54,Input!$C$2:$C$54,Export!$BQ$130,Input!$V$2:$V$54,$AC140)","v":0},{"$f":"SUM(BT141:BT143)","v":0},{"$f":"SUM(BU141:BU143)","v":0},{"$f":"SUM(BV141:BV143)","v":0},{"$f":"SUM(BW141:BW143)","v":0},{"$f":"SUM(BX141:BX143)","v":0},{"$f":"SUMIFS(Input!$Q$2:$Q$54,Input!$C$2:$C$54,BY$130,Input!$V$2:$V$54,$AC140)","v":0},{"$f":"SUMIFS(Input!$R$2:$R$54,Input!$C$2:$C$54,BY$130,Input!$V$2:$V$54,$AC140)","v":0},{"$f":"IFERROR(AQ140/AO140*BY140,0)","v":0},{"$f":"IFERROR(AR140/AO140*BY140,0)","v":0},{"$f":"SUMIFS(Input!$Q$2:$Q$54,Input!$C$2:$C$54,CC$130,Input!$V$2:$V$54,$AC140)","v":0},{"$f":"SUMIFS(Input!$R$2:$R$54,Input!$C$2:$C$54,CC$130,Input!$V$2:$V$54,$AC140)","v":0},{"$f":"IFERROR(AU140/AS140*CC140,0)","v":0},{"$f":"IFERROR(AV140/AS140*CC140,0)","v":0},{"$f":"SUMIFS(Input!$Q$2:$Q$54,Input!$C$2:$C$54,CG$130,Input!$V$2:$V$54,$AC140)","v":0},{"$f":"SUMIFS(Input!$R$2:$R$54,Input!$C$2:$C$54,CG$130,Input!$V$2:$V$54,$AC140)","v":0},{"$f":"IFERROR(AY140/AW140*CG140,0)","v":0},{"$f":"IFERROR(AZ140/AW140*CG140,0)","v":0},{"$f":"SUMIFS(Input!$Q$2:$Q$54,Input!$C$2:$C$54,CK$130,Input!$V$2:$V$54,$AC140)","v":0},{"$f":"SUMIFS(Input!$R$2:$R$54,Input!$C$2:$C$54,CK$130,Input!$V$2:$V$54,$AC140)","v":0},{"$f":"IFERROR(BC140/BA140*CK140,0)","v":0},{"$f":"IFERROR(BD140/BA140*CK140,0)","v":0},{"$f":"SUMIFS(Input!$Q$2:$Q$54,Input!$C$2:$C$54,CO$130,Input!$V$2:$V$54,$AC140)","v":0},{"$f":"SUMIFS(Input!$R$2:$R$54,Input!$C$2:$C$54,CO$130,Input!$V$2:$V$54,$AC140)","v":0},{"$f":"IFERROR(BG140/BE140*CO140,0)","v":0},{"$f":"IFERROR(BH140/BE140*CO140,0)","v":0},{"$f":"SUMIFS(Input!$Q$2:$Q$54,Input!$C$2:$C$54,CS$130,Input!$V$2:$V$54,$AC140)","v":0},{"$f":"SUMIFS(Input!$R$2:$R$54,Input!$C$2:$C$54,CS$130,Input!$V$2:$V$54,$AC140)","v":0},{"$f":"IFERROR(BK140/BI140*CS140,0)","v":0},{"$f":"IFERROR(BL140/BI140*CS140,0)","v":0},{"$f":"SUMIFS(Input!$Q$2:$Q$54,Input!$C$2:$C$54,CW$130,Input!$V$2:$V$54,$AC140)","v":0},{"$f":"SUMIFS(Input!$R$2:$R$54,Input!$C$2:$C$54,CW$130,Input!$V$2:$V$54,$AC140)","v":0},{"$f":"IFERROR(BO140/BM140*CW140,0)","v":0},{"$f":"IFERROR(BP140/BM140*CW140,0)","v":0},{"$f":"SUMIFS(Input!$Q$2:$Q$54,Input!$C$2:$C$54,DA$130,Input!$V$2:$V$54,$AC140)","v":0},{"$f":"SUMIFS(Input!$R$2:$R$54,Input!$C$2:$C$54,DA$130,Input!$V$2:$V$54,$AC140)","v":0},{"$f":"IFERROR(BS140/BQ140*DA140,0)","v":0},{"$f":"IFERROR(BT140/BQ140*DA140,0)","v":0},{"$f":"BY140+CC140+CG140+CK140+CO140+CS140+CW140+DA140","v":0},{"$f":"BZ140+CD140+CH140+CL140+CP140+CT140+CX140+DB140","v":0},0,0,{"$f":"SUMIFS(Input!L$2:L$54,Input!$V$2:$V$54,$AC140)","v":0},{"$f":"SUMIFS(Input!M$2:M$54,Input!$V$2:$V$54,$AC140)","v":0},{"$f":"SUMIFS(Input!N$2:N$54,Input!$V$2:$V$54,$AC140)","v":0},{"$f":"SUMIFS(Input!O$2:O$54,Input!$V$2:$V$54,$AC140)","v":0},{"$f":"SUMIFS(Input!P$2:P$54,Input!$V$2:$V$54,$AC140)","v":0},{"$f":"SUM(DI140:DM140)","v":0},null,null,null,null,{"$f":"'Ref-Tab'!$B$3","v":1.4}]
[null,null,null,null,null,null,null,null,null,null,null,null,null,null,"SSOE_202","-","-",null,null,null,null,null,null,"2024-01-12T12:30:18.680","https://swissolar-my.sharepoint.com/personal/datasync_swissolar_ch/Documents/Allgemein/40_Markt Politik/Markt/Statistik Sonnenenergie/2023/04_Formulare/[SSOE_2023_Formular_SW_dfi_20240112.xlsx]Input","00:00:00","RöKo-VW",2023,{"$f":"AC140","v":"Röhrenkollektor"},"VW",null,null,null,null,null,null,null,null,null,null,{"$f":"SUMIFS(Input!$D$2:$D$54,Input!$C$2:$C$54,Export!$AO$130,Input!$V$2:$V$54,$AC141)","v":0},{"$f":"SUMIFS(Input!$E$2:$E$54,Input!$C$2:$C$54,Export!$AO$130,Input!$V$2:$V$54,$AC141)","v":0},{"$f":"IFERROR(AQ140/AO140*AO141,0)","v":0},{"$f":"SUMIFS(Input!$Z$2:$Z$54,Input!$C$2:$C$54,Export!$AO$130,Input!$V$2:$V$54,$AC141)","v":0},{"$f":"SUMIFS(Input!$D$2:$D$54,Input!$C$2:$C$54,Export!$AS$130,Input!$V$2:$V$54,$AC141)","v":0},{"$f":"SUMIFS(Input!$E$2:$E$54,Input!$C$2:$C$54,Export!$AS$130,Input!$V$2:$V$54,$AC141)","v":0},{"$f":"IFERROR(AU140/AS140*AS141,0)","v":0},{"$f":"SUMIFS(Input!$Z$2:$Z$54,Input!$C$2:$C$54,Export!$AS$130,Input!$V$2:$V$54,$AC141)","v":0},{"$f":"SUMIFS(Input!$D$2:$D$54,Input!$C$2:$C$54,Export!$AW$130,Input!$V$2:$V$54,$AC141)","v":0},{"$f":"SUMIFS(Input!$E$2:$E$54,Input!$C$2:$C$54,Export!$AW$130,Input!$V$2:$V$54,$AC141)","v":0},{"$f":"IFERROR(AY140/AW140*AW141,0)","v":0},{"$f":"SUMIFS(Input!$Z$2:$Z$54,Input!$C$2:$C$54,Export!$AW$130,Input!$V$2:$V$54,$AC141)","v":0},{"$f":"SUMIFS(Input!$D$2:$D$54,Input!$C$2:$C$54,Export!$BA$130,Input!$V$2:$V$54,$AC141)","v":0},{"$f":"SUMIFS(Input!$E$2:$E$54,Input!$C$2:$C$54,Export!$BA$130,Input!$V$2:$V$54,$AC141)","v":0},{"$f":"IFERROR(BC140/BA140*BA141,0)","v":0},{"$f":"SUMIFS(Input!$Z$2:$Z$54,Input!$C$2:$C$54,Export!$BA$130,Input!$V$2:$V$54,$AC141)","v":0},{"$f":"SUMIFS(Input!$D$2:$D$54,Input!$C$2:$C$54,Export!$BE$130,Input!$V$2:$V$54,$AC141)","v":0},{"$f":"SUMIFS(Input!$E$2:$E$54,Input!$C$2:$C$54,Export!$BE$130,Input!$V$2:$V$54,$AC141)","v":0},{"$f":"IFERROR(BG140/BE140*BE141,0)","v":0},{"$f":"SUMIFS(Input!$Z$2:$Z$54,Input!$C$2:$C$54,Export!$BE$130,Input!$V$2:$V$54,$AC141)","v":0},{"$f":"SUMIFS(Input!$D$2:$D$54,Input!$C$2:$C$54,Export!$BI$130,Input!$V$2:$V$54,$AC141)","v":0},{"$f":"SUMIFS(Input!$E$2:$E$54,Input!$C$2:$C$54,Export!$BI$130,Input!$V$2:$V$54,$AC141)","v":0},{"$f":"IFERROR(BK140/BI140*BI141,0)","v":0},{"$f":"SUMIFS(Input!$Z$2:$Z$54,Input!$C$2:$C$54,Export!$BI$130,Input!$V$2:$V$54,$AC141)","v":0},{"$f":"SUMIFS(Input!$D$2:$D$54,Input!$C$2:$C$54,Export!$BM$130,Input!$V$2:$V$54,$AC141)","v":0},{"$f":"SUMIFS(Input!$E$2:$E$54,Input!$C$2:$C$54,Export!$BM$130,Input!$V$2:$V$54,$AC141)","v":0},{"$f":"IFERROR(BO140/BM140*BM141,0)","v":0},{"$f":"SUMIFS(Input!$Z$2:$Z$54,Input!$C$2:$C$54,Export!$BM$130,Input!$V$2:$V$54,$AC141)","v":0},{"$f":"SUMIFS(Input!$D$2:$D$54,Input!$C$2:$C$54,Export!$BQ$130,Input!$V$2:$V$54,$AC141)","v":0},{"$f":"SUMIFS(Input!$E$2:$E$54,Input!$C$2:$C$54,Export!$BQ$130,Input!$V$2:$V$54,$AC141)","v":0},{"$f":"IFERROR(BS140/BQ140*BQ141,0)","v":0},{"$f":"SUMIFS(Input!$Z$2:$Z$54,Input!$C$2:$C$54,Export!$BQ$130,Input!$V$2:$V$54,$AC141)","v":0},{"$f":"AO141+AS141+AW141+BA141+BE141+BI141+BM141+BQ141","v":0},{"$f":"AP141+AT141+AX141+BB141+BF141+BJ141+BN141+BR141","v":0},0,0,null,null,null,null,null,null,null,null,null,null,null,null,null,null,null,null,null,null,null,null,null,null,null,null,null,null,null,null,null,null,null,null,null,null,null,null,null,null,null,null,null,null,null,null,null,null,{"$f":"'Ref-Tab'!$B$3","v":1.4}]
[null,null,null,null,null,null,null,null,null,null,null,null,null,null,"SSOE_202","-","-",null,null,null,null,null,null,"2024-01-12T12:30:18.680","https://swissolar-my.sharepoint.com/personal/datasync_swissolar_ch/Documents/Allgemein/40_Markt Politik/Markt/Statistik Sonnenenergie/2023/04_Formulare/[SSOE_2023_Formular_SW_dfi_20240112.xlsx]Input","00:00:00","RöKo-WW",2023,{"$f":"AC141","v":"Röhrenkollektor"},"WW",null,null,null,null,null,null,null,null,null,null,{"$f":"SUMIFS(Input!$F$2:$F$54,Input!$C$2:$C$54,Export!$AO$130,Input!$V$2:$V$54,$AC142)","v":0},{"$f":"SUMIFS(Input!$G$2:$G$54,Input!$C$2:$C$54,Export!$AO$130,Input!$V$2:$V$54,$AC142)","v":0},{"$f":"IFERROR(AQ140/AO140*AO142,0)","v":0},{"$f":"SUMIFS(Input!$AA$2:$AA$54,Input!$C$2:$C$54,Export!$AO$130,Input!$V$2:$V$54,$AC142)","v":0},{"$f":"SUMIFS(Input!$F$2:$F$54,Input!$C$2:$C$54,Export!$AS$130,Input!$V$2:$V$54,$AC142)","v":0},{"$f":"SUMIFS(Input!$G$2:$G$54,Input!$C$2:$C$54,Export!$AS$130,Input!$V$2:$V$54,$AC142)","v":0},{"$f":"IFERROR(AU140/AS140*AS142,0)","v":0},{"$f":"SUMIFS(Input!$AA$2:$AA$54,Input!$C$2:$C$54,Export!$AS$130,Input!$V$2:$V$54,$AC142)","v":0},{"$f":"SUMIFS(Input!$F$2:$F$54,Input!$C$2:$C$54,Export!$AW$130,Input!$V$2:$V$54,$AC142)","v":0},{"$f":"SUMIFS(Input!$G$2:$G$54,Input!$C$2:$C$54,Export!$AW$130,Input!$V$2:$V$54,$AC142)","v":0},{"$f":"IFERROR(AY140/AW140*AW142,0)","v":0},{"$f":"SUMIFS(Input!$AA$2:$AA$54,Input!$C$2:$C$54,Export!$AW$130,Input!$V$2:$V$54,$AC142)","v":0},{"$f":"SUMIFS(Input!$F$2:$F$54,Input!$C$2:$C$54,Export!$BA$130,Input!$V$2:$V$54,$AC142)","v":0},{"$f":"SUMIFS(Input!$G$2:$G$54,Input!$C$2:$C$54,Export!$BA$130,Input!$V$2:$V$54,$AC142)","v":0},{"$f":"IFERROR(BC140/BA140*BA142,0)","v":0},{"$f":"SUMIFS(Input!$AA$2:$AA$54,Input!$C$2:$C$54,Export!$BA$130,Input!$V$2:$V$54,$AC142)","v":0},{"$f":"SUMIFS(Input!$F$2:$F$54,Input!$C$2:$C$54,Export!$BE$130,Input!$V$2:$V$54,$AC142)","v":0},{"$f":"SUMIFS(Input!$G$2:$G$54,Input!$C$2:$C$54,Export!$BE$130,Input!$V$2:$V$54,$AC142)","v":0},{"$f":"IFERROR(BG140/BE140*BE142,0)","v":0},{"$f":"SUMIFS(Input!$AA$2:$AA$54,Input!$C$2:$C$54,Export!$BE$130,Input!$V$2:$V$54,$AC142)","v":0},{"$f":"SUMIFS(Input!$F$2:$F$54,Input!$C$2:$C$54,Export!$BI$130,Input!$V$2:$V$54,$AC142)","v":0},{"$f":"SUMIFS(Input!$G$2:$G$54,Input!$C$2:$C$54,Export!$BI$130,Input!$V$2:$V$54,$AC142)","v":0},{"$f":"IFERROR(BK140/BI140*BI142,0)","v":0},{"$f":"SUMIFS(Input!$AA$2:$AA$54,Input!$C$2:$C$54,Export!$BI$130,Input!$V$2:$V$54,$AC142)","v":0},{"$f":"SUMIFS(Input!$F$2:$F$54,Input!$C$2:$C$54,Export!$BM$130,Input!$V$2:$V$54,$AC142)","v":0},{"$f":"SUMIFS(Input!$G$2:$G$54,Input!$C$2:$C$54,Export!$BM$130,Input!$V$2:$V$54,$AC142)","v":0},{"$f":"IFERROR(BO140/BM140*BM142,0)","v":0},{"$f":"SUMIFS(Input!$AA$2:$AA$54,Input!$C$2:$C$54,Export!$BM$130,Input!$V$2:$V$54,$AC142)","v":0},{"$f":"SUMIFS(Input!$F$2:$F$54,Input!$C$2:$C$54,Export!$BQ$130,Input!$V$2:$V$54,$AC142)","v":0},{"$f":"SUMIFS(Input!$G$2:$G$54,Input!$C$2:$C$54,Export!$BQ$130,Input!$V$2:$V$54,$AC142)","v":0},{"$f":"IFERROR(BS140/BQ140*BQ142,0)","v":0},{"$f":"SUMIFS(Input!$AA$2:$AA$54,Input!$C$2:$C$54,Export!$BQ$130,Input!$V$2:$V$54,$AC142)","v":0},{"$f":"AO142+AS142+AW142+BA142+BE142+BI142+BM142+BQ142","v":0},0,0,0,null,null,null,null,null,null,null,null,null,null,null,null,null,null,null,null,null,null,null,null,null,null,null,null,null,null,null,null,null,null,null,null,null,null,null,null,null,null,null,null,null,null,null,null,null,null,{"$f":"'Ref-Tab'!$B$3","v":1.4}]
[null,null,null,null,null,null,null,null,null,null,null,null,null,null,"SSOE_202","-","-",null,null,null,null,null,null,"2024-01-12T12:30:18.680","https://swissolar-my.sharepoint.com/personal/datasync_swissolar_ch/Documents/Allgemein/40_Markt Politik/Markt/Statistik Sonnenenergie/2023/04_Formulare/[SSOE_2023_Formular_SW_dfi_20240112.xlsx]Input","00:00:00","RöKo-HU",2023,{"$f":"AC142","v":"Röhrenkollektor"},"HU",null,null,null,null,null,null,null,null,null,null,{"$f":"SUMIFS(Input!$H$2:$H$54,Input!$C$2:$C$54,Export!$AO$130,Input!$V$2:$V$54,$AC143)","v":0},{"$f":"SUMIFS(Input!$I$2:$I$54,Input!$C$2:$C$54,Export!$AO$130,Input!$V$2:$V$54,$AC143)","v":0},{"$f":"IFERROR(AQ140/AO140*AO143,0)","v":0},{"$f":"SUMIFS(Input!$AB$2:$AB$54,Input!$C$2:$C$54,Export!$AO$130,Input!$V$2:$V$54,$AC143)","v":0},{"$f":"SUMIFS(Input!$H$2:$H$54,Input!$C$2:$C$54,Export!$AS$130,Input!$V$2:$V$54,$AC143)","v":0},{"$f":"SUMIFS(Input!$I$2:$I$54,Input!$C$2:$C$54,Export!$AS$130,Input!$V$2:$V$54,$AC143)","v":0},{"$f":"IFERROR(AU140/AS140*AS143,0)","v":0},{"$f":"SUMIFS(Input!$AB$2:$AB$54,Input!$C$2:$C$54,Export!$AS$130,Input!$V$2:$V$54,$AC143)","v":0},{"$f":"SUMIFS(Input!$H$2:$H$54,Input!$C$2:$C$54,Export!$AQR$130,Input!$V$2:$V$54,$AC143)","v":0},{"$f":"SUMIFS(Input!$I$2:$I$54,Input!$C$2:$C$54,Export!$AW$130,Input!$V$2:$V$54,$AC143)","v":0},{"$f":"IFERROR(AY140/AW140*AW143,0)","v":0},{"$f":"SUMIFS(Input!$AB$2:$AB$54,Input!$C$2:$C$54,Export!$AW$130,Input!$V$2:$V$54,$AC143)","v":0},{"$f":"SUMIFS(Input!$H$2:$H$54,Input!$C$2:$C$54,Export!$BA$130,Input!$V$2:$V$54,$AC143)","v":0},{"$f":"SUMIFS(Input!$I$2:$I$54,Input!$C$2:$C$54,Export!$BA$130,Input!$V$2:$V$54,$AC143)","v":0},{"$f":"IFERROR(BC140/BA140*BA143,0)","v":0},{"$f":"SUMIFS(Input!$AB$2:$AB$54,Input!$C$2:$C$54,Export!$BA$130,Input!$V$2:$V$54,$AC143)","v":0},{"$f":"SUMIFS(Input!$H$2:$H$54,Input!$C$2:$C$54,Export!$BE$130,Input!$V$2:$V$54,$AC143)","v":0},{"$f":"SUMIFS(Input!$I$2:$I$54,Input!$C$2:$C$54,Export!$BE$130,Input!$V$2:$V$54,$AC143)","v":0},{"$f":"IFERROR(BG140/BE140*BE143,0)","v":0},{"$f":"SUMIFS(Input!$AB$2:$AB$54,Input!$C$2:$C$54,Export!$BE$130,Input!$V$2:$V$54,$AC143)","v":0},{"$f":"SUMIFS(Input!$H$2:$H$54,Input!$C$2:$C$54,Export!$BI$130,Input!$V$2:$V$54,$AC143)","v":0},{"$f":"SUMIFS(Input!$I$2:$I$54,Input!$C$2:$C$54,Export!$BI$130,Input!$V$2:$V$54,$AC143)","v":0},{"$f":"IFERROR(BK140/BI140*BI143,0)","v":0},{"$f":"SUMIFS(Input!$AB$2:$AB$54,Input!$C$2:$C$54,Export!$BI$130,Input!$V$2:$V$54,$AC143)","v":0},{"$f":"SUMIFS(Input!$H$2:$H$54,Input!$C$2:$C$54,Export!$BM$130,Input!$V$2:$V$54,$AC143)","v":0},{"$f":"SUMIFS(Input!$I$2:$I$54,Input!$C$2:$C$54,Export!$BM$130,Input!$V$2:$V$54,$AC143)","v":0},{"$f":"IFERROR(BO140/BM140*BM143,0)","v":0},{"$f":"SUMIFS(Input!$AB$2:$AB$54,Input!$C$2:$C$54,Export!$BM$130,Input!$V$2:$V$54,$AC143)","v":0},{"$f":"SUMIFS(Input!$H$2:$H$54,Input!$C$2:$C$54,Export!$BQ$130,Input!$V$2:$V$54,$AC143)","v":0},{"$f":"SUMIFS(Input!$I$2:$I$54,Input!$C$2:$C$54,Export!$BQ$130,Input!$V$2:$V$54,$AC143)","v":0},{"$f":"IFERROR(BS140/BQ140*BQ143,0)","v":0},{"$f":"SUMIFS(Input!$AB$2:$AB$54,Input!$C$2:$C$54,Export!$BQ$130,Input!$V$2:$V$54,$AC143)","v":0},0,0,0,0,null,null,null,null,null,null,null,null,null,null,null,null,null,null,null,null,null,null,null,null,null,null,null,null,null,null,null,null,null,null,null,null,null,null,null,null,null,null,null,null,null,null,null,null,null,null,{"$f":"'Ref-Tab'!$B$3","v":1.4}]
[null,null,null,null,null,null,null,null,null,null,null,null,null,null,{"$f":"$D$5","v":"SSOE_202"},{"$f":"$D$10","v":"-"},{"$f":"$D$12","v":"-"},{"$f":"$D$17","v":0},{"$f":"$D$18","v":0},{"$f":"$D$19","v":0},{"$f":"$D$20","v":0},{"$f":"$D$21","v":0},{"$f":"$D$16","v":0},{"$f":"$D$25","v":"2024-01-12T12:30:18.680"},"https://swissolar-my.sharepoint.com/personal/datasync_swissolar_ch/Documents/Allgemein/40_Markt Politik/Markt/Statistik Sonnenenergie/2023/04_Formulare/[SSOE_2023_Formular_SW_dfi_20240112.xlsx]Input",{"$f":"$D$26","v":"00:00:00"},"WISC-Total",{"$f":"$D$8","v":2023},{"$f":"IF(Sprache=\"deutsch\",Sprachen!$A$54,IF(Sprache=\"Français\",Sprachen!$B$54,Sprachen!$C$54))","v":"WISC Kollektor"},"Total",{"$f":"Total!$D$16","v":0},{"$f":"Total!$D$17","v":0},{"$f":"Total!$D$18","v":0},{"$f":"SUM(AE144:AG144)","v":0},{"$f":"Total!$D$20","v":0},{"$f":"AH144-AI144","v":0},{"$f":"Total!$J$16","v":0},{"$f":"Total!$J$17","v":0},{"$f":"Total!$J$18","v":0},{"$f":"SUM(AK144:AM144)","v":0},{"$f":"SUM(AO145:AO147)","v":0},{"$f":"SUM(AP145:AP147)","v":0},{"$f":"SUMIFS(Input!$U$2:$U$54,Input!$C$2:$C$54,Export!$AO$130,Input!$V$2:$V$54,$AC144)","v":0},{"$f":"SUM(AR145:AR147)","v":0},{"$f":"SUM(AS145:AS147)","v":0},{"$f":"SUM(AT145:AT147)","v":0},{"$f":"SUMIFS(Input!$U$2:$U$54,Input!$C$2:$C$54,Export!$AS$130,Input!$V$2:$V$54,$AC144)","v":0},{"$f":"SUM(AV145:AV147)","v":0},{"$f":"SUM(AW145:AW147)","v":0},{"$f":"SUM(AX145:AX147)","v":0},{"$f":"SUMIFS(Input!$U$2:$U$54,Input!$C$2:$C$54,Export!$AW$130,Input!$V$2:$V$54,$AC144)","v":0},{"$f":"SUM(AZ145:AZ147)","v":0},{"$f":"SUM(BA145:BA147)","v":0},{"$f":"SUM(BB145:BB147)","v":0},{"$f":"SUMIFS(Input!$U$2:$U$54,Input!$C$2:$C$54,Export!$BA$130,Input!$V$2:$V$54,$AC144)","v":0},{"$f":"SUM(BD145:BD147)","v":0},{"$f":"SUM(BE145:BE147)","v":0},{"$f":"SUM(BF145:BF147)","v":0},{"$f":"SUMIFS(Input!$U$2:$U$54,Input!$C$2:$C$54,Export!$BE$130,Input!$V$2:$V$54,$AC144)","v":0},{"$f":"SUM(BH145:BH147)","v":0},{"$f":"SUM(BI145:BI147)","v":0},{"$f":"SUM(BJ145:BJ147)","v":0},{"$f":"SUMIFS(Input!$U$2:$U$54,Input!$C$2:$C$54,Export!$BI$130,Input!$V$2:$V$54,$AC144)","v":0},{"$f":"SUM(BL145:BL147)","v":0},{"$f":"SUM(BM145:BM147)","v":0},{"$f":"SUM(BN145:BN147)","v":0},{"$f":"SUMIFS(Input!$U$2:$U$54,Input!$C$2:$C$54,Export!$BM$130,Input!$V$2:$V$54,$AC144)","v":0},{"$f":"SUM(BP145:BP147)","v":0},{"$f":"SUM(BQ145:BQ147)","v":0},{"$f":"SUM(BR145:BR147)","v":0},{"$f":"SUMIFS(Input!$U$2:$U$54,Input!$C$2:$C$54,Export!$BQ$130,Input!$V$2:$V$54,$AC144)","v":0},{"$f":"SUM(BT145:BT147)","v":0},{"$f":"SUM(BU145:BU147)","v":0},{"$f":"SUM(BV145:BV147)","v":0},{"$f":"SUM(BW145:BW147)","v":0},{"$f":"SUM(BX145:BX147)","v":0},{"$f":"SUMIFS(Input!$Q$2:$Q$54,Input!$C$2:$C$54,BY$130,Input!$V$2:$V$54,$AC144)","v":0},{"$f":"SUMIFS(Input!$R$2:$R$54,Input!$C$2:$C$54,BY$130,Input!$V$2:$V$54,$AC144)","v":0},{"$f":"IFERROR(AQ144/AO144*BY144,0)","v":0},{"$f":"IFERROR(AR144/AO144*BY144,0)","v":0},{"$f":"SUMIFS(Input!$Q$2:$Q$54,Input!$C$2:$C$54,CC$130,Input!$V$2:$V$54,$AC144)","v":0},{"$f":"SUMIFS(Input!$R$2:$R$54,Input!$C$2:$C$54,CC$130,Input!$V$2:$V$54,$AC144)","v":0},{"$f":"IFERROR(AU144/AS144*CC144,0)","v":0},{"$f":"IFERROR(AV144/AS144*CC144,0)","v":0},{"$f":"SUMIFS(Input!$Q$2:$Q$54,Input!$C$2:$C$54,CG$130,Input!$V$2:$V$54,$AC144)","v":0},{"$f":"SUMIFS(Input!$R$2:$R$54,Input!$C$2:$C$54,CG$130,Input!$V$2:$V$54,$AC144)","v":0},{"$f":"IFERROR(AY144/AW144*CG144,0)","v":0},{"$f":"IFERROR(AZ144/AW144*CG144,0)","v":0},{"$f":"SUMIFS(Input!$Q$2:$Q$54,Input!$C$2:$C$54,CK$130,Input!$V$2:$V$54,$AC144)","v":0},{"$f":"SUMIFS(Input!$R$2:$R$54,Input!$C$2:$C$54,CK$130,Input!$V$2:$V$54,$AC144)","v":0},{"$f":"IFERROR(BC144/BA144*CK144,0)","v":0},{"$f":"IFERROR(BD144/BA144*CK144,0)","v":0},{"$f":"SUMIFS(Input!$Q$2:$Q$54,Input!$C$2:$C$54,CO$130,Input!$V$2:$V$54,$AC144)","v":0},{"$f":"SUMIFS(Input!$R$2:$R$54,Input!$C$2:$C$54,CO$130,Input!$V$2:$V$54,$AC144)","v":0},{"$f":"IFERROR(BG144/BE144*CO144,0)","v":0},{"$f":"IFERROR(BH144/BE144*CO144,0)","v":0},{"$f":"SUMIFS(Input!$Q$2:$Q$54,Input!$C$2:$C$54,CS$130,Input!$V$2:$V$54,$AC144)","v":0},{"$f":"SUMIFS(Input!$R$2:$R$54,Input!$C$2:$C$54,CS$130,Input!$V$2:$V$54,$AC144)","v":0},{"$f":"IFERROR(BK144/BI144*CS144,0)","v":0},{"$f":"IFERROR(BL144/BI144*CS144,0)","v":0},{"$f":"SUMIFS(Input!$Q$2:$Q$54,Input!$C$2:$C$54,CW$130,Input!$V$2:$V$54,$AC144)","v":0},{"$f":"SUMIFS(Input!$R$2:$R$54,Input!$C$2:$C$54,CW$130,Input!$V$2:$V$54,$AC144)","v":0},{"$f":"IFERROR(BO144/BM144*CW144,0)","v":0},{"$f":"IFERROR(BP144/BM144*CW144,0)","v":0},{"$f":"SUMIFS(Input!$Q$2:$Q$54,Input!$C$2:$C$54,DA$130,Input!$V$2:$V$54,$AC144)","v":0},{"$f":"SUMIFS(Input!$R$2:$R$54,Input!$C$2:$C$54,DA$130,Input!$V$2:$V$54,$AC144)","v":0},{"$f":"IFERROR(BS144/BQ144*DA144,0)","v":0},{"$f":"IFERROR(BT144/BQ144*DA144,0)","v":0},{"$f":"BY144+CC144+CG144+CK144+CO144+CS144+CW144+DA144","v":0},{"$f":"BZ144+CD144+CH144+CL144+CP144+CT144+CX144+DB144","v":0},0,0,{"$f":"SUMIFS(Input!L$2:L$54,Input!$V$2:$V$54,$AC144)","v":0},{"$f":"SUMIFS(Input!M$2:M$54,Input!$V$2:$V$54,$AC144)","v":0},{"$f":"SUMIFS(Input!N$2:N$54,Input!$V$2:$V$54,$AC144)","v":0},{"$f":"SUMIFS(Input!O$2:O$54,Input!$V$2:$V$54,$AC144)","v":0},{"$f":"SUMIFS(Input!P$2:P$54,Input!$V$2:$V$54,$AC144)","v":0},{"$f":"SUM(DI144:DM144)","v":0},null,null,null,null,{"$f":"'Ref-Tab'!$B$3","v":1.4}]
[null,null,null,null,null,null,null,null,null,null,null,null,null,null,"SSOE_202","-","-",null,null,null,null,null,null,"2024-01-12T12:30:18.680","https://swissolar-my.sharepoint.com/personal/datasync_swissolar_ch/Documents/Allgemein/40_Markt Politik/Markt/Statistik Sonnenenergie/2023/04_Formulare/[SSOE_2023_Formular_SW_dfi_20240112.xlsx]Input","00:00:00","WISC-VW",2023,{"$f":"AC144","v":"WISC Kollektor"},"VW",null,null,null,null,null,null,null,null,null,null,{"$f":"SUMIFS(Input!$D$2:$D$54,Input!$C$2:$C$54,Export!$AO$130,Input!$V$2:$V$54,$AC145)","v":0},{"$f":"SUMIFS(Input!$E$2:$E$54,Input!$C$2:$C$54,Export!$AO$130,Input!$V$2:$V$54,$AC145)","v":0},{"$f":"IFERROR(AQ144/AO144*AO145,0)","v":0},{"$f":"SUMIFS(Input!$Z$2:$Z$54,Input!$C$2:$C$54,Export!$AO$130,Input!$V$2:$V$54,$AC145)","v":0},{"$f":"SUMIFS(Input!$D$2:$D$54,Input!$C$2:$C$54,Export!$AS$130,Input!$V$2:$V$54,$AC145)","v":0},{"$f":"SUMIFS(Input!$E$2:$E$54,Input!$C$2:$C$54,Export!$AS$130,Input!$V$2:$V$54,$AC145)","v":0},{"$f":"IFERROR(AU144/AS144*AS145,0)","v":0},{"$f":"SUMIFS(Input!$Z$2:$Z$54,Input!$C$2:$C$54,Export!$AS$130,Input!$V$2:$V$54,$AC145)","v":0},{"$f":"SUMIFS(Input!$D$2:$D$54,Input!$C$2:$C$54,Export!$AW$130,Input!$V$2:$V$54,$AC145)","v":0},{"$f":"SUMIFS(Input!$E$2:$E$54,Input!$C$2:$C$54,Export!$AW$130,Input!$V$2:$V$54,$AC145)","v":0},{"$f":"IFERROR(AY144/AW144*AW145,0)","v":0},{"$f":"SUMIFS(Input!$Z$2:$Z$54,Input!$C$2:$C$54,Export!$AW$130,Input!$V$2:$V$54,$AC145)","v":0},{"$f":"SUMIFS(Input!$D$2:$D$54,Input!$C$2:$C$54,Export!$BA$130,Input!$V$2:$V$54,$AC145)","v":0},{"$f":"SUMIFS(Input!$E$2:$E$54,Input!$C$2:$C$54,Export!$BA$130,Input!$V$2:$V$54,$AC145)","v":0},{"$f":"IFERROR(BC144/BA144*BA145,0)","v":0},{"$f":"SUMIFS(Input!$Z$2:$Z$54,Input!$C$2:$C$54,Export!$BA$130,Input!$V$2:$V$54,$AC145)","v":0},{"$f":"SUMIFS(Input!$D$2:$D$54,Input!$C$2:$C$54,Export!$BE$130,Input!$V$2:$V$54,$AC145)","v":0},{"$f":"SUMIFS(Input!$E$2:$E$54,Input!$C$2:$C$54,Export!$BE$130,Input!$V$2:$V$54,$AC145)","v":0},{"$f":"IFERROR(BG144/BE144*BE145,0)","v":0},{"$f":"SUMIFS(Input!$Z$2:$Z$54,Input!$C$2:$C$54,Export!$BE$130,Input!$V$2:$V$54,$AC145)","v":0},{"$f":"SUMIFS(Input!$D$2:$D$54,Input!$C$2:$C$54,Export!$BI$130,Input!$V$2:$V$54,$AC145)","v":0},{"$f":"SUMIFS(Input!$E$2:$E$54,Input!$C$2:$C$54,Export!$BI$130,Input!$V$2:$V$54,$AC145)","v":0},{"$f":"IFERROR(BK144/BI144*BI145,0)","v":0},{"$f":"SUMIFS(Input!$Z$2:$Z$54,Input!$C$2:$C$54,Export!$BI$130,Input!$V$2:$V$54,$AC145)","v":0},{"$f":"SUMIFS(Input!$D$2:$D$54,Input!$C$2:$C$54,Export!$BM$130,Input!$V$2:$V$54,$AC145)","v":0},{"$f":"SUMIFS(Input!$E$2:$E$54,Input!$C$2:$C$54,Export!$BM$130,Input!$V$2:$V$54,$AC145)","v":0},{"$f":"IFERROR(BO144/BM144*BM145,0)","v":0},{"$f":"SUMIFS(Input!$Z$2:$Z$54,Input!$C$2:$C$54,Export!$BM$130,Input!$V$2:$V$54,$AC145)","v":0},{"$f":"SUMIFS(Input!$D$2:$D$54,Input!$C$2:$C$54,Export!$BQ$130,Input!$V$2:$V$54,$AC145)","v":0},{"$f":"SUMIFS(Input!$E$2:$E$54,Input!$C$2:$C$54,Export!$BQ$130,Input!$V$2:$V$54,$AC145)","v":0},{"$f":"IFERROR(BS144/BQ144*BQ145,0)","v":0},{"$f":"SUMIFS(Input!$Z$2:$Z$54,Input!$C$2:$C$54,Export!$BQ$130,Input!$V$2:$V$54,$AC145)","v":0},{"$f":"AO145+AS145+AW145+BA145+BE145+BI145+BM145+BQ145","v":0},{"$f":"AP145+AT145+AX145+BB145+BF145+BJ145+BN145+BR145","v":0},0,0,null,null,null,null,null,null,null,null,null,null,null,null,null,null,null,null,null,null,null,null,null,null,null,null,null,null,null,null,null,null,null,null,null,null,null,null,null,null,null,null,null,null,null,null,null,null,{"$f":"'Ref-Tab'!$B$3","v":1.4}]
[null,null,null,null,null,null,null,null,null,null,null,null,null,null,"SSOE_202","-","-",null,null,null,null,null,null,"2024-01-12T12:30:18.680","https://swissolar-my.sharepoint.com/personal/datasync_swissolar_ch/Documents/Allgemein/40_Markt Politik/Markt/Statistik Sonnenenergie/2023/04_Formulare/[SSOE_2023_Formular_SW_dfi_20240112.xlsx]Input","00:00:00","WISC-WW",2023,{"$f":"AC145","v":"WISC Kollektor"},"WW",null,null,null,null,null,null,null,null,null,null,{"$f":"SUMIFS(Input!$F$2:$F$54,Input!$C$2:$C$54,Export!$AO$130,Input!$V$2:$V$54,$AC146)","v":0},{"$f":"SUMIFS(Input!$G$2:$G$54,Input!$C$2:$C$54,Export!$AO$130,Input!$V$2:$V$54,$AC146)","v":0},{"$f":"IFERROR(AQ144/AO144*AO146,0)","v":0},{"$f":"SUMIFS(Input!$AA$2:$AA$54,Input!$C$2:$C$54,Export!$AO$130,Input!$V$2:$V$54,$AC146)","v":0},{"$f":"SUMIFS(Input!$F$2:$F$54,Input!$C$2:$C$54,Export!$AS$130,Input!$V$2:$V$54,$AC146)","v":0},{"$f":"SUMIFS(Input!$G$2:$G$54,Input!$C$2:$C$54,Export!$AS$130,Input!$V$2:$V$54,$AC146)","v":0},{"$f":"IFERROR(AU144/AS144*AS146,0)","v":0},{"$f":"SUMIFS(Input!$AA$2:$AA$54,Input!$C$2:$C$54,Export!$AS$130,Input!$V$2:$V$54,$AC146)","v":0},{"$f":"SUMIFS(Input!$F$2:$F$54,Input!$C$2:$C$54,Export!$AW$130,Input!$V$2:$V$54,$AC146)","v":0},{"$f":"SUMIFS(Input!$G$2:$G$54,Input!$C$2:$C$54,Export!$AW$130,Input!$V$2:$V$54,$AC146)","v":0},{"$f":"IFERROR(AY144/AW144*AW146,0)","v":0},{"$f":"SUMIFS(Input!$AA$2:$AA$54,Input!$C$2:$C$54,Export!$AW$130,Input!$V$2:$V$54,$AC146)","v":0},{"$f":"SUMIFS(Input!$F$2:$F$54,Input!$C$2:$C$54,Export!$BA$130,Input!$V$2:$V$54,$AC146)","v":0},{"$f":"SUMIFS(Input!$G$2:$G$54,Input!$C$2:$C$54,Export!$BA$130,Input!$V$2:$V$54,$AC146)","v":0},{"$f":"IFERROR(BC144/BA144*BA146,0)","v":0},{"$f":"SUMIFS(Input!$AA$2:$AA$54,Input!$C$2:$C$54,Export!$BA$130,Input!$V$2:$V$54,$AC146)","v":0},{"$f":"SUMIFS(Input!$F$2:$F$54,Input!$C$2:$C$54,Export!$BE$130,Input!$V$2:$V$54,$AC146)","v":0},{"$f":"SUMIFS(Input!$G$2:$G$54,Input!$C$2:$C$54,Export!$BE$130,Input!$V$2:$V$54,$AC146)","v":0},{"$f":"IFERROR(BG144/BE144*BE146,0)","v":0},{"$f":"SUMIFS(Input!$AA$2:$AA$54,Input!$C$2:$C$54,Export!$BE$130,Input!$V$2:$V$54,$AC146)","v":0},{"$f":"SUMIFS(Input!$F$2:$F$54,Input!$C$2:$C$54,Export!$BI$130,Input!$V$2:$V$54,$AC146)","v":0},{"$f":"SUMIFS(Input!$G$2:$G$54,Input!$C$2:$C$54,Export!$BI$130,Input!$V$2:$V$54,$AC146)","v":0},{"$f":"IFERROR(BK144/BI144*BI146,0)","v":0},{"$f":"SUMIFS(Input!$AA$2:$AA$54,Input!$C$2:$C$54,Export!$BI$130,Input!$V$2:$V$54,$AC146)","v":0},{"$f":"SUMIFS(Input!$F$2:$F$54,Input!$C$2:$C$54,Export!$BM$130,Input!$V$2:$V$54,$AC146)","v":0},{"$f":"SUMIFS(Input!$G$2:$G$54,Input!$C$2:$C$54,Export!$BM$130,Input!$V$2:$V$54,$AC146)","v":0},{"$f":"IFERROR(BO144/BM144*BM146,0)","v":0},{"$f":"SUMIFS(Input!$AA$2:$AA$54,Input!$C$2:$C$54,Export!$BM$130,Input!$V$2:$V$54,$AC146)","v":0},{"$f":"SUMIFS(Input!$F$2:$F$54,Input!$C$2:$C$54,Export!$BQ$130,Input!$V$2:$V$54,$AC146)","v":0},{"$f":"SUMIFS(Input!$G$2:$G$54,Input!$C$2:$C$54,Export!$BQ$130,Input!$V$2:$V$54,$AC146)","v":0},{"$f":"IFERROR(BS144/BQ144*BQ146,0)","v":0},{"$f":"SUMIFS(Input!$AA$2:$AA$54,Input!$C$2:$C$54,Export!$BQ$130,Input!$V$2:$V$54,$AC146)","v":0},{"$f":"AO146+AS146+AW146+BA146+BE146+BI146+BM146+BQ146","v":0},0,0,0,null,null,null,null,null,null,null,null,null,null,null,null,null,null,null,null,null,null,null,null,null,null,null,null,null,null,null,null,null,null,null,null,null,null,null,null,null,null,null,null,null,null,null,null,null,null,{"$f":"'Ref-Tab'!$B$3","v":1.4}]
[null,null,null,null,null,null,null,null,null,null,null,null,null,null,"SSOE_202","-","-",null,null,null,null,null,null,"2024-01-12T12:30:18.680","https://swissolar-my.sharepoint.com/personal/datasync_swissolar_ch/Documents/Allgemein/40_Markt Politik/Markt/Statistik Sonnenenergie/2023/04_Formulare/[SSOE_2023_Formular_SW_dfi_20240112.xlsx]Input","00:00:00","WISC-HU",2023,{"$f":"AC146","v":"WISC Kollektor"},"HU",null,null,null,null,null,null,null,null,null,null,{"$f":"SUMIFS(Input!$H$2:$H$54,Input!$C$2:$C$54,Export!$AO$130,Input!$V$2:$V$54,$AC147)","v":0},{"$f":"SUMIFS(Input!$I$2:$I$54,Input!$C$2:$C$54,Export!$AO$130,Input!$V$2:$V$54,$AC147)","v":0},{"$f":"IFERROR(AQ144/AO144*AO147,0)","v":0},{"$f":"SUMIFS(Input!$AB$2:$AB$54,Input!$C$2:$C$54,Export!$AO$130,Input!$V$2:$V$54,$AC147)","v":0},{"$f":"SUMIFS(Input!$H$2:$H$54,Input!$C$2:$C$54,Export!$AS$130,Input!$V$2:$V$54,$AC147)","v":0},{"$f":"SUMIFS(Input!$I$2:$I$54,Input!$C$2:$C$54,Export!$AS$130,Input!$V$2:$V$54,$AC147)","v":0},{"$f":"IFERROR(AU144/AS144*AS147,0)","v":0},{"$f":"SUMIFS(Input!$AB$2:$AB$54,Input!$C$2:$C$54,Export!$AS$130,Input!$V$2:$V$54,$AC147)","v":0},{"$f":"SUMIFS(Input!$H$2:$H$54,Input!$C$2:$C$54,Export!$AQR$130,Input!$V$2:$V$54,$AC147)","v":0},{"$f":"SUMIFS(Input!$I$2:$I$54,Input!$C$2:$C$54,Export!$AW$130,Input!$V$2:$V$54,$AC147)","v":0},{"$f":"IFERROR(AY144/AW144*AW147,0)","v":0},{"$f":"SUMIFS(Input!$AB$2:$AB$54,Input!$C$2:$C$54,Export!$AW$130,Input!$V$2:$V$54,$AC147)","v":0},{"$f":"SUMIFS(Input!$H$2:$H$54,Input!$C$2:$C$54,Export!$BA$130,Input!$V$2:$V$54,$AC147)","v":0},{"$f":"SUMIFS(Input!$I$2:$I$54,Input!$C$2:$C$54,Export!$BA$130,Input!$V$2:$V$54,$AC147)","v":0},{"$f":"IFERROR(BC144/BA144*BA147,0)","v":0},{"$f":"SUMIFS(Input!$AB$2:$AB$54,Input!$C$2:$C$54,Export!$BA$130,Input!$V$2:$V$54,$AC147)","v":0},{"$f":"SUMIFS(Input!$H$2:$H$54,Input!$C$2:$C$54,Export!$BE$130,Input!$V$2:$V$54,$AC147)","v":0},{"$f":"SUMIFS(Input!$I$2:$I$54,Input!$C$2:$C$54,Export!$BE$130,Input!$V$2:$V$54,$AC147)","v":0},{"$f":"IFERROR(BG144/BE144*BE147,0)","v":0},{"$f":"SUMIFS(Input!$AB$2:$AB$54,Input!$C$2:$C$54,Export!$BE$130,Input!$V$2:$V$54,$AC147)","v":0},{"$f":"SUMIFS(Input!$H$2:$H$54,Input!$C$2:$C$54,Export!$BI$130,Input!$V$2:$V$54,$AC147)","v":0},{"$f":"SUMIFS(Input!$I$2:$I$54,Input!$C$2:$C$54,Export!$BI$130,Input!$V$2:$V$54,$AC147)","v":0},{"$f":"IFERROR(BK144/BI144*BI147,0)","v":0},{"$f":"SUMIFS(Input!$AB$2:$AB$54,Input!$C$2:$C$54,Export!$BI$130,Input!$V$2:$V$54,$AC147)","v":0},{"$f":"SUMIFS(Input!$H$2:$H$54,Input!$C$2:$C$54,Export!$BM$130,Input!$V$2:$V$54,$AC147)","v":0},{"$f":"SUMIFS(Input!$I$2:$I$54,Input!$C$2:$C$54,Export!$BM$130,Input!$V$2:$V$54,$AC147)","v":0},{"$f":"IFERROR(BO144/BM144*BM147,0)","v":0},{"$f":"SUMIFS(Input!$AB$2:$AB$54,Input!$C$2:$C$54,Export!$BM$130,Input!$V$2:$V$54,$AC147)","v":0},{"$f":"SUMIFS(Input!$H$2:$H$54,Input!$C$2:$C$54,Export!$BQ$130,Input!$V$2:$V$54,$AC147)","v":0},{"$f":"SUMIFS(Input!$I$2:$I$54,Input!$C$2:$C$54,Export!$BQ$130,Input!$V$2:$V$54,$AC147)","v":0},{"$f":"IFERROR(BS144/BQ144*BQ147,0)","v":0},{"$f":"SUMIFS(Input!$AB$2:$AB$54,Input!$C$2:$C$54,Export!$BQ$130,Input!$V$2:$V$54,$AC147)","v":0},0,0,0,0,null,null,null,null,null,null,null,null,null,null,null,null,null,null,null,null,null,null,null,null,null,null,null,null,null,null,null,null,null,null,null,null,null,null,null,null,null,null,null,null,null,null,null,null,null,null,{"$f":"'Ref-Tab'!$B$3","v":1.4}]
[null,null,null,null,null,null,null,null,null,null,null,null,null,null,{"$f":"$D$5","v":"SSOE_202"},{"$f":"$D$10","v":"-"},{"$f":"$D$12","v":"-"},{"$f":"$D$17","v":0},{"$f":"$D$18","v":0},{"$f":"$D$19","v":0},{"$f":"$D$20","v":0},{"$f":"$D$21","v":0},{"$f":"$D$16","v":0},{"$f":"$D$25","v":"2024-01-12T12:30:18.680"},"https://swissolar-my.sharepoint.com/personal/datasync_swissolar_ch/Documents/Allgemein/40_Markt Politik/Markt/Statistik Sonnenenergie/2023/04_Formulare/[SSOE_2023_Formular_SW_dfi_20240112.xlsx]Input",{"$f":"$D$26","v":"00:00:00"},"Alle-Total",{"$f":"$D$8","v":2023},"Alle Kollektoren","Total",{"$f":"AE136+AE140+AE144","v":0},{"$f":"AF136+AF140+AF144","v":0},0,0,0,0,0,0,0,0,0,0,0,0,0,0,0,0,0,0,0,0,0,0,0,0,0,0,0,0,0,0,0,0,0,0,0,0,0,0,0,0,0,0,0,0,0,0,0,0,0,0,0,0,0,0,0,0,0,0,0,0,0,0,0,{"$f":"CR136+CR140+CR144","v":0},0,0,0,0,0,0,0,0,0,0,0,0,0,0,0,0,0,0,0,0,0,0,null,null,null,null,{"$f":"'Ref-Tab'!$B$3","v":1.4}]
[null,null,null,null,null,null,null,null,null,null,null,null,null,null,"SSOE_202","-","-",null,null,null,null,null,null,"2024-01-12T12:30:18.680","https://swissolar-my.sharepoint.com/personal/datasync_swissolar_ch/Documents/Allgemein/40_Markt Politik/Markt/Statistik Sonnenenergie/2023/04_Formulare/[SSOE_2023_Formular_SW_dfi_20240112.xlsx]Input","00:00:00","Alle-VW",2023,"Alle Kollektoren","VW",null,null,null,null,null,null,null,null,null,null,0,0,0,0,0,0,0,0,0,0,0,0,0,0,0,0,0,0,0,0,0,0,0,0,0,0,0,0,0,0,0,0,0,0,0,0,null,null,null,null,null,null,null,null,null,null,null,null,null,null,null,null,null,null,null,null,null,null,null,null,null,null,null,null,null,null,null,null,null,null,null,null,null,null,null,null,null,null,null,null,null,null,{"$f":"'Ref-Tab'!$B$3","v":1.4}]
[null,null,null,null,null,null,null,null,null,null,null,null,null,null,"SSOE_202","-","-",null,null,null,null,null,null,"2024-01-12T12:30:18.680","https://swissolar-my.sharepoint.com/personal/datasync_swissolar_ch/Documents/Allgemein/40_Markt Politik/Markt/Statistik Sonnenenergie/2023/04_Formulare/[SSOE_2023_Formular_SW_dfi_20240112.xlsx]Input","00:00:00","Alle-WW",2023,"Alle Kollektoren","WW",null,null,null,null,null,null,null,null,null,null,0,0,0,0,0,0,0,0,0,0,0,0,0,0,0,0,0,0,0,0,0,0,0,0,0,0,0,0,0,0,0,0,0,0,0,0,null,null,null,null,null,null,null,null,null,null,null,null,null,null,null,null,null,null,null,null,null,null,null,null,null,null,null,null,null,null,null,null,null,null,null,null,null,null,null,null,null,null,null,null,null,null,{"$f":"'Ref-Tab'!$B$3","v":1.4}]
[null,null,null,null,null,null,null,null,null,null,null,null,null,null,"SSOE_202","-","-",null,null,null,null,null,null,"2024-01-12T12:30:18.680","https://swissolar-my.sharepoint.com/personal/datasync_swissolar_ch/Documents/Allgemein/40_Markt Politik/Markt/Statistik Sonnenenergie/2023/04_Formulare/[SSOE_2023_Formular_SW_dfi_20240112.xlsx]Input","00:00:00","Alle-HU",2023,"Alle Kollektoren","HU",null,null,null,null,null,null,null,null,null,null,0,0,0,0,0,0,0,0,0,0,0,0,0,0,0,0,0,0,0,0,0,0,0,0,0,0,0,0,0,0,0,0,0,0,0,0,null,null,null,null,null,null,null,null,null,null,null,null,null,null,null,null,null,null,null,null,null,null,null,null,null,null,null,null,null,null,null,null,null,null,null,null,null,null,null,null,null,null,null,null,null,null,{"$f":"'Ref-Tab'!$B$3","v":1.4}]
[]
[null,null,null,null,null,null,null,null,null,null,null,null,null,null,null,null,null,null,null,null,null,null,null,null,null,null,null,null,null,null," Angabe zum Inhalt der Zellen:",null,null,null,null,null,null," Angabe zur Verfügbarkeit vor 2020:"]
[null,null,null,null,null,null,null,null,null,null,null,null,null,null,null,null,null,null,null,null,null,null,null,null,null,null,null,null,null,"Farblegende:"," Zellen enthalten Formeln mit Bezügen nur innerhalb des Blattes Export",null,null,null,null,null,null,"Daten in der Regel bereits verfügbar"]
[null,null,null,null,null,null,null,null,null,null,null,null,null,null,null,null,null,null,null,null,null,null,null,null,null,null,null,null,null,null," Zellen enthalten Formeln mit Bezügen auf andere Blätter (Total oder Input)",null,null,null,null,null,null,"Daten waren nicht verfügbar"]
[null,null,null,null,null,null,null,null,null,null,null,null,null,null,null,null,null,null,null,null,null,null,null,null,null,null,null,null,null,null," Zellen enthalten Formeln mit Bezügen auf andere Blätter (Total oder Input)",null,null,null,null,null,null,"Daten waren verfügbar"]
[null,null,null,null,null,null,null,null,null,null,null,null,null,null,null,null,null,null,null,null,null,null,null,null,null,null,null,null,null,null," keine Daten oder Formeln",null,null,null,null,null,null,"Daten waren nicht verfügbar"]
[]
[null,null,null,null,null,null,null,null,null,null,null,null,null,null,"Spaltenangaben gemäss Auswertungswormular bis 2019 (entsprechend PrintScreen) / für einfachen Abgleich mit den bisherigen Daten"]
[null,null,null,null,null,null,null,null,null,null,null,null,null,null,null,null,null,"Spalte8","Spalte9","Spalte10","Spalte11","Spalte14","Spalte7",null,null,null,"neu","20xx",null,"Total","Spalte17","Spalte16","Spalte20","Spalte21","Spalte22","Spalte23","Spalte25","Spalte26","Spalte27","Spalte28","neu","neu","neu","neu","neu","neu","neu","neu","neu","neu","neu","neu","neu","neu","neu","neu","neu","neu","neu","neu","neu","neu","neu","neu","neu","neu","neu","neu","neu","neu","neu","neu","Spalte58","Spalte59","neu","neu","neu","neu","neu","neu","neu","neu","neu","neu","neu","neu","neu","neu","neu","neu","neu","neu","neu","neu","neu","neu","neu","neu","neu","neu","neu","neu","neu","neu","neu","neu","neu","neu","Spalte74","neu","neu","neu","Spalte75","Spalte76","Spalte77","Spalte78","Spalte79","Spalte80",null,null,null,null,null,null,"Spalte12","Spalte13","Spalte18","Spalte19","Spalte24"]
[null,null,null,null,null,null,null,null,null,null,null,null,null,null,null,null,null,null,null,null,null,null,null,null,null,null,"neu","20xx",null,"VW",null,null,null,null,null,null,null,null,null,null,"neu","neu","neu","neu","neu","neu","neu","neu","neu","neu","neu","neu","neu","neu","neu","neu","neu","neu","neu","neu","neu","neu","neu","neu","neu","neu","neu","neu","neu","neu","neu","neu","neu","neu","neu","neu"]
[null,null,null,null,null,null,null,null,null,null,null,null,null,null,null,null,null,null,null,null,null,null,null,null,null,null,"neu","20xx",null,"WW",null,null,null,null,null,null,null,null,null,null,"Spalte30","Spalte31","neu","neu","Spalte34","Spalte35","neu","neu","Spalte38","Spalte39","neu","neu","Spalte42","Spalte43","neu","neu","Spalte46","Spalte47","neu","neu","Spalte50","Spalte51","neu","neu","Spalte54","Spalte55","neu","neu","neu","neu","neu","neu","neu","neu","neu","neu","Spalte60",null,null,null,"Spalte62",null,null,null,"Spalte64",null,null,null,"Spalte66",null,null,null,"Spalte68",null,null,null,"Spalte70",null,null,null,"Spalte72"]
[null,null,null,null,null,null,null,null,null,null,null,null,null,null,null,null,null,null,null,null,null,null,null,null,null,null,"neu","20xx",null,"HU",null,null,null,null,null,null,null,null,null,null,"Spalte32","Spalte33","neu","neu","Spalte36","Spalte37","neu","neu","Spalte40","Spalte41","neu","neu","Spalte44","Spalte45","neu","neu","Spalte48","Spalte49","neu","neu","Spalte52","Spalte53","neu","neu","Spalte56","Spalte57","neu","neu","neu","neu","neu","neu","neu","neu","neu","neu","Spalte61",null,null,null,"Spalte63",null,null,null,"Spalte65",null,null,null,"Spalte67",null,null,null,"Spalte69",null,null,null,"Spalte71",null,null,null,"Spalte73"]